{"text_format":"1","workbook":"xlsx","n_sheets":6,"sheets":["RE-Buch","DATEV Buchungsexport","Kostenarten","Lieferanten","DATA","omkantine.de"],"not_rendered":{"charts":0,"images":0,"macros":1,"external_links":0,"defined_names":3,"comments":0,"pivot_tables":0},"unopened":[],"bounds":{"document_bytes":16777216,"sheet_cells":100000,"rows_first":2000,"rows_last":500,"rows_between":2000,"halvings":0,"cell_chars":16384,"cell_head_chars":4096},"cells_cut":0,"cells_raw":0,"read":"whole","date_system":"1900"}

{"sheet":"RE-Buch","index":0,"n_rows":10002,"n_cols":14,"rows_kept":4500,"cut":true,"hidden":false,"merged":[],"bounds":{"rows_first":2000,"rows_last":500,"rows_between":2000,"halvings":0}}
["Rechnungseingangsbuch",null,null,null,null,null,null,null,null,null,null,null,null,{"$f":"TODAY()","v":"2019-01-12"}]
["RE Eingang","Lieferant*","RE Art*","RE Nummer*","Re. Nr. Check","RE Datum*","Leistungs-zeitraum","Brutto Betrag*","MWSt. Satz*","Netto Betrag","Rechnungsinhalt","Kostenart*","MA Kürzel","Buchungs-export"]
[null,"Lieferant auswählen",null,null,{"$f":"IF(COUNTIF(D:D,D3)=1,\"OK\",COUNTIF(D:D,D3)=1)","v":false},null,null,null,null,{"$f":"H3/(1+I3)","v":0},null,"Kostenart auswählen"]
[null,"Lieferant auswählen",null,null,false,null,null,null,null,0,null,"Kostenart auswählen"]
[null,"Lieferant auswählen",null,null,false,null,null,null,null,0,null,"Kostenart auswählen"]
[null,"Lieferant auswählen",null,null,false,null,null,null,null,0,null,"Kostenart auswählen"]
[null,"Lieferant auswählen",null,null,false,null,null,null,null,0,null,"Kostenart auswählen"]
[null,"Lieferant auswählen",null,null,false,null,null,null,null,0,null,"Kostenart auswählen"]
[null,"Lieferant auswählen",null,null,false,null,null,null,null,0,null,"Kostenart auswählen"]
[null,"Lieferant auswählen",null,null,false,null,null,null,null,0,null,"Kostenart auswählen"]
[null,"Lieferant auswählen",null,null,false,null,null,null,null,0,null,"Kostenart auswählen"]
[null,"Lieferant auswählen",null,null,false,null,null,null,null,0,null,"Kostenart auswählen"]
[null,"Lieferant auswählen",null,null,false,null,null,null,null,0,null,"Kostenart auswählen"]
[null,"Lieferant auswählen",null,null,false,null,null,null,null,0,null,"Kostenart auswählen"]
[null,"Lieferant auswählen",null,null,false,null,null,null,null,0,null,"Kostenart auswählen"]
[null,"Lieferant auswählen",null,null,false,null,null,null,null,0,null,"Kostenart auswählen"]
[null,"Lieferant auswählen",null,null,false,null,null,null,null,0,null,"Kostenart auswählen"]
[null,"Lieferant auswählen",null,null,false,null,null,null,null,0,null,"Kostenart auswählen"]
[null,"Lieferant auswählen",null,null,false,null,null,null,null,0,null,"Kostenart auswählen"]
[null,"Lieferant auswählen",null,null,false,null,null,null,null,0,null,"Kostenart auswählen"]
[null,"Lieferant auswählen",null,null,false,null,null,null,null,0,null,"Kostenart auswählen"]
[null,"Lieferant auswählen",null,null,false,null,null,null,null,0,null,"Kostenart auswählen"]
[null,"Lieferant auswählen",null,null,false,null,null,null,null,0,null,"Kostenart auswählen"]
[null,"Lieferant auswählen",null,null,false,null,null,null,null,0,null,"Kostenart auswählen"]
[null,"Lieferant auswählen",null,null,false,null,null,null,null,0,null,"Kostenart auswählen"]
[null,"Lieferant auswählen",null,null,false,null,null,null,null,0,null,"Kostenart auswählen"]
[null,"Lieferant auswählen",null,null,false,null,null,null,null,0,null,"Kostenart auswählen"]
[null,"Lieferant auswählen",null,null,false,null,null,null,null,0,null,"Kostenart auswählen"]
[null,"Lieferant auswählen",null,null,false,null,null,null,null,0,null,"Kostenart auswählen"]
[null,"Lieferant auswählen",null,null,false,null,null,null,null,0,null,"Kostenart auswählen"]
[null,"Lieferant auswählen",null,null,false,null,null,null,null,0,null,"Kostenart auswählen"]
[null,"Lieferant auswählen",null,null,false,null,null,null,null,0,null,"Kostenart auswählen"]
[null,"Lieferant auswählen",null,null,false,null,null,null,null,0,null,"Kostenart auswählen"]
[null,"Lieferant auswählen",null,null,false,null,null,null,null,0,null,"Kostenart auswählen"]
[null,"Lieferant auswählen",null,null,false,null,null,null,null,0,null,"Kostenart auswählen"]
[null,"Lieferant auswählen",null,null,false,null,null,null,null,0,null,"Kostenart auswählen"]
[null,"Lieferant auswählen",null,null,false,null,null,null,null,0,null,"Kostenart auswählen"]
[null,"Lieferant auswählen",null,null,false,null,null,null,null,0,null,"Kostenart auswählen"]
[null,"Lieferant auswählen",null,null,false,null,null,null,null,0,null,"Kostenart auswählen"]
[null,"Lieferant auswählen",null,null,false,null,null,null,null,0,null,"Kostenart auswählen"]
[null,"Lieferant auswählen",null,null,false,null,null,null,null,0,null,"Kostenart auswählen"]
[null,"Lieferant auswählen",null,null,false,null,null,null,null,0,null,"Kostenart auswählen"]
[null,"Lieferant auswählen",null,null,false,null,null,null,null,0,null,"Kostenart auswählen"]
[null,"Lieferant auswählen",null,null,false,null,null,null,null,0,null,"Kostenart auswählen"]
[null,"Lieferant auswählen",null,null,false,null,null,null,null,0,null,"Kostenart auswählen"]
[null,"Lieferant auswählen",null,null,false,null,null,null,null,0,null,"Kostenart auswählen"]
[null,"Lieferant auswählen",null,null,false,null,null,null,null,0,null,"Kostenart auswählen"]
[null,"Lieferant auswählen",null,null,false,null,null,null,null,0,null,"Kostenart auswählen"]
[null,"Lieferant auswählen",null,null,false,null,null,null,null,0,null,"Kostenart auswählen"]
[null,"Lieferant auswählen",null,null,false,null,null,null,null,0,null,"Kostenart auswählen"]
[null,"Lieferant auswählen",null,null,false,null,null,null,null,0,null,"Kostenart auswählen"]
[null,"Lieferant auswählen",null,null,false,null,null,null,null,0,null,"Kostenart auswählen"]
[null,"Lieferant auswählen",null,null,false,null,null,null,null,0,null,"Kostenart auswählen"]
[null,"Lieferant auswählen",null,null,false,null,null,null,null,0,null,"Kostenart auswählen"]
[null,"Lieferant auswählen",null,null,false,null,null,null,null,0,null,"Kostenart auswählen"]
[null,"Lieferant auswählen",null,null,false,null,null,null,null,0,null,"Kostenart auswählen"]
[null,"Lieferant auswählen",null,null,false,null,null,null,null,0,null,"Kostenart auswählen"]
[null,"Lieferant auswählen",null,null,false,null,null,null,null,0,null,"Kostenart auswählen"]
[null,"Lieferant auswählen",null,null,false,null,null,null,null,0,null,"Kostenart auswählen"]
[null,"Lieferant auswählen",null,null,false,null,null,null,null,0,null,"Kostenart auswählen"]
[null,"Lieferant auswählen",null,null,false,null,null,null,null,0,null,"Kostenart auswählen"]
[null,"Lieferant auswählen",null,null,false,null,null,null,null,0,null,"Kostenart auswählen"]
[null,"Lieferant auswählen",null,null,false,null,null,null,null,0,null,"Kostenart auswählen"]
[null,"Lieferant auswählen",null,null,false,null,null,null,null,0,null,"Kostenart auswählen"]
[null,"Lieferant auswählen",null,null,false,null,null,null,null,0,null,"Kostenart auswählen"]
[null,"Lieferant auswählen",null,null,false,null,null,null,null,0,null,"Kostenart auswählen"]
[null,"Lieferant auswählen",null,null,{"$f":"IF(COUNTIF(D:D,D67)=1,\"OK\",COUNTIF(D:D,D67)=1)","v":false},null,null,null,null,{"$f":"H67/(1+I67)","v":0},null,"Kostenart auswählen"]
[null,"Lieferant auswählen",null,null,false,null,null,null,null,0,null,"Kostenart auswählen"]
[null,"Lieferant auswählen",null,null,false,null,null,null,null,0,null,"Kostenart auswählen"]
[null,"Lieferant auswählen",null,null,false,null,null,null,null,0,null,"Kostenart auswählen"]
[null,"Lieferant auswählen",null,null,false,null,null,null,null,0,null,"Kostenart auswählen"]
[null,"Lieferant auswählen",null,null,false,null,null,null,null,0,null,"Kostenart auswählen"]
[null,"Lieferant auswählen",null,null,false,null,null,null,null,0,null,"Kostenart auswählen"]
[null,"Lieferant auswählen",null,null,false,null,null,null,null,0,null,"Kostenart auswählen"]
[null,"Lieferant auswählen",null,null,false,null,null,null,null,0,null,"Kostenart auswählen"]
[null,"Lieferant auswählen",null,null,false,null,null,null,null,0,null,"Kostenart auswählen"]
[null,"Lieferant auswählen",null,null,false,null,null,null,null,0,null,"Kostenart auswählen"]
[null,"Lieferant auswählen",null,null,false,null,null,null,null,0,null,"Kostenart auswählen"]
[null,"Lieferant auswählen",null,null,false,null,null,null,null,0,null,"Kostenart auswählen"]
[null,"Lieferant auswählen",null,null,false,null,null,null,null,0,null,"Kostenart auswählen"]
[null,"Lieferant auswählen",null,null,false,null,null,null,null,0,null,"Kostenart auswählen"]
[null,"Lieferant auswählen",null,null,false,null,null,null,null,0,null,"Kostenart auswählen"]
[null,"Lieferant auswählen",null,null,false,null,null,null,null,0,null,"Kostenart auswählen"]
[null,"Lieferant auswählen",null,null,false,null,null,null,null,0,null,"Kostenart auswählen"]
[null,"Lieferant auswählen",null,null,false,null,null,null,null,0,null,"Kostenart auswählen"]
[null,"Lieferant auswählen",null,null,false,null,null,null,null,0,null,"Kostenart auswählen"]
[null,"Lieferant auswählen",null,null,false,null,null,null,null,0,null,"Kostenart auswählen"]
[null,"Lieferant auswählen",null,null,false,null,null,null,null,0,null,"Kostenart auswählen"]
[null,"Lieferant auswählen",null,null,false,null,null,null,null,0,null,"Kostenart auswählen"]
[null,"Lieferant auswählen",null,null,false,null,null,null,null,0,null,"Kostenart auswählen"]
[null,"Lieferant auswählen",null,null,false,null,null,null,null,0,null,"Kostenart auswählen"]
[null,"Lieferant auswählen",null,null,false,null,null,null,null,0,null,"Kostenart auswählen"]
[null,"Lieferant auswählen",null,null,false,null,null,null,null,0,null,"Kostenart auswählen"]
[null,"Lieferant auswählen",null,null,false,null,null,null,null,0,null,"Kostenart auswählen"]
[null,"Lieferant auswählen",null,null,false,null,null,null,null,0,null,"Kostenart auswählen"]
[null,"Lieferant auswählen",null,null,false,null,null,null,null,0,null,"Kostenart auswählen"]
[null,"Lieferant auswählen",null,null,false,null,null,null,null,0,null,"Kostenart auswählen"]
[null,"Lieferant auswählen",null,null,false,null,null,null,null,0,null,"Kostenart auswählen"]
[null,"Lieferant auswählen",null,null,false,null,null,null,null,0,null,"Kostenart auswählen"]
[null,"Lieferant auswählen",null,null,false,null,null,null,null,0,null,"Kostenart auswählen"]
[null,"Lieferant auswählen",null,null,false,null,null,null,null,0,null,"Kostenart auswählen"]
[null,"Lieferant auswählen",null,null,false,null,null,null,null,0,null,"Kostenart auswählen"]
[null,"Lieferant auswählen",null,null,false,null,null,null,null,0,null,"Kostenart auswählen"]
[null,"Lieferant auswählen",null,null,false,null,null,null,null,0,null,"Kostenart auswählen"]
[null,"Lieferant auswählen",null,null,false,null,null,null,null,0,null,"Kostenart auswählen"]
[null,"Lieferant auswählen",null,null,false,null,null,null,null,0,null,"Kostenart auswählen"]
[null,"Lieferant auswählen",null,null,false,null,null,null,null,0,null,"Kostenart auswählen"]
[null,"Lieferant auswählen",null,null,false,null,null,null,null,0,null,"Kostenart auswählen"]
[null,"Lieferant auswählen",null,null,false,null,null,null,null,0,null,"Kostenart auswählen"]
[null,"Lieferant auswählen",null,null,false,null,null,null,null,0,null,"Kostenart auswählen"]
[null,"Lieferant auswählen",null,null,false,null,null,null,null,0,null,"Kostenart auswählen"]
[null,"Lieferant auswählen",null,null,false,null,null,null,null,0,null,"Kostenart auswählen"]
[null,"Lieferant auswählen",null,null,false,null,null,null,null,0,null,"Kostenart auswählen"]
[null,"Lieferant auswählen",null,null,false,null,null,null,null,0,null,"Kostenart auswählen"]
[null,"Lieferant auswählen",null,null,false,null,null,null,null,0,null,"Kostenart auswählen"]
[null,"Lieferant auswählen",null,null,false,null,null,null,null,0,null,"Kostenart auswählen"]
[null,"Lieferant auswählen",null,null,false,null,null,null,null,0,null,"Kostenart auswählen"]
[null,"Lieferant auswählen",null,null,false,null,null,null,null,0,null,"Kostenart auswählen"]
[null,"Lieferant auswählen",null,null,false,null,null,null,null,0,null,"Kostenart auswählen"]
[null,"Lieferant auswählen",null,null,false,null,null,null,null,0,null,"Kostenart auswählen"]
[null,"Lieferant auswählen",null,null,false,null,null,null,null,0,null,"Kostenart auswählen"]
[null,"Lieferant auswählen",null,null,false,null,null,null,null,0,null,"Kostenart auswählen"]
[null,"Lieferant auswählen",null,null,false,null,null,null,null,0,null,"Kostenart auswählen"]
[null,"Lieferant auswählen",null,null,false,null,null,null,null,0,null,"Kostenart auswählen"]
[null,"Lieferant auswählen",null,null,false,null,null,null,null,0,null,"Kostenart auswählen"]
[null,"Lieferant auswählen",null,null,false,null,null,null,null,0,null,"Kostenart auswählen"]
[null,"Lieferant auswählen",null,null,false,null,null,null,null,0,null,"Kostenart auswählen"]
[null,"Lieferant auswählen",null,null,false,null,null,null,null,0,null,"Kostenart auswählen"]
[null,"Lieferant auswählen",null,null,false,null,null,null,null,0,null,"Kostenart auswählen"]
[null,"Lieferant auswählen",null,null,false,null,null,null,null,0,null,"Kostenart auswählen"]
[null,"Lieferant auswählen",null,null,{"$f":"IF(COUNTIF(D:D,D131)=1,\"OK\",COUNTIF(D:D,D131)=1)","v":false},null,null,null,null,{"$f":"H131/(1+I131)","v":0},null,"Kostenart auswählen"]
[null,"Lieferant auswählen",null,null,false,null,null,null,null,0,null,"Kostenart auswählen"]
[null,"Lieferant auswählen",null,null,false,null,null,null,null,0,null,"Kostenart auswählen"]
[null,"Lieferant auswählen",null,null,false,null,null,null,null,0,null,"Kostenart auswählen"]
[null,"Lieferant auswählen",null,null,false,null,null,null,null,0,null,"Kostenart auswählen"]
[null,"Lieferant auswählen",null,null,false,null,null,null,null,0,null,"Kostenart auswählen"]
[null,"Lieferant auswählen",null,null,false,null,null,null,null,0,null,"Kostenart auswählen"]
[null,"Lieferant auswählen",null,null,false,null,null,null,null,0,null,"Kostenart auswählen"]
[null,"Lieferant auswählen",null,null,false,null,null,null,null,0,null,"Kostenart auswählen"]
[null,"Lieferant auswählen",null,null,false,null,null,null,null,0,null,"Kostenart auswählen"]
[null,"Lieferant auswählen",null,null,false,null,null,null,null,0,null,"Kostenart auswählen"]
[null,"Lieferant auswählen",null,null,false,null,null,null,null,0,null,"Kostenart auswählen"]
[null,"Lieferant auswählen",null,null,false,null,null,null,null,0,null,"Kostenart auswählen"]
[null,"Lieferant auswählen",null,null,false,null,null,null,null,0,null,"Kostenart auswählen"]
[null,"Lieferant auswählen",null,null,false,null,null,null,null,0,null,"Kostenart auswählen"]
[null,"Lieferant auswählen",null,null,false,null,null,null,null,0,null,"Kostenart auswählen"]
[null,"Lieferant auswählen",null,null,false,null,null,null,null,0,null,"Kostenart auswählen"]
[null,"Lieferant auswählen",null,null,false,null,null,null,null,0,null,"Kostenart auswählen"]
[null,"Lieferant auswählen",null,null,false,null,null,null,null,0,null,"Kostenart auswählen"]
[null,"Lieferant auswählen",null,null,false,null,null,null,null,0,null,"Kostenart auswählen"]
[null,"Lieferant auswählen",null,null,false,null,null,null,null,0,null,"Kostenart auswählen"]
[null,"Lieferant auswählen",null,null,false,null,null,null,null,0,null,"Kostenart auswählen"]
[null,"Lieferant auswählen",null,null,false,null,null,null,null,0,null,"Kostenart auswählen"]
[null,"Lieferant auswählen",null,null,false,null,null,null,null,0,null,"Kostenart auswählen"]
[null,"Lieferant auswählen",null,null,false,null,null,null,null,0,null,"Kostenart auswählen"]
[null,"Lieferant auswählen",null,null,false,null,null,null,null,0,null,"Kostenart auswählen"]
[null,"Lieferant auswählen",null,null,false,null,null,null,null,0,null,"Kostenart auswählen"]
[null,"Lieferant auswählen",null,null,false,null,null,null,null,0,null,"Kostenart auswählen"]
[null,"Lieferant auswählen",null,null,false,null,null,null,null,0,null,"Kostenart auswählen"]
[null,"Lieferant auswählen",null,null,false,null,null,null,null,0,null,"Kostenart auswählen"]
[null,"Lieferant auswählen",null,null,false,null,null,null,null,0,null,"Kostenart auswählen"]
[null,"Lieferant auswählen",null,null,false,null,null,null,null,0,null,"Kostenart auswählen"]
[null,"Lieferant auswählen",null,null,false,null,null,null,null,0,null,"Kostenart auswählen"]
[null,"Lieferant auswählen",null,null,false,null,null,null,null,0,null,"Kostenart auswählen"]
[null,"Lieferant auswählen",null,null,false,null,null,null,null,0,null,"Kostenart auswählen"]
[null,"Lieferant auswählen",null,null,false,null,null,null,null,0,null,"Kostenart auswählen"]
[null,"Lieferant auswählen",null,null,false,null,null,null,null,0,null,"Kostenart auswählen"]
[null,"Lieferant auswählen",null,null,false,null,null,null,null,0,null,"Kostenart auswählen"]
[null,"Lieferant auswählen",null,null,false,null,null,null,null,0,null,"Kostenart auswählen"]
[null,"Lieferant auswählen",null,null,false,null,null,null,null,0,null,"Kostenart auswählen"]
[null,"Lieferant auswählen",null,null,false,null,null,null,null,0,null,"Kostenart auswählen"]
[null,"Lieferant auswählen",null,null,false,null,null,null,null,0,null,"Kostenart auswählen"]
[null,"Lieferant auswählen",null,null,false,null,null,null,null,0,null,"Kostenart auswählen"]
[null,"Lieferant auswählen",null,null,false,null,null,null,null,0,null,"Kostenart auswählen"]
[null,"Lieferant auswählen",null,null,false,null,null,null,null,0,null,"Kostenart auswählen"]
[null,"Lieferant auswählen",null,null,false,null,null,null,null,0,null,"Kostenart auswählen"]
[null,"Lieferant auswählen",null,null,false,null,null,null,null,0,null,"Kostenart auswählen"]
[null,"Lieferant auswählen",null,null,false,null,null,null,null,0,null,"Kostenart auswählen"]
[null,"Lieferant auswählen",null,null,false,null,null,null,null,0,null,"Kostenart auswählen"]
[null,"Lieferant auswählen",null,null,false,null,null,null,null,0,null,"Kostenart auswählen"]
[null,"Lieferant auswählen",null,null,false,null,null,null,null,0,null,"Kostenart auswählen"]
[null,"Lieferant auswählen",null,null,false,null,null,null,null,0,null,"Kostenart auswählen"]
[null,"Lieferant auswählen",null,null,false,null,null,null,null,0,null,"Kostenart auswählen"]
[null,"Lieferant auswählen",null,null,false,null,null,null,null,0,null,"Kostenart auswählen"]
[null,"Lieferant auswählen",null,null,false,null,null,null,null,0,null,"Kostenart auswählen"]
[null,"Lieferant auswählen",null,null,false,null,null,null,null,0,null,"Kostenart auswählen"]
[null,"Lieferant auswählen",null,null,false,null,null,null,null,0,null,"Kostenart auswählen"]
[null,"Lieferant auswählen",null,null,false,null,null,null,null,0,null,"Kostenart auswählen"]
[null,"Lieferant auswählen",null,null,false,null,null,null,null,0,null,"Kostenart auswählen"]
[null,"Lieferant auswählen",null,null,false,null,null,null,null,0,null,"Kostenart auswählen"]
[null,"Lieferant auswählen",null,null,false,null,null,null,null,0,null,"Kostenart auswählen"]
[null,"Lieferant auswählen",null,null,false,null,null,null,null,0,null,"Kostenart auswählen"]
[null,"Lieferant auswählen",null,null,false,null,null,null,null,0,null,"Kostenart auswählen"]
[null,"Lieferant auswählen",null,null,false,null,null,null,null,0,null,"Kostenart auswählen"]
[null,"Lieferant auswählen",null,null,{"$f":"IF(COUNTIF(D:D,D195)=1,\"OK\",COUNTIF(D:D,D195)=1)","v":false},null,null,null,null,{"$f":"H195/(1+I195)","v":0},null,"Kostenart auswählen"]
[null,"Lieferant auswählen",null,null,false,null,null,null,null,0,null,"Kostenart auswählen"]
[null,"Lieferant auswählen",null,null,false,null,null,null,null,0,null,"Kostenart auswählen"]
[null,"Lieferant auswählen",null,null,false,null,null,null,null,0,null,"Kostenart auswählen"]
[null,"Lieferant auswählen",null,null,false,null,null,null,null,0,null,"Kostenart auswählen"]
[null,"Lieferant auswählen",null,null,false,null,null,null,null,0,null,"Kostenart auswählen"]
[null,"Lieferant auswählen",null,null,false,null,null,null,null,0,null,"Kostenart auswählen"]
[null,"Lieferant auswählen",null,null,false,null,null,null,null,0,null,"Kostenart auswählen"]
[null,"Lieferant auswählen",null,null,false,null,null,null,null,0,null,"Kostenart auswählen"]
[null,"Lieferant auswählen",null,null,false,null,null,null,null,0,null,"Kostenart auswählen"]
[null,"Lieferant auswählen",null,null,false,null,null,null,null,0,null,"Kostenart auswählen"]
[null,"Lieferant auswählen",null,null,false,null,null,null,null,0,null,"Kostenart auswählen"]
[null,"Lieferant auswählen",null,null,false,null,null,null,null,0,null,"Kostenart auswählen"]
[null,"Lieferant auswählen",null,null,false,null,null,null,null,0,null,"Kostenart auswählen"]
[null,"Lieferant auswählen",null,null,false,null,null,null,null,0,null,"Kostenart auswählen"]
[null,"Lieferant auswählen",null,null,false,null,null,null,null,0,null,"Kostenart auswählen"]
[null,"Lieferant auswählen",null,null,false,null,null,null,null,0,null,"Kostenart auswählen"]
[null,"Lieferant auswählen",null,null,false,null,null,null,null,0,null,"Kostenart auswählen"]
[null,"Lieferant auswählen",null,null,false,null,null,null,null,0,null,"Kostenart auswählen"]
[null,"Lieferant auswählen",null,null,false,null,null,null,null,0,null,"Kostenart auswählen"]
[null,"Lieferant auswählen",null,null,false,null,null,null,null,0,null,"Kostenart auswählen"]
[null,"Lieferant auswählen",null,null,false,null,null,null,null,0,null,"Kostenart auswählen"]
[null,"Lieferant auswählen",null,null,false,null,null,null,null,0,null,"Kostenart auswählen"]
[null,"Lieferant auswählen",null,null,false,null,null,null,null,0,null,"Kostenart auswählen"]
[null,"Lieferant auswählen",null,null,false,null,null,null,null,0,null,"Kostenart auswählen"]
[null,"Lieferant auswählen",null,null,false,null,null,null,null,0,null,"Kostenart auswählen"]
[null,"Lieferant auswählen",null,null,false,null,null,null,null,0,null,"Kostenart auswählen"]
[null,"Lieferant auswählen",null,null,false,null,null,null,null,0,null,"Kostenart auswählen"]
[null,"Lieferant auswählen",null,null,false,null,null,null,null,0,null,"Kostenart auswählen"]
[null,"Lieferant auswählen",null,null,false,null,null,null,null,0,null,"Kostenart auswählen"]
[null,"Lieferant auswählen",null,null,false,null,null,null,null,0,null,"Kostenart auswählen"]
[null,"Lieferant auswählen",null,null,false,null,null,null,null,0,null,"Kostenart auswählen"]
[null,"Lieferant auswählen",null,null,false,null,null,null,null,0,null,"Kostenart auswählen"]
[null,"Lieferant auswählen",null,null,false,null,null,null,null,0,null,"Kostenart auswählen"]
[null,"Lieferant auswählen",null,null,false,null,null,null,null,0,null,"Kostenart auswählen"]
[null,"Lieferant auswählen",null,null,false,null,null,null,null,0,null,"Kostenart auswählen"]
[null,"Lieferant auswählen",null,null,false,null,null,null,null,0,null,"Kostenart auswählen"]
[null,"Lieferant auswählen",null,null,false,null,null,null,null,0,null,"Kostenart auswählen"]
[null,"Lieferant auswählen",null,null,false,null,null,null,null,0,null,"Kostenart auswählen"]
[null,"Lieferant auswählen",null,null,false,null,null,null,null,0,null,"Kostenart auswählen"]
[null,"Lieferant auswählen",null,null,false,null,null,null,null,0,null,"Kostenart auswählen"]
[null,"Lieferant auswählen",null,null,false,null,null,null,null,0,null,"Kostenart auswählen"]
[null,"Lieferant auswählen",null,null,false,null,null,null,null,0,null,"Kostenart auswählen"]
[null,"Lieferant auswählen",null,null,false,null,null,null,null,0,null,"Kostenart auswählen"]
[null,"Lieferant auswählen",null,null,false,null,null,null,null,0,null,"Kostenart auswählen"]
[null,"Lieferant auswählen",null,null,false,null,null,null,null,0,null,"Kostenart auswählen"]
[null,"Lieferant auswählen",null,null,false,null,null,null,null,0,null,"Kostenart auswählen"]
[null,"Lieferant auswählen",null,null,false,null,null,null,null,0,null,"Kostenart auswählen"]
[null,"Lieferant auswählen",null,null,false,null,null,null,null,0,null,"Kostenart auswählen"]
[null,"Lieferant auswählen",null,null,false,null,null,null,null,0,null,"Kostenart auswählen"]
[null,"Lieferant auswählen",null,null,false,null,null,null,null,0,null,"Kostenart auswählen"]
[null,"Lieferant auswählen",null,null,false,null,null,null,null,0,null,"Kostenart auswählen"]
[null,"Lieferant auswählen",null,null,false,null,null,null,null,0,null,"Kostenart auswählen"]
[null,"Lieferant auswählen",null,null,false,null,null,null,null,0,null,"Kostenart auswählen"]
[null,"Lieferant auswählen",null,null,false,null,null,null,null,0,null,"Kostenart auswählen"]
[null,"Lieferant auswählen",null,null,false,null,null,null,null,0,null,"Kostenart auswählen"]
[null,"Lieferant auswählen",null,null,false,null,null,null,null,0,null,"Kostenart auswählen"]
[null,"Lieferant auswählen",null,null,false,null,null,null,null,0,null,"Kostenart auswählen"]
[null,"Lieferant auswählen",null,null,false,null,null,null,null,0,null,"Kostenart auswählen"]
[null,"Lieferant auswählen",null,null,false,null,null,null,null,0,null,"Kostenart auswählen"]
[null,"Lieferant auswählen",null,null,false,null,null,null,null,0,null,"Kostenart auswählen"]
[null,"Lieferant auswählen",null,null,false,null,null,null,null,0,null,"Kostenart auswählen"]
[null,"Lieferant auswählen",null,null,false,null,null,null,null,0,null,"Kostenart auswählen"]
[null,"Lieferant auswählen",null,null,false,null,null,null,null,0,null,"Kostenart auswählen"]
[null,"Lieferant auswählen",null,null,{"$f":"IF(COUNTIF(D:D,D259)=1,\"OK\",COUNTIF(D:D,D259)=1)","v":false},null,null,null,null,{"$f":"H259/(1+I259)","v":0},null,"Kostenart auswählen"]
[null,"Lieferant auswählen",null,null,false,null,null,null,null,0,null,"Kostenart auswählen"]
[null,"Lieferant auswählen",null,null,false,null,null,null,null,0,null,"Kostenart auswählen"]
[null,"Lieferant auswählen",null,null,false,null,null,null,null,0,null,"Kostenart auswählen"]
[null,"Lieferant auswählen",null,null,false,null,null,null,null,0,null,"Kostenart auswählen"]
[null,"Lieferant auswählen",null,null,false,null,null,null,null,0,null,"Kostenart auswählen"]
[null,"Lieferant auswählen",null,null,false,null,null,null,null,0,null,"Kostenart auswählen"]
[null,"Lieferant auswählen",null,null,false,null,null,null,null,0,null,"Kostenart auswählen"]
[null,"Lieferant auswählen",null,null,false,null,null,null,null,0,null,"Kostenart auswählen"]
[null,"Lieferant auswählen",null,null,false,null,null,null,null,0,null,"Kostenart auswählen"]
[null,"Lieferant auswählen",null,null,false,null,null,null,null,0,null,"Kostenart auswählen"]
[null,"Lieferant auswählen",null,null,false,null,null,null,null,0,null,"Kostenart auswählen"]
[null,"Lieferant auswählen",null,null,false,null,null,null,null,0,null,"Kostenart auswählen"]
[null,"Lieferant auswählen",null,null,false,null,null,null,null,0,null,"Kostenart auswählen"]
[null,"Lieferant auswählen",null,null,false,null,null,null,null,0,null,"Kostenart auswählen"]
[null,"Lieferant auswählen",null,null,false,null,null,null,null,0,null,"Kostenart auswählen"]
[null,"Lieferant auswählen",null,null,false,null,null,null,null,0,null,"Kostenart auswählen"]
[null,"Lieferant auswählen",null,null,false,null,null,null,null,0,null,"Kostenart auswählen"]
[null,"Lieferant auswählen",null,null,false,null,null,null,null,0,null,"Kostenart auswählen"]
[null,"Lieferant auswählen",null,null,false,null,null,null,null,0,null,"Kostenart auswählen"]
[null,"Lieferant auswählen",null,null,false,null,null,null,null,0,null,"Kostenart auswählen"]
[null,"Lieferant auswählen",null,null,false,null,null,null,null,0,null,"Kostenart auswählen"]
[null,"Lieferant auswählen",null,null,false,null,null,null,null,0,null,"Kostenart auswählen"]
[null,"Lieferant auswählen",null,null,false,null,null,null,null,0,null,"Kostenart auswählen"]
[null,"Lieferant auswählen",null,null,false,null,null,null,null,0,null,"Kostenart auswählen"]
[null,"Lieferant auswählen",null,null,false,null,null,null,null,0,null,"Kostenart auswählen"]
[null,"Lieferant auswählen",null,null,false,null,null,null,null,0,null,"Kostenart auswählen"]
[null,"Lieferant auswählen",null,null,false,null,null,null,null,0,null,"Kostenart auswählen"]
[null,"Lieferant auswählen",null,null,false,null,null,null,null,0,null,"Kostenart auswählen"]
[null,"Lieferant auswählen",null,null,false,null,null,null,null,0,null,"Kostenart auswählen"]
[null,"Lieferant auswählen",null,null,false,null,null,null,null,0,null,"Kostenart auswählen"]
[null,"Lieferant auswählen",null,null,false,null,null,null,null,0,null,"Kostenart auswählen"]
[null,"Lieferant auswählen",null,null,false,null,null,null,null,0,null,"Kostenart auswählen"]
[null,"Lieferant auswählen",null,null,false,null,null,null,null,0,null,"Kostenart auswählen"]
[null,"Lieferant auswählen",null,null,false,null,null,null,null,0,null,"Kostenart auswählen"]
[null,"Lieferant auswählen",null,null,false,null,null,null,null,0,null,"Kostenart auswählen"]
[null,"Lieferant auswählen",null,null,false,null,null,null,null,0,null,"Kostenart auswählen"]
[null,"Lieferant auswählen",null,null,false,null,null,null,null,0,null,"Kostenart auswählen"]
[null,"Lieferant auswählen",null,null,false,null,null,null,null,0,null,"Kostenart auswählen"]
[null,"Lieferant auswählen",null,null,false,null,null,null,null,0,null,"Kostenart auswählen"]
[null,"Lieferant auswählen",null,null,false,null,null,null,null,0,null,"Kostenart auswählen"]
[null,"Lieferant auswählen",null,null,false,null,null,null,null,0,null,"Kostenart auswählen"]
[null,"Lieferant auswählen",null,null,false,null,null,null,null,0,null,"Kostenart auswählen"]
[null,"Lieferant auswählen",null,null,false,null,null,null,null,0,null,"Kostenart auswählen"]
[null,"Lieferant auswählen",null,null,false,null,null,null,null,0,null,"Kostenart auswählen"]
[null,"Lieferant auswählen",null,null,false,null,null,null,null,0,null,"Kostenart auswählen"]
[null,"Lieferant auswählen",null,null,false,null,null,null,null,0,null,"Kostenart auswählen"]
[null,"Lieferant auswählen",null,null,false,null,null,null,null,0,null,"Kostenart auswählen"]
[null,"Lieferant auswählen",null,null,false,null,null,null,null,0,null,"Kostenart auswählen"]
[null,"Lieferant auswählen",null,null,false,null,null,null,null,0,null,"Kostenart auswählen"]
[null,"Lieferant auswählen",null,null,false,null,null,null,null,0,null,"Kostenart auswählen"]
[null,"Lieferant auswählen",null,null,false,null,null,null,null,0,null,"Kostenart auswählen"]
[null,"Lieferant auswählen",null,null,false,null,null,null,null,0,null,"Kostenart auswählen"]
[null,"Lieferant auswählen",null,null,false,null,null,null,null,0,null,"Kostenart auswählen"]
[null,"Lieferant auswählen",null,null,false,null,null,null,null,0,null,"Kostenart auswählen"]
[null,"Lieferant auswählen",null,null,false,null,null,null,null,0,null,"Kostenart auswählen"]
[null,"Lieferant auswählen",null,null,false,null,null,null,null,0,null,"Kostenart auswählen"]
[null,"Lieferant auswählen",null,null,false,null,null,null,null,0,null,"Kostenart auswählen"]
[null,"Lieferant auswählen",null,null,false,null,null,null,null,0,null,"Kostenart auswählen"]
[null,"Lieferant auswählen",null,null,false,null,null,null,null,0,null,"Kostenart auswählen"]
[null,"Lieferant auswählen",null,null,false,null,null,null,null,0,null,"Kostenart auswählen"]
[null,"Lieferant auswählen",null,null,false,null,null,null,null,0,null,"Kostenart auswählen"]
[null,"Lieferant auswählen",null,null,false,null,null,null,null,0,null,"Kostenart auswählen"]
[null,"Lieferant auswählen",null,null,false,null,null,null,null,0,null,"Kostenart auswählen"]
[null,"Lieferant auswählen",null,null,{"$f":"IF(COUNTIF(D:D,D323)=1,\"OK\",COUNTIF(D:D,D323)=1)","v":false},null,null,null,null,{"$f":"H323/(1+I323)","v":0},null,"Kostenart auswählen"]
[null,"Lieferant auswählen",null,null,false,null,null,null,null,0,null,"Kostenart auswählen"]
[null,"Lieferant auswählen",null,null,false,null,null,null,null,0,null,"Kostenart auswählen"]
[null,"Lieferant auswählen",null,null,false,null,null,null,null,0,null,"Kostenart auswählen"]
[null,"Lieferant auswählen",null,null,false,null,null,null,null,0,null,"Kostenart auswählen"]
[null,"Lieferant auswählen",null,null,false,null,null,null,null,0,null,"Kostenart auswählen"]
[null,"Lieferant auswählen",null,null,false,null,null,null,null,0,null,"Kostenart auswählen"]
[null,"Lieferant auswählen",null,null,false,null,null,null,null,0,null,"Kostenart auswählen"]
[null,"Lieferant auswählen",null,null,false,null,null,null,null,0,null,"Kostenart auswählen"]
[null,"Lieferant auswählen",null,null,false,null,null,null,null,0,null,"Kostenart auswählen"]
[null,"Lieferant auswählen",null,null,false,null,null,null,null,0,null,"Kostenart auswählen"]
[null,"Lieferant auswählen",null,null,false,null,null,null,null,0,null,"Kostenart auswählen"]
[null,"Lieferant auswählen",null,null,false,null,null,null,null,0,null,"Kostenart auswählen"]
[null,"Lieferant auswählen",null,null,false,null,null,null,null,0,null,"Kostenart auswählen"]
[null,"Lieferant auswählen",null,null,false,null,null,null,null,0,null,"Kostenart auswählen"]
[null,"Lieferant auswählen",null,null,false,null,null,null,null,0,null,"Kostenart auswählen"]
[null,"Lieferant auswählen",null,null,false,null,null,null,null,0,null,"Kostenart auswählen"]
[null,"Lieferant auswählen",null,null,false,null,null,null,null,0,null,"Kostenart auswählen"]
[null,"Lieferant auswählen",null,null,false,null,null,null,null,0,null,"Kostenart auswählen"]
[null,"Lieferant auswählen",null,null,false,null,null,null,null,0,null,"Kostenart auswählen"]
[null,"Lieferant auswählen",null,null,false,null,null,null,null,0,null,"Kostenart auswählen"]
[null,"Lieferant auswählen",null,null,false,null,null,null,null,0,null,"Kostenart auswählen"]
[null,"Lieferant auswählen",null,null,false,null,null,null,null,0,null,"Kostenart auswählen"]
[null,"Lieferant auswählen",null,null,false,null,null,null,null,0,null,"Kostenart auswählen"]
[null,"Lieferant auswählen",null,null,false,null,null,null,null,0,null,"Kostenart auswählen"]
[null,"Lieferant auswählen",null,null,false,null,null,null,null,0,null,"Kostenart auswählen"]
[null,"Lieferant auswählen",null,null,false,null,null,null,null,0,null,"Kostenart auswählen"]
[null,"Lieferant auswählen",null,null,false,null,null,null,null,0,null,"Kostenart auswählen"]
[null,"Lieferant auswählen",null,null,false,null,null,null,null,0,null,"Kostenart auswählen"]
[null,"Lieferant auswählen",null,null,false,null,null,null,null,0,null,"Kostenart auswählen"]
[null,"Lieferant auswählen",null,null,false,null,null,null,null,0,null,"Kostenart auswählen"]
[null,"Lieferant auswählen",null,null,false,null,null,null,null,0,null,"Kostenart auswählen"]
[null,"Lieferant auswählen",null,null,false,null,null,null,null,0,null,"Kostenart auswählen"]
[null,"Lieferant auswählen",null,null,false,null,null,null,null,0,null,"Kostenart auswählen"]
[null,"Lieferant auswählen",null,null,false,null,null,null,null,0,null,"Kostenart auswählen"]
[null,"Lieferant auswählen",null,null,false,null,null,null,null,0,null,"Kostenart auswählen"]
[null,"Lieferant auswählen",null,null,false,null,null,null,null,0,null,"Kostenart auswählen"]
[null,"Lieferant auswählen",null,null,false,null,null,null,null,0,null,"Kostenart auswählen"]
[null,"Lieferant auswählen",null,null,false,null,null,null,null,0,null,"Kostenart auswählen"]
[null,"Lieferant auswählen",null,null,false,null,null,null,null,0,null,"Kostenart auswählen"]
[null,"Lieferant auswählen",null,null,false,null,null,null,null,0,null,"Kostenart auswählen"]
[null,"Lieferant auswählen",null,null,false,null,null,null,null,0,null,"Kostenart auswählen"]
[null,"Lieferant auswählen",null,null,false,null,null,null,null,0,null,"Kostenart auswählen"]
[null,"Lieferant auswählen",null,null,false,null,null,null,null,0,null,"Kostenart auswählen"]
[null,"Lieferant auswählen",null,null,false,null,null,null,null,0,null,"Kostenart auswählen"]
[null,"Lieferant auswählen",null,null,false,null,null,null,null,0,null,"Kostenart auswählen"]
[null,"Lieferant auswählen",null,null,false,null,null,null,null,0,null,"Kostenart auswählen"]
[null,"Lieferant auswählen",null,null,false,null,null,null,null,0,null,"Kostenart auswählen"]
[null,"Lieferant auswählen",null,null,false,null,null,null,null,0,null,"Kostenart auswählen"]
[null,"Lieferant auswählen",null,null,false,null,null,null,null,0,null,"Kostenart auswählen"]
[null,"Lieferant auswählen",null,null,false,null,null,null,null,0,null,"Kostenart auswählen"]
[null,"Lieferant auswählen",null,null,false,null,null,null,null,0,null,"Kostenart auswählen"]
[null,"Lieferant auswählen",null,null,false,null,null,null,null,0,null,"Kostenart auswählen"]
[null,"Lieferant auswählen",null,null,false,null,null,null,null,0,null,"Kostenart auswählen"]
[null,"Lieferant auswählen",null,null,false,null,null,null,null,0,null,"Kostenart auswählen"]
[null,"Lieferant auswählen",null,null,false,null,null,null,null,0,null,"Kostenart auswählen"]
[null,"Lieferant auswählen",null,null,false,null,null,null,null,0,null,"Kostenart auswählen"]
[null,"Lieferant auswählen",null,null,false,null,null,null,null,0,null,"Kostenart auswählen"]
[null,"Lieferant auswählen",null,null,false,null,null,null,null,0,null,"Kostenart auswählen"]
[null,"Lieferant auswählen",null,null,false,null,null,null,null,0,null,"Kostenart auswählen"]
[null,"Lieferant auswählen",null,null,false,null,null,null,null,0,null,"Kostenart auswählen"]
[null,"Lieferant auswählen",null,null,false,null,null,null,null,0,null,"Kostenart auswählen"]
[null,"Lieferant auswählen",null,null,false,null,null,null,null,0,null,"Kostenart auswählen"]
[null,"Lieferant auswählen",null,null,false,null,null,null,null,0,null,"Kostenart auswählen"]
[null,"Lieferant auswählen",null,null,{"$f":"IF(COUNTIF(D:D,D387)=1,\"OK\",COUNTIF(D:D,D387)=1)","v":false},null,null,null,null,{"$f":"H387/(1+I387)","v":0},null,"Kostenart auswählen"]
[null,"Lieferant auswählen",null,null,false,null,null,null,null,0,null,"Kostenart auswählen"]
[null,"Lieferant auswählen",null,null,false,null,null,null,null,0,null,"Kostenart auswählen"]
[null,"Lieferant auswählen",null,null,false,null,null,null,null,0,null,"Kostenart auswählen"]
[null,"Lieferant auswählen",null,null,false,null,null,null,null,0,null,"Kostenart auswählen"]
[null,"Lieferant auswählen",null,null,false,null,null,null,null,0,null,"Kostenart auswählen"]
[null,"Lieferant auswählen",null,null,false,null,null,null,null,0,null,"Kostenart auswählen"]
[null,"Lieferant auswählen",null,null,false,null,null,null,null,0,null,"Kostenart auswählen"]
[null,"Lieferant auswählen",null,null,false,null,null,null,null,0,null,"Kostenart auswählen"]
[null,"Lieferant auswählen",null,null,false,null,null,null,null,0,null,"Kostenart auswählen"]
[null,"Lieferant auswählen",null,null,false,null,null,null,null,0,null,"Kostenart auswählen"]
[null,"Lieferant auswählen",null,null,false,null,null,null,null,0,null,"Kostenart auswählen"]
[null,"Lieferant auswählen",null,null,false,null,null,null,null,0,null,"Kostenart auswählen"]
[null,"Lieferant auswählen",null,null,false,null,null,null,null,0,null,"Kostenart auswählen"]
[null,"Lieferant auswählen",null,null,false,null,null,null,null,0,null,"Kostenart auswählen"]
[null,"Lieferant auswählen",null,null,false,null,null,null,null,0,null,"Kostenart auswählen"]
[null,"Lieferant auswählen",null,null,false,null,null,null,null,0,null,"Kostenart auswählen"]
[null,"Lieferant auswählen",null,null,false,null,null,null,null,0,null,"Kostenart auswählen"]
[null,"Lieferant auswählen",null,null,false,null,null,null,null,0,null,"Kostenart auswählen"]
[null,"Lieferant auswählen",null,null,false,null,null,null,null,0,null,"Kostenart auswählen"]
[null,"Lieferant auswählen",null,null,false,null,null,null,null,0,null,"Kostenart auswählen"]
[null,"Lieferant auswählen",null,null,false,null,null,null,null,0,null,"Kostenart auswählen"]
[null,"Lieferant auswählen",null,null,false,null,null,null,null,0,null,"Kostenart auswählen"]
[null,"Lieferant auswählen",null,null,false,null,null,null,null,0,null,"Kostenart auswählen"]
[null,"Lieferant auswählen",null,null,false,null,null,null,null,0,null,"Kostenart auswählen"]
[null,"Lieferant auswählen",null,null,false,null,null,null,null,0,null,"Kostenart auswählen"]
[null,"Lieferant auswählen",null,null,false,null,null,null,null,0,null,"Kostenart auswählen"]
[null,"Lieferant auswählen",null,null,false,null,null,null,null,0,null,"Kostenart auswählen"]
[null,"Lieferant auswählen",null,null,false,null,null,null,null,0,null,"Kostenart auswählen"]
[null,"Lieferant auswählen",null,null,false,null,null,null,null,0,null,"Kostenart auswählen"]
[null,"Lieferant auswählen",null,null,false,null,null,null,null,0,null,"Kostenart auswählen"]
[null,"Lieferant auswählen",null,null,false,null,null,null,null,0,null,"Kostenart auswählen"]
[null,"Lieferant auswählen",null,null,false,null,null,null,null,0,null,"Kostenart auswählen"]
[null,"Lieferant auswählen",null,null,false,null,null,null,null,0,null,"Kostenart auswählen"]
[null,"Lieferant auswählen",null,null,false,null,null,null,null,0,null,"Kostenart auswählen"]
[null,"Lieferant auswählen",null,null,false,null,null,null,null,0,null,"Kostenart auswählen"]
[null,"Lieferant auswählen",null,null,false,null,null,null,null,0,null,"Kostenart auswählen"]
[null,"Lieferant auswählen",null,null,false,null,null,null,null,0,null,"Kostenart auswählen"]
[null,"Lieferant auswählen",null,null,false,null,null,null,null,0,null,"Kostenart auswählen"]
[null,"Lieferant auswählen",null,null,false,null,null,null,null,0,null,"Kostenart auswählen"]
[null,"Lieferant auswählen",null,null,false,null,null,null,null,0,null,"Kostenart auswählen"]
[null,"Lieferant auswählen",null,null,false,null,null,null,null,0,null,"Kostenart auswählen"]
[null,"Lieferant auswählen",null,null,false,null,null,null,null,0,null,"Kostenart auswählen"]
[null,"Lieferant auswählen",null,null,false,null,null,null,null,0,null,"Kostenart auswählen"]
[null,"Lieferant auswählen",null,null,false,null,null,null,null,0,null,"Kostenart auswählen"]
[null,"Lieferant auswählen",null,null,false,null,null,null,null,0,null,"Kostenart auswählen"]
[null,"Lieferant auswählen",null,null,false,null,null,null,null,0,null,"Kostenart auswählen"]
[null,"Lieferant auswählen",null,null,false,null,null,null,null,0,null,"Kostenart auswählen"]
[null,"Lieferant auswählen",null,null,false,null,null,null,null,0,null,"Kostenart auswählen"]
[null,"Lieferant auswählen",null,null,false,null,null,null,null,0,null,"Kostenart auswählen"]
[null,"Lieferant auswählen",null,null,false,null,null,null,null,0,null,"Kostenart auswählen"]
[null,"Lieferant auswählen",null,null,false,null,null,null,null,0,null,"Kostenart auswählen"]
[null,"Lieferant auswählen",null,null,false,null,null,null,null,0,null,"Kostenart auswählen"]
[null,"Lieferant auswählen",null,null,false,null,null,null,null,0,null,"Kostenart auswählen"]
[null,"Lieferant auswählen",null,null,false,null,null,null,null,0,null,"Kostenart auswählen"]
[null,"Lieferant auswählen",null,null,false,null,null,null,null,0,null,"Kostenart auswählen"]
[null,"Lieferant auswählen",null,null,false,null,null,null,null,0,null,"Kostenart auswählen"]
[null,"Lieferant auswählen",null,null,false,null,null,null,null,0,null,"Kostenart auswählen"]
[null,"Lieferant auswählen",null,null,false,null,null,null,null,0,null,"Kostenart auswählen"]
[null,"Lieferant auswählen",null,null,false,null,null,null,null,0,null,"Kostenart auswählen"]
[null,"Lieferant auswählen",null,null,false,null,null,null,null,0,null,"Kostenart auswählen"]
[null,"Lieferant auswählen",null,null,false,null,null,null,null,0,null,"Kostenart auswählen"]
[null,"Lieferant auswählen",null,null,false,null,null,null,null,0,null,"Kostenart auswählen"]
[null,"Lieferant auswählen",null,null,false,null,null,null,null,0,null,"Kostenart auswählen"]
[null,"Lieferant auswählen",null,null,{"$f":"IF(COUNTIF(D:D,D451)=1,\"OK\",COUNTIF(D:D,D451)=1)","v":false},null,null,null,null,{"$f":"H451/(1+I451)","v":0},null,"Kostenart auswählen"]
[null,"Lieferant auswählen",null,null,false,null,null,null,null,0,null,"Kostenart auswählen"]
[null,"Lieferant auswählen",null,null,false,null,null,null,null,0,null,"Kostenart auswählen"]
[null,"Lieferant auswählen",null,null,false,null,null,null,null,0,null,"Kostenart auswählen"]
[null,"Lieferant auswählen",null,null,false,null,null,null,null,0,null,"Kostenart auswählen"]
[null,"Lieferant auswählen",null,null,false,null,null,null,null,0,null,"Kostenart auswählen"]
[null,"Lieferant auswählen",null,null,false,null,null,null,null,0,null,"Kostenart auswählen"]
[null,"Lieferant auswählen",null,null,false,null,null,null,null,0,null,"Kostenart auswählen"]
[null,"Lieferant auswählen",null,null,false,null,null,null,null,0,null,"Kostenart auswählen"]
[null,"Lieferant auswählen",null,null,false,null,null,null,null,0,null,"Kostenart auswählen"]
[null,"Lieferant auswählen",null,null,false,null,null,null,null,0,null,"Kostenart auswählen"]
[null,"Lieferant auswählen",null,null,false,null,null,null,null,0,null,"Kostenart auswählen"]
[null,"Lieferant auswählen",null,null,false,null,null,null,null,0,null,"Kostenart auswählen"]
[null,"Lieferant auswählen",null,null,false,null,null,null,null,0,null,"Kostenart auswählen"]
[null,"Lieferant auswählen",null,null,false,null,null,null,null,0,null,"Kostenart auswählen"]
[null,"Lieferant auswählen",null,null,false,null,null,null,null,0,null,"Kostenart auswählen"]
[null,"Lieferant auswählen",null,null,false,null,null,null,null,0,null,"Kostenart auswählen"]
[null,"Lieferant auswählen",null,null,false,null,null,null,null,0,null,"Kostenart auswählen"]
[null,"Lieferant auswählen",null,null,false,null,null,null,null,0,null,"Kostenart auswählen"]
[null,"Lieferant auswählen",null,null,false,null,null,null,null,0,null,"Kostenart auswählen"]
[null,"Lieferant auswählen",null,null,false,null,null,null,null,0,null,"Kostenart auswählen"]
[null,"Lieferant auswählen",null,null,false,null,null,null,null,0,null,"Kostenart auswählen"]
[null,"Lieferant auswählen",null,null,false,null,null,null,null,0,null,"Kostenart auswählen"]
[null,"Lieferant auswählen",null,null,false,null,null,null,null,0,null,"Kostenart auswählen"]
[null,"Lieferant auswählen",null,null,false,null,null,null,null,0,null,"Kostenart auswählen"]
[null,"Lieferant auswählen",null,null,false,null,null,null,null,0,null,"Kostenart auswählen"]
[null,"Lieferant auswählen",null,null,false,null,null,null,null,0,null,"Kostenart auswählen"]
[null,"Lieferant auswählen",null,null,false,null,null,null,null,0,null,"Kostenart auswählen"]
[null,"Lieferant auswählen",null,null,false,null,null,null,null,0,null,"Kostenart auswählen"]
[null,"Lieferant auswählen",null,null,false,null,null,null,null,0,null,"Kostenart auswählen"]
[null,"Lieferant auswählen",null,null,false,null,null,null,null,0,null,"Kostenart auswählen"]
[null,"Lieferant auswählen",null,null,false,null,null,null,null,0,null,"Kostenart auswählen"]
[null,"Lieferant auswählen",null,null,false,null,null,null,null,0,null,"Kostenart auswählen"]
[null,"Lieferant auswählen",null,null,false,null,null,null,null,0,null,"Kostenart auswählen"]
[null,"Lieferant auswählen",null,null,false,null,null,null,null,0,null,"Kostenart auswählen"]
[null,"Lieferant auswählen",null,null,false,null,null,null,null,0,null,"Kostenart auswählen"]
[null,"Lieferant auswählen",null,null,false,null,null,null,null,0,null,"Kostenart auswählen"]
[null,"Lieferant auswählen",null,null,false,null,null,null,null,0,null,"Kostenart auswählen"]
[null,"Lieferant auswählen",null,null,false,null,null,null,null,0,null,"Kostenart auswählen"]
[null,"Lieferant auswählen",null,null,false,null,null,null,null,0,null,"Kostenart auswählen"]
[null,"Lieferant auswählen",null,null,false,null,null,null,null,0,null,"Kostenart auswählen"]
[null,"Lieferant auswählen",null,null,false,null,null,null,null,0,null,"Kostenart auswählen"]
[null,"Lieferant auswählen",null,null,false,null,null,null,null,0,null,"Kostenart auswählen"]
[null,"Lieferant auswählen",null,null,false,null,null,null,null,0,null,"Kostenart auswählen"]
[null,"Lieferant auswählen",null,null,false,null,null,null,null,0,null,"Kostenart auswählen"]
[null,"Lieferant auswählen",null,null,false,null,null,null,null,0,null,"Kostenart auswählen"]
[null,"Lieferant auswählen",null,null,false,null,null,null,null,0,null,"Kostenart auswählen"]
[null,"Lieferant auswählen",null,null,false,null,null,null,null,0,null,"Kostenart auswählen"]
[null,"Lieferant auswählen",null,null,false,null,null,null,null,0,null,"Kostenart auswählen"]
[null,"Lieferant auswählen",null,null,false,null,null,null,null,0,null,"Kostenart auswählen"]
[null,"Lieferant auswählen",null,null,false,null,null,null,null,0,null,"Kostenart auswählen"]
[null,"Lieferant auswählen",null,null,false,null,null,null,null,0,null,"Kostenart auswählen"]
[null,"Lieferant auswählen",null,null,false,null,null,null,null,0,null,"Kostenart auswählen"]
[null,"Lieferant auswählen",null,null,false,null,null,null,null,0,null,"Kostenart auswählen"]
[null,"Lieferant auswählen",null,null,false,null,null,null,null,0,null,"Kostenart auswählen"]
[null,"Lieferant auswählen",null,null,false,null,null,null,null,0,null,"Kostenart auswählen"]
[null,"Lieferant auswählen",null,null,false,null,null,null,null,0,null,"Kostenart auswählen"]
[null,"Lieferant auswählen",null,null,false,null,null,null,null,0,null,"Kostenart auswählen"]
[null,"Lieferant auswählen",null,null,false,null,null,null,null,0,null,"Kostenart auswählen"]
[null,"Lieferant auswählen",null,null,false,null,null,null,null,0,null,"Kostenart auswählen"]
[null,"Lieferant auswählen",null,null,false,null,null,null,null,0,null,"Kostenart auswählen"]
[null,"Lieferant auswählen",null,null,false,null,null,null,null,0,null,"Kostenart auswählen"]
[null,"Lieferant auswählen",null,null,false,null,null,null,null,0,null,"Kostenart auswählen"]
[null,"Lieferant auswählen",null,null,false,null,null,null,null,0,null,"Kostenart auswählen"]
[null,"Lieferant auswählen",null,null,{"$f":"IF(COUNTIF(D:D,D515)=1,\"OK\",COUNTIF(D:D,D515)=1)","v":false},null,null,null,null,{"$f":"H515/(1+I515)","v":0},null,"Kostenart auswählen"]
[null,"Lieferant auswählen",null,null,false,null,null,null,null,0,null,"Kostenart auswählen"]
[null,"Lieferant auswählen",null,null,false,null,null,null,null,0,null,"Kostenart auswählen"]
[null,"Lieferant auswählen",null,null,false,null,null,null,null,0,null,"Kostenart auswählen"]
[null,"Lieferant auswählen",null,null,false,null,null,null,null,0,null,"Kostenart auswählen"]
[null,"Lieferant auswählen",null,null,false,null,null,null,null,0,null,"Kostenart auswählen"]
[null,"Lieferant auswählen",null,null,false,null,null,null,null,0,null,"Kostenart auswählen"]
[null,"Lieferant auswählen",null,null,false,null,null,null,null,0,null,"Kostenart auswählen"]
[null,"Lieferant auswählen",null,null,false,null,null,null,null,0,null,"Kostenart auswählen"]
[null,"Lieferant auswählen",null,null,false,null,null,null,null,0,null,"Kostenart auswählen"]
[null,"Lieferant auswählen",null,null,false,null,null,null,null,0,null,"Kostenart auswählen"]
[null,"Lieferant auswählen",null,null,false,null,null,null,null,0,null,"Kostenart auswählen"]
[null,"Lieferant auswählen",null,null,false,null,null,null,null,0,null,"Kostenart auswählen"]
[null,"Lieferant auswählen",null,null,false,null,null,null,null,0,null,"Kostenart auswählen"]
[null,"Lieferant auswählen",null,null,false,null,null,null,null,0,null,"Kostenart auswählen"]
[null,"Lieferant auswählen",null,null,false,null,null,null,null,0,null,"Kostenart auswählen"]
[null,"Lieferant auswählen",null,null,false,null,null,null,null,0,null,"Kostenart auswählen"]
[null,"Lieferant auswählen",null,null,false,null,null,null,null,0,null,"Kostenart auswählen"]
[null,"Lieferant auswählen",null,null,false,null,null,null,null,0,null,"Kostenart auswählen"]
[null,"Lieferant auswählen",null,null,false,null,null,null,null,0,null,"Kostenart auswählen"]
[null,"Lieferant auswählen",null,null,false,null,null,null,null,0,null,"Kostenart auswählen"]
[null,"Lieferant auswählen",null,null,false,null,null,null,null,0,null,"Kostenart auswählen"]
[null,"Lieferant auswählen",null,null,false,null,null,null,null,0,null,"Kostenart auswählen"]
[null,"Lieferant auswählen",null,null,false,null,null,null,null,0,null,"Kostenart auswählen"]
[null,"Lieferant auswählen",null,null,false,null,null,null,null,0,null,"Kostenart auswählen"]
[null,"Lieferant auswählen",null,null,false,null,null,null,null,0,null,"Kostenart auswählen"]
[null,"Lieferant auswählen",null,null,false,null,null,null,null,0,null,"Kostenart auswählen"]
[null,"Lieferant auswählen",null,null,false,null,null,null,null,0,null,"Kostenart auswählen"]
[null,"Lieferant auswählen",null,null,false,null,null,null,null,0,null,"Kostenart auswählen"]
[null,"Lieferant auswählen",null,null,false,null,null,null,null,0,null,"Kostenart auswählen"]
[null,"Lieferant auswählen",null,null,false,null,null,null,null,0,null,"Kostenart auswählen"]
[null,"Lieferant auswählen",null,null,false,null,null,null,null,0,null,"Kostenart auswählen"]
[null,"Lieferant auswählen",null,null,false,null,null,null,null,0,null,"Kostenart auswählen"]
[null,"Lieferant auswählen",null,null,false,null,null,null,null,0,null,"Kostenart auswählen"]
[null,"Lieferant auswählen",null,null,false,null,null,null,null,0,null,"Kostenart auswählen"]
[null,"Lieferant auswählen",null,null,false,null,null,null,null,0,null,"Kostenart auswählen"]
[null,"Lieferant auswählen",null,null,false,null,null,null,null,0,null,"Kostenart auswählen"]
[null,"Lieferant auswählen",null,null,false,null,null,null,null,0,null,"Kostenart auswählen"]
[null,"Lieferant auswählen",null,null,false,null,null,null,null,0,null,"Kostenart auswählen"]
[null,"Lieferant auswählen",null,null,false,null,null,null,null,0,null,"Kostenart auswählen"]
[null,"Lieferant auswählen",null,null,false,null,null,null,null,0,null,"Kostenart auswählen"]
[null,"Lieferant auswählen",null,null,false,null,null,null,null,0,null,"Kostenart auswählen"]
[null,"Lieferant auswählen",null,null,false,null,null,null,null,0,null,"Kostenart auswählen"]
[null,"Lieferant auswählen",null,null,false,null,null,null,null,0,null,"Kostenart auswählen"]
[null,"Lieferant auswählen",null,null,false,null,null,null,null,0,null,"Kostenart auswählen"]
[null,"Lieferant auswählen",null,null,false,null,null,null,null,0,null,"Kostenart auswählen"]
[null,"Lieferant auswählen",null,null,false,null,null,null,null,0,null,"Kostenart auswählen"]
[null,"Lieferant auswählen",null,null,false,null,null,null,null,0,null,"Kostenart auswählen"]
[null,"Lieferant auswählen",null,null,false,null,null,null,null,0,null,"Kostenart auswählen"]
[null,"Lieferant auswählen",null,null,false,null,null,null,null,0,null,"Kostenart auswählen"]
[null,"Lieferant auswählen",null,null,false,null,null,null,null,0,null,"Kostenart auswählen"]
[null,"Lieferant auswählen",null,null,false,null,null,null,null,0,null,"Kostenart auswählen"]
[null,"Lieferant auswählen",null,null,false,null,null,null,null,0,null,"Kostenart auswählen"]
[null,"Lieferant auswählen",null,null,false,null,null,null,null,0,null,"Kostenart auswählen"]
[null,"Lieferant auswählen",null,null,false,null,null,null,null,0,null,"Kostenart auswählen"]
[null,"Lieferant auswählen",null,null,false,null,null,null,null,0,null,"Kostenart auswählen"]
[null,"Lieferant auswählen",null,null,false,null,null,null,null,0,null,"Kostenart auswählen"]
[null,"Lieferant auswählen",null,null,false,null,null,null,null,0,null,"Kostenart auswählen"]
[null,"Lieferant auswählen",null,null,false,null,null,null,null,0,null,"Kostenart auswählen"]
[null,"Lieferant auswählen",null,null,false,null,null,null,null,0,null,"Kostenart auswählen"]
[null,"Lieferant auswählen",null,null,false,null,null,null,null,0,null,"Kostenart auswählen"]
[null,"Lieferant auswählen",null,null,false,null,null,null,null,0,null,"Kostenart auswählen"]
[null,"Lieferant auswählen",null,null,false,null,null,null,null,0,null,"Kostenart auswählen"]
[null,"Lieferant auswählen",null,null,false,null,null,null,null,0,null,"Kostenart auswählen"]
[null,"Lieferant auswählen",null,null,{"$f":"IF(COUNTIF(D:D,D579)=1,\"OK\",COUNTIF(D:D,D579)=1)","v":false},null,null,null,null,{"$f":"H579/(1+I579)","v":0},null,"Kostenart auswählen"]
[null,"Lieferant auswählen",null,null,false,null,null,null,null,0,null,"Kostenart auswählen"]
[null,"Lieferant auswählen",null,null,false,null,null,null,null,0,null,"Kostenart auswählen"]
[null,"Lieferant auswählen",null,null,false,null,null,null,null,0,null,"Kostenart auswählen"]
[null,"Lieferant auswählen",null,null,false,null,null,null,null,0,null,"Kostenart auswählen"]
[null,"Lieferant auswählen",null,null,false,null,null,null,null,0,null,"Kostenart auswählen"]
[null,"Lieferant auswählen",null,null,false,null,null,null,null,0,null,"Kostenart auswählen"]
[null,"Lieferant auswählen",null,null,false,null,null,null,null,0,null,"Kostenart auswählen"]
[null,"Lieferant auswählen",null,null,false,null,null,null,null,0,null,"Kostenart auswählen"]
[null,"Lieferant auswählen",null,null,false,null,null,null,null,0,null,"Kostenart auswählen"]
[null,"Lieferant auswählen",null,null,false,null,null,null,null,0,null,"Kostenart auswählen"]
[null,"Lieferant auswählen",null,null,false,null,null,null,null,0,null,"Kostenart auswählen"]
[null,"Lieferant auswählen",null,null,false,null,null,null,null,0,null,"Kostenart auswählen"]
[null,"Lieferant auswählen",null,null,false,null,null,null,null,0,null,"Kostenart auswählen"]
[null,"Lieferant auswählen",null,null,false,null,null,null,null,0,null,"Kostenart auswählen"]
[null,"Lieferant auswählen",null,null,false,null,null,null,null,0,null,"Kostenart auswählen"]
[null,"Lieferant auswählen",null,null,false,null,null,null,null,0,null,"Kostenart auswählen"]
[null,"Lieferant auswählen",null,null,false,null,null,null,null,0,null,"Kostenart auswählen"]
[null,"Lieferant auswählen",null,null,false,null,null,null,null,0,null,"Kostenart auswählen"]
[null,"Lieferant auswählen",null,null,false,null,null,null,null,0,null,"Kostenart auswählen"]
[null,"Lieferant auswählen",null,null,false,null,null,null,null,0,null,"Kostenart auswählen"]
[null,"Lieferant auswählen",null,null,false,null,null,null,null,0,null,"Kostenart auswählen"]
[null,"Lieferant auswählen",null,null,false,null,null,null,null,0,null,"Kostenart auswählen"]
[null,"Lieferant auswählen",null,null,false,null,null,null,null,0,null,"Kostenart auswählen"]
[null,"Lieferant auswählen",null,null,false,null,null,null,null,0,null,"Kostenart auswählen"]
[null,"Lieferant auswählen",null,null,false,null,null,null,null,0,null,"Kostenart auswählen"]
[null,"Lieferant auswählen",null,null,false,null,null,null,null,0,null,"Kostenart auswählen"]
[null,"Lieferant auswählen",null,null,false,null,null,null,null,0,null,"Kostenart auswählen"]
[null,"Lieferant auswählen",null,null,false,null,null,null,null,0,null,"Kostenart auswählen"]
[null,"Lieferant auswählen",null,null,false,null,null,null,null,0,null,"Kostenart auswählen"]
[null,"Lieferant auswählen",null,null,false,null,null,null,null,0,null,"Kostenart auswählen"]
[null,"Lieferant auswählen",null,null,false,null,null,null,null,0,null,"Kostenart auswählen"]
[null,"Lieferant auswählen",null,null,false,null,null,null,null,0,null,"Kostenart auswählen"]
[null,"Lieferant auswählen",null,null,false,null,null,null,null,0,null,"Kostenart auswählen"]
[null,"Lieferant auswählen",null,null,false,null,null,null,null,0,null,"Kostenart auswählen"]
[null,"Lieferant auswählen",null,null,false,null,null,null,null,0,null,"Kostenart auswählen"]
[null,"Lieferant auswählen",null,null,false,null,null,null,null,0,null,"Kostenart auswählen"]
[null,"Lieferant auswählen",null,null,false,null,null,null,null,0,null,"Kostenart auswählen"]
[null,"Lieferant auswählen",null,null,false,null,null,null,null,0,null,"Kostenart auswählen"]
[null,"Lieferant auswählen",null,null,false,null,null,null,null,0,null,"Kostenart auswählen"]
[null,"Lieferant auswählen",null,null,false,null,null,null,null,0,null,"Kostenart auswählen"]
[null,"Lieferant auswählen",null,null,false,null,null,null,null,0,null,"Kostenart auswählen"]
[null,"Lieferant auswählen",null,null,false,null,null,null,null,0,null,"Kostenart auswählen"]
[null,"Lieferant auswählen",null,null,false,null,null,null,null,0,null,"Kostenart auswählen"]
[null,"Lieferant auswählen",null,null,false,null,null,null,null,0,null,"Kostenart auswählen"]
[null,"Lieferant auswählen",null,null,false,null,null,null,null,0,null,"Kostenart auswählen"]
[null,"Lieferant auswählen",null,null,false,null,null,null,null,0,null,"Kostenart auswählen"]
[null,"Lieferant auswählen",null,null,false,null,null,null,null,0,null,"Kostenart auswählen"]
[null,"Lieferant auswählen",null,null,false,null,null,null,null,0,null,"Kostenart auswählen"]
[null,"Lieferant auswählen",null,null,false,null,null,null,null,0,null,"Kostenart auswählen"]
[null,"Lieferant auswählen",null,null,false,null,null,null,null,0,null,"Kostenart auswählen"]
[null,"Lieferant auswählen",null,null,false,null,null,null,null,0,null,"Kostenart auswählen"]
[null,"Lieferant auswählen",null,null,false,null,null,null,null,0,null,"Kostenart auswählen"]
[null,"Lieferant auswählen",null,null,false,null,null,null,null,0,null,"Kostenart auswählen"]
[null,"Lieferant auswählen",null,null,false,null,null,null,null,0,null,"Kostenart auswählen"]
[null,"Lieferant auswählen",null,null,false,null,null,null,null,0,null,"Kostenart auswählen"]
[null,"Lieferant auswählen",null,null,false,null,null,null,null,0,null,"Kostenart auswählen"]
[null,"Lieferant auswählen",null,null,false,null,null,null,null,0,null,"Kostenart auswählen"]
[null,"Lieferant auswählen",null,null,false,null,null,null,null,0,null,"Kostenart auswählen"]
[null,"Lieferant auswählen",null,null,false,null,null,null,null,0,null,"Kostenart auswählen"]
[null,"Lieferant auswählen",null,null,false,null,null,null,null,0,null,"Kostenart auswählen"]
[null,"Lieferant auswählen",null,null,false,null,null,null,null,0,null,"Kostenart auswählen"]
[null,"Lieferant auswählen",null,null,false,null,null,null,null,0,null,"Kostenart auswählen"]
[null,"Lieferant auswählen",null,null,false,null,null,null,null,0,null,"Kostenart auswählen"]
[null,"Lieferant auswählen",null,null,{"$f":"IF(COUNTIF(D:D,D643)=1,\"OK\",COUNTIF(D:D,D643)=1)","v":false},null,null,null,null,{"$f":"H643/(1+I643)","v":0},null,"Kostenart auswählen"]
[null,"Lieferant auswählen",null,null,false,null,null,null,null,0,null,"Kostenart auswählen"]
[null,"Lieferant auswählen",null,null,false,null,null,null,null,0,null,"Kostenart auswählen"]
[null,"Lieferant auswählen",null,null,false,null,null,null,null,0,null,"Kostenart auswählen"]
[null,"Lieferant auswählen",null,null,false,null,null,null,null,0,null,"Kostenart auswählen"]
[null,"Lieferant auswählen",null,null,false,null,null,null,null,0,null,"Kostenart auswählen"]
[null,"Lieferant auswählen",null,null,false,null,null,null,null,0,null,"Kostenart auswählen"]
[null,"Lieferant auswählen",null,null,false,null,null,null,null,0,null,"Kostenart auswählen"]
[null,"Lieferant auswählen",null,null,false,null,null,null,null,0,null,"Kostenart auswählen"]
[null,"Lieferant auswählen",null,null,false,null,null,null,null,0,null,"Kostenart auswählen"]
[null,"Lieferant auswählen",null,null,false,null,null,null,null,0,null,"Kostenart auswählen"]
[null,"Lieferant auswählen",null,null,false,null,null,null,null,0,null,"Kostenart auswählen"]
[null,"Lieferant auswählen",null,null,false,null,null,null,null,0,null,"Kostenart auswählen"]
[null,"Lieferant auswählen",null,null,false,null,null,null,null,0,null,"Kostenart auswählen"]
[null,"Lieferant auswählen",null,null,false,null,null,null,null,0,null,"Kostenart auswählen"]
[null,"Lieferant auswählen",null,null,false,null,null,null,null,0,null,"Kostenart auswählen"]
[null,"Lieferant auswählen",null,null,false,null,null,null,null,0,null,"Kostenart auswählen"]
[null,"Lieferant auswählen",null,null,false,null,null,null,null,0,null,"Kostenart auswählen"]
[null,"Lieferant auswählen",null,null,false,null,null,null,null,0,null,"Kostenart auswählen"]
[null,"Lieferant auswählen",null,null,false,null,null,null,null,0,null,"Kostenart auswählen"]
[null,"Lieferant auswählen",null,null,false,null,null,null,null,0,null,"Kostenart auswählen"]
[null,"Lieferant auswählen",null,null,false,null,null,null,null,0,null,"Kostenart auswählen"]
[null,"Lieferant auswählen",null,null,false,null,null,null,null,0,null,"Kostenart auswählen"]
[null,"Lieferant auswählen",null,null,false,null,null,null,null,0,null,"Kostenart auswählen"]
[null,"Lieferant auswählen",null,null,false,null,null,null,null,0,null,"Kostenart auswählen"]
[null,"Lieferant auswählen",null,null,false,null,null,null,null,0,null,"Kostenart auswählen"]
[null,"Lieferant auswählen",null,null,false,null,null,null,null,0,null,"Kostenart auswählen"]
[null,"Lieferant auswählen",null,null,false,null,null,null,null,0,null,"Kostenart auswählen"]
[null,"Lieferant auswählen",null,null,false,null,null,null,null,0,null,"Kostenart auswählen"]
[null,"Lieferant auswählen",null,null,false,null,null,null,null,0,null,"Kostenart auswählen"]
[null,"Lieferant auswählen",null,null,false,null,null,null,null,0,null,"Kostenart auswählen"]
[null,"Lieferant auswählen",null,null,false,null,null,null,null,0,null,"Kostenart auswählen"]
[null,"Lieferant auswählen",null,null,false,null,null,null,null,0,null,"Kostenart auswählen"]
[null,"Lieferant auswählen",null,null,false,null,null,null,null,0,null,"Kostenart auswählen"]
[null,"Lieferant auswählen",null,null,false,null,null,null,null,0,null,"Kostenart auswählen"]
[null,"Lieferant auswählen",null,null,false,null,null,null,null,0,null,"Kostenart auswählen"]
[null,"Lieferant auswählen",null,null,false,null,null,null,null,0,null,"Kostenart auswählen"]
[null,"Lieferant auswählen",null,null,false,null,null,null,null,0,null,"Kostenart auswählen"]
[null,"Lieferant auswählen",null,null,false,null,null,null,null,0,null,"Kostenart auswählen"]
[null,"Lieferant auswählen",null,null,false,null,null,null,null,0,null,"Kostenart auswählen"]
[null,"Lieferant auswählen",null,null,false,null,null,null,null,0,null,"Kostenart auswählen"]
[null,"Lieferant auswählen",null,null,false,null,null,null,null,0,null,"Kostenart auswählen"]
[null,"Lieferant auswählen",null,null,false,null,null,null,null,0,null,"Kostenart auswählen"]
[null,"Lieferant auswählen",null,null,false,null,null,null,null,0,null,"Kostenart auswählen"]
[null,"Lieferant auswählen",null,null,false,null,null,null,null,0,null,"Kostenart auswählen"]
[null,"Lieferant auswählen",null,null,false,null,null,null,null,0,null,"Kostenart auswählen"]
[null,"Lieferant auswählen",null,null,false,null,null,null,null,0,null,"Kostenart auswählen"]
[null,"Lieferant auswählen",null,null,false,null,null,null,null,0,null,"Kostenart auswählen"]
[null,"Lieferant auswählen",null,null,false,null,null,null,null,0,null,"Kostenart auswählen"]
[null,"Lieferant auswählen",null,null,false,null,null,null,null,0,null,"Kostenart auswählen"]
[null,"Lieferant auswählen",null,null,false,null,null,null,null,0,null,"Kostenart auswählen"]
[null,"Lieferant auswählen",null,null,false,null,null,null,null,0,null,"Kostenart auswählen"]
[null,"Lieferant auswählen",null,null,false,null,null,null,null,0,null,"Kostenart auswählen"]
[null,"Lieferant auswählen",null,null,false,null,null,null,null,0,null,"Kostenart auswählen"]
[null,"Lieferant auswählen",null,null,false,null,null,null,null,0,null,"Kostenart auswählen"]
[null,"Lieferant auswählen",null,null,false,null,null,null,null,0,null,"Kostenart auswählen"]
[null,"Lieferant auswählen",null,null,false,null,null,null,null,0,null,"Kostenart auswählen"]
[null,"Lieferant auswählen",null,null,false,null,null,null,null,0,null,"Kostenart auswählen"]
[null,"Lieferant auswählen",null,null,false,null,null,null,null,0,null,"Kostenart auswählen"]
[null,"Lieferant auswählen",null,null,false,null,null,null,null,0,null,"Kostenart auswählen"]
[null,"Lieferant auswählen",null,null,false,null,null,null,null,0,null,"Kostenart auswählen"]
[null,"Lieferant auswählen",null,null,false,null,null,null,null,0,null,"Kostenart auswählen"]
[null,"Lieferant auswählen",null,null,false,null,null,null,null,0,null,"Kostenart auswählen"]
[null,"Lieferant auswählen",null,null,false,null,null,null,null,0,null,"Kostenart auswählen"]
[null,"Lieferant auswählen",null,null,{"$f":"IF(COUNTIF(D:D,D707)=1,\"OK\",COUNTIF(D:D,D707)=1)","v":false},null,null,null,null,{"$f":"H707/(1+I707)","v":0},null,"Kostenart auswählen"]
[null,"Lieferant auswählen",null,null,false,null,null,null,null,0,null,"Kostenart auswählen"]
[null,"Lieferant auswählen",null,null,false,null,null,null,null,0,null,"Kostenart auswählen"]
[null,"Lieferant auswählen",null,null,false,null,null,null,null,0,null,"Kostenart auswählen"]
[null,"Lieferant auswählen",null,null,false,null,null,null,null,0,null,"Kostenart auswählen"]
[null,"Lieferant auswählen",null,null,false,null,null,null,null,0,null,"Kostenart auswählen"]
[null,"Lieferant auswählen",null,null,false,null,null,null,null,0,null,"Kostenart auswählen"]
[null,"Lieferant auswählen",null,null,false,null,null,null,null,0,null,"Kostenart auswählen"]
[null,"Lieferant auswählen",null,null,false,null,null,null,null,0,null,"Kostenart auswählen"]
[null,"Lieferant auswählen",null,null,false,null,null,null,null,0,null,"Kostenart auswählen"]
[null,"Lieferant auswählen",null,null,false,null,null,null,null,0,null,"Kostenart auswählen"]
[null,"Lieferant auswählen",null,null,false,null,null,null,null,0,null,"Kostenart auswählen"]
[null,"Lieferant auswählen",null,null,false,null,null,null,null,0,null,"Kostenart auswählen"]
[null,"Lieferant auswählen",null,null,false,null,null,null,null,0,null,"Kostenart auswählen"]
[null,"Lieferant auswählen",null,null,false,null,null,null,null,0,null,"Kostenart auswählen"]
[null,"Lieferant auswählen",null,null,false,null,null,null,null,0,null,"Kostenart auswählen"]
[null,"Lieferant auswählen",null,null,false,null,null,null,null,0,null,"Kostenart auswählen"]
[null,"Lieferant auswählen",null,null,false,null,null,null,null,0,null,"Kostenart auswählen"]
[null,"Lieferant auswählen",null,null,false,null,null,null,null,0,null,"Kostenart auswählen"]
[null,"Lieferant auswählen",null,null,false,null,null,null,null,0,null,"Kostenart auswählen"]
[null,"Lieferant auswählen",null,null,false,null,null,null,null,0,null,"Kostenart auswählen"]
[null,"Lieferant auswählen",null,null,false,null,null,null,null,0,null,"Kostenart auswählen"]
[null,"Lieferant auswählen",null,null,false,null,null,null,null,0,null,"Kostenart auswählen"]
[null,"Lieferant auswählen",null,null,false,null,null,null,null,0,null,"Kostenart auswählen"]
[null,"Lieferant auswählen",null,null,false,null,null,null,null,0,null,"Kostenart auswählen"]
[null,"Lieferant auswählen",null,null,false,null,null,null,null,0,null,"Kostenart auswählen"]
[null,"Lieferant auswählen",null,null,false,null,null,null,null,0,null,"Kostenart auswählen"]
[null,"Lieferant auswählen",null,null,false,null,null,null,null,0,null,"Kostenart auswählen"]
[null,"Lieferant auswählen",null,null,false,null,null,null,null,0,null,"Kostenart auswählen"]
[null,"Lieferant auswählen",null,null,false,null,null,null,null,0,null,"Kostenart auswählen"]
[null,"Lieferant auswählen",null,null,false,null,null,null,null,0,null,"Kostenart auswählen"]
[null,"Lieferant auswählen",null,null,false,null,null,null,null,0,null,"Kostenart auswählen"]
[null,"Lieferant auswählen",null,null,false,null,null,null,null,0,null,"Kostenart auswählen"]
[null,"Lieferant auswählen",null,null,false,null,null,null,null,0,null,"Kostenart auswählen"]
[null,"Lieferant auswählen",null,null,false,null,null,null,null,0,null,"Kostenart auswählen"]
[null,"Lieferant auswählen",null,null,false,null,null,null,null,0,null,"Kostenart auswählen"]
[null,"Lieferant auswählen",null,null,false,null,null,null,null,0,null,"Kostenart auswählen"]
[null,"Lieferant auswählen",null,null,false,null,null,null,null,0,null,"Kostenart auswählen"]
[null,"Lieferant auswählen",null,null,false,null,null,null,null,0,null,"Kostenart auswählen"]
[null,"Lieferant auswählen",null,null,false,null,null,null,null,0,null,"Kostenart auswählen"]
[null,"Lieferant auswählen",null,null,false,null,null,null,null,0,null,"Kostenart auswählen"]
[null,"Lieferant auswählen",null,null,false,null,null,null,null,0,null,"Kostenart auswählen"]
[null,"Lieferant auswählen",null,null,false,null,null,null,null,0,null,"Kostenart auswählen"]
[null,"Lieferant auswählen",null,null,false,null,null,null,null,0,null,"Kostenart auswählen"]
[null,"Lieferant auswählen",null,null,false,null,null,null,null,0,null,"Kostenart auswählen"]
[null,"Lieferant auswählen",null,null,false,null,null,null,null,0,null,"Kostenart auswählen"]
[null,"Lieferant auswählen",null,null,false,null,null,null,null,0,null,"Kostenart auswählen"]
[null,"Lieferant auswählen",null,null,false,null,null,null,null,0,null,"Kostenart auswählen"]
[null,"Lieferant auswählen",null,null,false,null,null,null,null,0,null,"Kostenart auswählen"]
[null,"Lieferant auswählen",null,null,false,null,null,null,null,0,null,"Kostenart auswählen"]
[null,"Lieferant auswählen",null,null,false,null,null,null,null,0,null,"Kostenart auswählen"]
[null,"Lieferant auswählen",null,null,false,null,null,null,null,0,null,"Kostenart auswählen"]
[null,"Lieferant auswählen",null,null,false,null,null,null,null,0,null,"Kostenart auswählen"]
[null,"Lieferant auswählen",null,null,false,null,null,null,null,0,null,"Kostenart auswählen"]
[null,"Lieferant auswählen",null,null,false,null,null,null,null,0,null,"Kostenart auswählen"]
[null,"Lieferant auswählen",null,null,false,null,null,null,null,0,null,"Kostenart auswählen"]
[null,"Lieferant auswählen",null,null,false,null,null,null,null,0,null,"Kostenart auswählen"]
[null,"Lieferant auswählen",null,null,false,null,null,null,null,0,null,"Kostenart auswählen"]
[null,"Lieferant auswählen",null,null,false,null,null,null,null,0,null,"Kostenart auswählen"]
[null,"Lieferant auswählen",null,null,false,null,null,null,null,0,null,"Kostenart auswählen"]
[null,"Lieferant auswählen",null,null,false,null,null,null,null,0,null,"Kostenart auswählen"]
[null,"Lieferant auswählen",null,null,false,null,null,null,null,0,null,"Kostenart auswählen"]
[null,"Lieferant auswählen",null,null,false,null,null,null,null,0,null,"Kostenart auswählen"]
[null,"Lieferant auswählen",null,null,false,null,null,null,null,0,null,"Kostenart auswählen"]
[null,"Lieferant auswählen",null,null,{"$f":"IF(COUNTIF(D:D,D771)=1,\"OK\",COUNTIF(D:D,D771)=1)","v":false},null,null,null,null,{"$f":"H771/(1+I771)","v":0},null,"Kostenart auswählen"]
[null,"Lieferant auswählen",null,null,false,null,null,null,null,0,null,"Kostenart auswählen"]
[null,"Lieferant auswählen",null,null,false,null,null,null,null,0,null,"Kostenart auswählen"]
[null,"Lieferant auswählen",null,null,false,null,null,null,null,0,null,"Kostenart auswählen"]
[null,"Lieferant auswählen",null,null,false,null,null,null,null,0,null,"Kostenart auswählen"]
[null,"Lieferant auswählen",null,null,false,null,null,null,null,0,null,"Kostenart auswählen"]
[null,"Lieferant auswählen",null,null,false,null,null,null,null,0,null,"Kostenart auswählen"]
[null,"Lieferant auswählen",null,null,false,null,null,null,null,0,null,"Kostenart auswählen"]
[null,"Lieferant auswählen",null,null,false,null,null,null,null,0,null,"Kostenart auswählen"]
[null,"Lieferant auswählen",null,null,false,null,null,null,null,0,null,"Kostenart auswählen"]
[null,"Lieferant auswählen",null,null,false,null,null,null,null,0,null,"Kostenart auswählen"]
[null,"Lieferant auswählen",null,null,false,null,null,null,null,0,null,"Kostenart auswählen"]
[null,"Lieferant auswählen",null,null,false,null,null,null,null,0,null,"Kostenart auswählen"]
[null,"Lieferant auswählen",null,null,false,null,null,null,null,0,null,"Kostenart auswählen"]
[null,"Lieferant auswählen",null,null,false,null,null,null,null,0,null,"Kostenart auswählen"]
[null,"Lieferant auswählen",null,null,false,null,null,null,null,0,null,"Kostenart auswählen"]
[null,"Lieferant auswählen",null,null,false,null,null,null,null,0,null,"Kostenart auswählen"]
[null,"Lieferant auswählen",null,null,false,null,null,null,null,0,null,"Kostenart auswählen"]
[null,"Lieferant auswählen",null,null,false,null,null,null,null,0,null,"Kostenart auswählen"]
[null,"Lieferant auswählen",null,null,false,null,null,null,null,0,null,"Kostenart auswählen"]
[null,"Lieferant auswählen",null,null,false,null,null,null,null,0,null,"Kostenart auswählen"]
[null,"Lieferant auswählen",null,null,false,null,null,null,null,0,null,"Kostenart auswählen"]
[null,"Lieferant auswählen",null,null,false,null,null,null,null,0,null,"Kostenart auswählen"]
[null,"Lieferant auswählen",null,null,false,null,null,null,null,0,null,"Kostenart auswählen"]
[null,"Lieferant auswählen",null,null,false,null,null,null,null,0,null,"Kostenart auswählen"]
[null,"Lieferant auswählen",null,null,false,null,null,null,null,0,null,"Kostenart auswählen"]
[null,"Lieferant auswählen",null,null,false,null,null,null,null,0,null,"Kostenart auswählen"]
[null,"Lieferant auswählen",null,null,false,null,null,null,null,0,null,"Kostenart auswählen"]
[null,"Lieferant auswählen",null,null,false,null,null,null,null,0,null,"Kostenart auswählen"]
[null,"Lieferant auswählen",null,null,false,null,null,null,null,0,null,"Kostenart auswählen"]
[null,"Lieferant auswählen",null,null,false,null,null,null,null,0,null,"Kostenart auswählen"]
[null,"Lieferant auswählen",null,null,false,null,null,null,null,0,null,"Kostenart auswählen"]
[null,"Lieferant auswählen",null,null,false,null,null,null,null,0,null,"Kostenart auswählen"]
[null,"Lieferant auswählen",null,null,false,null,null,null,null,0,null,"Kostenart auswählen"]
[null,"Lieferant auswählen",null,null,false,null,null,null,null,0,null,"Kostenart auswählen"]
[null,"Lieferant auswählen",null,null,false,null,null,null,null,0,null,"Kostenart auswählen"]
[null,"Lieferant auswählen",null,null,false,null,null,null,null,0,null,"Kostenart auswählen"]
[null,"Lieferant auswählen",null,null,false,null,null,null,null,0,null,"Kostenart auswählen"]
[null,"Lieferant auswählen",null,null,false,null,null,null,null,0,null,"Kostenart auswählen"]
[null,"Lieferant auswählen",null,null,false,null,null,null,null,0,null,"Kostenart auswählen"]
[null,"Lieferant auswählen",null,null,false,null,null,null,null,0,null,"Kostenart auswählen"]
[null,"Lieferant auswählen",null,null,false,null,null,null,null,0,null,"Kostenart auswählen"]
[null,"Lieferant auswählen",null,null,false,null,null,null,null,0,null,"Kostenart auswählen"]
[null,"Lieferant auswählen",null,null,false,null,null,null,null,0,null,"Kostenart auswählen"]
[null,"Lieferant auswählen",null,null,false,null,null,null,null,0,null,"Kostenart auswählen"]
[null,"Lieferant auswählen",null,null,false,null,null,null,null,0,null,"Kostenart auswählen"]
[null,"Lieferant auswählen",null,null,false,null,null,null,null,0,null,"Kostenart auswählen"]
[null,"Lieferant auswählen",null,null,false,null,null,null,null,0,null,"Kostenart auswählen"]
[null,"Lieferant auswählen",null,null,false,null,null,null,null,0,null,"Kostenart auswählen"]
[null,"Lieferant auswählen",null,null,false,null,null,null,null,0,null,"Kostenart auswählen"]
[null,"Lieferant auswählen",null,null,false,null,null,null,null,0,null,"Kostenart auswählen"]
[null,"Lieferant auswählen",null,null,false,null,null,null,null,0,null,"Kostenart auswählen"]
[null,"Lieferant auswählen",null,null,false,null,null,null,null,0,null,"Kostenart auswählen"]
[null,"Lieferant auswählen",null,null,false,null,null,null,null,0,null,"Kostenart auswählen"]
[null,"Lieferant auswählen",null,null,false,null,null,null,null,0,null,"Kostenart auswählen"]
[null,"Lieferant auswählen",null,null,false,null,null,null,null,0,null,"Kostenart auswählen"]
[null,"Lieferant auswählen",null,null,false,null,null,null,null,0,null,"Kostenart auswählen"]
[null,"Lieferant auswählen",null,null,false,null,null,null,null,0,null,"Kostenart auswählen"]
[null,"Lieferant auswählen",null,null,false,null,null,null,null,0,null,"Kostenart auswählen"]
[null,"Lieferant auswählen",null,null,false,null,null,null,null,0,null,"Kostenart auswählen"]
[null,"Lieferant auswählen",null,null,false,null,null,null,null,0,null,"Kostenart auswählen"]
[null,"Lieferant auswählen",null,null,false,null,null,null,null,0,null,"Kostenart auswählen"]
[null,"Lieferant auswählen",null,null,false,null,null,null,null,0,null,"Kostenart auswählen"]
[null,"Lieferant auswählen",null,null,false,null,null,null,null,0,null,"Kostenart auswählen"]
[null,"Lieferant auswählen",null,null,{"$f":"IF(COUNTIF(D:D,D835)=1,\"OK\",COUNTIF(D:D,D835)=1)","v":false},null,null,null,null,{"$f":"H835/(1+I835)","v":0},null,"Kostenart auswählen"]
[null,"Lieferant auswählen",null,null,false,null,null,null,null,0,null,"Kostenart auswählen"]
[null,"Lieferant auswählen",null,null,false,null,null,null,null,0,null,"Kostenart auswählen"]
[null,"Lieferant auswählen",null,null,false,null,null,null,null,0,null,"Kostenart auswählen"]
[null,"Lieferant auswählen",null,null,false,null,null,null,null,0,null,"Kostenart auswählen"]
[null,"Lieferant auswählen",null,null,false,null,null,null,null,0,null,"Kostenart auswählen"]
[null,"Lieferant auswählen",null,null,false,null,null,null,null,0,null,"Kostenart auswählen"]
[null,"Lieferant auswählen",null,null,false,null,null,null,null,0,null,"Kostenart auswählen"]
[null,"Lieferant auswählen",null,null,false,null,null,null,null,0,null,"Kostenart auswählen"]
[null,"Lieferant auswählen",null,null,false,null,null,null,null,0,null,"Kostenart auswählen"]
[null,"Lieferant auswählen",null,null,false,null,null,null,null,0,null,"Kostenart auswählen"]
[null,"Lieferant auswählen",null,null,false,null,null,null,null,0,null,"Kostenart auswählen"]
[null,"Lieferant auswählen",null,null,false,null,null,null,null,0,null,"Kostenart auswählen"]
[null,"Lieferant auswählen",null,null,false,null,null,null,null,0,null,"Kostenart auswählen"]
[null,"Lieferant auswählen",null,null,false,null,null,null,null,0,null,"Kostenart auswählen"]
[null,"Lieferant auswählen",null,null,false,null,null,null,null,0,null,"Kostenart auswählen"]
[null,"Lieferant auswählen",null,null,false,null,null,null,null,0,null,"Kostenart auswählen"]
[null,"Lieferant auswählen",null,null,false,null,null,null,null,0,null,"Kostenart auswählen"]
[null,"Lieferant auswählen",null,null,false,null,null,null,null,0,null,"Kostenart auswählen"]
[null,"Lieferant auswählen",null,null,false,null,null,null,null,0,null,"Kostenart auswählen"]
[null,"Lieferant auswählen",null,null,false,null,null,null,null,0,null,"Kostenart auswählen"]
[null,"Lieferant auswählen",null,null,false,null,null,null,null,0,null,"Kostenart auswählen"]
[null,"Lieferant auswählen",null,null,false,null,null,null,null,0,null,"Kostenart auswählen"]
[null,"Lieferant auswählen",null,null,false,null,null,null,null,0,null,"Kostenart auswählen"]
[null,"Lieferant auswählen",null,null,false,null,null,null,null,0,null,"Kostenart auswählen"]
[null,"Lieferant auswählen",null,null,false,null,null,null,null,0,null,"Kostenart auswählen"]
[null,"Lieferant auswählen",null,null,false,null,null,null,null,0,null,"Kostenart auswählen"]
[null,"Lieferant auswählen",null,null,false,null,null,null,null,0,null,"Kostenart auswählen"]
[null,"Lieferant auswählen",null,null,false,null,null,null,null,0,null,"Kostenart auswählen"]
[null,"Lieferant auswählen",null,null,false,null,null,null,null,0,null,"Kostenart auswählen"]
[null,"Lieferant auswählen",null,null,false,null,null,null,null,0,null,"Kostenart auswählen"]
[null,"Lieferant auswählen",null,null,false,null,null,null,null,0,null,"Kostenart auswählen"]
[null,"Lieferant auswählen",null,null,false,null,null,null,null,0,null,"Kostenart auswählen"]
[null,"Lieferant auswählen",null,null,false,null,null,null,null,0,null,"Kostenart auswählen"]
[null,"Lieferant auswählen",null,null,false,null,null,null,null,0,null,"Kostenart auswählen"]
[null,"Lieferant auswählen",null,null,false,null,null,null,null,0,null,"Kostenart auswählen"]
[null,"Lieferant auswählen",null,null,false,null,null,null,null,0,null,"Kostenart auswählen"]
[null,"Lieferant auswählen",null,null,false,null,null,null,null,0,null,"Kostenart auswählen"]
[null,"Lieferant auswählen",null,null,false,null,null,null,null,0,null,"Kostenart auswählen"]
[null,"Lieferant auswählen",null,null,false,null,null,null,null,0,null,"Kostenart auswählen"]
[null,"Lieferant auswählen",null,null,false,null,null,null,null,0,null,"Kostenart auswählen"]
[null,"Lieferant auswählen",null,null,false,null,null,null,null,0,null,"Kostenart auswählen"]
[null,"Lieferant auswählen",null,null,false,null,null,null,null,0,null,"Kostenart auswählen"]
[null,"Lieferant auswählen",null,null,false,null,null,null,null,0,null,"Kostenart auswählen"]
[null,"Lieferant auswählen",null,null,false,null,null,null,null,0,null,"Kostenart auswählen"]
[null,"Lieferant auswählen",null,null,false,null,null,null,null,0,null,"Kostenart auswählen"]
[null,"Lieferant auswählen",null,null,false,null,null,null,null,0,null,"Kostenart auswählen"]
[null,"Lieferant auswählen",null,null,false,null,null,null,null,0,null,"Kostenart auswählen"]
[null,"Lieferant auswählen",null,null,false,null,null,null,null,0,null,"Kostenart auswählen"]
[null,"Lieferant auswählen",null,null,false,null,null,null,null,0,null,"Kostenart auswählen"]
[null,"Lieferant auswählen",null,null,false,null,null,null,null,0,null,"Kostenart auswählen"]
[null,"Lieferant auswählen",null,null,false,null,null,null,null,0,null,"Kostenart auswählen"]
[null,"Lieferant auswählen",null,null,false,null,null,null,null,0,null,"Kostenart auswählen"]
[null,"Lieferant auswählen",null,null,false,null,null,null,null,0,null,"Kostenart auswählen"]
[null,"Lieferant auswählen",null,null,false,null,null,null,null,0,null,"Kostenart auswählen"]
[null,"Lieferant auswählen",null,null,false,null,null,null,null,0,null,"Kostenart auswählen"]
[null,"Lieferant auswählen",null,null,false,null,null,null,null,0,null,"Kostenart auswählen"]
[null,"Lieferant auswählen",null,null,false,null,null,null,null,0,null,"Kostenart auswählen"]
[null,"Lieferant auswählen",null,null,false,null,null,null,null,0,null,"Kostenart auswählen"]
[null,"Lieferant auswählen",null,null,false,null,null,null,null,0,null,"Kostenart auswählen"]
[null,"Lieferant auswählen",null,null,false,null,null,null,null,0,null,"Kostenart auswählen"]
[null,"Lieferant auswählen",null,null,false,null,null,null,null,0,null,"Kostenart auswählen"]
[null,"Lieferant auswählen",null,null,false,null,null,null,null,0,null,"Kostenart auswählen"]
[null,"Lieferant auswählen",null,null,false,null,null,null,null,0,null,"Kostenart auswählen"]
[null,"Lieferant auswählen",null,null,{"$f":"IF(COUNTIF(D:D,D899)=1,\"OK\",COUNTIF(D:D,D899)=1)","v":false},null,null,null,null,{"$f":"H899/(1+I899)","v":0},null,"Kostenart auswählen"]
[null,"Lieferant auswählen",null,null,false,null,null,null,null,0,null,"Kostenart auswählen"]
[null,"Lieferant auswählen",null,null,false,null,null,null,null,0,null,"Kostenart auswählen"]
[null,"Lieferant auswählen",null,null,false,null,null,null,null,0,null,"Kostenart auswählen"]
[null,"Lieferant auswählen",null,null,false,null,null,null,null,0,null,"Kostenart auswählen"]
[null,"Lieferant auswählen",null,null,false,null,null,null,null,0,null,"Kostenart auswählen"]
[null,"Lieferant auswählen",null,null,false,null,null,null,null,0,null,"Kostenart auswählen"]
[null,"Lieferant auswählen",null,null,false,null,null,null,null,0,null,"Kostenart auswählen"]
[null,"Lieferant auswählen",null,null,false,null,null,null,null,0,null,"Kostenart auswählen"]
[null,"Lieferant auswählen",null,null,false,null,null,null,null,0,null,"Kostenart auswählen"]
[null,"Lieferant auswählen",null,null,false,null,null,null,null,0,null,"Kostenart auswählen"]
[null,"Lieferant auswählen",null,null,false,null,null,null,null,0,null,"Kostenart auswählen"]
[null,"Lieferant auswählen",null,null,false,null,null,null,null,0,null,"Kostenart auswählen"]
[null,"Lieferant auswählen",null,null,false,null,null,null,null,0,null,"Kostenart auswählen"]
[null,"Lieferant auswählen",null,null,false,null,null,null,null,0,null,"Kostenart auswählen"]
[null,"Lieferant auswählen",null,null,false,null,null,null,null,0,null,"Kostenart auswählen"]
[null,"Lieferant auswählen",null,null,false,null,null,null,null,0,null,"Kostenart auswählen"]
[null,"Lieferant auswählen",null,null,false,null,null,null,null,0,null,"Kostenart auswählen"]
[null,"Lieferant auswählen",null,null,false,null,null,null,null,0,null,"Kostenart auswählen"]
[null,"Lieferant auswählen",null,null,false,null,null,null,null,0,null,"Kostenart auswählen"]
[null,"Lieferant auswählen",null,null,false,null,null,null,null,0,null,"Kostenart auswählen"]
[null,"Lieferant auswählen",null,null,false,null,null,null,null,0,null,"Kostenart auswählen"]
[null,"Lieferant auswählen",null,null,false,null,null,null,null,0,null,"Kostenart auswählen"]
[null,"Lieferant auswählen",null,null,false,null,null,null,null,0,null,"Kostenart auswählen"]
[null,"Lieferant auswählen",null,null,false,null,null,null,null,0,null,"Kostenart auswählen"]
[null,"Lieferant auswählen",null,null,false,null,null,null,null,0,null,"Kostenart auswählen"]
[null,"Lieferant auswählen",null,null,false,null,null,null,null,0,null,"Kostenart auswählen"]
[null,"Lieferant auswählen",null,null,false,null,null,null,null,0,null,"Kostenart auswählen"]
[null,"Lieferant auswählen",null,null,false,null,null,null,null,0,null,"Kostenart auswählen"]
[null,"Lieferant auswählen",null,null,false,null,null,null,null,0,null,"Kostenart auswählen"]
[null,"Lieferant auswählen",null,null,false,null,null,null,null,0,null,"Kostenart auswählen"]
[null,"Lieferant auswählen",null,null,false,null,null,null,null,0,null,"Kostenart auswählen"]
[null,"Lieferant auswählen",null,null,false,null,null,null,null,0,null,"Kostenart auswählen"]
[null,"Lieferant auswählen",null,null,false,null,null,null,null,0,null,"Kostenart auswählen"]
[null,"Lieferant auswählen",null,null,false,null,null,null,null,0,null,"Kostenart auswählen"]
[null,"Lieferant auswählen",null,null,false,null,null,null,null,0,null,"Kostenart auswählen"]
[null,"Lieferant auswählen",null,null,false,null,null,null,null,0,null,"Kostenart auswählen"]
[null,"Lieferant auswählen",null,null,false,null,null,null,null,0,null,"Kostenart auswählen"]
[null,"Lieferant auswählen",null,null,false,null,null,null,null,0,null,"Kostenart auswählen"]
[null,"Lieferant auswählen",null,null,false,null,null,null,null,0,null,"Kostenart auswählen"]
[null,"Lieferant auswählen",null,null,false,null,null,null,null,0,null,"Kostenart auswählen"]
[null,"Lieferant auswählen",null,null,false,null,null,null,null,0,null,"Kostenart auswählen"]
[null,"Lieferant auswählen",null,null,false,null,null,null,null,0,null,"Kostenart auswählen"]
[null,"Lieferant auswählen",null,null,false,null,null,null,null,0,null,"Kostenart auswählen"]
[null,"Lieferant auswählen",null,null,false,null,null,null,null,0,null,"Kostenart auswählen"]
[null,"Lieferant auswählen",null,null,false,null,null,null,null,0,null,"Kostenart auswählen"]
[null,"Lieferant auswählen",null,null,false,null,null,null,null,0,null,"Kostenart auswählen"]
[null,"Lieferant auswählen",null,null,false,null,null,null,null,0,null,"Kostenart auswählen"]
[null,"Lieferant auswählen",null,null,false,null,null,null,null,0,null,"Kostenart auswählen"]
[null,"Lieferant auswählen",null,null,false,null,null,null,null,0,null,"Kostenart auswählen"]
[null,"Lieferant auswählen",null,null,false,null,null,null,null,0,null,"Kostenart auswählen"]
[null,"Lieferant auswählen",null,null,false,null,null,null,null,0,null,"Kostenart auswählen"]
[null,"Lieferant auswählen",null,null,false,null,null,null,null,0,null,"Kostenart auswählen"]
[null,"Lieferant auswählen",null,null,false,null,null,null,null,0,null,"Kostenart auswählen"]
[null,"Lieferant auswählen",null,null,false,null,null,null,null,0,null,"Kostenart auswählen"]
[null,"Lieferant auswählen",null,null,false,null,null,null,null,0,null,"Kostenart auswählen"]
[null,"Lieferant auswählen",null,null,false,null,null,null,null,0,null,"Kostenart auswählen"]
[null,"Lieferant auswählen",null,null,false,null,null,null,null,0,null,"Kostenart auswählen"]
[null,"Lieferant auswählen",null,null,false,null,null,null,null,0,null,"Kostenart auswählen"]
[null,"Lieferant auswählen",null,null,false,null,null,null,null,0,null,"Kostenart auswählen"]
[null,"Lieferant auswählen",null,null,false,null,null,null,null,0,null,"Kostenart auswählen"]
[null,"Lieferant auswählen",null,null,false,null,null,null,null,0,null,"Kostenart auswählen"]
[null,"Lieferant auswählen",null,null,false,null,null,null,null,0,null,"Kostenart auswählen"]
[null,"Lieferant auswählen",null,null,false,null,null,null,null,0,null,"Kostenart auswählen"]
[null,"Lieferant auswählen",null,null,{"$f":"IF(COUNTIF(D:D,D963)=1,\"OK\",COUNTIF(D:D,D963)=1)","v":false},null,null,null,null,{"$f":"H963/(1+I963)","v":0},null,"Kostenart auswählen"]
[null,"Lieferant auswählen",null,null,false,null,null,null,null,0,null,"Kostenart auswählen"]
[null,"Lieferant auswählen",null,null,false,null,null,null,null,0,null,"Kostenart auswählen"]
[null,"Lieferant auswählen",null,null,false,null,null,null,null,0,null,"Kostenart auswählen"]
[null,"Lieferant auswählen",null,null,false,null,null,null,null,0,null,"Kostenart auswählen"]
[null,"Lieferant auswählen",null,null,false,null,null,null,null,0,null,"Kostenart auswählen"]
[null,"Lieferant auswählen",null,null,false,null,null,null,null,0,null,"Kostenart auswählen"]
[null,"Lieferant auswählen",null,null,false,null,null,null,null,0,null,"Kostenart auswählen"]
[null,"Lieferant auswählen",null,null,false,null,null,null,null,0,null,"Kostenart auswählen"]
[null,"Lieferant auswählen",null,null,false,null,null,null,null,0,null,"Kostenart auswählen"]
[null,"Lieferant auswählen",null,null,false,null,null,null,null,0,null,"Kostenart auswählen"]
[null,"Lieferant auswählen",null,null,false,null,null,null,null,0,null,"Kostenart auswählen"]
[null,"Lieferant auswählen",null,null,false,null,null,null,null,0,null,"Kostenart auswählen"]
[null,"Lieferant auswählen",null,null,false,null,null,null,null,0,null,"Kostenart auswählen"]
[null,"Lieferant auswählen",null,null,false,null,null,null,null,0,null,"Kostenart auswählen"]
[null,"Lieferant auswählen",null,null,false,null,null,null,null,0,null,"Kostenart auswählen"]
[null,"Lieferant auswählen",null,null,false,null,null,null,null,0,null,"Kostenart auswählen"]
[null,"Lieferant auswählen",null,null,false,null,null,null,null,0,null,"Kostenart auswählen"]
[null,"Lieferant auswählen",null,null,false,null,null,null,null,0,null,"Kostenart auswählen"]
[null,"Lieferant auswählen",null,null,false,null,null,null,null,0,null,"Kostenart auswählen"]
[null,"Lieferant auswählen",null,null,false,null,null,null,null,0,null,"Kostenart auswählen"]
[null,"Lieferant auswählen",null,null,false,null,null,null,null,0,null,"Kostenart auswählen"]
[null,"Lieferant auswählen",null,null,false,null,null,null,null,0,null,"Kostenart auswählen"]
[null,"Lieferant auswählen",null,null,false,null,null,null,null,0,null,"Kostenart auswählen"]
[null,"Lieferant auswählen",null,null,false,null,null,null,null,0,null,"Kostenart auswählen"]
[null,"Lieferant auswählen",null,null,false,null,null,null,null,0,null,"Kostenart auswählen"]
[null,"Lieferant auswählen",null,null,false,null,null,null,null,0,null,"Kostenart auswählen"]
[null,"Lieferant auswählen",null,null,false,null,null,null,null,0,null,"Kostenart auswählen"]
[null,"Lieferant auswählen",null,null,false,null,null,null,null,0,null,"Kostenart auswählen"]
[null,"Lieferant auswählen",null,null,false,null,null,null,null,0,null,"Kostenart auswählen"]
[null,"Lieferant auswählen",null,null,false,null,null,null,null,0,null,"Kostenart auswählen"]
[null,"Lieferant auswählen",null,null,false,null,null,null,null,0,null,"Kostenart auswählen"]
[null,"Lieferant auswählen",null,null,false,null,null,null,null,0,null,"Kostenart auswählen"]
[null,"Lieferant auswählen",null,null,false,null,null,null,null,0,null,"Kostenart auswählen"]
[null,"Lieferant auswählen",null,null,false,null,null,null,null,0,null,"Kostenart auswählen"]
[null,"Lieferant auswählen",null,null,false,null,null,null,null,0,null,"Kostenart auswählen"]
[null,"Lieferant auswählen",null,null,false,null,null,null,null,0,null,"Kostenart auswählen"]
[null,"Lieferant auswählen",null,null,false,null,null,null,null,0,null,"Kostenart auswählen"]
[null,"Lieferant auswählen",null,null,false,null,null,null,null,0,null,"Kostenart auswählen"]
[null,"Lieferant auswählen",null,null,false,null,null,null,null,0,null,"Kostenart auswählen"]
[null,"Lieferant auswählen",null,null,false,null,null,null,null,0,null,"Kostenart auswählen"]
[null,"Lieferant auswählen",null,null,false,null,null,null,null,0,null,"Kostenart auswählen"]
[null,"Lieferant auswählen",null,null,false,null,null,null,null,0,null,"Kostenart auswählen"]
[null,"Lieferant auswählen",null,null,false,null,null,null,null,0,null,"Kostenart auswählen"]
[null,"Lieferant auswählen",null,null,false,null,null,null,null,0,null,"Kostenart auswählen"]
[null,"Lieferant auswählen",null,null,false,null,null,null,null,0,null,"Kostenart auswählen"]
[null,"Lieferant auswählen",null,null,false,null,null,null,null,0,null,"Kostenart auswählen"]
[null,"Lieferant auswählen",null,null,false,null,null,null,null,0,null,"Kostenart auswählen"]
[null,"Lieferant auswählen",null,null,false,null,null,null,null,0,null,"Kostenart auswählen"]
[null,"Lieferant auswählen",null,null,false,null,null,null,null,0,null,"Kostenart auswählen"]
[null,"Lieferant auswählen",null,null,false,null,null,null,null,0,null,"Kostenart auswählen"]
[null,"Lieferant auswählen",null,null,false,null,null,null,null,0,null,"Kostenart auswählen"]
[null,"Lieferant auswählen",null,null,false,null,null,null,null,0,null,"Kostenart auswählen"]
[null,"Lieferant auswählen",null,null,false,null,null,null,null,0,null,"Kostenart auswählen"]
[null,"Lieferant auswählen",null,null,false,null,null,null,null,0,null,"Kostenart auswählen"]
[null,"Lieferant auswählen",null,null,false,null,null,null,null,0,null,"Kostenart auswählen"]
[null,"Lieferant auswählen",null,null,false,null,null,null,null,0,null,"Kostenart auswählen"]
[null,"Lieferant auswählen",null,null,false,null,null,null,null,0,null,"Kostenart auswählen"]
[null,"Lieferant auswählen",null,null,false,null,null,null,null,0,null,"Kostenart auswählen"]
[null,"Lieferant auswählen",null,null,false,null,null,null,null,0,null,"Kostenart auswählen"]
[null,"Lieferant auswählen",null,null,false,null,null,null,null,0,null,"Kostenart auswählen"]
[null,"Lieferant auswählen",null,null,false,null,null,null,null,0,null,"Kostenart auswählen"]
[null,"Lieferant auswählen",null,null,false,null,null,null,null,0,null,"Kostenart auswählen"]
[null,"Lieferant auswählen",null,null,false,null,null,null,null,0,null,"Kostenart auswählen"]
[null,"Lieferant auswählen",null,null,{"$f":"IF(COUNTIF(D:D,D1027)=1,\"OK\",COUNTIF(D:D,D1027)=1)","v":false},null,null,null,null,{"$f":"H1027/(1+I1027)","v":0},null,"Kostenart auswählen"]
[null,"Lieferant auswählen",null,null,false,null,null,null,null,0,null,"Kostenart auswählen"]
[null,"Lieferant auswählen",null,null,false,null,null,null,null,0,null,"Kostenart auswählen"]
[null,"Lieferant auswählen",null,null,false,null,null,null,null,0,null,"Kostenart auswählen"]
[null,"Lieferant auswählen",null,null,false,null,null,null,null,0,null,"Kostenart auswählen"]
[null,"Lieferant auswählen",null,null,false,null,null,null,null,0,null,"Kostenart auswählen"]
[null,"Lieferant auswählen",null,null,false,null,null,null,null,0,null,"Kostenart auswählen"]
[null,"Lieferant auswählen",null,null,false,null,null,null,null,0,null,"Kostenart auswählen"]
[null,"Lieferant auswählen",null,null,false,null,null,null,null,0,null,"Kostenart auswählen"]
[null,"Lieferant auswählen",null,null,false,null,null,null,null,0,null,"Kostenart auswählen"]
[null,"Lieferant auswählen",null,null,false,null,null,null,null,0,null,"Kostenart auswählen"]
[null,"Lieferant auswählen",null,null,false,null,null,null,null,0,null,"Kostenart auswählen"]
[null,"Lieferant auswählen",null,null,false,null,null,null,null,0,null,"Kostenart auswählen"]
[null,"Lieferant auswählen",null,null,false,null,null,null,null,0,null,"Kostenart auswählen"]
[null,"Lieferant auswählen",null,null,false,null,null,null,null,0,null,"Kostenart auswählen"]
[null,"Lieferant auswählen",null,null,false,null,null,null,null,0,null,"Kostenart auswählen"]
[null,"Lieferant auswählen",null,null,false,null,null,null,null,0,null,"Kostenart auswählen"]
[null,"Lieferant auswählen",null,null,false,null,null,null,null,0,null,"Kostenart auswählen"]
[null,"Lieferant auswählen",null,null,false,null,null,null,null,0,null,"Kostenart auswählen"]
[null,"Lieferant auswählen",null,null,false,null,null,null,null,0,null,"Kostenart auswählen"]
[null,"Lieferant auswählen",null,null,false,null,null,null,null,0,null,"Kostenart auswählen"]
[null,"Lieferant auswählen",null,null,false,null,null,null,null,0,null,"Kostenart auswählen"]
[null,"Lieferant auswählen",null,null,false,null,null,null,null,0,null,"Kostenart auswählen"]
[null,"Lieferant auswählen",null,null,false,null,null,null,null,0,null,"Kostenart auswählen"]
[null,"Lieferant auswählen",null,null,false,null,null,null,null,0,null,"Kostenart auswählen"]
[null,"Lieferant auswählen",null,null,false,null,null,null,null,0,null,"Kostenart auswählen"]
[null,"Lieferant auswählen",null,null,false,null,null,null,null,0,null,"Kostenart auswählen"]
[null,"Lieferant auswählen",null,null,false,null,null,null,null,0,null,"Kostenart auswählen"]
[null,"Lieferant auswählen",null,null,false,null,null,null,null,0,null,"Kostenart auswählen"]
[null,"Lieferant auswählen",null,null,false,null,null,null,null,0,null,"Kostenart auswählen"]
[null,"Lieferant auswählen",null,null,false,null,null,null,null,0,null,"Kostenart auswählen"]
[null,"Lieferant auswählen",null,null,false,null,null,null,null,0,null,"Kostenart auswählen"]
[null,"Lieferant auswählen",null,null,false,null,null,null,null,0,null,"Kostenart auswählen"]
[null,"Lieferant auswählen",null,null,false,null,null,null,null,0,null,"Kostenart auswählen"]
[null,"Lieferant auswählen",null,null,false,null,null,null,null,0,null,"Kostenart auswählen"]
[null,"Lieferant auswählen",null,null,false,null,null,null,null,0,null,"Kostenart auswählen"]
[null,"Lieferant auswählen",null,null,false,null,null,null,null,0,null,"Kostenart auswählen"]
[null,"Lieferant auswählen",null,null,false,null,null,null,null,0,null,"Kostenart auswählen"]
[null,"Lieferant auswählen",null,null,false,null,null,null,null,0,null,"Kostenart auswählen"]
[null,"Lieferant auswählen",null,null,false,null,null,null,null,0,null,"Kostenart auswählen"]
[null,"Lieferant auswählen",null,null,false,null,null,null,null,0,null,"Kostenart auswählen"]
[null,"Lieferant auswählen",null,null,false,null,null,null,null,0,null,"Kostenart auswählen"]
[null,"Lieferant auswählen",null,null,false,null,null,null,null,0,null,"Kostenart auswählen"]
[null,"Lieferant auswählen",null,null,false,null,null,null,null,0,null,"Kostenart auswählen"]
[null,"Lieferant auswählen",null,null,false,null,null,null,null,0,null,"Kostenart auswählen"]
[null,"Lieferant auswählen",null,null,false,null,null,null,null,0,null,"Kostenart auswählen"]
[null,"Lieferant auswählen",null,null,false,null,null,null,null,0,null,"Kostenart auswählen"]
[null,"Lieferant auswählen",null,null,false,null,null,null,null,0,null,"Kostenart auswählen"]
[null,"Lieferant auswählen",null,null,false,null,null,null,null,0,null,"Kostenart auswählen"]
[null,"Lieferant auswählen",null,null,false,null,null,null,null,0,null,"Kostenart auswählen"]
[null,"Lieferant auswählen",null,null,false,null,null,null,null,0,null,"Kostenart auswählen"]
[null,"Lieferant auswählen",null,null,false,null,null,null,null,0,null,"Kostenart auswählen"]
[null,"Lieferant auswählen",null,null,false,null,null,null,null,0,null,"Kostenart auswählen"]
[null,"Lieferant auswählen",null,null,false,null,null,null,null,0,null,"Kostenart auswählen"]
[null,"Lieferant auswählen",null,null,false,null,null,null,null,0,null,"Kostenart auswählen"]
[null,"Lieferant auswählen",null,null,false,null,null,null,null,0,null,"Kostenart auswählen"]
[null,"Lieferant auswählen",null,null,false,null,null,null,null,0,null,"Kostenart auswählen"]
[null,"Lieferant auswählen",null,null,false,null,null,null,null,0,null,"Kostenart auswählen"]
[null,"Lieferant auswählen",null,null,false,null,null,null,null,0,null,"Kostenart auswählen"]
[null,"Lieferant auswählen",null,null,false,null,null,null,null,0,null,"Kostenart auswählen"]
[null,"Lieferant auswählen",null,null,false,null,null,null,null,0,null,"Kostenart auswählen"]
[null,"Lieferant auswählen",null,null,false,null,null,null,null,0,null,"Kostenart auswählen"]
[null,"Lieferant auswählen",null,null,false,null,null,null,null,0,null,"Kostenart auswählen"]
[null,"Lieferant auswählen",null,null,false,null,null,null,null,0,null,"Kostenart auswählen"]
[null,"Lieferant auswählen",null,null,{"$f":"IF(COUNTIF(D:D,D1091)=1,\"OK\",COUNTIF(D:D,D1091)=1)","v":false},null,null,null,null,{"$f":"H1091/(1+I1091)","v":0},null,"Kostenart auswählen"]
[null,"Lieferant auswählen",null,null,false,null,null,null,null,0,null,"Kostenart auswählen"]
[null,"Lieferant auswählen",null,null,false,null,null,null,null,0,null,"Kostenart auswählen"]
[null,"Lieferant auswählen",null,null,false,null,null,null,null,0,null,"Kostenart auswählen"]
[null,"Lieferant auswählen",null,null,false,null,null,null,null,0,null,"Kostenart auswählen"]
[null,"Lieferant auswählen",null,null,false,null,null,null,null,0,null,"Kostenart auswählen"]
[null,"Lieferant auswählen",null,null,false,null,null,null,null,0,null,"Kostenart auswählen"]
[null,"Lieferant auswählen",null,null,false,null,null,null,null,0,null,"Kostenart auswählen"]
[null,"Lieferant auswählen",null,null,false,null,null,null,null,0,null,"Kostenart auswählen"]
[null,"Lieferant auswählen",null,null,false,null,null,null,null,0,null,"Kostenart auswählen"]
[null,"Lieferant auswählen",null,null,false,null,null,null,null,0,null,"Kostenart auswählen"]
[null,"Lieferant auswählen",null,null,false,null,null,null,null,0,null,"Kostenart auswählen"]
[null,"Lieferant auswählen",null,null,false,null,null,null,null,0,null,"Kostenart auswählen"]
[null,"Lieferant auswählen",null,null,false,null,null,null,null,0,null,"Kostenart auswählen"]
[null,"Lieferant auswählen",null,null,false,null,null,null,null,0,null,"Kostenart auswählen"]
[null,"Lieferant auswählen",null,null,false,null,null,null,null,0,null,"Kostenart auswählen"]
[null,"Lieferant auswählen",null,null,false,null,null,null,null,0,null,"Kostenart auswählen"]
[null,"Lieferant auswählen",null,null,false,null,null,null,null,0,null,"Kostenart auswählen"]
[null,"Lieferant auswählen",null,null,false,null,null,null,null,0,null,"Kostenart auswählen"]
[null,"Lieferant auswählen",null,null,false,null,null,null,null,0,null,"Kostenart auswählen"]
[null,"Lieferant auswählen",null,null,false,null,null,null,null,0,null,"Kostenart auswählen"]
[null,"Lieferant auswählen",null,null,false,null,null,null,null,0,null,"Kostenart auswählen"]
[null,"Lieferant auswählen",null,null,false,null,null,null,null,0,null,"Kostenart auswählen"]
[null,"Lieferant auswählen",null,null,false,null,null,null,null,0,null,"Kostenart auswählen"]
[null,"Lieferant auswählen",null,null,false,null,null,null,null,0,null,"Kostenart auswählen"]
[null,"Lieferant auswählen",null,null,false,null,null,null,null,0,null,"Kostenart auswählen"]
[null,"Lieferant auswählen",null,null,false,null,null,null,null,0,null,"Kostenart auswählen"]
[null,"Lieferant auswählen",null,null,false,null,null,null,null,0,null,"Kostenart auswählen"]
[null,"Lieferant auswählen",null,null,false,null,null,null,null,0,null,"Kostenart auswählen"]
[null,"Lieferant auswählen",null,null,false,null,null,null,null,0,null,"Kostenart auswählen"]
[null,"Lieferant auswählen",null,null,false,null,null,null,null,0,null,"Kostenart auswählen"]
[null,"Lieferant auswählen",null,null,false,null,null,null,null,0,null,"Kostenart auswählen"]
[null,"Lieferant auswählen",null,null,false,null,null,null,null,0,null,"Kostenart auswählen"]
[null,"Lieferant auswählen",null,null,false,null,null,null,null,0,null,"Kostenart auswählen"]
[null,"Lieferant auswählen",null,null,false,null,null,null,null,0,null,"Kostenart auswählen"]
[null,"Lieferant auswählen",null,null,false,null,null,null,null,0,null,"Kostenart auswählen"]
[null,"Lieferant auswählen",null,null,false,null,null,null,null,0,null,"Kostenart auswählen"]
[null,"Lieferant auswählen",null,null,false,null,null,null,null,0,null,"Kostenart auswählen"]
[null,"Lieferant auswählen",null,null,false,null,null,null,null,0,null,"Kostenart auswählen"]
[null,"Lieferant auswählen",null,null,false,null,null,null,null,0,null,"Kostenart auswählen"]
[null,"Lieferant auswählen",null,null,false,null,null,null,null,0,null,"Kostenart auswählen"]
[null,"Lieferant auswählen",null,null,false,null,null,null,null,0,null,"Kostenart auswählen"]
[null,"Lieferant auswählen",null,null,false,null,null,null,null,0,null,"Kostenart auswählen"]
[null,"Lieferant auswählen",null,null,false,null,null,null,null,0,null,"Kostenart auswählen"]
[null,"Lieferant auswählen",null,null,false,null,null,null,null,0,null,"Kostenart auswählen"]
[null,"Lieferant auswählen",null,null,false,null,null,null,null,0,null,"Kostenart auswählen"]
[null,"Lieferant auswählen",null,null,false,null,null,null,null,0,null,"Kostenart auswählen"]
[null,"Lieferant auswählen",null,null,false,null,null,null,null,0,null,"Kostenart auswählen"]
[null,"Lieferant auswählen",null,null,false,null,null,null,null,0,null,"Kostenart auswählen"]
[null,"Lieferant auswählen",null,null,false,null,null,null,null,0,null,"Kostenart auswählen"]
[null,"Lieferant auswählen",null,null,false,null,null,null,null,0,null,"Kostenart auswählen"]
[null,"Lieferant auswählen",null,null,false,null,null,null,null,0,null,"Kostenart auswählen"]
[null,"Lieferant auswählen",null,null,false,null,null,null,null,0,null,"Kostenart auswählen"]
[null,"Lieferant auswählen",null,null,false,null,null,null,null,0,null,"Kostenart auswählen"]
[null,"Lieferant auswählen",null,null,false,null,null,null,null,0,null,"Kostenart auswählen"]
[null,"Lieferant auswählen",null,null,false,null,null,null,null,0,null,"Kostenart auswählen"]
[null,"Lieferant auswählen",null,null,false,null,null,null,null,0,null,"Kostenart auswählen"]
[null,"Lieferant auswählen",null,null,false,null,null,null,null,0,null,"Kostenart auswählen"]
[null,"Lieferant auswählen",null,null,false,null,null,null,null,0,null,"Kostenart auswählen"]
[null,"Lieferant auswählen",null,null,false,null,null,null,null,0,null,"Kostenart auswählen"]
[null,"Lieferant auswählen",null,null,false,null,null,null,null,0,null,"Kostenart auswählen"]
[null,"Lieferant auswählen",null,null,false,null,null,null,null,0,null,"Kostenart auswählen"]
[null,"Lieferant auswählen",null,null,false,null,null,null,null,0,null,"Kostenart auswählen"]
[null,"Lieferant auswählen",null,null,false,null,null,null,null,0,null,"Kostenart auswählen"]
[null,"Lieferant auswählen",null,null,{"$f":"IF(COUNTIF(D:D,D1155)=1,\"OK\",COUNTIF(D:D,D1155)=1)","v":false},null,null,null,null,{"$f":"H1155/(1+I1155)","v":0},null,"Kostenart auswählen"]
[null,"Lieferant auswählen",null,null,false,null,null,null,null,0,null,"Kostenart auswählen"]
[null,"Lieferant auswählen",null,null,false,null,null,null,null,0,null,"Kostenart auswählen"]
[null,"Lieferant auswählen",null,null,false,null,null,null,null,0,null,"Kostenart auswählen"]
[null,"Lieferant auswählen",null,null,false,null,null,null,null,0,null,"Kostenart auswählen"]
[null,"Lieferant auswählen",null,null,false,null,null,null,null,0,null,"Kostenart auswählen"]
[null,"Lieferant auswählen",null,null,false,null,null,null,null,0,null,"Kostenart auswählen"]
[null,"Lieferant auswählen",null,null,false,null,null,null,null,0,null,"Kostenart auswählen"]
[null,"Lieferant auswählen",null,null,false,null,null,null,null,0,null,"Kostenart auswählen"]
[null,"Lieferant auswählen",null,null,false,null,null,null,null,0,null,"Kostenart auswählen"]
[null,"Lieferant auswählen",null,null,false,null,null,null,null,0,null,"Kostenart auswählen"]
[null,"Lieferant auswählen",null,null,false,null,null,null,null,0,null,"Kostenart auswählen"]
[null,"Lieferant auswählen",null,null,false,null,null,null,null,0,null,"Kostenart auswählen"]
[null,"Lieferant auswählen",null,null,false,null,null,null,null,0,null,"Kostenart auswählen"]
[null,"Lieferant auswählen",null,null,false,null,null,null,null,0,null,"Kostenart auswählen"]
[null,"Lieferant auswählen",null,null,false,null,null,null,null,0,null,"Kostenart auswählen"]
[null,"Lieferant auswählen",null,null,false,null,null,null,null,0,null,"Kostenart auswählen"]
[null,"Lieferant auswählen",null,null,false,null,null,null,null,0,null,"Kostenart auswählen"]
[null,"Lieferant auswählen",null,null,false,null,null,null,null,0,null,"Kostenart auswählen"]
[null,"Lieferant auswählen",null,null,false,null,null,null,null,0,null,"Kostenart auswählen"]
[null,"Lieferant auswählen",null,null,false,null,null,null,null,0,null,"Kostenart auswählen"]
[null,"Lieferant auswählen",null,null,false,null,null,null,null,0,null,"Kostenart auswählen"]
[null,"Lieferant auswählen",null,null,false,null,null,null,null,0,null,"Kostenart auswählen"]
[null,"Lieferant auswählen",null,null,false,null,null,null,null,0,null,"Kostenart auswählen"]
[null,"Lieferant auswählen",null,null,false,null,null,null,null,0,null,"Kostenart auswählen"]
[null,"Lieferant auswählen",null,null,false,null,null,null,null,0,null,"Kostenart auswählen"]
[null,"Lieferant auswählen",null,null,false,null,null,null,null,0,null,"Kostenart auswählen"]
[null,"Lieferant auswählen",null,null,false,null,null,null,null,0,null,"Kostenart auswählen"]
[null,"Lieferant auswählen",null,null,false,null,null,null,null,0,null,"Kostenart auswählen"]
[null,"Lieferant auswählen",null,null,false,null,null,null,null,0,null,"Kostenart auswählen"]
[null,"Lieferant auswählen",null,null,false,null,null,null,null,0,null,"Kostenart auswählen"]
[null,"Lieferant auswählen",null,null,false,null,null,null,null,0,null,"Kostenart auswählen"]
[null,"Lieferant auswählen",null,null,false,null,null,null,null,0,null,"Kostenart auswählen"]
[null,"Lieferant auswählen",null,null,false,null,null,null,null,0,null,"Kostenart auswählen"]
[null,"Lieferant auswählen",null,null,false,null,null,null,null,0,null,"Kostenart auswählen"]
[null,"Lieferant auswählen",null,null,false,null,null,null,null,0,null,"Kostenart auswählen"]
[null,"Lieferant auswählen",null,null,false,null,null,null,null,0,null,"Kostenart auswählen"]
[null,"Lieferant auswählen",null,null,false,null,null,null,null,0,null,"Kostenart auswählen"]
[null,"Lieferant auswählen",null,null,false,null,null,null,null,0,null,"Kostenart auswählen"]
[null,"Lieferant auswählen",null,null,false,null,null,null,null,0,null,"Kostenart auswählen"]
[null,"Lieferant auswählen",null,null,false,null,null,null,null,0,null,"Kostenart auswählen"]
[null,"Lieferant auswählen",null,null,false,null,null,null,null,0,null,"Kostenart auswählen"]
[null,"Lieferant auswählen",null,null,false,null,null,null,null,0,null,"Kostenart auswählen"]
[null,"Lieferant auswählen",null,null,false,null,null,null,null,0,null,"Kostenart auswählen"]
[null,"Lieferant auswählen",null,null,false,null,null,null,null,0,null,"Kostenart auswählen"]
[null,"Lieferant auswählen",null,null,false,null,null,null,null,0,null,"Kostenart auswählen"]
[null,"Lieferant auswählen",null,null,false,null,null,null,null,0,null,"Kostenart auswählen"]
[null,"Lieferant auswählen",null,null,false,null,null,null,null,0,null,"Kostenart auswählen"]
[null,"Lieferant auswählen",null,null,false,null,null,null,null,0,null,"Kostenart auswählen"]
[null,"Lieferant auswählen",null,null,false,null,null,null,null,0,null,"Kostenart auswählen"]
[null,"Lieferant auswählen",null,null,false,null,null,null,null,0,null,"Kostenart auswählen"]
[null,"Lieferant auswählen",null,null,false,null,null,null,null,0,null,"Kostenart auswählen"]
[null,"Lieferant auswählen",null,null,false,null,null,null,null,0,null,"Kostenart auswählen"]
[null,"Lieferant auswählen",null,null,false,null,null,null,null,0,null,"Kostenart auswählen"]
[null,"Lieferant auswählen",null,null,false,null,null,null,null,0,null,"Kostenart auswählen"]
[null,"Lieferant auswählen",null,null,false,null,null,null,null,0,null,"Kostenart auswählen"]
[null,"Lieferant auswählen",null,null,false,null,null,null,null,0,null,"Kostenart auswählen"]
[null,"Lieferant auswählen",null,null,false,null,null,null,null,0,null,"Kostenart auswählen"]
[null,"Lieferant auswählen",null,null,false,null,null,null,null,0,null,"Kostenart auswählen"]
[null,"Lieferant auswählen",null,null,false,null,null,null,null,0,null,"Kostenart auswählen"]
[null,"Lieferant auswählen",null,null,false,null,null,null,null,0,null,"Kostenart auswählen"]
[null,"Lieferant auswählen",null,null,false,null,null,null,null,0,null,"Kostenart auswählen"]
[null,"Lieferant auswählen",null,null,false,null,null,null,null,0,null,"Kostenart auswählen"]
[null,"Lieferant auswählen",null,null,false,null,null,null,null,0,null,"Kostenart auswählen"]
[null,"Lieferant auswählen",null,null,{"$f":"IF(COUNTIF(D:D,D1219)=1,\"OK\",COUNTIF(D:D,D1219)=1)","v":false},null,null,null,null,{"$f":"H1219/(1+I1219)","v":0},null,"Kostenart auswählen"]
[null,"Lieferant auswählen",null,null,false,null,null,null,null,0,null,"Kostenart auswählen"]
[null,"Lieferant auswählen",null,null,false,null,null,null,null,0,null,"Kostenart auswählen"]
[null,"Lieferant auswählen",null,null,false,null,null,null,null,0,null,"Kostenart auswählen"]
[null,"Lieferant auswählen",null,null,false,null,null,null,null,0,null,"Kostenart auswählen"]
[null,"Lieferant auswählen",null,null,false,null,null,null,null,0,null,"Kostenart auswählen"]
[null,"Lieferant auswählen",null,null,false,null,null,null,null,0,null,"Kostenart auswählen"]
[null,"Lieferant auswählen",null,null,false,null,null,null,null,0,null,"Kostenart auswählen"]
[null,"Lieferant auswählen",null,null,false,null,null,null,null,0,null,"Kostenart auswählen"]
[null,"Lieferant auswählen",null,null,false,null,null,null,null,0,null,"Kostenart auswählen"]
[null,"Lieferant auswählen",null,null,false,null,null,null,null,0,null,"Kostenart auswählen"]
[null,"Lieferant auswählen",null,null,false,null,null,null,null,0,null,"Kostenart auswählen"]
[null,"Lieferant auswählen",null,null,false,null,null,null,null,0,null,"Kostenart auswählen"]
[null,"Lieferant auswählen",null,null,false,null,null,null,null,0,null,"Kostenart auswählen"]
[null,"Lieferant auswählen",null,null,false,null,null,null,null,0,null,"Kostenart auswählen"]
[null,"Lieferant auswählen",null,null,false,null,null,null,null,0,null,"Kostenart auswählen"]
[null,"Lieferant auswählen",null,null,false,null,null,null,null,0,null,"Kostenart auswählen"]
[null,"Lieferant auswählen",null,null,false,null,null,null,null,0,null,"Kostenart auswählen"]
[null,"Lieferant auswählen",null,null,false,null,null,null,null,0,null,"Kostenart auswählen"]
[null,"Lieferant auswählen",null,null,false,null,null,null,null,0,null,"Kostenart auswählen"]
[null,"Lieferant auswählen",null,null,false,null,null,null,null,0,null,"Kostenart auswählen"]
[null,"Lieferant auswählen",null,null,false,null,null,null,null,0,null,"Kostenart auswählen"]
[null,"Lieferant auswählen",null,null,false,null,null,null,null,0,null,"Kostenart auswählen"]
[null,"Lieferant auswählen",null,null,false,null,null,null,null,0,null,"Kostenart auswählen"]
[null,"Lieferant auswählen",null,null,false,null,null,null,null,0,null,"Kostenart auswählen"]
[null,"Lieferant auswählen",null,null,false,null,null,null,null,0,null,"Kostenart auswählen"]
[null,"Lieferant auswählen",null,null,false,null,null,null,null,0,null,"Kostenart auswählen"]
[null,"Lieferant auswählen",null,null,false,null,null,null,null,0,null,"Kostenart auswählen"]
[null,"Lieferant auswählen",null,null,false,null,null,null,null,0,null,"Kostenart auswählen"]
[null,"Lieferant auswählen",null,null,false,null,null,null,null,0,null,"Kostenart auswählen"]
[null,"Lieferant auswählen",null,null,false,null,null,null,null,0,null,"Kostenart auswählen"]
[null,"Lieferant auswählen",null,null,false,null,null,null,null,0,null,"Kostenart auswählen"]
[null,"Lieferant auswählen",null,null,false,null,null,null,null,0,null,"Kostenart auswählen"]
[null,"Lieferant auswählen",null,null,false,null,null,null,null,0,null,"Kostenart auswählen"]
[null,"Lieferant auswählen",null,null,false,null,null,null,null,0,null,"Kostenart auswählen"]
[null,"Lieferant auswählen",null,null,false,null,null,null,null,0,null,"Kostenart auswählen"]
[null,"Lieferant auswählen",null,null,false,null,null,null,null,0,null,"Kostenart auswählen"]
[null,"Lieferant auswählen",null,null,false,null,null,null,null,0,null,"Kostenart auswählen"]
[null,"Lieferant auswählen",null,null,false,null,null,null,null,0,null,"Kostenart auswählen"]
[null,"Lieferant auswählen",null,null,false,null,null,null,null,0,null,"Kostenart auswählen"]
[null,"Lieferant auswählen",null,null,false,null,null,null,null,0,null,"Kostenart auswählen"]
[null,"Lieferant auswählen",null,null,false,null,null,null,null,0,null,"Kostenart auswählen"]
[null,"Lieferant auswählen",null,null,false,null,null,null,null,0,null,"Kostenart auswählen"]
[null,"Lieferant auswählen",null,null,false,null,null,null,null,0,null,"Kostenart auswählen"]
[null,"Lieferant auswählen",null,null,false,null,null,null,null,0,null,"Kostenart auswählen"]
[null,"Lieferant auswählen",null,null,false,null,null,null,null,0,null,"Kostenart auswählen"]
[null,"Lieferant auswählen",null,null,false,null,null,null,null,0,null,"Kostenart auswählen"]
[null,"Lieferant auswählen",null,null,false,null,null,null,null,0,null,"Kostenart auswählen"]
[null,"Lieferant auswählen",null,null,false,null,null,null,null,0,null,"Kostenart auswählen"]
[null,"Lieferant auswählen",null,null,false,null,null,null,null,0,null,"Kostenart auswählen"]
[null,"Lieferant auswählen",null,null,false,null,null,null,null,0,null,"Kostenart auswählen"]
[null,"Lieferant auswählen",null,null,false,null,null,null,null,0,null,"Kostenart auswählen"]
[null,"Lieferant auswählen",null,null,false,null,null,null,null,0,null,"Kostenart auswählen"]
[null,"Lieferant auswählen",null,null,false,null,null,null,null,0,null,"Kostenart auswählen"]
[null,"Lieferant auswählen",null,null,false,null,null,null,null,0,null,"Kostenart auswählen"]
[null,"Lieferant auswählen",null,null,false,null,null,null,null,0,null,"Kostenart auswählen"]
[null,"Lieferant auswählen",null,null,false,null,null,null,null,0,null,"Kostenart auswählen"]
[null,"Lieferant auswählen",null,null,false,null,null,null,null,0,null,"Kostenart auswählen"]
[null,"Lieferant auswählen",null,null,false,null,null,null,null,0,null,"Kostenart auswählen"]
[null,"Lieferant auswählen",null,null,false,null,null,null,null,0,null,"Kostenart auswählen"]
[null,"Lieferant auswählen",null,null,false,null,null,null,null,0,null,"Kostenart auswählen"]
[null,"Lieferant auswählen",null,null,false,null,null,null,null,0,null,"Kostenart auswählen"]
[null,"Lieferant auswählen",null,null,false,null,null,null,null,0,null,"Kostenart auswählen"]
[null,"Lieferant auswählen",null,null,false,null,null,null,null,0,null,"Kostenart auswählen"]
[null,"Lieferant auswählen",null,null,{"$f":"IF(COUNTIF(D:D,D1283)=1,\"OK\",COUNTIF(D:D,D1283)=1)","v":false},null,null,null,null,{"$f":"H1283/(1+I1283)","v":0},null,"Kostenart auswählen"]
[null,"Lieferant auswählen",null,null,false,null,null,null,null,0,null,"Kostenart auswählen"]
[null,"Lieferant auswählen",null,null,false,null,null,null,null,0,null,"Kostenart auswählen"]
[null,"Lieferant auswählen",null,null,false,null,null,null,null,0,null,"Kostenart auswählen"]
[null,"Lieferant auswählen",null,null,false,null,null,null,null,0,null,"Kostenart auswählen"]
[null,"Lieferant auswählen",null,null,false,null,null,null,null,0,null,"Kostenart auswählen"]
[null,"Lieferant auswählen",null,null,false,null,null,null,null,0,null,"Kostenart auswählen"]
[null,"Lieferant auswählen",null,null,false,null,null,null,null,0,null,"Kostenart auswählen"]
[null,"Lieferant auswählen",null,null,false,null,null,null,null,0,null,"Kostenart auswählen"]
[null,"Lieferant auswählen",null,null,false,null,null,null,null,0,null,"Kostenart auswählen"]
[null,"Lieferant auswählen",null,null,false,null,null,null,null,0,null,"Kostenart auswählen"]
[null,"Lieferant auswählen",null,null,false,null,null,null,null,0,null,"Kostenart auswählen"]
[null,"Lieferant auswählen",null,null,false,null,null,null,null,0,null,"Kostenart auswählen"]
[null,"Lieferant auswählen",null,null,false,null,null,null,null,0,null,"Kostenart auswählen"]
[null,"Lieferant auswählen",null,null,false,null,null,null,null,0,null,"Kostenart auswählen"]
[null,"Lieferant auswählen",null,null,false,null,null,null,null,0,null,"Kostenart auswählen"]
[null,"Lieferant auswählen",null,null,false,null,null,null,null,0,null,"Kostenart auswählen"]
[null,"Lieferant auswählen",null,null,false,null,null,null,null,0,null,"Kostenart auswählen"]
[null,"Lieferant auswählen",null,null,false,null,null,null,null,0,null,"Kostenart auswählen"]
[null,"Lieferant auswählen",null,null,false,null,null,null,null,0,null,"Kostenart auswählen"]
[null,"Lieferant auswählen",null,null,false,null,null,null,null,0,null,"Kostenart auswählen"]
[null,"Lieferant auswählen",null,null,false,null,null,null,null,0,null,"Kostenart auswählen"]
[null,"Lieferant auswählen",null,null,false,null,null,null,null,0,null,"Kostenart auswählen"]
[null,"Lieferant auswählen",null,null,false,null,null,null,null,0,null,"Kostenart auswählen"]
[null,"Lieferant auswählen",null,null,false,null,null,null,null,0,null,"Kostenart auswählen"]
[null,"Lieferant auswählen",null,null,false,null,null,null,null,0,null,"Kostenart auswählen"]
[null,"Lieferant auswählen",null,null,false,null,null,null,null,0,null,"Kostenart auswählen"]
[null,"Lieferant auswählen",null,null,false,null,null,null,null,0,null,"Kostenart auswählen"]
[null,"Lieferant auswählen",null,null,false,null,null,null,null,0,null,"Kostenart auswählen"]
[null,"Lieferant auswählen",null,null,false,null,null,null,null,0,null,"Kostenart auswählen"]
[null,"Lieferant auswählen",null,null,false,null,null,null,null,0,null,"Kostenart auswählen"]
[null,"Lieferant auswählen",null,null,false,null,null,null,null,0,null,"Kostenart auswählen"]
[null,"Lieferant auswählen",null,null,false,null,null,null,null,0,null,"Kostenart auswählen"]
[null,"Lieferant auswählen",null,null,false,null,null,null,null,0,null,"Kostenart auswählen"]
[null,"Lieferant auswählen",null,null,false,null,null,null,null,0,null,"Kostenart auswählen"]
[null,"Lieferant auswählen",null,null,false,null,null,null,null,0,null,"Kostenart auswählen"]
[null,"Lieferant auswählen",null,null,false,null,null,null,null,0,null,"Kostenart auswählen"]
[null,"Lieferant auswählen",null,null,false,null,null,null,null,0,null,"Kostenart auswählen"]
[null,"Lieferant auswählen",null,null,false,null,null,null,null,0,null,"Kostenart auswählen"]
[null,"Lieferant auswählen",null,null,false,null,null,null,null,0,null,"Kostenart auswählen"]
[null,"Lieferant auswählen",null,null,false,null,null,null,null,0,null,"Kostenart auswählen"]
[null,"Lieferant auswählen",null,null,false,null,null,null,null,0,null,"Kostenart auswählen"]
[null,"Lieferant auswählen",null,null,false,null,null,null,null,0,null,"Kostenart auswählen"]
[null,"Lieferant auswählen",null,null,false,null,null,null,null,0,null,"Kostenart auswählen"]
[null,"Lieferant auswählen",null,null,false,null,null,null,null,0,null,"Kostenart auswählen"]
[null,"Lieferant auswählen",null,null,false,null,null,null,null,0,null,"Kostenart auswählen"]
[null,"Lieferant auswählen",null,null,false,null,null,null,null,0,null,"Kostenart auswählen"]
[null,"Lieferant auswählen",null,null,false,null,null,null,null,0,null,"Kostenart auswählen"]
[null,"Lieferant auswählen",null,null,false,null,null,null,null,0,null,"Kostenart auswählen"]
[null,"Lieferant auswählen",null,null,false,null,null,null,null,0,null,"Kostenart auswählen"]
[null,"Lieferant auswählen",null,null,false,null,null,null,null,0,null,"Kostenart auswählen"]
[null,"Lieferant auswählen",null,null,false,null,null,null,null,0,null,"Kostenart auswählen"]
[null,"Lieferant auswählen",null,null,false,null,null,null,null,0,null,"Kostenart auswählen"]
[null,"Lieferant auswählen",null,null,false,null,null,null,null,0,null,"Kostenart auswählen"]
[null,"Lieferant auswählen",null,null,false,null,null,null,null,0,null,"Kostenart auswählen"]
[null,"Lieferant auswählen",null,null,false,null,null,null,null,0,null,"Kostenart auswählen"]
[null,"Lieferant auswählen",null,null,false,null,null,null,null,0,null,"Kostenart auswählen"]
[null,"Lieferant auswählen",null,null,false,null,null,null,null,0,null,"Kostenart auswählen"]
[null,"Lieferant auswählen",null,null,false,null,null,null,null,0,null,"Kostenart auswählen"]
[null,"Lieferant auswählen",null,null,false,null,null,null,null,0,null,"Kostenart auswählen"]
[null,"Lieferant auswählen",null,null,false,null,null,null,null,0,null,"Kostenart auswählen"]
[null,"Lieferant auswählen",null,null,false,null,null,null,null,0,null,"Kostenart auswählen"]
[null,"Lieferant auswählen",null,null,false,null,null,null,null,0,null,"Kostenart auswählen"]
[null,"Lieferant auswählen",null,null,false,null,null,null,null,0,null,"Kostenart auswählen"]
[null,"Lieferant auswählen",null,null,{"$f":"IF(COUNTIF(D:D,D1347)=1,\"OK\",COUNTIF(D:D,D1347)=1)","v":false},null,null,null,null,{"$f":"H1347/(1+I1347)","v":0},null,"Kostenart auswählen"]
[null,"Lieferant auswählen",null,null,false,null,null,null,null,0,null,"Kostenart auswählen"]
[null,"Lieferant auswählen",null,null,false,null,null,null,null,0,null,"Kostenart auswählen"]
[null,"Lieferant auswählen",null,null,false,null,null,null,null,0,null,"Kostenart auswählen"]
[null,"Lieferant auswählen",null,null,false,null,null,null,null,0,null,"Kostenart auswählen"]
[null,"Lieferant auswählen",null,null,false,null,null,null,null,0,null,"Kostenart auswählen"]
[null,"Lieferant auswählen",null,null,false,null,null,null,null,0,null,"Kostenart auswählen"]
[null,"Lieferant auswählen",null,null,false,null,null,null,null,0,null,"Kostenart auswählen"]
[null,"Lieferant auswählen",null,null,false,null,null,null,null,0,null,"Kostenart auswählen"]
[null,"Lieferant auswählen",null,null,false,null,null,null,null,0,null,"Kostenart auswählen"]
[null,"Lieferant auswählen",null,null,false,null,null,null,null,0,null,"Kostenart auswählen"]
[null,"Lieferant auswählen",null,null,false,null,null,null,null,0,null,"Kostenart auswählen"]
[null,"Lieferant auswählen",null,null,false,null,null,null,null,0,null,"Kostenart auswählen"]
[null,"Lieferant auswählen",null,null,false,null,null,null,null,0,null,"Kostenart auswählen"]
[null,"Lieferant auswählen",null,null,false,null,null,null,null,0,null,"Kostenart auswählen"]
[null,"Lieferant auswählen",null,null,false,null,null,null,null,0,null,"Kostenart auswählen"]
[null,"Lieferant auswählen",null,null,false,null,null,null,null,0,null,"Kostenart auswählen"]
[null,"Lieferant auswählen",null,null,false,null,null,null,null,0,null,"Kostenart auswählen"]
[null,"Lieferant auswählen",null,null,false,null,null,null,null,0,null,"Kostenart auswählen"]
[null,"Lieferant auswählen",null,null,false,null,null,null,null,0,null,"Kostenart auswählen"]
[null,"Lieferant auswählen",null,null,false,null,null,null,null,0,null,"Kostenart auswählen"]
[null,"Lieferant auswählen",null,null,false,null,null,null,null,0,null,"Kostenart auswählen"]
[null,"Lieferant auswählen",null,null,false,null,null,null,null,0,null,"Kostenart auswählen"]
[null,"Lieferant auswählen",null,null,false,null,null,null,null,0,null,"Kostenart auswählen"]
[null,"Lieferant auswählen",null,null,false,null,null,null,null,0,null,"Kostenart auswählen"]
[null,"Lieferant auswählen",null,null,false,null,null,null,null,0,null,"Kostenart auswählen"]
[null,"Lieferant auswählen",null,null,false,null,null,null,null,0,null,"Kostenart auswählen"]
[null,"Lieferant auswählen",null,null,false,null,null,null,null,0,null,"Kostenart auswählen"]
[null,"Lieferant auswählen",null,null,false,null,null,null,null,0,null,"Kostenart auswählen"]
[null,"Lieferant auswählen",null,null,false,null,null,null,null,0,null,"Kostenart auswählen"]
[null,"Lieferant auswählen",null,null,false,null,null,null,null,0,null,"Kostenart auswählen"]
[null,"Lieferant auswählen",null,null,false,null,null,null,null,0,null,"Kostenart auswählen"]
[null,"Lieferant auswählen",null,null,false,null,null,null,null,0,null,"Kostenart auswählen"]
[null,"Lieferant auswählen",null,null,false,null,null,null,null,0,null,"Kostenart auswählen"]
[null,"Lieferant auswählen",null,null,false,null,null,null,null,0,null,"Kostenart auswählen"]
[null,"Lieferant auswählen",null,null,false,null,null,null,null,0,null,"Kostenart auswählen"]
[null,"Lieferant auswählen",null,null,false,null,null,null,null,0,null,"Kostenart auswählen"]
[null,"Lieferant auswählen",null,null,false,null,null,null,null,0,null,"Kostenart auswählen"]
[null,"Lieferant auswählen",null,null,false,null,null,null,null,0,null,"Kostenart auswählen"]
[null,"Lieferant auswählen",null,null,false,null,null,null,null,0,null,"Kostenart auswählen"]
[null,"Lieferant auswählen",null,null,false,null,null,null,null,0,null,"Kostenart auswählen"]
[null,"Lieferant auswählen",null,null,false,null,null,null,null,0,null,"Kostenart auswählen"]
[null,"Lieferant auswählen",null,null,false,null,null,null,null,0,null,"Kostenart auswählen"]
[null,"Lieferant auswählen",null,null,false,null,null,null,null,0,null,"Kostenart auswählen"]
[null,"Lieferant auswählen",null,null,false,null,null,null,null,0,null,"Kostenart auswählen"]
[null,"Lieferant auswählen",null,null,false,null,null,null,null,0,null,"Kostenart auswählen"]
[null,"Lieferant auswählen",null,null,false,null,null,null,null,0,null,"Kostenart auswählen"]
[null,"Lieferant auswählen",null,null,false,null,null,null,null,0,null,"Kostenart auswählen"]
[null,"Lieferant auswählen",null,null,false,null,null,null,null,0,null,"Kostenart auswählen"]
[null,"Lieferant auswählen",null,null,false,null,null,null,null,0,null,"Kostenart auswählen"]
[null,"Lieferant auswählen",null,null,false,null,null,null,null,0,null,"Kostenart auswählen"]
[null,"Lieferant auswählen",null,null,false,null,null,null,null,0,null,"Kostenart auswählen"]
[null,"Lieferant auswählen",null,null,false,null,null,null,null,0,null,"Kostenart auswählen"]
[null,"Lieferant auswählen",null,null,false,null,null,null,null,0,null,"Kostenart auswählen"]
[null,"Lieferant auswählen",null,null,false,null,null,null,null,0,null,"Kostenart auswählen"]
[null,"Lieferant auswählen",null,null,false,null,null,null,null,0,null,"Kostenart auswählen"]
[null,"Lieferant auswählen",null,null,false,null,null,null,null,0,null,"Kostenart auswählen"]
[null,"Lieferant auswählen",null,null,false,null,null,null,null,0,null,"Kostenart auswählen"]
[null,"Lieferant auswählen",null,null,false,null,null,null,null,0,null,"Kostenart auswählen"]
[null,"Lieferant auswählen",null,null,false,null,null,null,null,0,null,"Kostenart auswählen"]
[null,"Lieferant auswählen",null,null,false,null,null,null,null,0,null,"Kostenart auswählen"]
[null,"Lieferant auswählen",null,null,false,null,null,null,null,0,null,"Kostenart auswählen"]
[null,"Lieferant auswählen",null,null,false,null,null,null,null,0,null,"Kostenart auswählen"]
[null,"Lieferant auswählen",null,null,false,null,null,null,null,0,null,"Kostenart auswählen"]
[null,"Lieferant auswählen",null,null,{"$f":"IF(COUNTIF(D:D,D1411)=1,\"OK\",COUNTIF(D:D,D1411)=1)","v":false},null,null,null,null,{"$f":"H1411/(1+I1411)","v":0},null,"Kostenart auswählen"]
[null,"Lieferant auswählen",null,null,false,null,null,null,null,0,null,"Kostenart auswählen"]
[null,"Lieferant auswählen",null,null,false,null,null,null,null,0,null,"Kostenart auswählen"]
[null,"Lieferant auswählen",null,null,false,null,null,null,null,0,null,"Kostenart auswählen"]
[null,"Lieferant auswählen",null,null,false,null,null,null,null,0,null,"Kostenart auswählen"]
[null,"Lieferant auswählen",null,null,false,null,null,null,null,0,null,"Kostenart auswählen"]
[null,"Lieferant auswählen",null,null,false,null,null,null,null,0,null,"Kostenart auswählen"]
[null,"Lieferant auswählen",null,null,false,null,null,null,null,0,null,"Kostenart auswählen"]
[null,"Lieferant auswählen",null,null,false,null,null,null,null,0,null,"Kostenart auswählen"]
[null,"Lieferant auswählen",null,null,false,null,null,null,null,0,null,"Kostenart auswählen"]
[null,"Lieferant auswählen",null,null,false,null,null,null,null,0,null,"Kostenart auswählen"]
[null,"Lieferant auswählen",null,null,false,null,null,null,null,0,null,"Kostenart auswählen"]
[null,"Lieferant auswählen",null,null,false,null,null,null,null,0,null,"Kostenart auswählen"]
[null,"Lieferant auswählen",null,null,false,null,null,null,null,0,null,"Kostenart auswählen"]
[null,"Lieferant auswählen",null,null,false,null,null,null,null,0,null,"Kostenart auswählen"]
[null,"Lieferant auswählen",null,null,false,null,null,null,null,0,null,"Kostenart auswählen"]
[null,"Lieferant auswählen",null,null,false,null,null,null,null,0,null,"Kostenart auswählen"]
[null,"Lieferant auswählen",null,null,false,null,null,null,null,0,null,"Kostenart auswählen"]
[null,"Lieferant auswählen",null,null,false,null,null,null,null,0,null,"Kostenart auswählen"]
[null,"Lieferant auswählen",null,null,false,null,null,null,null,0,null,"Kostenart auswählen"]
[null,"Lieferant auswählen",null,null,false,null,null,null,null,0,null,"Kostenart auswählen"]
[null,"Lieferant auswählen",null,null,false,null,null,null,null,0,null,"Kostenart auswählen"]
[null,"Lieferant auswählen",null,null,false,null,null,null,null,0,null,"Kostenart auswählen"]
[null,"Lieferant auswählen",null,null,false,null,null,null,null,0,null,"Kostenart auswählen"]
[null,"Lieferant auswählen",null,null,false,null,null,null,null,0,null,"Kostenart auswählen"]
[null,"Lieferant auswählen",null,null,false,null,null,null,null,0,null,"Kostenart auswählen"]
[null,"Lieferant auswählen",null,null,false,null,null,null,null,0,null,"Kostenart auswählen"]
[null,"Lieferant auswählen",null,null,false,null,null,null,null,0,null,"Kostenart auswählen"]
[null,"Lieferant auswählen",null,null,false,null,null,null,null,0,null,"Kostenart auswählen"]
[null,"Lieferant auswählen",null,null,false,null,null,null,null,0,null,"Kostenart auswählen"]
[null,"Lieferant auswählen",null,null,false,null,null,null,null,0,null,"Kostenart auswählen"]
[null,"Lieferant auswählen",null,null,false,null,null,null,null,0,null,"Kostenart auswählen"]
[null,"Lieferant auswählen",null,null,false,null,null,null,null,0,null,"Kostenart auswählen"]
[null,"Lieferant auswählen",null,null,false,null,null,null,null,0,null,"Kostenart auswählen"]
[null,"Lieferant auswählen",null,null,false,null,null,null,null,0,null,"Kostenart auswählen"]
[null,"Lieferant auswählen",null,null,false,null,null,null,null,0,null,"Kostenart auswählen"]
[null,"Lieferant auswählen",null,null,false,null,null,null,null,0,null,"Kostenart auswählen"]
[null,"Lieferant auswählen",null,null,false,null,null,null,null,0,null,"Kostenart auswählen"]
[null,"Lieferant auswählen",null,null,false,null,null,null,null,0,null,"Kostenart auswählen"]
[null,"Lieferant auswählen",null,null,false,null,null,null,null,0,null,"Kostenart auswählen"]
[null,"Lieferant auswählen",null,null,false,null,null,null,null,0,null,"Kostenart auswählen"]
[null,"Lieferant auswählen",null,null,false,null,null,null,null,0,null,"Kostenart auswählen"]
[null,"Lieferant auswählen",null,null,false,null,null,null,null,0,null,"Kostenart auswählen"]
[null,"Lieferant auswählen",null,null,false,null,null,null,null,0,null,"Kostenart auswählen"]
[null,"Lieferant auswählen",null,null,false,null,null,null,null,0,null,"Kostenart auswählen"]
[null,"Lieferant auswählen",null,null,false,null,null,null,null,0,null,"Kostenart auswählen"]
[null,"Lieferant auswählen",null,null,false,null,null,null,null,0,null,"Kostenart auswählen"]
[null,"Lieferant auswählen",null,null,false,null,null,null,null,0,null,"Kostenart auswählen"]
[null,"Lieferant auswählen",null,null,false,null,null,null,null,0,null,"Kostenart auswählen"]
[null,"Lieferant auswählen",null,null,false,null,null,null,null,0,null,"Kostenart auswählen"]
[null,"Lieferant auswählen",null,null,false,null,null,null,null,0,null,"Kostenart auswählen"]
[null,"Lieferant auswählen",null,null,false,null,null,null,null,0,null,"Kostenart auswählen"]
[null,"Lieferant auswählen",null,null,false,null,null,null,null,0,null,"Kostenart auswählen"]
[null,"Lieferant auswählen",null,null,false,null,null,null,null,0,null,"Kostenart auswählen"]
[null,"Lieferant auswählen",null,null,false,null,null,null,null,0,null,"Kostenart auswählen"]
[null,"Lieferant auswählen",null,null,false,null,null,null,null,0,null,"Kostenart auswählen"]
[null,"Lieferant auswählen",null,null,false,null,null,null,null,0,null,"Kostenart auswählen"]
[null,"Lieferant auswählen",null,null,false,null,null,null,null,0,null,"Kostenart auswählen"]
[null,"Lieferant auswählen",null,null,false,null,null,null,null,0,null,"Kostenart auswählen"]
[null,"Lieferant auswählen",null,null,false,null,null,null,null,0,null,"Kostenart auswählen"]
[null,"Lieferant auswählen",null,null,false,null,null,null,null,0,null,"Kostenart auswählen"]
[null,"Lieferant auswählen",null,null,false,null,null,null,null,0,null,"Kostenart auswählen"]
[null,"Lieferant auswählen",null,null,false,null,null,null,null,0,null,"Kostenart auswählen"]
[null,"Lieferant auswählen",null,null,false,null,null,null,null,0,null,"Kostenart auswählen"]
[null,"Lieferant auswählen",null,null,{"$f":"IF(COUNTIF(D:D,D1475)=1,\"OK\",COUNTIF(D:D,D1475)=1)","v":false},null,null,null,null,{"$f":"H1475/(1+I1475)","v":0},null,"Kostenart auswählen"]
[null,"Lieferant auswählen",null,null,false,null,null,null,null,0,null,"Kostenart auswählen"]
[null,"Lieferant auswählen",null,null,false,null,null,null,null,0,null,"Kostenart auswählen"]
[null,"Lieferant auswählen",null,null,false,null,null,null,null,0,null,"Kostenart auswählen"]
[null,"Lieferant auswählen",null,null,false,null,null,null,null,0,null,"Kostenart auswählen"]
[null,"Lieferant auswählen",null,null,false,null,null,null,null,0,null,"Kostenart auswählen"]
[null,"Lieferant auswählen",null,null,false,null,null,null,null,0,null,"Kostenart auswählen"]
[null,"Lieferant auswählen",null,null,false,null,null,null,null,0,null,"Kostenart auswählen"]
[null,"Lieferant auswählen",null,null,false,null,null,null,null,0,null,"Kostenart auswählen"]
[null,"Lieferant auswählen",null,null,false,null,null,null,null,0,null,"Kostenart auswählen"]
[null,"Lieferant auswählen",null,null,false,null,null,null,null,0,null,"Kostenart auswählen"]
[null,"Lieferant auswählen",null,null,false,null,null,null,null,0,null,"Kostenart auswählen"]
[null,"Lieferant auswählen",null,null,false,null,null,null,null,0,null,"Kostenart auswählen"]
[null,"Lieferant auswählen",null,null,false,null,null,null,null,0,null,"Kostenart auswählen"]
[null,"Lieferant auswählen",null,null,false,null,null,null,null,0,null,"Kostenart auswählen"]
[null,"Lieferant auswählen",null,null,false,null,null,null,null,0,null,"Kostenart auswählen"]
[null,"Lieferant auswählen",null,null,false,null,null,null,null,0,null,"Kostenart auswählen"]
[null,"Lieferant auswählen",null,null,false,null,null,null,null,0,null,"Kostenart auswählen"]
[null,"Lieferant auswählen",null,null,false,null,null,null,null,0,null,"Kostenart auswählen"]
[null,"Lieferant auswählen",null,null,false,null,null,null,null,0,null,"Kostenart auswählen"]
[null,"Lieferant auswählen",null,null,false,null,null,null,null,0,null,"Kostenart auswählen"]
[null,"Lieferant auswählen",null,null,false,null,null,null,null,0,null,"Kostenart auswählen"]
[null,"Lieferant auswählen",null,null,false,null,null,null,null,0,null,"Kostenart auswählen"]
[null,"Lieferant auswählen",null,null,false,null,null,null,null,0,null,"Kostenart auswählen"]
[null,"Lieferant auswählen",null,null,false,null,null,null,null,0,null,"Kostenart auswählen"]
[null,"Lieferant auswählen",null,null,false,null,null,null,null,0,null,"Kostenart auswählen"]
[null,"Lieferant auswählen",null,null,false,null,null,null,null,0,null,"Kostenart auswählen"]
[null,"Lieferant auswählen",null,null,false,null,null,null,null,0,null,"Kostenart auswählen"]
[null,"Lieferant auswählen",null,null,false,null,null,null,null,0,null,"Kostenart auswählen"]
[null,"Lieferant auswählen",null,null,false,null,null,null,null,0,null,"Kostenart auswählen"]
[null,"Lieferant auswählen",null,null,false,null,null,null,null,0,null,"Kostenart auswählen"]
[null,"Lieferant auswählen",null,null,false,null,null,null,null,0,null,"Kostenart auswählen"]
[null,"Lieferant auswählen",null,null,false,null,null,null,null,0,null,"Kostenart auswählen"]
[null,"Lieferant auswählen",null,null,false,null,null,null,null,0,null,"Kostenart auswählen"]
[null,"Lieferant auswählen",null,null,false,null,null,null,null,0,null,"Kostenart auswählen"]
[null,"Lieferant auswählen",null,null,false,null,null,null,null,0,null,"Kostenart auswählen"]
[null,"Lieferant auswählen",null,null,false,null,null,null,null,0,null,"Kostenart auswählen"]
[null,"Lieferant auswählen",null,null,false,null,null,null,null,0,null,"Kostenart auswählen"]
[null,"Lieferant auswählen",null,null,false,null,null,null,null,0,null,"Kostenart auswählen"]
[null,"Lieferant auswählen",null,null,false,null,null,null,null,0,null,"Kostenart auswählen"]
[null,"Lieferant auswählen",null,null,false,null,null,null,null,0,null,"Kostenart auswählen"]
[null,"Lieferant auswählen",null,null,false,null,null,null,null,0,null,"Kostenart auswählen"]
[null,"Lieferant auswählen",null,null,false,null,null,null,null,0,null,"Kostenart auswählen"]
[null,"Lieferant auswählen",null,null,false,null,null,null,null,0,null,"Kostenart auswählen"]
[null,"Lieferant auswählen",null,null,false,null,null,null,null,0,null,"Kostenart auswählen"]
[null,"Lieferant auswählen",null,null,false,null,null,null,null,0,null,"Kostenart auswählen"]
[null,"Lieferant auswählen",null,null,false,null,null,null,null,0,null,"Kostenart auswählen"]
[null,"Lieferant auswählen",null,null,false,null,null,null,null,0,null,"Kostenart auswählen"]
[null,"Lieferant auswählen",null,null,false,null,null,null,null,0,null,"Kostenart auswählen"]
[null,"Lieferant auswählen",null,null,false,null,null,null,null,0,null,"Kostenart auswählen"]
[null,"Lieferant auswählen",null,null,false,null,null,null,null,0,null,"Kostenart auswählen"]
[null,"Lieferant auswählen",null,null,false,null,null,null,null,0,null,"Kostenart auswählen"]
[null,"Lieferant auswählen",null,null,false,null,null,null,null,0,null,"Kostenart auswählen"]
[null,"Lieferant auswählen",null,null,false,null,null,null,null,0,null,"Kostenart auswählen"]
[null,"Lieferant auswählen",null,null,false,null,null,null,null,0,null,"Kostenart auswählen"]
[null,"Lieferant auswählen",null,null,false,null,null,null,null,0,null,"Kostenart auswählen"]
[null,"Lieferant auswählen",null,null,false,null,null,null,null,0,null,"Kostenart auswählen"]
[null,"Lieferant auswählen",null,null,false,null,null,null,null,0,null,"Kostenart auswählen"]
[null,"Lieferant auswählen",null,null,false,null,null,null,null,0,null,"Kostenart auswählen"]
[null,"Lieferant auswählen",null,null,false,null,null,null,null,0,null,"Kostenart auswählen"]
[null,"Lieferant auswählen",null,null,false,null,null,null,null,0,null,"Kostenart auswählen"]
[null,"Lieferant auswählen",null,null,false,null,null,null,null,0,null,"Kostenart auswählen"]
[null,"Lieferant auswählen",null,null,false,null,null,null,null,0,null,"Kostenart auswählen"]
[null,"Lieferant auswählen",null,null,false,null,null,null,null,0,null,"Kostenart auswählen"]
[null,"Lieferant auswählen",null,null,{"$f":"IF(COUNTIF(D:D,D1539)=1,\"OK\",COUNTIF(D:D,D1539)=1)","v":false},null,null,null,null,{"$f":"H1539/(1+I1539)","v":0},null,"Kostenart auswählen"]
[null,"Lieferant auswählen",null,null,false,null,null,null,null,0,null,"Kostenart auswählen"]
[null,"Lieferant auswählen",null,null,false,null,null,null,null,0,null,"Kostenart auswählen"]
[null,"Lieferant auswählen",null,null,false,null,null,null,null,0,null,"Kostenart auswählen"]
[null,"Lieferant auswählen",null,null,false,null,null,null,null,0,null,"Kostenart auswählen"]
[null,"Lieferant auswählen",null,null,false,null,null,null,null,0,null,"Kostenart auswählen"]
[null,"Lieferant auswählen",null,null,false,null,null,null,null,0,null,"Kostenart auswählen"]
[null,"Lieferant auswählen",null,null,false,null,null,null,null,0,null,"Kostenart auswählen"]
[null,"Lieferant auswählen",null,null,false,null,null,null,null,0,null,"Kostenart auswählen"]
[null,"Lieferant auswählen",null,null,false,null,null,null,null,0,null,"Kostenart auswählen"]
[null,"Lieferant auswählen",null,null,false,null,null,null,null,0,null,"Kostenart auswählen"]
[null,"Lieferant auswählen",null,null,false,null,null,null,null,0,null,"Kostenart auswählen"]
[null,"Lieferant auswählen",null,null,false,null,null,null,null,0,null,"Kostenart auswählen"]
[null,"Lieferant auswählen",null,null,false,null,null,null,null,0,null,"Kostenart auswählen"]
[null,"Lieferant auswählen",null,null,false,null,null,null,null,0,null,"Kostenart auswählen"]
[null,"Lieferant auswählen",null,null,false,null,null,null,null,0,null,"Kostenart auswählen"]
[null,"Lieferant auswählen",null,null,false,null,null,null,null,0,null,"Kostenart auswählen"]
[null,"Lieferant auswählen",null,null,false,null,null,null,null,0,null,"Kostenart auswählen"]
[null,"Lieferant auswählen",null,null,false,null,null,null,null,0,null,"Kostenart auswählen"]
[null,"Lieferant auswählen",null,null,false,null,null,null,null,0,null,"Kostenart auswählen"]
[null,"Lieferant auswählen",null,null,false,null,null,null,null,0,null,"Kostenart auswählen"]
[null,"Lieferant auswählen",null,null,false,null,null,null,null,0,null,"Kostenart auswählen"]
[null,"Lieferant auswählen",null,null,false,null,null,null,null,0,null,"Kostenart auswählen"]
[null,"Lieferant auswählen",null,null,false,null,null,null,null,0,null,"Kostenart auswählen"]
[null,"Lieferant auswählen",null,null,false,null,null,null,null,0,null,"Kostenart auswählen"]
[null,"Lieferant auswählen",null,null,false,null,null,null,null,0,null,"Kostenart auswählen"]
[null,"Lieferant auswählen",null,null,false,null,null,null,null,0,null,"Kostenart auswählen"]
[null,"Lieferant auswählen",null,null,false,null,null,null,null,0,null,"Kostenart auswählen"]
[null,"Lieferant auswählen",null,null,false,null,null,null,null,0,null,"Kostenart auswählen"]
[null,"Lieferant auswählen",null,null,false,null,null,null,null,0,null,"Kostenart auswählen"]
[null,"Lieferant auswählen",null,null,false,null,null,null,null,0,null,"Kostenart auswählen"]
[null,"Lieferant auswählen",null,null,false,null,null,null,null,0,null,"Kostenart auswählen"]
[null,"Lieferant auswählen",null,null,false,null,null,null,null,0,null,"Kostenart auswählen"]
[null,"Lieferant auswählen",null,null,false,null,null,null,null,0,null,"Kostenart auswählen"]
[null,"Lieferant auswählen",null,null,false,null,null,null,null,0,null,"Kostenart auswählen"]
[null,"Lieferant auswählen",null,null,false,null,null,null,null,0,null,"Kostenart auswählen"]
[null,"Lieferant auswählen",null,null,false,null,null,null,null,0,null,"Kostenart auswählen"]
[null,"Lieferant auswählen",null,null,false,null,null,null,null,0,null,"Kostenart auswählen"]
[null,"Lieferant auswählen",null,null,false,null,null,null,null,0,null,"Kostenart auswählen"]
[null,"Lieferant auswählen",null,null,false,null,null,null,null,0,null,"Kostenart auswählen"]
[null,"Lieferant auswählen",null,null,false,null,null,null,null,0,null,"Kostenart auswählen"]
[null,"Lieferant auswählen",null,null,false,null,null,null,null,0,null,"Kostenart auswählen"]
[null,"Lieferant auswählen",null,null,false,null,null,null,null,0,null,"Kostenart auswählen"]
[null,"Lieferant auswählen",null,null,false,null,null,null,null,0,null,"Kostenart auswählen"]
[null,"Lieferant auswählen",null,null,false,null,null,null,null,0,null,"Kostenart auswählen"]
[null,"Lieferant auswählen",null,null,false,null,null,null,null,0,null,"Kostenart auswählen"]
[null,"Lieferant auswählen",null,null,false,null,null,null,null,0,null,"Kostenart auswählen"]
[null,"Lieferant auswählen",null,null,false,null,null,null,null,0,null,"Kostenart auswählen"]
[null,"Lieferant auswählen",null,null,false,null,null,null,null,0,null,"Kostenart auswählen"]
[null,"Lieferant auswählen",null,null,false,null,null,null,null,0,null,"Kostenart auswählen"]
[null,"Lieferant auswählen",null,null,false,null,null,null,null,0,null,"Kostenart auswählen"]
[null,"Lieferant auswählen",null,null,false,null,null,null,null,0,null,"Kostenart auswählen"]
[null,"Lieferant auswählen",null,null,false,null,null,null,null,0,null,"Kostenart auswählen"]
[null,"Lieferant auswählen",null,null,false,null,null,null,null,0,null,"Kostenart auswählen"]
[null,"Lieferant auswählen",null,null,false,null,null,null,null,0,null,"Kostenart auswählen"]
[null,"Lieferant auswählen",null,null,false,null,null,null,null,0,null,"Kostenart auswählen"]
[null,"Lieferant auswählen",null,null,false,null,null,null,null,0,null,"Kostenart auswählen"]
[null,"Lieferant auswählen",null,null,false,null,null,null,null,0,null,"Kostenart auswählen"]
[null,"Lieferant auswählen",null,null,false,null,null,null,null,0,null,"Kostenart auswählen"]
[null,"Lieferant auswählen",null,null,false,null,null,null,null,0,null,"Kostenart auswählen"]
[null,"Lieferant auswählen",null,null,false,null,null,null,null,0,null,"Kostenart auswählen"]
[null,"Lieferant auswählen",null,null,false,null,null,null,null,0,null,"Kostenart auswählen"]
[null,"Lieferant auswählen",null,null,false,null,null,null,null,0,null,"Kostenart auswählen"]
[null,"Lieferant auswählen",null,null,false,null,null,null,null,0,null,"Kostenart auswählen"]
[null,"Lieferant auswählen",null,null,{"$f":"IF(COUNTIF(D:D,D1603)=1,\"OK\",COUNTIF(D:D,D1603)=1)","v":false},null,null,null,null,{"$f":"H1603/(1+I1603)","v":0},null,"Kostenart auswählen"]
[null,"Lieferant auswählen",null,null,false,null,null,null,null,0,null,"Kostenart auswählen"]
[null,"Lieferant auswählen",null,null,false,null,null,null,null,0,null,"Kostenart auswählen"]
[null,"Lieferant auswählen",null,null,false,null,null,null,null,0,null,"Kostenart auswählen"]
[null,"Lieferant auswählen",null,null,false,null,null,null,null,0,null,"Kostenart auswählen"]
[null,"Lieferant auswählen",null,null,false,null,null,null,null,0,null,"Kostenart auswählen"]
[null,"Lieferant auswählen",null,null,false,null,null,null,null,0,null,"Kostenart auswählen"]
[null,"Lieferant auswählen",null,null,false,null,null,null,null,0,null,"Kostenart auswählen"]
[null,"Lieferant auswählen",null,null,false,null,null,null,null,0,null,"Kostenart auswählen"]
[null,"Lieferant auswählen",null,null,false,null,null,null,null,0,null,"Kostenart auswählen"]
[null,"Lieferant auswählen",null,null,false,null,null,null,null,0,null,"Kostenart auswählen"]
[null,"Lieferant auswählen",null,null,false,null,null,null,null,0,null,"Kostenart auswählen"]
[null,"Lieferant auswählen",null,null,false,null,null,null,null,0,null,"Kostenart auswählen"]
[null,"Lieferant auswählen",null,null,false,null,null,null,null,0,null,"Kostenart auswählen"]
[null,"Lieferant auswählen",null,null,false,null,null,null,null,0,null,"Kostenart auswählen"]
[null,"Lieferant auswählen",null,null,false,null,null,null,null,0,null,"Kostenart auswählen"]
[null,"Lieferant auswählen",null,null,false,null,null,null,null,0,null,"Kostenart auswählen"]
[null,"Lieferant auswählen",null,null,false,null,null,null,null,0,null,"Kostenart auswählen"]
[null,"Lieferant auswählen",null,null,false,null,null,null,null,0,null,"Kostenart auswählen"]
[null,"Lieferant auswählen",null,null,false,null,null,null,null,0,null,"Kostenart auswählen"]
[null,"Lieferant auswählen",null,null,false,null,null,null,null,0,null,"Kostenart auswählen"]
[null,"Lieferant auswählen",null,null,false,null,null,null,null,0,null,"Kostenart auswählen"]
[null,"Lieferant auswählen",null,null,false,null,null,null,null,0,null,"Kostenart auswählen"]
[null,"Lieferant auswählen",null,null,false,null,null,null,null,0,null,"Kostenart auswählen"]
[null,"Lieferant auswählen",null,null,false,null,null,null,null,0,null,"Kostenart auswählen"]
[null,"Lieferant auswählen",null,null,false,null,null,null,null,0,null,"Kostenart auswählen"]
[null,"Lieferant auswählen",null,null,false,null,null,null,null,0,null,"Kostenart auswählen"]
[null,"Lieferant auswählen",null,null,false,null,null,null,null,0,null,"Kostenart auswählen"]
[null,"Lieferant auswählen",null,null,false,null,null,null,null,0,null,"Kostenart auswählen"]
[null,"Lieferant auswählen",null,null,false,null,null,null,null,0,null,"Kostenart auswählen"]
[null,"Lieferant auswählen",null,null,false,null,null,null,null,0,null,"Kostenart auswählen"]
[null,"Lieferant auswählen",null,null,false,null,null,null,null,0,null,"Kostenart auswählen"]
[null,"Lieferant auswählen",null,null,false,null,null,null,null,0,null,"Kostenart auswählen"]
[null,"Lieferant auswählen",null,null,false,null,null,null,null,0,null,"Kostenart auswählen"]
[null,"Lieferant auswählen",null,null,false,null,null,null,null,0,null,"Kostenart auswählen"]
[null,"Lieferant auswählen",null,null,false,null,null,null,null,0,null,"Kostenart auswählen"]
[null,"Lieferant auswählen",null,null,false,null,null,null,null,0,null,"Kostenart auswählen"]
[null,"Lieferant auswählen",null,null,false,null,null,null,null,0,null,"Kostenart auswählen"]
[null,"Lieferant auswählen",null,null,false,null,null,null,null,0,null,"Kostenart auswählen"]
[null,"Lieferant auswählen",null,null,false,null,null,null,null,0,null,"Kostenart auswählen"]
[null,"Lieferant auswählen",null,null,false,null,null,null,null,0,null,"Kostenart auswählen"]
[null,"Lieferant auswählen",null,null,false,null,null,null,null,0,null,"Kostenart auswählen"]
[null,"Lieferant auswählen",null,null,false,null,null,null,null,0,null,"Kostenart auswählen"]
[null,"Lieferant auswählen",null,null,false,null,null,null,null,0,null,"Kostenart auswählen"]
[null,"Lieferant auswählen",null,null,false,null,null,null,null,0,null,"Kostenart auswählen"]
[null,"Lieferant auswählen",null,null,false,null,null,null,null,0,null,"Kostenart auswählen"]
[null,"Lieferant auswählen",null,null,false,null,null,null,null,0,null,"Kostenart auswählen"]
[null,"Lieferant auswählen",null,null,false,null,null,null,null,0,null,"Kostenart auswählen"]
[null,"Lieferant auswählen",null,null,false,null,null,null,null,0,null,"Kostenart auswählen"]
[null,"Lieferant auswählen",null,null,false,null,null,null,null,0,null,"Kostenart auswählen"]
[null,"Lieferant auswählen",null,null,false,null,null,null,null,0,null,"Kostenart auswählen"]
[null,"Lieferant auswählen",null,null,false,null,null,null,null,0,null,"Kostenart auswählen"]
[null,"Lieferant auswählen",null,null,false,null,null,null,null,0,null,"Kostenart auswählen"]
[null,"Lieferant auswählen",null,null,false,null,null,null,null,0,null,"Kostenart auswählen"]
[null,"Lieferant auswählen",null,null,false,null,null,null,null,0,null,"Kostenart auswählen"]
[null,"Lieferant auswählen",null,null,false,null,null,null,null,0,null,"Kostenart auswählen"]
[null,"Lieferant auswählen",null,null,false,null,null,null,null,0,null,"Kostenart auswählen"]
[null,"Lieferant auswählen",null,null,false,null,null,null,null,0,null,"Kostenart auswählen"]
[null,"Lieferant auswählen",null,null,false,null,null,null,null,0,null,"Kostenart auswählen"]
[null,"Lieferant auswählen",null,null,false,null,null,null,null,0,null,"Kostenart auswählen"]
[null,"Lieferant auswählen",null,null,false,null,null,null,null,0,null,"Kostenart auswählen"]
[null,"Lieferant auswählen",null,null,false,null,null,null,null,0,null,"Kostenart auswählen"]
[null,"Lieferant auswählen",null,null,false,null,null,null,null,0,null,"Kostenart auswählen"]
[null,"Lieferant auswählen",null,null,false,null,null,null,null,0,null,"Kostenart auswählen"]
[null,"Lieferant auswählen",null,null,{"$f":"IF(COUNTIF(D:D,D1667)=1,\"OK\",COUNTIF(D:D,D1667)=1)","v":false},null,null,null,null,{"$f":"H1667/(1+I1667)","v":0},null,"Kostenart auswählen"]
[null,"Lieferant auswählen",null,null,false,null,null,null,null,0,null,"Kostenart auswählen"]
[null,"Lieferant auswählen",null,null,false,null,null,null,null,0,null,"Kostenart auswählen"]
[null,"Lieferant auswählen",null,null,false,null,null,null,null,0,null,"Kostenart auswählen"]
[null,"Lieferant auswählen",null,null,false,null,null,null,null,0,null,"Kostenart auswählen"]
[null,"Lieferant auswählen",null,null,false,null,null,null,null,0,null,"Kostenart auswählen"]
[null,"Lieferant auswählen",null,null,false,null,null,null,null,0,null,"Kostenart auswählen"]
[null,"Lieferant auswählen",null,null,false,null,null,null,null,0,null,"Kostenart auswählen"]
[null,"Lieferant auswählen",null,null,false,null,null,null,null,0,null,"Kostenart auswählen"]
[null,"Lieferant auswählen",null,null,false,null,null,null,null,0,null,"Kostenart auswählen"]
[null,"Lieferant auswählen",null,null,false,null,null,null,null,0,null,"Kostenart auswählen"]
[null,"Lieferant auswählen",null,null,false,null,null,null,null,0,null,"Kostenart auswählen"]
[null,"Lieferant auswählen",null,null,false,null,null,null,null,0,null,"Kostenart auswählen"]
[null,"Lieferant auswählen",null,null,false,null,null,null,null,0,null,"Kostenart auswählen"]
[null,"Lieferant auswählen",null,null,false,null,null,null,null,0,null,"Kostenart auswählen"]
[null,"Lieferant auswählen",null,null,false,null,null,null,null,0,null,"Kostenart auswählen"]
[null,"Lieferant auswählen",null,null,false,null,null,null,null,0,null,"Kostenart auswählen"]
[null,"Lieferant auswählen",null,null,false,null,null,null,null,0,null,"Kostenart auswählen"]
[null,"Lieferant auswählen",null,null,false,null,null,null,null,0,null,"Kostenart auswählen"]
[null,"Lieferant auswählen",null,null,false,null,null,null,null,0,null,"Kostenart auswählen"]
[null,"Lieferant auswählen",null,null,false,null,null,null,null,0,null,"Kostenart auswählen"]
[null,"Lieferant auswählen",null,null,false,null,null,null,null,0,null,"Kostenart auswählen"]
[null,"Lieferant auswählen",null,null,false,null,null,null,null,0,null,"Kostenart auswählen"]
[null,"Lieferant auswählen",null,null,false,null,null,null,null,0,null,"Kostenart auswählen"]
[null,"Lieferant auswählen",null,null,false,null,null,null,null,0,null,"Kostenart auswählen"]
[null,"Lieferant auswählen",null,null,false,null,null,null,null,0,null,"Kostenart auswählen"]
[null,"Lieferant auswählen",null,null,false,null,null,null,null,0,null,"Kostenart auswählen"]
[null,"Lieferant auswählen",null,null,false,null,null,null,null,0,null,"Kostenart auswählen"]
[null,"Lieferant auswählen",null,null,false,null,null,null,null,0,null,"Kostenart auswählen"]
[null,"Lieferant auswählen",null,null,false,null,null,null,null,0,null,"Kostenart auswählen"]
[null,"Lieferant auswählen",null,null,false,null,null,null,null,0,null,"Kostenart auswählen"]
[null,"Lieferant auswählen",null,null,false,null,null,null,null,0,null,"Kostenart auswählen"]
[null,"Lieferant auswählen",null,null,false,null,null,null,null,0,null,"Kostenart auswählen"]
[null,"Lieferant auswählen",null,null,false,null,null,null,null,0,null,"Kostenart auswählen"]
[null,"Lieferant auswählen",null,null,false,null,null,null,null,0,null,"Kostenart auswählen"]
[null,"Lieferant auswählen",null,null,false,null,null,null,null,0,null,"Kostenart auswählen"]
[null,"Lieferant auswählen",null,null,false,null,null,null,null,0,null,"Kostenart auswählen"]
[null,"Lieferant auswählen",null,null,false,null,null,null,null,0,null,"Kostenart auswählen"]
[null,"Lieferant auswählen",null,null,false,null,null,null,null,0,null,"Kostenart auswählen"]
[null,"Lieferant auswählen",null,null,false,null,null,null,null,0,null,"Kostenart auswählen"]
[null,"Lieferant auswählen",null,null,false,null,null,null,null,0,null,"Kostenart auswählen"]
[null,"Lieferant auswählen",null,null,false,null,null,null,null,0,null,"Kostenart auswählen"]
[null,"Lieferant auswählen",null,null,false,null,null,null,null,0,null,"Kostenart auswählen"]
[null,"Lieferant auswählen",null,null,false,null,null,null,null,0,null,"Kostenart auswählen"]
[null,"Lieferant auswählen",null,null,false,null,null,null,null,0,null,"Kostenart auswählen"]
[null,"Lieferant auswählen",null,null,false,null,null,null,null,0,null,"Kostenart auswählen"]
[null,"Lieferant auswählen",null,null,false,null,null,null,null,0,null,"Kostenart auswählen"]
[null,"Lieferant auswählen",null,null,false,null,null,null,null,0,null,"Kostenart auswählen"]
[null,"Lieferant auswählen",null,null,false,null,null,null,null,0,null,"Kostenart auswählen"]
[null,"Lieferant auswählen",null,null,false,null,null,null,null,0,null,"Kostenart auswählen"]
[null,"Lieferant auswählen",null,null,false,null,null,null,null,0,null,"Kostenart auswählen"]
[null,"Lieferant auswählen",null,null,false,null,null,null,null,0,null,"Kostenart auswählen"]
[null,"Lieferant auswählen",null,null,false,null,null,null,null,0,null,"Kostenart auswählen"]
[null,"Lieferant auswählen",null,null,false,null,null,null,null,0,null,"Kostenart auswählen"]
[null,"Lieferant auswählen",null,null,false,null,null,null,null,0,null,"Kostenart auswählen"]
[null,"Lieferant auswählen",null,null,false,null,null,null,null,0,null,"Kostenart auswählen"]
[null,"Lieferant auswählen",null,null,false,null,null,null,null,0,null,"Kostenart auswählen"]
[null,"Lieferant auswählen",null,null,false,null,null,null,null,0,null,"Kostenart auswählen"]
[null,"Lieferant auswählen",null,null,false,null,null,null,null,0,null,"Kostenart auswählen"]
[null,"Lieferant auswählen",null,null,false,null,null,null,null,0,null,"Kostenart auswählen"]
[null,"Lieferant auswählen",null,null,false,null,null,null,null,0,null,"Kostenart auswählen"]
[null,"Lieferant auswählen",null,null,false,null,null,null,null,0,null,"Kostenart auswählen"]
[null,"Lieferant auswählen",null,null,false,null,null,null,null,0,null,"Kostenart auswählen"]
[null,"Lieferant auswählen",null,null,false,null,null,null,null,0,null,"Kostenart auswählen"]
[null,"Lieferant auswählen",null,null,{"$f":"IF(COUNTIF(D:D,D1731)=1,\"OK\",COUNTIF(D:D,D1731)=1)","v":false},null,null,null,null,{"$f":"H1731/(1+I1731)","v":0},null,"Kostenart auswählen"]
[null,"Lieferant auswählen",null,null,false,null,null,null,null,0,null,"Kostenart auswählen"]
[null,"Lieferant auswählen",null,null,false,null,null,null,null,0,null,"Kostenart auswählen"]
[null,"Lieferant auswählen",null,null,false,null,null,null,null,0,null,"Kostenart auswählen"]
[null,"Lieferant auswählen",null,null,false,null,null,null,null,0,null,"Kostenart auswählen"]
[null,"Lieferant auswählen",null,null,false,null,null,null,null,0,null,"Kostenart auswählen"]
[null,"Lieferant auswählen",null,null,false,null,null,null,null,0,null,"Kostenart auswählen"]
[null,"Lieferant auswählen",null,null,false,null,null,null,null,0,null,"Kostenart auswählen"]
[null,"Lieferant auswählen",null,null,false,null,null,null,null,0,null,"Kostenart auswählen"]
[null,"Lieferant auswählen",null,null,false,null,null,null,null,0,null,"Kostenart auswählen"]
[null,"Lieferant auswählen",null,null,false,null,null,null,null,0,null,"Kostenart auswählen"]
[null,"Lieferant auswählen",null,null,false,null,null,null,null,0,null,"Kostenart auswählen"]
[null,"Lieferant auswählen",null,null,false,null,null,null,null,0,null,"Kostenart auswählen"]
[null,"Lieferant auswählen",null,null,false,null,null,null,null,0,null,"Kostenart auswählen"]
[null,"Lieferant auswählen",null,null,false,null,null,null,null,0,null,"Kostenart auswählen"]
[null,"Lieferant auswählen",null,null,false,null,null,null,null,0,null,"Kostenart auswählen"]
[null,"Lieferant auswählen",null,null,false,null,null,null,null,0,null,"Kostenart auswählen"]
[null,"Lieferant auswählen",null,null,false,null,null,null,null,0,null,"Kostenart auswählen"]
[null,"Lieferant auswählen",null,null,false,null,null,null,null,0,null,"Kostenart auswählen"]
[null,"Lieferant auswählen",null,null,false,null,null,null,null,0,null,"Kostenart auswählen"]
[null,"Lieferant auswählen",null,null,false,null,null,null,null,0,null,"Kostenart auswählen"]
[null,"Lieferant auswählen",null,null,false,null,null,null,null,0,null,"Kostenart auswählen"]
[null,"Lieferant auswählen",null,null,false,null,null,null,null,0,null,"Kostenart auswählen"]
[null,"Lieferant auswählen",null,null,false,null,null,null,null,0,null,"Kostenart auswählen"]
[null,"Lieferant auswählen",null,null,false,null,null,null,null,0,null,"Kostenart auswählen"]
[null,"Lieferant auswählen",null,null,false,null,null,null,null,0,null,"Kostenart auswählen"]
[null,"Lieferant auswählen",null,null,false,null,null,null,null,0,null,"Kostenart auswählen"]
[null,"Lieferant auswählen",null,null,false,null,null,null,null,0,null,"Kostenart auswählen"]
[null,"Lieferant auswählen",null,null,false,null,null,null,null,0,null,"Kostenart auswählen"]
[null,"Lieferant auswählen",null,null,false,null,null,null,null,0,null,"Kostenart auswählen"]
[null,"Lieferant auswählen",null,null,false,null,null,null,null,0,null,"Kostenart auswählen"]
[null,"Lieferant auswählen",null,null,false,null,null,null,null,0,null,"Kostenart auswählen"]
[null,"Lieferant auswählen",null,null,false,null,null,null,null,0,null,"Kostenart auswählen"]
[null,"Lieferant auswählen",null,null,false,null,null,null,null,0,null,"Kostenart auswählen"]
[null,"Lieferant auswählen",null,null,false,null,null,null,null,0,null,"Kostenart auswählen"]
[null,"Lieferant auswählen",null,null,false,null,null,null,null,0,null,"Kostenart auswählen"]
[null,"Lieferant auswählen",null,null,false,null,null,null,null,0,null,"Kostenart auswählen"]
[null,"Lieferant auswählen",null,null,false,null,null,null,null,0,null,"Kostenart auswählen"]
[null,"Lieferant auswählen",null,null,false,null,null,null,null,0,null,"Kostenart auswählen"]
[null,"Lieferant auswählen",null,null,false,null,null,null,null,0,null,"Kostenart auswählen"]
[null,"Lieferant auswählen",null,null,false,null,null,null,null,0,null,"Kostenart auswählen"]
[null,"Lieferant auswählen",null,null,false,null,null,null,null,0,null,"Kostenart auswählen"]
[null,"Lieferant auswählen",null,null,false,null,null,null,null,0,null,"Kostenart auswählen"]
[null,"Lieferant auswählen",null,null,false,null,null,null,null,0,null,"Kostenart auswählen"]
[null,"Lieferant auswählen",null,null,false,null,null,null,null,0,null,"Kostenart auswählen"]
[null,"Lieferant auswählen",null,null,false,null,null,null,null,0,null,"Kostenart auswählen"]
[null,"Lieferant auswählen",null,null,false,null,null,null,null,0,null,"Kostenart auswählen"]
[null,"Lieferant auswählen",null,null,false,null,null,null,null,0,null,"Kostenart auswählen"]
[null,"Lieferant auswählen",null,null,false,null,null,null,null,0,null,"Kostenart auswählen"]
[null,"Lieferant auswählen",null,null,false,null,null,null,null,0,null,"Kostenart auswählen"]
[null,"Lieferant auswählen",null,null,false,null,null,null,null,0,null,"Kostenart auswählen"]
[null,"Lieferant auswählen",null,null,false,null,null,null,null,0,null,"Kostenart auswählen"]
[null,"Lieferant auswählen",null,null,false,null,null,null,null,0,null,"Kostenart auswählen"]
[null,"Lieferant auswählen",null,null,false,null,null,null,null,0,null,"Kostenart auswählen"]
[null,"Lieferant auswählen",null,null,false,null,null,null,null,0,null,"Kostenart auswählen"]
[null,"Lieferant auswählen",null,null,false,null,null,null,null,0,null,"Kostenart auswählen"]
[null,"Lieferant auswählen",null,null,false,null,null,null,null,0,null,"Kostenart auswählen"]
[null,"Lieferant auswählen",null,null,false,null,null,null,null,0,null,"Kostenart auswählen"]
[null,"Lieferant auswählen",null,null,false,null,null,null,null,0,null,"Kostenart auswählen"]
[null,"Lieferant auswählen",null,null,false,null,null,null,null,0,null,"Kostenart auswählen"]
[null,"Lieferant auswählen",null,null,false,null,null,null,null,0,null,"Kostenart auswählen"]
[null,"Lieferant auswählen",null,null,false,null,null,null,null,0,null,"Kostenart auswählen"]
[null,"Lieferant auswählen",null,null,false,null,null,null,null,0,null,"Kostenart auswählen"]
[null,"Lieferant auswählen",null,null,false,null,null,null,null,0,null,"Kostenart auswählen"]
[null,"Lieferant auswählen",null,null,{"$f":"IF(COUNTIF(D:D,D1795)=1,\"OK\",COUNTIF(D:D,D1795)=1)","v":false},null,null,null,null,{"$f":"H1795/(1+I1795)","v":0},null,"Kostenart auswählen"]
[null,"Lieferant auswählen",null,null,false,null,null,null,null,0,null,"Kostenart auswählen"]
[null,"Lieferant auswählen",null,null,false,null,null,null,null,0,null,"Kostenart auswählen"]
[null,"Lieferant auswählen",null,null,false,null,null,null,null,0,null,"Kostenart auswählen"]
[null,"Lieferant auswählen",null,null,false,null,null,null,null,0,null,"Kostenart auswählen"]
[null,"Lieferant auswählen",null,null,false,null,null,null,null,0,null,"Kostenart auswählen"]
[null,"Lieferant auswählen",null,null,false,null,null,null,null,0,null,"Kostenart auswählen"]
[null,"Lieferant auswählen",null,null,false,null,null,null,null,0,null,"Kostenart auswählen"]
[null,"Lieferant auswählen",null,null,false,null,null,null,null,0,null,"Kostenart auswählen"]
[null,"Lieferant auswählen",null,null,false,null,null,null,null,0,null,"Kostenart auswählen"]
[null,"Lieferant auswählen",null,null,false,null,null,null,null,0,null,"Kostenart auswählen"]
[null,"Lieferant auswählen",null,null,false,null,null,null,null,0,null,"Kostenart auswählen"]
[null,"Lieferant auswählen",null,null,false,null,null,null,null,0,null,"Kostenart auswählen"]
[null,"Lieferant auswählen",null,null,false,null,null,null,null,0,null,"Kostenart auswählen"]
[null,"Lieferant auswählen",null,null,false,null,null,null,null,0,null,"Kostenart auswählen"]
[null,"Lieferant auswählen",null,null,false,null,null,null,null,0,null,"Kostenart auswählen"]
[null,"Lieferant auswählen",null,null,false,null,null,null,null,0,null,"Kostenart auswählen"]
[null,"Lieferant auswählen",null,null,false,null,null,null,null,0,null,"Kostenart auswählen"]
[null,"Lieferant auswählen",null,null,false,null,null,null,null,0,null,"Kostenart auswählen"]
[null,"Lieferant auswählen",null,null,false,null,null,null,null,0,null,"Kostenart auswählen"]
[null,"Lieferant auswählen",null,null,false,null,null,null,null,0,null,"Kostenart auswählen"]
[null,"Lieferant auswählen",null,null,false,null,null,null,null,0,null,"Kostenart auswählen"]
[null,"Lieferant auswählen",null,null,false,null,null,null,null,0,null,"Kostenart auswählen"]
[null,"Lieferant auswählen",null,null,false,null,null,null,null,0,null,"Kostenart auswählen"]
[null,"Lieferant auswählen",null,null,false,null,null,null,null,0,null,"Kostenart auswählen"]
[null,"Lieferant auswählen",null,null,false,null,null,null,null,0,null,"Kostenart auswählen"]
[null,"Lieferant auswählen",null,null,false,null,null,null,null,0,null,"Kostenart auswählen"]
[null,"Lieferant auswählen",null,null,false,null,null,null,null,0,null,"Kostenart auswählen"]
[null,"Lieferant auswählen",null,null,false,null,null,null,null,0,null,"Kostenart auswählen"]
[null,"Lieferant auswählen",null,null,false,null,null,null,null,0,null,"Kostenart auswählen"]
[null,"Lieferant auswählen",null,null,false,null,null,null,null,0,null,"Kostenart auswählen"]
[null,"Lieferant auswählen",null,null,false,null,null,null,null,0,null,"Kostenart auswählen"]
[null,"Lieferant auswählen",null,null,false,null,null,null,null,0,null,"Kostenart auswählen"]
[null,"Lieferant auswählen",null,null,false,null,null,null,null,0,null,"Kostenart auswählen"]
[null,"Lieferant auswählen",null,null,false,null,null,null,null,0,null,"Kostenart auswählen"]
[null,"Lieferant auswählen",null,null,false,null,null,null,null,0,null,"Kostenart auswählen"]
[null,"Lieferant auswählen",null,null,false,null,null,null,null,0,null,"Kostenart auswählen"]
[null,"Lieferant auswählen",null,null,false,null,null,null,null,0,null,"Kostenart auswählen"]
[null,"Lieferant auswählen",null,null,false,null,null,null,null,0,null,"Kostenart auswählen"]
[null,"Lieferant auswählen",null,null,false,null,null,null,null,0,null,"Kostenart auswählen"]
[null,"Lieferant auswählen",null,null,false,null,null,null,null,0,null,"Kostenart auswählen"]
[null,"Lieferant auswählen",null,null,false,null,null,null,null,0,null,"Kostenart auswählen"]
[null,"Lieferant auswählen",null,null,false,null,null,null,null,0,null,"Kostenart auswählen"]
[null,"Lieferant auswählen",null,null,false,null,null,null,null,0,null,"Kostenart auswählen"]
[null,"Lieferant auswählen",null,null,false,null,null,null,null,0,null,"Kostenart auswählen"]
[null,"Lieferant auswählen",null,null,false,null,null,null,null,0,null,"Kostenart auswählen"]
[null,"Lieferant auswählen",null,null,false,null,null,null,null,0,null,"Kostenart auswählen"]
[null,"Lieferant auswählen",null,null,false,null,null,null,null,0,null,"Kostenart auswählen"]
[null,"Lieferant auswählen",null,null,false,null,null,null,null,0,null,"Kostenart auswählen"]
[null,"Lieferant auswählen",null,null,false,null,null,null,null,0,null,"Kostenart auswählen"]
[null,"Lieferant auswählen",null,null,false,null,null,null,null,0,null,"Kostenart auswählen"]
[null,"Lieferant auswählen",null,null,false,null,null,null,null,0,null,"Kostenart auswählen"]
[null,"Lieferant auswählen",null,null,false,null,null,null,null,0,null,"Kostenart auswählen"]
[null,"Lieferant auswählen",null,null,false,null,null,null,null,0,null,"Kostenart auswählen"]
[null,"Lieferant auswählen",null,null,false,null,null,null,null,0,null,"Kostenart auswählen"]
[null,"Lieferant auswählen",null,null,false,null,null,null,null,0,null,"Kostenart auswählen"]
[null,"Lieferant auswählen",null,null,false,null,null,null,null,0,null,"Kostenart auswählen"]
[null,"Lieferant auswählen",null,null,false,null,null,null,null,0,null,"Kostenart auswählen"]
[null,"Lieferant auswählen",null,null,false,null,null,null,null,0,null,"Kostenart auswählen"]
[null,"Lieferant auswählen",null,null,false,null,null,null,null,0,null,"Kostenart auswählen"]
[null,"Lieferant auswählen",null,null,false,null,null,null,null,0,null,"Kostenart auswählen"]
[null,"Lieferant auswählen",null,null,false,null,null,null,null,0,null,"Kostenart auswählen"]
[null,"Lieferant auswählen",null,null,false,null,null,null,null,0,null,"Kostenart auswählen"]
[null,"Lieferant auswählen",null,null,false,null,null,null,null,0,null,"Kostenart auswählen"]
[null,"Lieferant auswählen",null,null,{"$f":"IF(COUNTIF(D:D,D1859)=1,\"OK\",COUNTIF(D:D,D1859)=1)","v":false},null,null,null,null,{"$f":"H1859/(1+I1859)","v":0},null,"Kostenart auswählen"]
[null,"Lieferant auswählen",null,null,false,null,null,null,null,0,null,"Kostenart auswählen"]
[null,"Lieferant auswählen",null,null,false,null,null,null,null,0,null,"Kostenart auswählen"]
[null,"Lieferant auswählen",null,null,false,null,null,null,null,0,null,"Kostenart auswählen"]
[null,"Lieferant auswählen",null,null,false,null,null,null,null,0,null,"Kostenart auswählen"]
[null,"Lieferant auswählen",null,null,false,null,null,null,null,0,null,"Kostenart auswählen"]
[null,"Lieferant auswählen",null,null,false,null,null,null,null,0,null,"Kostenart auswählen"]
[null,"Lieferant auswählen",null,null,false,null,null,null,null,0,null,"Kostenart auswählen"]
[null,"Lieferant auswählen",null,null,false,null,null,null,null,0,null,"Kostenart auswählen"]
[null,"Lieferant auswählen",null,null,false,null,null,null,null,0,null,"Kostenart auswählen"]
[null,"Lieferant auswählen",null,null,false,null,null,null,null,0,null,"Kostenart auswählen"]
[null,"Lieferant auswählen",null,null,false,null,null,null,null,0,null,"Kostenart auswählen"]
[null,"Lieferant auswählen",null,null,false,null,null,null,null,0,null,"Kostenart auswählen"]
[null,"Lieferant auswählen",null,null,false,null,null,null,null,0,null,"Kostenart auswählen"]
[null,"Lieferant auswählen",null,null,false,null,null,null,null,0,null,"Kostenart auswählen"]
[null,"Lieferant auswählen",null,null,false,null,null,null,null,0,null,"Kostenart auswählen"]
[null,"Lieferant auswählen",null,null,false,null,null,null,null,0,null,"Kostenart auswählen"]
[null,"Lieferant auswählen",null,null,false,null,null,null,null,0,null,"Kostenart auswählen"]
[null,"Lieferant auswählen",null,null,false,null,null,null,null,0,null,"Kostenart auswählen"]
[null,"Lieferant auswählen",null,null,false,null,null,null,null,0,null,"Kostenart auswählen"]
[null,"Lieferant auswählen",null,null,false,null,null,null,null,0,null,"Kostenart auswählen"]
[null,"Lieferant auswählen",null,null,false,null,null,null,null,0,null,"Kostenart auswählen"]
[null,"Lieferant auswählen",null,null,false,null,null,null,null,0,null,"Kostenart auswählen"]
[null,"Lieferant auswählen",null,null,false,null,null,null,null,0,null,"Kostenart auswählen"]
[null,"Lieferant auswählen",null,null,false,null,null,null,null,0,null,"Kostenart auswählen"]
[null,"Lieferant auswählen",null,null,false,null,null,null,null,0,null,"Kostenart auswählen"]
[null,"Lieferant auswählen",null,null,false,null,null,null,null,0,null,"Kostenart auswählen"]
[null,"Lieferant auswählen",null,null,false,null,null,null,null,0,null,"Kostenart auswählen"]
[null,"Lieferant auswählen",null,null,false,null,null,null,null,0,null,"Kostenart auswählen"]
[null,"Lieferant auswählen",null,null,false,null,null,null,null,0,null,"Kostenart auswählen"]
[null,"Lieferant auswählen",null,null,false,null,null,null,null,0,null,"Kostenart auswählen"]
[null,"Lieferant auswählen",null,null,false,null,null,null,null,0,null,"Kostenart auswählen"]
[null,"Lieferant auswählen",null,null,false,null,null,null,null,0,null,"Kostenart auswählen"]
[null,"Lieferant auswählen",null,null,false,null,null,null,null,0,null,"Kostenart auswählen"]
[null,"Lieferant auswählen",null,null,false,null,null,null,null,0,null,"Kostenart auswählen"]
[null,"Lieferant auswählen",null,null,false,null,null,null,null,0,null,"Kostenart auswählen"]
[null,"Lieferant auswählen",null,null,false,null,null,null,null,0,null,"Kostenart auswählen"]
[null,"Lieferant auswählen",null,null,false,null,null,null,null,0,null,"Kostenart auswählen"]
[null,"Lieferant auswählen",null,null,false,null,null,null,null,0,null,"Kostenart auswählen"]
[null,"Lieferant auswählen",null,null,false,null,null,null,null,0,null,"Kostenart auswählen"]
[null,"Lieferant auswählen",null,null,false,null,null,null,null,0,null,"Kostenart auswählen"]
[null,"Lieferant auswählen",null,null,false,null,null,null,null,0,null,"Kostenart auswählen"]
[null,"Lieferant auswählen",null,null,false,null,null,null,null,0,null,"Kostenart auswählen"]
[null,"Lieferant auswählen",null,null,false,null,null,null,null,0,null,"Kostenart auswählen"]
[null,"Lieferant auswählen",null,null,false,null,null,null,null,0,null,"Kostenart auswählen"]
[null,"Lieferant auswählen",null,null,false,null,null,null,null,0,null,"Kostenart auswählen"]
[null,"Lieferant auswählen",null,null,false,null,null,null,null,0,null,"Kostenart auswählen"]
[null,"Lieferant auswählen",null,null,false,null,null,null,null,0,null,"Kostenart auswählen"]
[null,"Lieferant auswählen",null,null,false,null,null,null,null,0,null,"Kostenart auswählen"]
[null,"Lieferant auswählen",null,null,false,null,null,null,null,0,null,"Kostenart auswählen"]
[null,"Lieferant auswählen",null,null,false,null,null,null,null,0,null,"Kostenart auswählen"]
[null,"Lieferant auswählen",null,null,false,null,null,null,null,0,null,"Kostenart auswählen"]
[null,"Lieferant auswählen",null,null,false,null,null,null,null,0,null,"Kostenart auswählen"]
[null,"Lieferant auswählen",null,null,false,null,null,null,null,0,null,"Kostenart auswählen"]
[null,"Lieferant auswählen",null,null,false,null,null,null,null,0,null,"Kostenart auswählen"]
[null,"Lieferant auswählen",null,null,false,null,null,null,null,0,null,"Kostenart auswählen"]
[null,"Lieferant auswählen",null,null,false,null,null,null,null,0,null,"Kostenart auswählen"]
[null,"Lieferant auswählen",null,null,false,null,null,null,null,0,null,"Kostenart auswählen"]
[null,"Lieferant auswählen",null,null,false,null,null,null,null,0,null,"Kostenart auswählen"]
[null,"Lieferant auswählen",null,null,false,null,null,null,null,0,null,"Kostenart auswählen"]
[null,"Lieferant auswählen",null,null,false,null,null,null,null,0,null,"Kostenart auswählen"]
[null,"Lieferant auswählen",null,null,false,null,null,null,null,0,null,"Kostenart auswählen"]
[null,"Lieferant auswählen",null,null,false,null,null,null,null,0,null,"Kostenart auswählen"]
[null,"Lieferant auswählen",null,null,false,null,null,null,null,0,null,"Kostenart auswählen"]
[null,"Lieferant auswählen",null,null,{"$f":"IF(COUNTIF(D:D,D1923)=1,\"OK\",COUNTIF(D:D,D1923)=1)","v":false},null,null,null,null,{"$f":"H1923/(1+I1923)","v":0},null,"Kostenart auswählen"]
[null,"Lieferant auswählen",null,null,false,null,null,null,null,0,null,"Kostenart auswählen"]
[null,"Lieferant auswählen",null,null,false,null,null,null,null,0,null,"Kostenart auswählen"]
[null,"Lieferant auswählen",null,null,false,null,null,null,null,0,null,"Kostenart auswählen"]
[null,"Lieferant auswählen",null,null,false,null,null,null,null,0,null,"Kostenart auswählen"]
[null,"Lieferant auswählen",null,null,false,null,null,null,null,0,null,"Kostenart auswählen"]
[null,"Lieferant auswählen",null,null,false,null,null,null,null,0,null,"Kostenart auswählen"]
[null,"Lieferant auswählen",null,null,false,null,null,null,null,0,null,"Kostenart auswählen"]
[null,"Lieferant auswählen",null,null,false,null,null,null,null,0,null,"Kostenart auswählen"]
[null,"Lieferant auswählen",null,null,false,null,null,null,null,0,null,"Kostenart auswählen"]
[null,"Lieferant auswählen",null,null,false,null,null,null,null,0,null,"Kostenart auswählen"]
[null,"Lieferant auswählen",null,null,false,null,null,null,null,0,null,"Kostenart auswählen"]
[null,"Lieferant auswählen",null,null,false,null,null,null,null,0,null,"Kostenart auswählen"]
[null,"Lieferant auswählen",null,null,false,null,null,null,null,0,null,"Kostenart auswählen"]
[null,"Lieferant auswählen",null,null,false,null,null,null,null,0,null,"Kostenart auswählen"]
[null,"Lieferant auswählen",null,null,false,null,null,null,null,0,null,"Kostenart auswählen"]
[null,"Lieferant auswählen",null,null,false,null,null,null,null,0,null,"Kostenart auswählen"]
[null,"Lieferant auswählen",null,null,false,null,null,null,null,0,null,"Kostenart auswählen"]
[null,"Lieferant auswählen",null,null,false,null,null,null,null,0,null,"Kostenart auswählen"]
[null,"Lieferant auswählen",null,null,false,null,null,null,null,0,null,"Kostenart auswählen"]
[null,"Lieferant auswählen",null,null,false,null,null,null,null,0,null,"Kostenart auswählen"]
[null,"Lieferant auswählen",null,null,false,null,null,null,null,0,null,"Kostenart auswählen"]
[null,"Lieferant auswählen",null,null,false,null,null,null,null,0,null,"Kostenart auswählen"]
[null,"Lieferant auswählen",null,null,false,null,null,null,null,0,null,"Kostenart auswählen"]
[null,"Lieferant auswählen",null,null,false,null,null,null,null,0,null,"Kostenart auswählen"]
[null,"Lieferant auswählen",null,null,false,null,null,null,null,0,null,"Kostenart auswählen"]
[null,"Lieferant auswählen",null,null,false,null,null,null,null,0,null,"Kostenart auswählen"]
[null,"Lieferant auswählen",null,null,false,null,null,null,null,0,null,"Kostenart auswählen"]
[null,"Lieferant auswählen",null,null,false,null,null,null,null,0,null,"Kostenart auswählen"]
[null,"Lieferant auswählen",null,null,false,null,null,null,null,0,null,"Kostenart auswählen"]
[null,"Lieferant auswählen",null,null,false,null,null,null,null,0,null,"Kostenart auswählen"]
[null,"Lieferant auswählen",null,null,false,null,null,null,null,0,null,"Kostenart auswählen"]
[null,"Lieferant auswählen",null,null,false,null,null,null,null,0,null,"Kostenart auswählen"]
[null,"Lieferant auswählen",null,null,false,null,null,null,null,0,null,"Kostenart auswählen"]
[null,"Lieferant auswählen",null,null,false,null,null,null,null,0,null,"Kostenart auswählen"]
[null,"Lieferant auswählen",null,null,false,null,null,null,null,0,null,"Kostenart auswählen"]
[null,"Lieferant auswählen",null,null,false,null,null,null,null,0,null,"Kostenart auswählen"]
[null,"Lieferant auswählen",null,null,false,null,null,null,null,0,null,"Kostenart auswählen"]
[null,"Lieferant auswählen",null,null,false,null,null,null,null,0,null,"Kostenart auswählen"]
[null,"Lieferant auswählen",null,null,false,null,null,null,null,0,null,"Kostenart auswählen"]
[null,"Lieferant auswählen",null,null,false,null,null,null,null,0,null,"Kostenart auswählen"]
[null,"Lieferant auswählen",null,null,false,null,null,null,null,0,null,"Kostenart auswählen"]
[null,"Lieferant auswählen",null,null,false,null,null,null,null,0,null,"Kostenart auswählen"]
[null,"Lieferant auswählen",null,null,false,null,null,null,null,0,null,"Kostenart auswählen"]
[null,"Lieferant auswählen",null,null,false,null,null,null,null,0,null,"Kostenart auswählen"]
[null,"Lieferant auswählen",null,null,false,null,null,null,null,0,null,"Kostenart auswählen"]
[null,"Lieferant auswählen",null,null,false,null,null,null,null,0,null,"Kostenart auswählen"]
[null,"Lieferant auswählen",null,null,false,null,null,null,null,0,null,"Kostenart auswählen"]
[null,"Lieferant auswählen",null,null,false,null,null,null,null,0,null,"Kostenart auswählen"]
[null,"Lieferant auswählen",null,null,false,null,null,null,null,0,null,"Kostenart auswählen"]
[null,"Lieferant auswählen",null,null,false,null,null,null,null,0,null,"Kostenart auswählen"]
[null,"Lieferant auswählen",null,null,false,null,null,null,null,0,null,"Kostenart auswählen"]
[null,"Lieferant auswählen",null,null,false,null,null,null,null,0,null,"Kostenart auswählen"]
[null,"Lieferant auswählen",null,null,false,null,null,null,null,0,null,"Kostenart auswählen"]
[null,"Lieferant auswählen",null,null,false,null,null,null,null,0,null,"Kostenart auswählen"]
[null,"Lieferant auswählen",null,null,false,null,null,null,null,0,null,"Kostenart auswählen"]
[null,"Lieferant auswählen",null,null,false,null,null,null,null,0,null,"Kostenart auswählen"]
[null,"Lieferant auswählen",null,null,false,null,null,null,null,0,null,"Kostenart auswählen"]
[null,"Lieferant auswählen",null,null,false,null,null,null,null,0,null,"Kostenart auswählen"]
[null,"Lieferant auswählen",null,null,false,null,null,null,null,0,null,"Kostenart auswählen"]
[null,"Lieferant auswählen",null,null,false,null,null,null,null,0,null,"Kostenart auswählen"]
[null,"Lieferant auswählen",null,null,false,null,null,null,null,0,null,"Kostenart auswählen"]
[null,"Lieferant auswählen",null,null,false,null,null,null,null,0,null,"Kostenart auswählen"]
[null,"Lieferant auswählen",null,null,false,null,null,null,null,0,null,"Kostenart auswählen"]
[null,"Lieferant auswählen",null,null,{"$f":"IF(COUNTIF(D:D,D1987)=1,\"OK\",COUNTIF(D:D,D1987)=1)","v":false},null,null,null,null,{"$f":"H1987/(1+I1987)","v":0},null,"Kostenart auswählen"]
[null,"Lieferant auswählen",null,null,false,null,null,null,null,0,null,"Kostenart auswählen"]
[null,"Lieferant auswählen",null,null,false,null,null,null,null,0,null,"Kostenart auswählen"]
[null,"Lieferant auswählen",null,null,false,null,null,null,null,0,null,"Kostenart auswählen"]
[null,"Lieferant auswählen",null,null,false,null,null,null,null,0,null,"Kostenart auswählen"]
[null,"Lieferant auswählen",null,null,false,null,null,null,null,0,null,"Kostenart auswählen"]
[null,"Lieferant auswählen",null,null,false,null,null,null,null,0,null,"Kostenart auswählen"]
[null,"Lieferant auswählen",null,null,false,null,null,null,null,0,null,"Kostenart auswählen"]
[null,"Lieferant auswählen",null,null,false,null,null,null,null,0,null,"Kostenart auswählen"]
[null,"Lieferant auswählen",null,null,false,null,null,null,null,0,null,"Kostenart auswählen"]
[null,"Lieferant auswählen",null,null,false,null,null,null,null,0,null,"Kostenart auswählen"]
[null,"Lieferant auswählen",null,null,false,null,null,null,null,0,null,"Kostenart auswählen"]
[null,"Lieferant auswählen",null,null,false,null,null,null,null,0,null,"Kostenart auswählen"]
[null,"Lieferant auswählen",null,null,false,null,null,null,null,0,null,"Kostenart auswählen"]
[null,"Lieferant auswählen",null,null,false,null,null,null,null,0,null,"Kostenart auswählen"]
[null,"Lieferant auswählen",null,null,false,null,null,null,null,0,null,"Kostenart auswählen"]
[null,"Lieferant auswählen",null,null,false,null,null,null,null,0,null,"Kostenart auswählen"]
[null,"Lieferant auswählen",null,null,false,null,null,null,null,0,null,"Kostenart auswählen"]
[null,"Lieferant auswählen",null,null,false,null,null,null,null,0,null,"Kostenart auswählen"]
[null,"Lieferant auswählen",null,null,false,null,null,null,null,0,null,"Kostenart auswählen"]
[null,"Lieferant auswählen",null,null,false,null,null,null,null,0,null,"Kostenart auswählen"]
[null,"Lieferant auswählen",null,null,false,null,null,null,null,0,null,"Kostenart auswählen"]
[null,"Lieferant auswählen",null,null,false,null,null,null,null,0,null,"Kostenart auswählen"]
[null,"Lieferant auswählen",null,null,false,null,null,null,null,0,null,"Kostenart auswählen"]
[null,"Lieferant auswählen",null,null,false,null,null,null,null,0,null,"Kostenart auswählen"]
[null,"Lieferant auswählen",null,null,false,null,null,null,null,0,null,"Kostenart auswählen"]
[null,"Lieferant auswählen",null,null,false,null,null,null,null,0,null,"Kostenart auswählen"]
[null,"Lieferant auswählen",null,null,{"$f":"IF(COUNTIF(D:D,D2051)=1,\"OK\",COUNTIF(D:D,D2051)=1)","v":false},null,null,null,null,{"$f":"H2051/(1+I2051)","v":0},null,"Kostenart auswählen"]
[null,"Lieferant auswählen",null,null,false,null,null,null,null,0,null,"Kostenart auswählen"]
[null,"Lieferant auswählen",null,null,false,null,null,null,null,0,null,"Kostenart auswählen"]
[null,"Lieferant auswählen",null,null,false,null,null,null,null,0,null,"Kostenart auswählen"]
[null,"Lieferant auswählen",null,null,false,null,null,null,null,0,null,"Kostenart auswählen"]
[null,"Lieferant auswählen",null,null,false,null,null,null,null,0,null,"Kostenart auswählen"]
[null,"Lieferant auswählen",null,null,false,null,null,null,null,0,null,"Kostenart auswählen"]
[null,"Lieferant auswählen",null,null,false,null,null,null,null,0,null,"Kostenart auswählen"]
[null,"Lieferant auswählen",null,null,false,null,null,null,null,0,null,"Kostenart auswählen"]
[null,"Lieferant auswählen",null,null,false,null,null,null,null,0,null,"Kostenart auswählen"]
[null,"Lieferant auswählen",null,null,false,null,null,null,null,0,null,"Kostenart auswählen"]
[null,"Lieferant auswählen",null,null,false,null,null,null,null,0,null,"Kostenart auswählen"]
[null,"Lieferant auswählen",null,null,false,null,null,null,null,0,null,"Kostenart auswählen"]
[null,"Lieferant auswählen",null,null,false,null,null,null,null,0,null,"Kostenart auswählen"]
[null,"Lieferant auswählen",null,null,false,null,null,null,null,0,null,"Kostenart auswählen"]
[null,"Lieferant auswählen",null,null,false,null,null,null,null,0,null,"Kostenart auswählen"]
[null,"Lieferant auswählen",null,null,false,null,null,null,null,0,null,"Kostenart auswählen"]
[null,"Lieferant auswählen",null,null,false,null,null,null,null,0,null,"Kostenart auswählen"]
[null,"Lieferant auswählen",null,null,false,null,null,null,null,0,null,"Kostenart auswählen"]
[null,"Lieferant auswählen",null,null,false,null,null,null,null,0,null,"Kostenart auswählen"]
[null,"Lieferant auswählen",null,null,false,null,null,null,null,0,null,"Kostenart auswählen"]
[null,"Lieferant auswählen",null,null,false,null,null,null,null,0,null,"Kostenart auswählen"]
[null,"Lieferant auswählen",null,null,false,null,null,null,null,0,null,"Kostenart auswählen"]
[null,"Lieferant auswählen",null,null,false,null,null,null,null,0,null,"Kostenart auswählen"]
[null,"Lieferant auswählen",null,null,false,null,null,null,null,0,null,"Kostenart auswählen"]
[null,"Lieferant auswählen",null,null,false,null,null,null,null,0,null,"Kostenart auswählen"]
[null,"Lieferant auswählen",null,null,false,null,null,null,null,0,null,"Kostenart auswählen"]
[null,"Lieferant auswählen",null,null,false,null,null,null,null,0,null,"Kostenart auswählen"]
[null,"Lieferant auswählen",null,null,false,null,null,null,null,0,null,"Kostenart auswählen"]
[null,"Lieferant auswählen",null,null,false,null,null,null,null,0,null,"Kostenart auswählen"]
[null,"Lieferant auswählen",null,null,false,null,null,null,null,0,null,"Kostenart auswählen"]
[null,"Lieferant auswählen",null,null,false,null,null,null,null,0,null,"Kostenart auswählen"]
[null,"Lieferant auswählen",null,null,false,null,null,null,null,0,null,"Kostenart auswählen"]
[null,"Lieferant auswählen",null,null,false,null,null,null,null,0,null,"Kostenart auswählen"]
[null,"Lieferant auswählen",null,null,false,null,null,null,null,0,null,"Kostenart auswählen"]
[null,"Lieferant auswählen",null,null,false,null,null,null,null,0,null,"Kostenart auswählen"]
[null,"Lieferant auswählen",null,null,false,null,null,null,null,0,null,"Kostenart auswählen"]
[null,"Lieferant auswählen",null,null,false,null,null,null,null,0,null,"Kostenart auswählen"]
[null,"Lieferant auswählen",null,null,false,null,null,null,null,0,null,"Kostenart auswählen"]
[null,"Lieferant auswählen",null,null,false,null,null,null,null,0,null,"Kostenart auswählen"]
[null,"Lieferant auswählen",null,null,false,null,null,null,null,0,null,"Kostenart auswählen"]
[null,"Lieferant auswählen",null,null,false,null,null,null,null,0,null,"Kostenart auswählen"]
[null,"Lieferant auswählen",null,null,false,null,null,null,null,0,null,"Kostenart auswählen"]
[null,"Lieferant auswählen",null,null,false,null,null,null,null,0,null,"Kostenart auswählen"]
[null,"Lieferant auswählen",null,null,false,null,null,null,null,0,null,"Kostenart auswählen"]
[null,"Lieferant auswählen",null,null,false,null,null,null,null,0,null,"Kostenart auswählen"]
[null,"Lieferant auswählen",null,null,false,null,null,null,null,0,null,"Kostenart auswählen"]
[null,"Lieferant auswählen",null,null,false,null,null,null,null,0,null,"Kostenart auswählen"]
[null,"Lieferant auswählen",null,null,false,null,null,null,null,0,null,"Kostenart auswählen"]
[null,"Lieferant auswählen",null,null,false,null,null,null,null,0,null,"Kostenart auswählen"]
[null,"Lieferant auswählen",null,null,false,null,null,null,null,0,null,"Kostenart auswählen"]
[null,"Lieferant auswählen",null,null,false,null,null,null,null,0,null,"Kostenart auswählen"]
[null,"Lieferant auswählen",null,null,false,null,null,null,null,0,null,"Kostenart auswählen"]
[null,"Lieferant auswählen",null,null,false,null,null,null,null,0,null,"Kostenart auswählen"]
[null,"Lieferant auswählen",null,null,false,null,null,null,null,0,null,"Kostenart auswählen"]
[null,"Lieferant auswählen",null,null,false,null,null,null,null,0,null,"Kostenart auswählen"]
[null,"Lieferant auswählen",null,null,false,null,null,null,null,0,null,"Kostenart auswählen"]
[null,"Lieferant auswählen",null,null,false,null,null,null,null,0,null,"Kostenart auswählen"]
[null,"Lieferant auswählen",null,null,false,null,null,null,null,0,null,"Kostenart auswählen"]
[null,"Lieferant auswählen",null,null,false,null,null,null,null,0,null,"Kostenart auswählen"]
[null,"Lieferant auswählen",null,null,false,null,null,null,null,0,null,"Kostenart auswählen"]
[null,"Lieferant auswählen",null,null,false,null,null,null,null,0,null,"Kostenart auswählen"]
[null,"Lieferant auswählen",null,null,false,null,null,null,null,0,null,"Kostenart auswählen"]
[null,"Lieferant auswählen",null,null,false,null,null,null,null,0,null,"Kostenart auswählen"]
[null,"Lieferant auswählen",null,null,false,null,null,null,null,0,null,"Kostenart auswählen"]
[null,"Lieferant auswählen",null,null,false,null,null,null,null,0,null,"Kostenart auswählen"]
[null,"Lieferant auswählen",null,null,false,null,null,null,null,0,null,"Kostenart auswählen"]
[null,"Lieferant auswählen",null,null,false,null,null,null,null,0,null,"Kostenart auswählen"]
[null,"Lieferant auswählen",null,null,false,null,null,null,null,0,null,"Kostenart auswählen"]
[null,"Lieferant auswählen",null,null,false,null,null,null,null,0,null,"Kostenart auswählen"]
[null,"Lieferant auswählen",null,null,false,null,null,null,null,0,null,"Kostenart auswählen"]
[null,"Lieferant auswählen",null,null,false,null,null,null,null,0,null,"Kostenart auswählen"]
[null,"Lieferant auswählen",null,null,false,null,null,null,null,0,null,"Kostenart auswählen"]
[null,"Lieferant auswählen",null,null,false,null,null,null,null,0,null,"Kostenart auswählen"]
[null,"Lieferant auswählen",null,null,false,null,null,null,null,0,null,"Kostenart auswählen"]
[null,"Lieferant auswählen",null,null,false,null,null,null,null,0,null,"Kostenart auswählen"]
[null,"Lieferant auswählen",null,null,false,null,null,null,null,0,null,"Kostenart auswählen"]
[null,"Lieferant auswählen",null,null,false,null,null,null,null,0,null,"Kostenart auswählen"]
[null,"Lieferant auswählen",null,null,false,null,null,null,null,0,null,"Kostenart auswählen"]
[null,"Lieferant auswählen",null,null,false,null,null,null,null,0,null,"Kostenart auswählen"]
[null,"Lieferant auswählen",null,null,false,null,null,null,null,0,null,"Kostenart auswählen"]
[null,"Lieferant auswählen",null,null,false,null,null,null,null,0,null,"Kostenart auswählen"]
[null,"Lieferant auswählen",null,null,false,null,null,null,null,0,null,"Kostenart auswählen"]
[null,"Lieferant auswählen",null,null,false,null,null,null,null,0,null,"Kostenart auswählen"]
[null,"Lieferant auswählen",null,null,false,null,null,null,null,0,null,"Kostenart auswählen"]
[null,"Lieferant auswählen",null,null,{"$f":"IF(COUNTIF(D:D,D2371)=1,\"OK\",COUNTIF(D:D,D2371)=1)","v":false},null,null,null,null,{"$f":"H2371/(1+I2371)","v":0},null,"Kostenart auswählen"]
[null,"Lieferant auswählen",null,null,false,null,null,null,null,0,null,"Kostenart auswählen"]
[null,"Lieferant auswählen",null,null,false,null,null,null,null,0,null,"Kostenart auswählen"]
[null,"Lieferant auswählen",null,null,false,null,null,null,null,0,null,"Kostenart auswählen"]
[null,"Lieferant auswählen",null,null,false,null,null,null,null,0,null,"Kostenart auswählen"]
[null,"Lieferant auswählen",null,null,false,null,null,null,null,0,null,"Kostenart auswählen"]
[null,"Lieferant auswählen",null,null,false,null,null,null,null,0,null,"Kostenart auswählen"]
[null,"Lieferant auswählen",null,null,false,null,null,null,null,0,null,"Kostenart auswählen"]
[null,"Lieferant auswählen",null,null,false,null,null,null,null,0,null,"Kostenart auswählen"]
[null,"Lieferant auswählen",null,null,false,null,null,null,null,0,null,"Kostenart auswählen"]
[null,"Lieferant auswählen",null,null,false,null,null,null,null,0,null,"Kostenart auswählen"]
[null,"Lieferant auswählen",null,null,false,null,null,null,null,0,null,"Kostenart auswählen"]
[null,"Lieferant auswählen",null,null,false,null,null,null,null,0,null,"Kostenart auswählen"]
[null,"Lieferant auswählen",null,null,false,null,null,null,null,0,null,"Kostenart auswählen"]
[null,"Lieferant auswählen",null,null,false,null,null,null,null,0,null,"Kostenart auswählen"]
[null,"Lieferant auswählen",null,null,false,null,null,null,null,0,null,"Kostenart auswählen"]
[null,"Lieferant auswählen",null,null,false,null,null,null,null,0,null,"Kostenart auswählen"]
[null,"Lieferant auswählen",null,null,false,null,null,null,null,0,null,"Kostenart auswählen"]
[null,"Lieferant auswählen",null,null,false,null,null,null,null,0,null,"Kostenart auswählen"]
[null,"Lieferant auswählen",null,null,false,null,null,null,null,0,null,"Kostenart auswählen"]
[null,"Lieferant auswählen",null,null,false,null,null,null,null,0,null,"Kostenart auswählen"]
[null,"Lieferant auswählen",null,null,false,null,null,null,null,0,null,"Kostenart auswählen"]
[null,"Lieferant auswählen",null,null,false,null,null,null,null,0,null,"Kostenart auswählen"]
[null,"Lieferant auswählen",null,null,false,null,null,null,null,0,null,"Kostenart auswählen"]
[null,"Lieferant auswählen",null,null,false,null,null,null,null,0,null,"Kostenart auswählen"]
[null,"Lieferant auswählen",null,null,false,null,null,null,null,0,null,"Kostenart auswählen"]
[null,"Lieferant auswählen",null,null,false,null,null,null,null,0,null,"Kostenart auswählen"]
[null,"Lieferant auswählen",null,null,false,null,null,null,null,0,null,"Kostenart auswählen"]
[null,"Lieferant auswählen",null,null,false,null,null,null,null,0,null,"Kostenart auswählen"]
[null,"Lieferant auswählen",null,null,false,null,null,null,null,0,null,"Kostenart auswählen"]
[null,"Lieferant auswählen",null,null,false,null,null,null,null,0,null,"Kostenart auswählen"]
[null,"Lieferant auswählen",null,null,false,null,null,null,null,0,null,"Kostenart auswählen"]
[null,"Lieferant auswählen",null,null,false,null,null,null,null,0,null,"Kostenart auswählen"]
[null,"Lieferant auswählen",null,null,false,null,null,null,null,0,null,"Kostenart auswählen"]
[null,"Lieferant auswählen",null,null,false,null,null,null,null,0,null,"Kostenart auswählen"]
[null,"Lieferant auswählen",null,null,false,null,null,null,null,0,null,"Kostenart auswählen"]
[null,"Lieferant auswählen",null,null,false,null,null,null,null,0,null,"Kostenart auswählen"]
[null,"Lieferant auswählen",null,null,false,null,null,null,null,0,null,"Kostenart auswählen"]
[null,"Lieferant auswählen",null,null,false,null,null,null,null,0,null,"Kostenart auswählen"]
[null,"Lieferant auswählen",null,null,false,null,null,null,null,0,null,"Kostenart auswählen"]
[null,"Lieferant auswählen",null,null,false,null,null,null,null,0,null,"Kostenart auswählen"]
[null,"Lieferant auswählen",null,null,false,null,null,null,null,0,null,"Kostenart auswählen"]
[null,"Lieferant auswählen",null,null,false,null,null,null,null,0,null,"Kostenart auswählen"]
[null,"Lieferant auswählen",null,null,false,null,null,null,null,0,null,"Kostenart auswählen"]
[null,"Lieferant auswählen",null,null,false,null,null,null,null,0,null,"Kostenart auswählen"]
[null,"Lieferant auswählen",null,null,false,null,null,null,null,0,null,"Kostenart auswählen"]
[null,"Lieferant auswählen",null,null,false,null,null,null,null,0,null,"Kostenart auswählen"]
[null,"Lieferant auswählen",null,null,false,null,null,null,null,0,null,"Kostenart auswählen"]
[null,"Lieferant auswählen",null,null,false,null,null,null,null,0,null,"Kostenart auswählen"]
[null,"Lieferant auswählen",null,null,false,null,null,null,null,0,null,"Kostenart auswählen"]
[null,"Lieferant auswählen",null,null,false,null,null,null,null,0,null,"Kostenart auswählen"]
[null,"Lieferant auswählen",null,null,false,null,null,null,null,0,null,"Kostenart auswählen"]
[null,"Lieferant auswählen",null,null,false,null,null,null,null,0,null,"Kostenart auswählen"]
[null,"Lieferant auswählen",null,null,false,null,null,null,null,0,null,"Kostenart auswählen"]
[null,"Lieferant auswählen",null,null,false,null,null,null,null,0,null,"Kostenart auswählen"]
[null,"Lieferant auswählen",null,null,false,null,null,null,null,0,null,"Kostenart auswählen"]
[null,"Lieferant auswählen",null,null,false,null,null,null,null,0,null,"Kostenart auswählen"]
[null,"Lieferant auswählen",null,null,false,null,null,null,null,0,null,"Kostenart auswählen"]
[null,"Lieferant auswählen",null,null,false,null,null,null,null,0,null,"Kostenart auswählen"]
[null,"Lieferant auswählen",null,null,false,null,null,null,null,0,null,"Kostenart auswählen"]
[null,"Lieferant auswählen",null,null,false,null,null,null,null,0,null,"Kostenart auswählen"]
[null,"Lieferant auswählen",null,null,false,null,null,null,null,0,null,"Kostenart auswählen"]
[null,"Lieferant auswählen",null,null,false,null,null,null,null,0,null,"Kostenart auswählen"]
[null,"Lieferant auswählen",null,null,false,null,null,null,null,0,null,"Kostenart auswählen"]
[null,"Lieferant auswählen",null,null,false,null,null,null,null,0,null,"Kostenart auswählen"]
[null,"Lieferant auswählen",null,null,false,null,null,null,null,0,null,"Kostenart auswählen"]
[null,"Lieferant auswählen",null,null,false,null,null,null,null,0,null,"Kostenart auswählen"]
[null,"Lieferant auswählen",null,null,false,null,null,null,null,0,null,"Kostenart auswählen"]
[null,"Lieferant auswählen",null,null,false,null,null,null,null,0,null,"Kostenart auswählen"]
[null,"Lieferant auswählen",null,null,{"$f":"IF(COUNTIF(D:D,D2627)=1,\"OK\",COUNTIF(D:D,D2627)=1)","v":false},null,null,null,null,{"$f":"H2627/(1+I2627)","v":0},null,"Kostenart auswählen"]
[null,"Lieferant auswählen",null,null,false,null,null,null,null,0,null,"Kostenart auswählen"]
[null,"Lieferant auswählen",null,null,false,null,null,null,null,0,null,"Kostenart auswählen"]
[null,"Lieferant auswählen",null,null,false,null,null,null,null,0,null,"Kostenart auswählen"]
[null,"Lieferant auswählen",null,null,false,null,null,null,null,0,null,"Kostenart auswählen"]
[null,"Lieferant auswählen",null,null,false,null,null,null,null,0,null,"Kostenart auswählen"]
[null,"Lieferant auswählen",null,null,false,null,null,null,null,0,null,"Kostenart auswählen"]
[null,"Lieferant auswählen",null,null,false,null,null,null,null,0,null,"Kostenart auswählen"]
[null,"Lieferant auswählen",null,null,false,null,null,null,null,0,null,"Kostenart auswählen"]
[null,"Lieferant auswählen",null,null,false,null,null,null,null,0,null,"Kostenart auswählen"]
[null,"Lieferant auswählen",null,null,false,null,null,null,null,0,null,"Kostenart auswählen"]
[null,"Lieferant auswählen",null,null,false,null,null,null,null,0,null,"Kostenart auswählen"]
[null,"Lieferant auswählen",null,null,false,null,null,null,null,0,null,"Kostenart auswählen"]
[null,"Lieferant auswählen",null,null,false,null,null,null,null,0,null,"Kostenart auswählen"]
[null,"Lieferant auswählen",null,null,false,null,null,null,null,0,null,"Kostenart auswählen"]
[null,"Lieferant auswählen",null,null,false,null,null,null,null,0,null,"Kostenart auswählen"]
[null,"Lieferant auswählen",null,null,false,null,null,null,null,0,null,"Kostenart auswählen"]
[null,"Lieferant auswählen",null,null,false,null,null,null,null,0,null,"Kostenart auswählen"]
[null,"Lieferant auswählen",null,null,false,null,null,null,null,0,null,"Kostenart auswählen"]
[null,"Lieferant auswählen",null,null,false,null,null,null,null,0,null,"Kostenart auswählen"]
[null,"Lieferant auswählen",null,null,false,null,null,null,null,0,null,"Kostenart auswählen"]
[null,"Lieferant auswählen",null,null,false,null,null,null,null,0,null,"Kostenart auswählen"]
[null,"Lieferant auswählen",null,null,false,null,null,null,null,0,null,"Kostenart auswählen"]
[null,"Lieferant auswählen",null,null,false,null,null,null,null,0,null,"Kostenart auswählen"]
[null,"Lieferant auswählen",null,null,false,null,null,null,null,0,null,"Kostenart auswählen"]
[null,"Lieferant auswählen",null,null,false,null,null,null,null,0,null,"Kostenart auswählen"]
[null,"Lieferant auswählen",null,null,false,null,null,null,null,0,null,"Kostenart auswählen"]
[null,"Lieferant auswählen",null,null,false,null,null,null,null,0,null,"Kostenart auswählen"]
[null,"Lieferant auswählen",null,null,false,null,null,null,null,0,null,"Kostenart auswählen"]
[null,"Lieferant auswählen",null,null,false,null,null,null,null,0,null,"Kostenart auswählen"]
[null,"Lieferant auswählen",null,null,false,null,null,null,null,0,null,"Kostenart auswählen"]
[null,"Lieferant auswählen",null,null,false,null,null,null,null,0,null,"Kostenart auswählen"]
[null,"Lieferant auswählen",null,null,false,null,null,null,null,0,null,"Kostenart auswählen"]
[null,"Lieferant auswählen",null,null,false,null,null,null,null,0,null,"Kostenart auswählen"]
[null,"Lieferant auswählen",null,null,false,null,null,null,null,0,null,"Kostenart auswählen"]
[null,"Lieferant auswählen",null,null,false,null,null,null,null,0,null,"Kostenart auswählen"]
[null,"Lieferant auswählen",null,null,false,null,null,null,null,0,null,"Kostenart auswählen"]
[null,"Lieferant auswählen",null,null,false,null,null,null,null,0,null,"Kostenart auswählen"]
[null,"Lieferant auswählen",null,null,false,null,null,null,null,0,null,"Kostenart auswählen"]
[null,"Lieferant auswählen",null,null,false,null,null,null,null,0,null,"Kostenart auswählen"]
[null,"Lieferant auswählen",null,null,false,null,null,null,null,0,null,"Kostenart auswählen"]
[null,"Lieferant auswählen",null,null,false,null,null,null,null,0,null,"Kostenart auswählen"]
[null,"Lieferant auswählen",null,null,false,null,null,null,null,0,null,"Kostenart auswählen"]
[null,"Lieferant auswählen",null,null,false,null,null,null,null,0,null,"Kostenart auswählen"]
[null,"Lieferant auswählen",null,null,false,null,null,null,null,0,null,"Kostenart auswählen"]
[null,"Lieferant auswählen",null,null,false,null,null,null,null,0,null,"Kostenart auswählen"]
[null,"Lieferant auswählen",null,null,false,null,null,null,null,0,null,"Kostenart auswählen"]
[null,"Lieferant auswählen",null,null,false,null,null,null,null,0,null,"Kostenart auswählen"]
[null,"Lieferant auswählen",null,null,false,null,null,null,null,0,null,"Kostenart auswählen"]
[null,"Lieferant auswählen",null,null,false,null,null,null,null,0,null,"Kostenart auswählen"]
[null,"Lieferant auswählen",null,null,false,null,null,null,null,0,null,"Kostenart auswählen"]
[null,"Lieferant auswählen",null,null,false,null,null,null,null,0,null,"Kostenart auswählen"]
[null,"Lieferant auswählen",null,null,false,null,null,null,null,0,null,"Kostenart auswählen"]
[null,"Lieferant auswählen",null,null,false,null,null,null,null,0,null,"Kostenart auswählen"]
[null,"Lieferant auswählen",null,null,false,null,null,null,null,0,null,"Kostenart auswählen"]
[null,"Lieferant auswählen",null,null,false,null,null,null,null,0,null,"Kostenart auswählen"]
[null,"Lieferant auswählen",null,null,false,null,null,null,null,0,null,"Kostenart auswählen"]
[null,"Lieferant auswählen",null,null,false,null,null,null,null,0,null,"Kostenart auswählen"]
[null,"Lieferant auswählen",null,null,false,null,null,null,null,0,null,"Kostenart auswählen"]
[null,"Lieferant auswählen",null,null,false,null,null,null,null,0,null,"Kostenart auswählen"]
[null,"Lieferant auswählen",null,null,false,null,null,null,null,0,null,"Kostenart auswählen"]
[null,"Lieferant auswählen",null,null,false,null,null,null,null,0,null,"Kostenart auswählen"]
[null,"Lieferant auswählen",null,null,false,null,null,null,null,0,null,"Kostenart auswählen"]
[null,"Lieferant auswählen",null,null,false,null,null,null,null,0,null,"Kostenart auswählen"]
[null,"Lieferant auswählen",null,null,false,null,null,null,null,0,null,"Kostenart auswählen"]
[null,"Lieferant auswählen",null,null,false,null,null,null,null,0,null,"Kostenart auswählen"]
[null,"Lieferant auswählen",null,null,false,null,null,null,null,0,null,"Kostenart auswählen"]
[null,"Lieferant auswählen",null,null,false,null,null,null,null,0,null,"Kostenart auswählen"]
[null,"Lieferant auswählen",null,null,false,null,null,null,null,0,null,"Kostenart auswählen"]
[null,"Lieferant auswählen",null,null,false,null,null,null,null,0,null,"Kostenart auswählen"]
[null,"Lieferant auswählen",null,null,false,null,null,null,null,0,null,"Kostenart auswählen"]
[null,"Lieferant auswählen",null,null,false,null,null,null,null,0,null,"Kostenart auswählen"]
[null,"Lieferant auswählen",null,null,false,null,null,null,null,0,null,"Kostenart auswählen"]
[null,"Lieferant auswählen",null,null,false,null,null,null,null,0,null,"Kostenart auswählen"]
[null,"Lieferant auswählen",null,null,false,null,null,null,null,0,null,"Kostenart auswählen"]
[null,"Lieferant auswählen",null,null,false,null,null,null,null,0,null,"Kostenart auswählen"]
[null,"Lieferant auswählen",null,null,false,null,null,null,null,0,null,"Kostenart auswählen"]
[null,"Lieferant auswählen",null,null,false,null,null,null,null,0,null,"Kostenart auswählen"]
[null,"Lieferant auswählen",null,null,false,null,null,null,null,0,null,"Kostenart auswählen"]
[null,"Lieferant auswählen",null,null,false,null,null,null,null,0,null,"Kostenart auswählen"]
[null,"Lieferant auswählen",null,null,false,null,null,null,null,0,null,"Kostenart auswählen"]
[null,"Lieferant auswählen",null,null,false,null,null,null,null,0,null,"Kostenart auswählen"]
[null,"Lieferant auswählen",null,null,false,null,null,null,null,0,null,"Kostenart auswählen"]
[null,"Lieferant auswählen",null,null,false,null,null,null,null,0,null,"Kostenart auswählen"]
[null,"Lieferant auswählen",null,null,false,null,null,null,null,0,null,"Kostenart auswählen"]
[null,"Lieferant auswählen",null,null,{"$f":"IF(COUNTIF(D:D,D2947)=1,\"OK\",COUNTIF(D:D,D2947)=1)","v":false},null,null,null,null,{"$f":"H2947/(1+I2947)","v":0},null,"Kostenart auswählen"]
[null,"Lieferant auswählen",null,null,false,null,null,null,null,0,null,"Kostenart auswählen"]
[null,"Lieferant auswählen",null,null,false,null,null,null,null,0,null,"Kostenart auswählen"]
[null,"Lieferant auswählen",null,null,false,null,null,null,null,0,null,"Kostenart auswählen"]
[null,"Lieferant auswählen",null,null,false,null,null,null,null,0,null,"Kostenart auswählen"]
[null,"Lieferant auswählen",null,null,false,null,null,null,null,0,null,"Kostenart auswählen"]
[null,"Lieferant auswählen",null,null,false,null,null,null,null,0,null,"Kostenart auswählen"]
[null,"Lieferant auswählen",null,null,false,null,null,null,null,0,null,"Kostenart auswählen"]
[null,"Lieferant auswählen",null,null,false,null,null,null,null,0,null,"Kostenart auswählen"]
[null,"Lieferant auswählen",null,null,false,null,null,null,null,0,null,"Kostenart auswählen"]
[null,"Lieferant auswählen",null,null,false,null,null,null,null,0,null,"Kostenart auswählen"]
[null,"Lieferant auswählen",null,null,false,null,null,null,null,0,null,"Kostenart auswählen"]
[null,"Lieferant auswählen",null,null,false,null,null,null,null,0,null,"Kostenart auswählen"]
[null,"Lieferant auswählen",null,null,false,null,null,null,null,0,null,"Kostenart auswählen"]
[null,"Lieferant auswählen",null,null,false,null,null,null,null,0,null,"Kostenart auswählen"]
[null,"Lieferant auswählen",null,null,false,null,null,null,null,0,null,"Kostenart auswählen"]
[null,"Lieferant auswählen",null,null,false,null,null,null,null,0,null,"Kostenart auswählen"]
[null,"Lieferant auswählen",null,null,{"$f":"IF(COUNTIF(D:D,D3011)=1,\"OK\",COUNTIF(D:D,D3011)=1)","v":false},null,null,null,null,{"$f":"H3011/(1+I3011)","v":0},null,"Kostenart auswählen"]
[null,"Lieferant auswählen",null,null,false,null,null,null,null,0,null,"Kostenart auswählen"]
[null,"Lieferant auswählen",null,null,false,null,null,null,null,0,null,"Kostenart auswählen"]
[null,"Lieferant auswählen",null,null,false,null,null,null,null,0,null,"Kostenart auswählen"]
[null,"Lieferant auswählen",null,null,false,null,null,null,null,0,null,"Kostenart auswählen"]
[null,"Lieferant auswählen",null,null,false,null,null,null,null,0,null,"Kostenart auswählen"]
[null,"Lieferant auswählen",null,null,false,null,null,null,null,0,null,"Kostenart auswählen"]
[null,"Lieferant auswählen",null,null,false,null,null,null,null,0,null,"Kostenart auswählen"]
[null,"Lieferant auswählen",null,null,false,null,null,null,null,0,null,"Kostenart auswählen"]
[null,"Lieferant auswählen",null,null,false,null,null,null,null,0,null,"Kostenart auswählen"]
[null,"Lieferant auswählen",null,null,false,null,null,null,null,0,null,"Kostenart auswählen"]
[null,"Lieferant auswählen",null,null,false,null,null,null,null,0,null,"Kostenart auswählen"]
[null,"Lieferant auswählen",null,null,false,null,null,null,null,0,null,"Kostenart auswählen"]
[null,"Lieferant auswählen",null,null,false,null,null,null,null,0,null,"Kostenart auswählen"]
[null,"Lieferant auswählen",null,null,false,null,null,null,null,0,null,"Kostenart auswählen"]
[null,"Lieferant auswählen",null,null,false,null,null,null,null,0,null,"Kostenart auswählen"]
[null,"Lieferant auswählen",null,null,false,null,null,null,null,0,null,"Kostenart auswählen"]
[null,"Lieferant auswählen",null,null,false,null,null,null,null,0,null,"Kostenart auswählen"]
[null,"Lieferant auswählen",null,null,false,null,null,null,null,0,null,"Kostenart auswählen"]
[null,"Lieferant auswählen",null,null,false,null,null,null,null,0,null,"Kostenart auswählen"]
[null,"Lieferant auswählen",null,null,false,null,null,null,null,0,null,"Kostenart auswählen"]
[null,"Lieferant auswählen",null,null,false,null,null,null,null,0,null,"Kostenart auswählen"]
[null,"Lieferant auswählen",null,null,false,null,null,null,null,0,null,"Kostenart auswählen"]
[null,"Lieferant auswählen",null,null,false,null,null,null,null,0,null,"Kostenart auswählen"]
[null,"Lieferant auswählen",null,null,false,null,null,null,null,0,null,"Kostenart auswählen"]
[null,"Lieferant auswählen",null,null,false,null,null,null,null,0,null,"Kostenart auswählen"]
[null,"Lieferant auswählen",null,null,false,null,null,null,null,0,null,"Kostenart auswählen"]
[null,"Lieferant auswählen",null,null,false,null,null,null,null,0,null,"Kostenart auswählen"]
[null,"Lieferant auswählen",null,null,false,null,null,null,null,0,null,"Kostenart auswählen"]
[null,"Lieferant auswählen",null,null,false,null,null,null,null,0,null,"Kostenart auswählen"]
[null,"Lieferant auswählen",null,null,false,null,null,null,null,0,null,"Kostenart auswählen"]
[null,"Lieferant auswählen",null,null,false,null,null,null,null,0,null,"Kostenart auswählen"]
[null,"Lieferant auswählen",null,null,false,null,null,null,null,0,null,"Kostenart auswählen"]
[null,"Lieferant auswählen",null,null,false,null,null,null,null,0,null,"Kostenart auswählen"]
[null,"Lieferant auswählen",null,null,false,null,null,null,null,0,null,"Kostenart auswählen"]
[null,"Lieferant auswählen",null,null,false,null,null,null,null,0,null,"Kostenart auswählen"]
[null,"Lieferant auswählen",null,null,false,null,null,null,null,0,null,"Kostenart auswählen"]
[null,"Lieferant auswählen",null,null,false,null,null,null,null,0,null,"Kostenart auswählen"]
[null,"Lieferant auswählen",null,null,false,null,null,null,null,0,null,"Kostenart auswählen"]
[null,"Lieferant auswählen",null,null,false,null,null,null,null,0,null,"Kostenart auswählen"]
[null,"Lieferant auswählen",null,null,false,null,null,null,null,0,null,"Kostenart auswählen"]
[null,"Lieferant auswählen",null,null,false,null,null,null,null,0,null,"Kostenart auswählen"]
[null,"Lieferant auswählen",null,null,false,null,null,null,null,0,null,"Kostenart auswählen"]
[null,"Lieferant auswählen",null,null,false,null,null,null,null,0,null,"Kostenart auswählen"]
[null,"Lieferant auswählen",null,null,false,null,null,null,null,0,null,"Kostenart auswählen"]
[null,"Lieferant auswählen",null,null,false,null,null,null,null,0,null,"Kostenart auswählen"]
[null,"Lieferant auswählen",null,null,false,null,null,null,null,0,null,"Kostenart auswählen"]
[null,"Lieferant auswählen",null,null,false,null,null,null,null,0,null,"Kostenart auswählen"]
[null,"Lieferant auswählen",null,null,false,null,null,null,null,0,null,"Kostenart auswählen"]
[null,"Lieferant auswählen",null,null,false,null,null,null,null,0,null,"Kostenart auswählen"]
[null,"Lieferant auswählen",null,null,false,null,null,null,null,0,null,"Kostenart auswählen"]
[null,"Lieferant auswählen",null,null,false,null,null,null,null,0,null,"Kostenart auswählen"]
[null,"Lieferant auswählen",null,null,false,null,null,null,null,0,null,"Kostenart auswählen"]
[null,"Lieferant auswählen",null,null,false,null,null,null,null,0,null,"Kostenart auswählen"]
[null,"Lieferant auswählen",null,null,false,null,null,null,null,0,null,"Kostenart auswählen"]
[null,"Lieferant auswählen",null,null,false,null,null,null,null,0,null,"Kostenart auswählen"]
[null,"Lieferant auswählen",null,null,false,null,null,null,null,0,null,"Kostenart auswählen"]
[null,"Lieferant auswählen",null,null,false,null,null,null,null,0,null,"Kostenart auswählen"]
[null,"Lieferant auswählen",null,null,false,null,null,null,null,0,null,"Kostenart auswählen"]
[null,"Lieferant auswählen",null,null,false,null,null,null,null,0,null,"Kostenart auswählen"]
[null,"Lieferant auswählen",null,null,false,null,null,null,null,0,null,"Kostenart auswählen"]
[null,"Lieferant auswählen",null,null,false,null,null,null,null,0,null,"Kostenart auswählen"]
[null,"Lieferant auswählen",null,null,false,null,null,null,null,0,null,"Kostenart auswählen"]
[null,"Lieferant auswählen",null,null,false,null,null,null,null,0,null,"Kostenart auswählen"]
[null,"Lieferant auswählen",null,null,false,null,null,null,null,0,null,"Kostenart auswählen"]
[null,"Lieferant auswählen",null,null,false,null,null,null,null,0,null,"Kostenart auswählen"]
[null,"Lieferant auswählen",null,null,false,null,null,null,null,0,null,"Kostenart auswählen"]
[null,"Lieferant auswählen",null,null,false,null,null,null,null,0,null,"Kostenart auswählen"]
[null,"Lieferant auswählen",null,null,false,null,null,null,null,0,null,"Kostenart auswählen"]
[null,"Lieferant auswählen",null,null,false,null,null,null,null,0,null,"Kostenart auswählen"]
[null,"Lieferant auswählen",null,null,false,null,null,null,null,0,null,"Kostenart auswählen"]
[null,"Lieferant auswählen",null,null,false,null,null,null,null,0,null,"Kostenart auswählen"]
[null,"Lieferant auswählen",null,null,false,null,null,null,null,0,null,"Kostenart auswählen"]
[null,"Lieferant auswählen",null,null,false,null,null,null,null,0,null,"Kostenart auswählen"]
[null,"Lieferant auswählen",null,null,false,null,null,null,null,0,null,"Kostenart auswählen"]
[null,"Lieferant auswählen",null,null,false,null,null,null,null,0,null,"Kostenart auswählen"]
[null,"Lieferant auswählen",null,null,false,null,null,null,null,0,null,"Kostenart auswählen"]
[null,"Lieferant auswählen",null,null,false,null,null,null,null,0,null,"Kostenart auswählen"]
[null,"Lieferant auswählen",null,null,false,null,null,null,null,0,null,"Kostenart auswählen"]
[null,"Lieferant auswählen",null,null,false,null,null,null,null,0,null,"Kostenart auswählen"]
[null,"Lieferant auswählen",null,null,false,null,null,null,null,0,null,"Kostenart auswählen"]
[null,"Lieferant auswählen",null,null,false,null,null,null,null,0,null,"Kostenart auswählen"]
[null,"Lieferant auswählen",null,null,false,null,null,null,null,0,null,"Kostenart auswählen"]
[null,"Lieferant auswählen",null,null,false,null,null,null,null,0,null,"Kostenart auswählen"]
[null,"Lieferant auswählen",null,null,false,null,null,null,null,0,null,"Kostenart auswählen"]
[null,"Lieferant auswählen",null,null,{"$f":"IF(COUNTIF(D:D,D3331)=1,\"OK\",COUNTIF(D:D,D3331)=1)","v":false},null,null,null,null,{"$f":"H3331/(1+I3331)","v":0},null,"Kostenart auswählen"]
[null,"Lieferant auswählen",null,null,false,null,null,null,null,0,null,"Kostenart auswählen"]
[null,"Lieferant auswählen",null,null,false,null,null,null,null,0,null,"Kostenart auswählen"]
[null,"Lieferant auswählen",null,null,false,null,null,null,null,0,null,"Kostenart auswählen"]
[null,"Lieferant auswählen",null,null,false,null,null,null,null,0,null,"Kostenart auswählen"]
[null,"Lieferant auswählen",null,null,false,null,null,null,null,0,null,"Kostenart auswählen"]
[null,"Lieferant auswählen",null,null,false,null,null,null,null,0,null,"Kostenart auswählen"]
[null,"Lieferant auswählen",null,null,false,null,null,null,null,0,null,"Kostenart auswählen"]
[null,"Lieferant auswählen",null,null,false,null,null,null,null,0,null,"Kostenart auswählen"]
[null,"Lieferant auswählen",null,null,false,null,null,null,null,0,null,"Kostenart auswählen"]
[null,"Lieferant auswählen",null,null,false,null,null,null,null,0,null,"Kostenart auswählen"]
[null,"Lieferant auswählen",null,null,false,null,null,null,null,0,null,"Kostenart auswählen"]
[null,"Lieferant auswählen",null,null,false,null,null,null,null,0,null,"Kostenart auswählen"]
[null,"Lieferant auswählen",null,null,false,null,null,null,null,0,null,"Kostenart auswählen"]
[null,"Lieferant auswählen",null,null,false,null,null,null,null,0,null,"Kostenart auswählen"]
[null,"Lieferant auswählen",null,null,false,null,null,null,null,0,null,"Kostenart auswählen"]
[null,"Lieferant auswählen",null,null,false,null,null,null,null,0,null,"Kostenart auswählen"]
[null,"Lieferant auswählen",null,null,false,null,null,null,null,0,null,"Kostenart auswählen"]
[null,"Lieferant auswählen",null,null,false,null,null,null,null,0,null,"Kostenart auswählen"]
[null,"Lieferant auswählen",null,null,false,null,null,null,null,0,null,"Kostenart auswählen"]
[null,"Lieferant auswählen",null,null,false,null,null,null,null,0,null,"Kostenart auswählen"]
[null,"Lieferant auswählen",null,null,false,null,null,null,null,0,null,"Kostenart auswählen"]
[null,"Lieferant auswählen",null,null,false,null,null,null,null,0,null,"Kostenart auswählen"]
[null,"Lieferant auswählen",null,null,false,null,null,null,null,0,null,"Kostenart auswählen"]
[null,"Lieferant auswählen",null,null,false,null,null,null,null,0,null,"Kostenart auswählen"]
[null,"Lieferant auswählen",null,null,false,null,null,null,null,0,null,"Kostenart auswählen"]
[null,"Lieferant auswählen",null,null,false,null,null,null,null,0,null,"Kostenart auswählen"]
[null,"Lieferant auswählen",null,null,false,null,null,null,null,0,null,"Kostenart auswählen"]
[null,"Lieferant auswählen",null,null,false,null,null,null,null,0,null,"Kostenart auswählen"]
[null,"Lieferant auswählen",null,null,false,null,null,null,null,0,null,"Kostenart auswählen"]
[null,"Lieferant auswählen",null,null,false,null,null,null,null,0,null,"Kostenart auswählen"]
[null,"Lieferant auswählen",null,null,false,null,null,null,null,0,null,"Kostenart auswählen"]
[null,"Lieferant auswählen",null,null,false,null,null,null,null,0,null,"Kostenart auswählen"]
[null,"Lieferant auswählen",null,null,false,null,null,null,null,0,null,"Kostenart auswählen"]
[null,"Lieferant auswählen",null,null,false,null,null,null,null,0,null,"Kostenart auswählen"]
[null,"Lieferant auswählen",null,null,false,null,null,null,null,0,null,"Kostenart auswählen"]
[null,"Lieferant auswählen",null,null,false,null,null,null,null,0,null,"Kostenart auswählen"]
[null,"Lieferant auswählen",null,null,false,null,null,null,null,0,null,"Kostenart auswählen"]
[null,"Lieferant auswählen",null,null,false,null,null,null,null,0,null,"Kostenart auswählen"]
[null,"Lieferant auswählen",null,null,false,null,null,null,null,0,null,"Kostenart auswählen"]
[null,"Lieferant auswählen",null,null,false,null,null,null,null,0,null,"Kostenart auswählen"]
[null,"Lieferant auswählen",null,null,false,null,null,null,null,0,null,"Kostenart auswählen"]
[null,"Lieferant auswählen",null,null,false,null,null,null,null,0,null,"Kostenart auswählen"]
[null,"Lieferant auswählen",null,null,false,null,null,null,null,0,null,"Kostenart auswählen"]
[null,"Lieferant auswählen",null,null,false,null,null,null,null,0,null,"Kostenart auswählen"]
[null,"Lieferant auswählen",null,null,false,null,null,null,null,0,null,"Kostenart auswählen"]
[null,"Lieferant auswählen",null,null,false,null,null,null,null,0,null,"Kostenart auswählen"]
[null,"Lieferant auswählen",null,null,false,null,null,null,null,0,null,"Kostenart auswählen"]
[null,"Lieferant auswählen",null,null,false,null,null,null,null,0,null,"Kostenart auswählen"]
[null,"Lieferant auswählen",null,null,false,null,null,null,null,0,null,"Kostenart auswählen"]
[null,"Lieferant auswählen",null,null,false,null,null,null,null,0,null,"Kostenart auswählen"]
[null,"Lieferant auswählen",null,null,false,null,null,null,null,0,null,"Kostenart auswählen"]
[null,"Lieferant auswählen",null,null,false,null,null,null,null,0,null,"Kostenart auswählen"]
[null,"Lieferant auswählen",null,null,false,null,null,null,null,0,null,"Kostenart auswählen"]
[null,"Lieferant auswählen",null,null,false,null,null,null,null,0,null,"Kostenart auswählen"]
[null,"Lieferant auswählen",null,null,false,null,null,null,null,0,null,"Kostenart auswählen"]
[null,"Lieferant auswählen",null,null,false,null,null,null,null,0,null,"Kostenart auswählen"]
[null,"Lieferant auswählen",null,null,false,null,null,null,null,0,null,"Kostenart auswählen"]
[null,"Lieferant auswählen",null,null,false,null,null,null,null,0,null,"Kostenart auswählen"]
[null,"Lieferant auswählen",null,null,false,null,null,null,null,0,null,"Kostenart auswählen"]
[null,"Lieferant auswählen",null,null,false,null,null,null,null,0,null,"Kostenart auswählen"]
[null,"Lieferant auswählen",null,null,false,null,null,null,null,0,null,"Kostenart auswählen"]
[null,"Lieferant auswählen",null,null,false,null,null,null,null,0,null,"Kostenart auswählen"]
[null,"Lieferant auswählen",null,null,false,null,null,null,null,0,null,"Kostenart auswählen"]
[null,"Lieferant auswählen",null,null,false,null,null,null,null,0,null,"Kostenart auswählen"]
[null,"Lieferant auswählen",null,null,false,null,null,null,null,0,null,"Kostenart auswählen"]
[null,"Lieferant auswählen",null,null,false,null,null,null,null,0,null,"Kostenart auswählen"]
[null,"Lieferant auswählen",null,null,false,null,null,null,null,0,null,"Kostenart auswählen"]
[null,"Lieferant auswählen",null,null,false,null,null,null,null,0,null,"Kostenart auswählen"]
[null,"Lieferant auswählen",null,null,{"$f":"IF(COUNTIF(D:D,D3587)=1,\"OK\",COUNTIF(D:D,D3587)=1)","v":false},null,null,null,null,{"$f":"H3587/(1+I3587)","v":0},null,"Kostenart auswählen"]
[null,"Lieferant auswählen",null,null,false,null,null,null,null,0,null,"Kostenart auswählen"]
[null,"Lieferant auswählen",null,null,false,null,null,null,null,0,null,"Kostenart auswählen"]
[null,"Lieferant auswählen",null,null,false,null,null,null,null,0,null,"Kostenart auswählen"]
[null,"Lieferant auswählen",null,null,false,null,null,null,null,0,null,"Kostenart auswählen"]
[null,"Lieferant auswählen",null,null,false,null,null,null,null,0,null,"Kostenart auswählen"]
[null,"Lieferant auswählen",null,null,false,null,null,null,null,0,null,"Kostenart auswählen"]
[null,"Lieferant auswählen",null,null,false,null,null,null,null,0,null,"Kostenart auswählen"]
[null,"Lieferant auswählen",null,null,false,null,null,null,null,0,null,"Kostenart auswählen"]
[null,"Lieferant auswählen",null,null,false,null,null,null,null,0,null,"Kostenart auswählen"]
[null,"Lieferant auswählen",null,null,false,null,null,null,null,0,null,"Kostenart auswählen"]
[null,"Lieferant auswählen",null,null,false,null,null,null,null,0,null,"Kostenart auswählen"]
[null,"Lieferant auswählen",null,null,false,null,null,null,null,0,null,"Kostenart auswählen"]
[null,"Lieferant auswählen",null,null,false,null,null,null,null,0,null,"Kostenart auswählen"]
[null,"Lieferant auswählen",null,null,false,null,null,null,null,0,null,"Kostenart auswählen"]
[null,"Lieferant auswählen",null,null,false,null,null,null,null,0,null,"Kostenart auswählen"]
[null,"Lieferant auswählen",null,null,false,null,null,null,null,0,null,"Kostenart auswählen"]
[null,"Lieferant auswählen",null,null,false,null,null,null,null,0,null,"Kostenart auswählen"]
[null,"Lieferant auswählen",null,null,false,null,null,null,null,0,null,"Kostenart auswählen"]
[null,"Lieferant auswählen",null,null,false,null,null,null,null,0,null,"Kostenart auswählen"]
[null,"Lieferant auswählen",null,null,false,null,null,null,null,0,null,"Kostenart auswählen"]
[null,"Lieferant auswählen",null,null,false,null,null,null,null,0,null,"Kostenart auswählen"]
[null,"Lieferant auswählen",null,null,false,null,null,null,null,0,null,"Kostenart auswählen"]
[null,"Lieferant auswählen",null,null,false,null,null,null,null,0,null,"Kostenart auswählen"]
[null,"Lieferant auswählen",null,null,false,null,null,null,null,0,null,"Kostenart auswählen"]
[null,"Lieferant auswählen",null,null,false,null,null,null,null,0,null,"Kostenart auswählen"]
[null,"Lieferant auswählen",null,null,false,null,null,null,null,0,null,"Kostenart auswählen"]
[null,"Lieferant auswählen",null,null,false,null,null,null,null,0,null,"Kostenart auswählen"]
[null,"Lieferant auswählen",null,null,false,null,null,null,null,0,null,"Kostenart auswählen"]
[null,"Lieferant auswählen",null,null,false,null,null,null,null,0,null,"Kostenart auswählen"]
[null,"Lieferant auswählen",null,null,false,null,null,null,null,0,null,"Kostenart auswählen"]
[null,"Lieferant auswählen",null,null,false,null,null,null,null,0,null,"Kostenart auswählen"]
[null,"Lieferant auswählen",null,null,false,null,null,null,null,0,null,"Kostenart auswählen"]
[null,"Lieferant auswählen",null,null,false,null,null,null,null,0,null,"Kostenart auswählen"]
[null,"Lieferant auswählen",null,null,false,null,null,null,null,0,null,"Kostenart auswählen"]
[null,"Lieferant auswählen",null,null,false,null,null,null,null,0,null,"Kostenart auswählen"]
[null,"Lieferant auswählen",null,null,false,null,null,null,null,0,null,"Kostenart auswählen"]
[null,"Lieferant auswählen",null,null,false,null,null,null,null,0,null,"Kostenart auswählen"]
[null,"Lieferant auswählen",null,null,false,null,null,null,null,0,null,"Kostenart auswählen"]
[null,"Lieferant auswählen",null,null,false,null,null,null,null,0,null,"Kostenart auswählen"]
[null,"Lieferant auswählen",null,null,false,null,null,null,null,0,null,"Kostenart auswählen"]
[null,"Lieferant auswählen",null,null,false,null,null,null,null,0,null,"Kostenart auswählen"]
[null,"Lieferant auswählen",null,null,false,null,null,null,null,0,null,"Kostenart auswählen"]
[null,"Lieferant auswählen",null,null,false,null,null,null,null,0,null,"Kostenart auswählen"]
[null,"Lieferant auswählen",null,null,false,null,null,null,null,0,null,"Kostenart auswählen"]
[null,"Lieferant auswählen",null,null,false,null,null,null,null,0,null,"Kostenart auswählen"]
[null,"Lieferant auswählen",null,null,false,null,null,null,null,0,null,"Kostenart auswählen"]
[null,"Lieferant auswählen",null,null,false,null,null,null,null,0,null,"Kostenart auswählen"]
[null,"Lieferant auswählen",null,null,false,null,null,null,null,0,null,"Kostenart auswählen"]
[null,"Lieferant auswählen",null,null,false,null,null,null,null,0,null,"Kostenart auswählen"]
[null,"Lieferant auswählen",null,null,false,null,null,null,null,0,null,"Kostenart auswählen"]
[null,"Lieferant auswählen",null,null,false,null,null,null,null,0,null,"Kostenart auswählen"]
[null,"Lieferant auswählen",null,null,false,null,null,null,null,0,null,"Kostenart auswählen"]
[null,"Lieferant auswählen",null,null,false,null,null,null,null,0,null,"Kostenart auswählen"]
[null,"Lieferant auswählen",null,null,false,null,null,null,null,0,null,"Kostenart auswählen"]
[null,"Lieferant auswählen",null,null,false,null,null,null,null,0,null,"Kostenart auswählen"]
[null,"Lieferant auswählen",null,null,false,null,null,null,null,0,null,"Kostenart auswählen"]
[null,"Lieferant auswählen",null,null,false,null,null,null,null,0,null,"Kostenart auswählen"]
[null,"Lieferant auswählen",null,null,false,null,null,null,null,0,null,"Kostenart auswählen"]
[null,"Lieferant auswählen",null,null,false,null,null,null,null,0,null,"Kostenart auswählen"]
[null,"Lieferant auswählen",null,null,false,null,null,null,null,0,null,"Kostenart auswählen"]
[null,"Lieferant auswählen",null,null,false,null,null,null,null,0,null,"Kostenart auswählen"]
[null,"Lieferant auswählen",null,null,false,null,null,null,null,0,null,"Kostenart auswählen"]
[null,"Lieferant auswählen",null,null,false,null,null,null,null,0,null,"Kostenart auswählen"]
[null,"Lieferant auswählen",null,null,false,null,null,null,null,0,null,"Kostenart auswählen"]
[null,"Lieferant auswählen",null,null,false,null,null,null,null,0,null,"Kostenart auswählen"]
[null,"Lieferant auswählen",null,null,false,null,null,null,null,0,null,"Kostenart auswählen"]
[null,"Lieferant auswählen",null,null,false,null,null,null,null,0,null,"Kostenart auswählen"]
[null,"Lieferant auswählen",null,null,false,null,null,null,null,0,null,"Kostenart auswählen"]
[null,"Lieferant auswählen",null,null,false,null,null,null,null,0,null,"Kostenart auswählen"]
[null,"Lieferant auswählen",null,null,false,null,null,null,null,0,null,"Kostenart auswählen"]
[null,"Lieferant auswählen",null,null,false,null,null,null,null,0,null,"Kostenart auswählen"]
[null,"Lieferant auswählen",null,null,false,null,null,null,null,0,null,"Kostenart auswählen"]
[null,"Lieferant auswählen",null,null,false,null,null,null,null,0,null,"Kostenart auswählen"]
[null,"Lieferant auswählen",null,null,false,null,null,null,null,0,null,"Kostenart auswählen"]
[null,"Lieferant auswählen",null,null,false,null,null,null,null,0,null,"Kostenart auswählen"]
[null,"Lieferant auswählen",null,null,false,null,null,null,null,0,null,"Kostenart auswählen"]
[null,"Lieferant auswählen",null,null,false,null,null,null,null,0,null,"Kostenart auswählen"]
[null,"Lieferant auswählen",null,null,false,null,null,null,null,0,null,"Kostenart auswählen"]
[null,"Lieferant auswählen",null,null,false,null,null,null,null,0,null,"Kostenart auswählen"]
[null,"Lieferant auswählen",null,null,false,null,null,null,null,0,null,"Kostenart auswählen"]
[null,"Lieferant auswählen",null,null,false,null,null,null,null,0,null,"Kostenart auswählen"]
[null,"Lieferant auswählen",null,null,false,null,null,null,null,0,null,"Kostenart auswählen"]
[null,"Lieferant auswählen",null,null,false,null,null,null,null,0,null,"Kostenart auswählen"]
[null,"Lieferant auswählen",null,null,false,null,null,null,null,0,null,"Kostenart auswählen"]
[null,"Lieferant auswählen",null,null,{"$f":"IF(COUNTIF(D:D,D3907)=1,\"OK\",COUNTIF(D:D,D3907)=1)","v":false},null,null,null,null,{"$f":"H3907/(1+I3907)","v":0},null,"Kostenart auswählen"]
[null,"Lieferant auswählen",null,null,false,null,null,null,null,0,null,"Kostenart auswählen"]
[null,"Lieferant auswählen",null,null,false,null,null,null,null,0,null,"Kostenart auswählen"]
[null,"Lieferant auswählen",null,null,false,null,null,null,null,0,null,"Kostenart auswählen"]
[null,"Lieferant auswählen",null,null,false,null,null,null,null,0,null,"Kostenart auswählen"]
[null,"Lieferant auswählen",null,null,false,null,null,null,null,0,null,"Kostenart auswählen"]
[null,"Lieferant auswählen",null,null,false,null,null,null,null,0,null,"Kostenart auswählen"]
[null,"Lieferant auswählen",null,null,false,null,null,null,null,0,null,"Kostenart auswählen"]
[null,"Lieferant auswählen",null,null,false,null,null,null,null,0,null,"Kostenart auswählen"]
[null,"Lieferant auswählen",null,null,false,null,null,null,null,0,null,"Kostenart auswählen"]
[null,"Lieferant auswählen",null,null,false,null,null,null,null,0,null,"Kostenart auswählen"]
[null,"Lieferant auswählen",null,null,false,null,null,null,null,0,null,"Kostenart auswählen"]
[null,"Lieferant auswählen",null,null,false,null,null,null,null,0,null,"Kostenart auswählen"]
[null,"Lieferant auswählen",null,null,false,null,null,null,null,0,null,"Kostenart auswählen"]
[null,"Lieferant auswählen",null,null,false,null,null,null,null,0,null,"Kostenart auswählen"]
[null,"Lieferant auswählen",null,null,false,null,null,null,null,0,null,"Kostenart auswählen"]
[null,"Lieferant auswählen",null,null,false,null,null,null,null,0,null,"Kostenart auswählen"]
[null,"Lieferant auswählen",null,null,false,null,null,null,null,0,null,"Kostenart auswählen"]
[null,"Lieferant auswählen",null,null,false,null,null,null,null,0,null,"Kostenart auswählen"]
[null,"Lieferant auswählen",null,null,false,null,null,null,null,0,null,"Kostenart auswählen"]
[null,"Lieferant auswählen",null,null,false,null,null,null,null,0,null,"Kostenart auswählen"]
[null,"Lieferant auswählen",null,null,false,null,null,null,null,0,null,"Kostenart auswählen"]
[null,"Lieferant auswählen",null,null,false,null,null,null,null,0,null,"Kostenart auswählen"]
[null,"Lieferant auswählen",null,null,false,null,null,null,null,0,null,"Kostenart auswählen"]
[null,"Lieferant auswählen",null,null,false,null,null,null,null,0,null,"Kostenart auswählen"]
[null,"Lieferant auswählen",null,null,false,null,null,null,null,0,null,"Kostenart auswählen"]
[null,"Lieferant auswählen",null,null,false,null,null,null,null,0,null,"Kostenart auswählen"]
[null,"Lieferant auswählen",null,null,false,null,null,null,null,0,null,"Kostenart auswählen"]
[null,"Lieferant auswählen",null,null,false,null,null,null,null,0,null,"Kostenart auswählen"]
[null,"Lieferant auswählen",null,null,false,null,null,null,null,0,null,"Kostenart auswählen"]
[null,"Lieferant auswählen",null,null,false,null,null,null,null,0,null,"Kostenart auswählen"]
[null,"Lieferant auswählen",null,null,false,null,null,null,null,0,null,"Kostenart auswählen"]
[null,"Lieferant auswählen",null,null,false,null,null,null,null,0,null,"Kostenart auswählen"]
[null,"Lieferant auswählen",null,null,false,null,null,null,null,0,null,"Kostenart auswählen"]
[null,"Lieferant auswählen",null,null,{"$f":"IF(COUNTIF(D:D,D4035)=1,\"OK\",COUNTIF(D:D,D4035)=1)","v":false},null,null,null,null,{"$f":"H4035/(1+I4035)","v":0},null,"Kostenart auswählen"]
[null,"Lieferant auswählen",null,null,false,null,null,null,null,0,null,"Kostenart auswählen"]
[null,"Lieferant auswählen",null,null,false,null,null,null,null,0,null,"Kostenart auswählen"]
[null,"Lieferant auswählen",null,null,false,null,null,null,null,0,null,"Kostenart auswählen"]
[null,"Lieferant auswählen",null,null,false,null,null,null,null,0,null,"Kostenart auswählen"]
[null,"Lieferant auswählen",null,null,false,null,null,null,null,0,null,"Kostenart auswählen"]
[null,"Lieferant auswählen",null,null,false,null,null,null,null,0,null,"Kostenart auswählen"]
[null,"Lieferant auswählen",null,null,false,null,null,null,null,0,null,"Kostenart auswählen"]
[null,"Lieferant auswählen",null,null,false,null,null,null,null,0,null,"Kostenart auswählen"]
[null,"Lieferant auswählen",null,null,false,null,null,null,null,0,null,"Kostenart auswählen"]
[null,"Lieferant auswählen",null,null,false,null,null,null,null,0,null,"Kostenart auswählen"]
[null,"Lieferant auswählen",null,null,false,null,null,null,null,0,null,"Kostenart auswählen"]
[null,"Lieferant auswählen",null,null,false,null,null,null,null,0,null,"Kostenart auswählen"]
[null,"Lieferant auswählen",null,null,false,null,null,null,null,0,null,"Kostenart auswählen"]
[null,"Lieferant auswählen",null,null,false,null,null,null,null,0,null,"Kostenart auswählen"]
[null,"Lieferant auswählen",null,null,false,null,null,null,null,0,null,"Kostenart auswählen"]
[null,"Lieferant auswählen",null,null,false,null,null,null,null,0,null,"Kostenart auswählen"]
[null,"Lieferant auswählen",null,null,false,null,null,null,null,0,null,"Kostenart auswählen"]
[null,"Lieferant auswählen",null,null,false,null,null,null,null,0,null,"Kostenart auswählen"]
[null,"Lieferant auswählen",null,null,false,null,null,null,null,0,null,"Kostenart auswählen"]
[null,"Lieferant auswählen",null,null,false,null,null,null,null,0,null,"Kostenart auswählen"]
[null,"Lieferant auswählen",null,null,false,null,null,null,null,0,null,"Kostenart auswählen"]
[null,"Lieferant auswählen",null,null,false,null,null,null,null,0,null,"Kostenart auswählen"]
[null,"Lieferant auswählen",null,null,false,null,null,null,null,0,null,"Kostenart auswählen"]
[null,"Lieferant auswählen",null,null,false,null,null,null,null,0,null,"Kostenart auswählen"]
[null,"Lieferant auswählen",null,null,false,null,null,null,null,0,null,"Kostenart auswählen"]
[null,"Lieferant auswählen",null,null,false,null,null,null,null,0,null,"Kostenart auswählen"]
[null,"Lieferant auswählen",null,null,false,null,null,null,null,0,null,"Kostenart auswählen"]
[null,"Lieferant auswählen",null,null,false,null,null,null,null,0,null,"Kostenart auswählen"]
[null,"Lieferant auswählen",null,null,false,null,null,null,null,0,null,"Kostenart auswählen"]
[null,"Lieferant auswählen",null,null,false,null,null,null,null,0,null,"Kostenart auswählen"]
[null,"Lieferant auswählen",null,null,false,null,null,null,null,0,null,"Kostenart auswählen"]
[null,"Lieferant auswählen",null,null,false,null,null,null,null,0,null,"Kostenart auswählen"]
[null,"Lieferant auswählen",null,null,false,null,null,null,null,0,null,"Kostenart auswählen"]
[null,"Lieferant auswählen",null,null,false,null,null,null,null,0,null,"Kostenart auswählen"]
[null,"Lieferant auswählen",null,null,false,null,null,null,null,0,null,"Kostenart auswählen"]
[null,"Lieferant auswählen",null,null,false,null,null,null,null,0,null,"Kostenart auswählen"]
[null,"Lieferant auswählen",null,null,false,null,null,null,null,0,null,"Kostenart auswählen"]
[null,"Lieferant auswählen",null,null,false,null,null,null,null,0,null,"Kostenart auswählen"]
[null,"Lieferant auswählen",null,null,false,null,null,null,null,0,null,"Kostenart auswählen"]
[null,"Lieferant auswählen",null,null,false,null,null,null,null,0,null,"Kostenart auswählen"]
[null,"Lieferant auswählen",null,null,false,null,null,null,null,0,null,"Kostenart auswählen"]
[null,"Lieferant auswählen",null,null,false,null,null,null,null,0,null,"Kostenart auswählen"]
[null,"Lieferant auswählen",null,null,false,null,null,null,null,0,null,"Kostenart auswählen"]
[null,"Lieferant auswählen",null,null,false,null,null,null,null,0,null,"Kostenart auswählen"]
[null,"Lieferant auswählen",null,null,false,null,null,null,null,0,null,"Kostenart auswählen"]
[null,"Lieferant auswählen",null,null,false,null,null,null,null,0,null,"Kostenart auswählen"]
[null,"Lieferant auswählen",null,null,false,null,null,null,null,0,null,"Kostenart auswählen"]
[null,"Lieferant auswählen",null,null,false,null,null,null,null,0,null,"Kostenart auswählen"]
[null,"Lieferant auswählen",null,null,false,null,null,null,null,0,null,"Kostenart auswählen"]
[null,"Lieferant auswählen",null,null,false,null,null,null,null,0,null,"Kostenart auswählen"]
[null,"Lieferant auswählen",null,null,{"$f":"IF(COUNTIF(D:D,D4227)=1,\"OK\",COUNTIF(D:D,D4227)=1)","v":false},null,null,null,null,{"$f":"H4227/(1+I4227)","v":0},null,"Kostenart auswählen"]
[null,"Lieferant auswählen",null,null,false,null,null,null,null,0,null,"Kostenart auswählen"]
[null,"Lieferant auswählen",null,null,false,null,null,null,null,0,null,"Kostenart auswählen"]
[null,"Lieferant auswählen",null,null,false,null,null,null,null,0,null,"Kostenart auswählen"]
[null,"Lieferant auswählen",null,null,false,null,null,null,null,0,null,"Kostenart auswählen"]
[null,"Lieferant auswählen",null,null,false,null,null,null,null,0,null,"Kostenart auswählen"]
[null,"Lieferant auswählen",null,null,false,null,null,null,null,0,null,"Kostenart auswählen"]
[null,"Lieferant auswählen",null,null,false,null,null,null,null,0,null,"Kostenart auswählen"]
[null,"Lieferant auswählen",null,null,false,null,null,null,null,0,null,"Kostenart auswählen"]
[null,"Lieferant auswählen",null,null,false,null,null,null,null,0,null,"Kostenart auswählen"]
[null,"Lieferant auswählen",null,null,false,null,null,null,null,0,null,"Kostenart auswählen"]
[null,"Lieferant auswählen",null,null,false,null,null,null,null,0,null,"Kostenart auswählen"]
[null,"Lieferant auswählen",null,null,false,null,null,null,null,0,null,"Kostenart auswählen"]
[null,"Lieferant auswählen",null,null,false,null,null,null,null,0,null,"Kostenart auswählen"]
[null,"Lieferant auswählen",null,null,false,null,null,null,null,0,null,"Kostenart auswählen"]
[null,"Lieferant auswählen",null,null,false,null,null,null,null,0,null,"Kostenart auswählen"]
[null,"Lieferant auswählen",null,null,false,null,null,null,null,0,null,"Kostenart auswählen"]
[null,"Lieferant auswählen",null,null,{"$f":"IF(COUNTIF(D:D,D4291)=1,\"OK\",COUNTIF(D:D,D4291)=1)","v":false},null,null,null,null,{"$f":"H4291/(1+I4291)","v":0},null,"Kostenart auswählen"]
[null,"Lieferant auswählen",null,null,false,null,null,null,null,0,null,"Kostenart auswählen"]
[null,"Lieferant auswählen",null,null,false,null,null,null,null,0,null,"Kostenart auswählen"]
[null,"Lieferant auswählen",null,null,false,null,null,null,null,0,null,"Kostenart auswählen"]
[null,"Lieferant auswählen",null,null,false,null,null,null,null,0,null,"Kostenart auswählen"]
[null,"Lieferant auswählen",null,null,false,null,null,null,null,0,null,"Kostenart auswählen"]
[null,"Lieferant auswählen",null,null,false,null,null,null,null,0,null,"Kostenart auswählen"]
[null,"Lieferant auswählen",null,null,false,null,null,null,null,0,null,"Kostenart auswählen"]
[null,"Lieferant auswählen",null,null,false,null,null,null,null,0,null,"Kostenart auswählen"]
[null,"Lieferant auswählen",null,null,false,null,null,null,null,0,null,"Kostenart auswählen"]
[null,"Lieferant auswählen",null,null,false,null,null,null,null,0,null,"Kostenart auswählen"]
[null,"Lieferant auswählen",null,null,false,null,null,null,null,0,null,"Kostenart auswählen"]
[null,"Lieferant auswählen",null,null,false,null,null,null,null,0,null,"Kostenart auswählen"]
[null,"Lieferant auswählen",null,null,false,null,null,null,null,0,null,"Kostenart auswählen"]
[null,"Lieferant auswählen",null,null,false,null,null,null,null,0,null,"Kostenart auswählen"]
[null,"Lieferant auswählen",null,null,false,null,null,null,null,0,null,"Kostenart auswählen"]
[null,"Lieferant auswählen",null,null,false,null,null,null,null,0,null,"Kostenart auswählen"]
[null,"Lieferant auswählen",null,null,false,null,null,null,null,0,null,"Kostenart auswählen"]
[null,"Lieferant auswählen",null,null,false,null,null,null,null,0,null,"Kostenart auswählen"]
[null,"Lieferant auswählen",null,null,false,null,null,null,null,0,null,"Kostenart auswählen"]
[null,"Lieferant auswählen",null,null,false,null,null,null,null,0,null,"Kostenart auswählen"]
[null,"Lieferant auswählen",null,null,false,null,null,null,null,0,null,"Kostenart auswählen"]
[null,"Lieferant auswählen",null,null,false,null,null,null,null,0,null,"Kostenart auswählen"]
[null,"Lieferant auswählen",null,null,false,null,null,null,null,0,null,"Kostenart auswählen"]
[null,"Lieferant auswählen",null,null,false,null,null,null,null,0,null,"Kostenart auswählen"]
[null,"Lieferant auswählen",null,null,false,null,null,null,null,0,null,"Kostenart auswählen"]
[null,"Lieferant auswählen",null,null,false,null,null,null,null,0,null,"Kostenart auswählen"]
[null,"Lieferant auswählen",null,null,false,null,null,null,null,0,null,"Kostenart auswählen"]
[null,"Lieferant auswählen",null,null,false,null,null,null,null,0,null,"Kostenart auswählen"]
[null,"Lieferant auswählen",null,null,false,null,null,null,null,0,null,"Kostenart auswählen"]
[null,"Lieferant auswählen",null,null,false,null,null,null,null,0,null,"Kostenart auswählen"]
[null,"Lieferant auswählen",null,null,false,null,null,null,null,0,null,"Kostenart auswählen"]
[null,"Lieferant auswählen",null,null,false,null,null,null,null,0,null,"Kostenart auswählen"]
[null,"Lieferant auswählen",null,null,false,null,null,null,null,0,null,"Kostenart auswählen"]
[null,"Lieferant auswählen",null,null,false,null,null,null,null,0,null,"Kostenart auswählen"]
[null,"Lieferant auswählen",null,null,false,null,null,null,null,0,null,"Kostenart auswählen"]
[null,"Lieferant auswählen",null,null,false,null,null,null,null,0,null,"Kostenart auswählen"]
[null,"Lieferant auswählen",null,null,false,null,null,null,null,0,null,"Kostenart auswählen"]
[null,"Lieferant auswählen",null,null,false,null,null,null,null,0,null,"Kostenart auswählen"]
[null,"Lieferant auswählen",null,null,false,null,null,null,null,0,null,"Kostenart auswählen"]
[null,"Lieferant auswählen",null,null,false,null,null,null,null,0,null,"Kostenart auswählen"]
[null,"Lieferant auswählen",null,null,false,null,null,null,null,0,null,"Kostenart auswählen"]
[null,"Lieferant auswählen",null,null,false,null,null,null,null,0,null,"Kostenart auswählen"]
[null,"Lieferant auswählen",null,null,false,null,null,null,null,0,null,"Kostenart auswählen"]
[null,"Lieferant auswählen",null,null,false,null,null,null,null,0,null,"Kostenart auswählen"]
[null,"Lieferant auswählen",null,null,false,null,null,null,null,0,null,"Kostenart auswählen"]
[null,"Lieferant auswählen",null,null,false,null,null,null,null,0,null,"Kostenart auswählen"]
[null,"Lieferant auswählen",null,null,false,null,null,null,null,0,null,"Kostenart auswählen"]
[null,"Lieferant auswählen",null,null,false,null,null,null,null,0,null,"Kostenart auswählen"]
[null,"Lieferant auswählen",null,null,false,null,null,null,null,0,null,"Kostenart auswählen"]
[null,"Lieferant auswählen",null,null,false,null,null,null,null,0,null,"Kostenart auswählen"]
[null,"Lieferant auswählen",null,null,false,null,null,null,null,0,null,"Kostenart auswählen"]
[null,"Lieferant auswählen",null,null,false,null,null,null,null,0,null,"Kostenart auswählen"]
[null,"Lieferant auswählen",null,null,false,null,null,null,null,0,null,"Kostenart auswählen"]
[null,"Lieferant auswählen",null,null,false,null,null,null,null,0,null,"Kostenart auswählen"]
[null,"Lieferant auswählen",null,null,false,null,null,null,null,0,null,"Kostenart auswählen"]
[null,"Lieferant auswählen",null,null,false,null,null,null,null,0,null,"Kostenart auswählen"]
[null,"Lieferant auswählen",null,null,false,null,null,null,null,0,null,"Kostenart auswählen"]
[null,"Lieferant auswählen",null,null,false,null,null,null,null,0,null,"Kostenart auswählen"]
[null,"Lieferant auswählen",null,null,false,null,null,null,null,0,null,"Kostenart auswählen"]
[null,"Lieferant auswählen",null,null,false,null,null,null,null,0,null,"Kostenart auswählen"]
[null,"Lieferant auswählen",null,null,false,null,null,null,null,0,null,"Kostenart auswählen"]
[null,"Lieferant auswählen",null,null,false,null,null,null,null,0,null,"Kostenart auswählen"]
[null,"Lieferant auswählen",null,null,false,null,null,null,null,0,null,"Kostenart auswählen"]
[null,"Lieferant auswählen",null,null,false,null,null,null,null,0,null,"Kostenart auswählen"]
[null,"Lieferant auswählen",null,null,false,null,null,null,null,0,null,"Kostenart auswählen"]
[null,"Lieferant auswählen",null,null,false,null,null,null,null,0,null,"Kostenart auswählen"]
[null,"Lieferant auswählen",null,null,false,null,null,null,null,0,null,"Kostenart auswählen"]
[null,"Lieferant auswählen",null,null,false,null,null,null,null,0,null,"Kostenart auswählen"]
[null,"Lieferant auswählen",null,null,{"$f":"IF(COUNTIF(D:D,D4547)=1,\"OK\",COUNTIF(D:D,D4547)=1)","v":false},null,null,null,null,{"$f":"H4547/(1+I4547)","v":0},null,"Kostenart auswählen"]
[null,"Lieferant auswählen",null,null,false,null,null,null,null,0,null,"Kostenart auswählen"]
[null,"Lieferant auswählen",null,null,false,null,null,null,null,0,null,"Kostenart auswählen"]
[null,"Lieferant auswählen",null,null,false,null,null,null,null,0,null,"Kostenart auswählen"]
[null,"Lieferant auswählen",null,null,false,null,null,null,null,0,null,"Kostenart auswählen"]
[null,"Lieferant auswählen",null,null,false,null,null,null,null,0,null,"Kostenart auswählen"]
[null,"Lieferant auswählen",null,null,false,null,null,null,null,0,null,"Kostenart auswählen"]
[null,"Lieferant auswählen",null,null,false,null,null,null,null,0,null,"Kostenart auswählen"]
[null,"Lieferant auswählen",null,null,false,null,null,null,null,0,null,"Kostenart auswählen"]
[null,"Lieferant auswählen",null,null,false,null,null,null,null,0,null,"Kostenart auswählen"]
[null,"Lieferant auswählen",null,null,false,null,null,null,null,0,null,"Kostenart auswählen"]
[null,"Lieferant auswählen",null,null,false,null,null,null,null,0,null,"Kostenart auswählen"]
[null,"Lieferant auswählen",null,null,false,null,null,null,null,0,null,"Kostenart auswählen"]
[null,"Lieferant auswählen",null,null,false,null,null,null,null,0,null,"Kostenart auswählen"]
[null,"Lieferant auswählen",null,null,false,null,null,null,null,0,null,"Kostenart auswählen"]
[null,"Lieferant auswählen",null,null,false,null,null,null,null,0,null,"Kostenart auswählen"]
[null,"Lieferant auswählen",null,null,false,null,null,null,null,0,null,"Kostenart auswählen"]
[null,"Lieferant auswählen",null,null,false,null,null,null,null,0,null,"Kostenart auswählen"]
[null,"Lieferant auswählen",null,null,false,null,null,null,null,0,null,"Kostenart auswählen"]
[null,"Lieferant auswählen",null,null,false,null,null,null,null,0,null,"Kostenart auswählen"]
[null,"Lieferant auswählen",null,null,false,null,null,null,null,0,null,"Kostenart auswählen"]
[null,"Lieferant auswählen",null,null,false,null,null,null,null,0,null,"Kostenart auswählen"]
[null,"Lieferant auswählen",null,null,false,null,null,null,null,0,null,"Kostenart auswählen"]
[null,"Lieferant auswählen",null,null,false,null,null,null,null,0,null,"Kostenart auswählen"]
[null,"Lieferant auswählen",null,null,false,null,null,null,null,0,null,"Kostenart auswählen"]
[null,"Lieferant auswählen",null,null,false,null,null,null,null,0,null,"Kostenart auswählen"]
[null,"Lieferant auswählen",null,null,false,null,null,null,null,0,null,"Kostenart auswählen"]
[null,"Lieferant auswählen",null,null,false,null,null,null,null,0,null,"Kostenart auswählen"]
[null,"Lieferant auswählen",null,null,false,null,null,null,null,0,null,"Kostenart auswählen"]
[null,"Lieferant auswählen",null,null,false,null,null,null,null,0,null,"Kostenart auswählen"]
[null,"Lieferant auswählen",null,null,false,null,null,null,null,0,null,"Kostenart auswählen"]
[null,"Lieferant auswählen",null,null,false,null,null,null,null,0,null,"Kostenart auswählen"]
[null,"Lieferant auswählen",null,null,false,null,null,null,null,0,null,"Kostenart auswählen"]
[null,"Lieferant auswählen",null,null,false,null,null,null,null,0,null,"Kostenart auswählen"]
[null,"Lieferant auswählen",null,null,false,null,null,null,null,0,null,"Kostenart auswählen"]
[null,"Lieferant auswählen",null,null,false,null,null,null,null,0,null,"Kostenart auswählen"]
[null,"Lieferant auswählen",null,null,false,null,null,null,null,0,null,"Kostenart auswählen"]
[null,"Lieferant auswählen",null,null,false,null,null,null,null,0,null,"Kostenart auswählen"]
[null,"Lieferant auswählen",null,null,false,null,null,null,null,0,null,"Kostenart auswählen"]
[null,"Lieferant auswählen",null,null,false,null,null,null,null,0,null,"Kostenart auswählen"]
[null,"Lieferant auswählen",null,null,false,null,null,null,null,0,null,"Kostenart auswählen"]
[null,"Lieferant auswählen",null,null,false,null,null,null,null,0,null,"Kostenart auswählen"]
[null,"Lieferant auswählen",null,null,false,null,null,null,null,0,null,"Kostenart auswählen"]
[null,"Lieferant auswählen",null,null,false,null,null,null,null,0,null,"Kostenart auswählen"]
[null,"Lieferant auswählen",null,null,false,null,null,null,null,0,null,"Kostenart auswählen"]
[null,"Lieferant auswählen",null,null,false,null,null,null,null,0,null,"Kostenart auswählen"]
[null,"Lieferant auswählen",null,null,false,null,null,null,null,0,null,"Kostenart auswählen"]
[null,"Lieferant auswählen",null,null,false,null,null,null,null,0,null,"Kostenart auswählen"]
[null,"Lieferant auswählen",null,null,false,null,null,null,null,0,null,"Kostenart auswählen"]
[null,"Lieferant auswählen",null,null,false,null,null,null,null,0,null,"Kostenart auswählen"]
[null,"Lieferant auswählen",null,null,false,null,null,null,null,0,null,"Kostenart auswählen"]
[null,"Lieferant auswählen",null,null,{"$f":"IF(COUNTIF(D:D,D4739)=1,\"OK\",COUNTIF(D:D,D4739)=1)","v":false},null,null,null,null,{"$f":"H4739/(1+I4739)","v":0},null,"Kostenart auswählen"]
[null,"Lieferant auswählen",null,null,false,null,null,null,null,0,null,"Kostenart auswählen"]
[null,"Lieferant auswählen",null,null,false,null,null,null,null,0,null,"Kostenart auswählen"]
[null,"Lieferant auswählen",null,null,false,null,null,null,null,0,null,"Kostenart auswählen"]
[null,"Lieferant auswählen",null,null,false,null,null,null,null,0,null,"Kostenart auswählen"]
[null,"Lieferant auswählen",null,null,false,null,null,null,null,0,null,"Kostenart auswählen"]
[null,"Lieferant auswählen",null,null,false,null,null,null,null,0,null,"Kostenart auswählen"]
[null,"Lieferant auswählen",null,null,false,null,null,null,null,0,null,"Kostenart auswählen"]
[null,"Lieferant auswählen",null,null,false,null,null,null,null,0,null,"Kostenart auswählen"]
[null,"Lieferant auswählen",null,null,false,null,null,null,null,0,null,"Kostenart auswählen"]
[null,"Lieferant auswählen",null,null,false,null,null,null,null,0,null,"Kostenart auswählen"]
[null,"Lieferant auswählen",null,null,false,null,null,null,null,0,null,"Kostenart auswählen"]
[null,"Lieferant auswählen",null,null,false,null,null,null,null,0,null,"Kostenart auswählen"]
[null,"Lieferant auswählen",null,null,false,null,null,null,null,0,null,"Kostenart auswählen"]
[null,"Lieferant auswählen",null,null,false,null,null,null,null,0,null,"Kostenart auswählen"]
[null,"Lieferant auswählen",null,null,false,null,null,null,null,0,null,"Kostenart auswählen"]
[null,"Lieferant auswählen",null,null,false,null,null,null,null,0,null,"Kostenart auswählen"]
[null,"Lieferant auswählen",null,null,false,null,null,null,null,0,null,"Kostenart auswählen"]
[null,"Lieferant auswählen",null,null,false,null,null,null,null,0,null,"Kostenart auswählen"]
[null,"Lieferant auswählen",null,null,false,null,null,null,null,0,null,"Kostenart auswählen"]
[null,"Lieferant auswählen",null,null,false,null,null,null,null,0,null,"Kostenart auswählen"]
[null,"Lieferant auswählen",null,null,false,null,null,null,null,0,null,"Kostenart auswählen"]
[null,"Lieferant auswählen",null,null,false,null,null,null,null,0,null,"Kostenart auswählen"]
[null,"Lieferant auswählen",null,null,false,null,null,null,null,0,null,"Kostenart auswählen"]
[null,"Lieferant auswählen",null,null,false,null,null,null,null,0,null,"Kostenart auswählen"]
[null,"Lieferant auswählen",null,null,false,null,null,null,null,0,null,"Kostenart auswählen"]
[null,"Lieferant auswählen",null,null,false,null,null,null,null,0,null,"Kostenart auswählen"]
[null,"Lieferant auswählen",null,null,false,null,null,null,null,0,null,"Kostenart auswählen"]
[null,"Lieferant auswählen",null,null,false,null,null,null,null,0,null,"Kostenart auswählen"]
[null,"Lieferant auswählen",null,null,false,null,null,null,null,0,null,"Kostenart auswählen"]
[null,"Lieferant auswählen",null,null,false,null,null,null,null,0,null,"Kostenart auswählen"]
[null,"Lieferant auswählen",null,null,false,null,null,null,null,0,null,"Kostenart auswählen"]
[null,"Lieferant auswählen",null,null,false,null,null,null,null,0,null,"Kostenart auswählen"]
[null,"Lieferant auswählen",null,null,false,null,null,null,null,0,null,"Kostenart auswählen"]
[null,"Lieferant auswählen",null,null,{"$f":"IF(COUNTIF(D:D,D4867)=1,\"OK\",COUNTIF(D:D,D4867)=1)","v":false},null,null,null,null,{"$f":"H4867/(1+I4867)","v":0},null,"Kostenart auswählen"]
[null,"Lieferant auswählen",null,null,false,null,null,null,null,0,null,"Kostenart auswählen"]
[null,"Lieferant auswählen",null,null,false,null,null,null,null,0,null,"Kostenart auswählen"]
[null,"Lieferant auswählen",null,null,false,null,null,null,null,0,null,"Kostenart auswählen"]
[null,"Lieferant auswählen",null,null,false,null,null,null,null,0,null,"Kostenart auswählen"]
[null,"Lieferant auswählen",null,null,false,null,null,null,null,0,null,"Kostenart auswählen"]
[null,"Lieferant auswählen",null,null,false,null,null,null,null,0,null,"Kostenart auswählen"]
[null,"Lieferant auswählen",null,null,false,null,null,null,null,0,null,"Kostenart auswählen"]
[null,"Lieferant auswählen",null,null,false,null,null,null,null,0,null,"Kostenart auswählen"]
[null,"Lieferant auswählen",null,null,false,null,null,null,null,0,null,"Kostenart auswählen"]
[null,"Lieferant auswählen",null,null,false,null,null,null,null,0,null,"Kostenart auswählen"]
[null,"Lieferant auswählen",null,null,false,null,null,null,null,0,null,"Kostenart auswählen"]
[null,"Lieferant auswählen",null,null,false,null,null,null,null,0,null,"Kostenart auswählen"]
[null,"Lieferant auswählen",null,null,false,null,null,null,null,0,null,"Kostenart auswählen"]
[null,"Lieferant auswählen",null,null,false,null,null,null,null,0,null,"Kostenart auswählen"]
[null,"Lieferant auswählen",null,null,false,null,null,null,null,0,null,"Kostenart auswählen"]
[null,"Lieferant auswählen",null,null,false,null,null,null,null,0,null,"Kostenart auswählen"]
[null,"Lieferant auswählen",null,null,false,null,null,null,null,0,null,"Kostenart auswählen"]
[null,"Lieferant auswählen",null,null,false,null,null,null,null,0,null,"Kostenart auswählen"]
[null,"Lieferant auswählen",null,null,false,null,null,null,null,0,null,"Kostenart auswählen"]
[null,"Lieferant auswählen",null,null,false,null,null,null,null,0,null,"Kostenart auswählen"]
[null,"Lieferant auswählen",null,null,false,null,null,null,null,0,null,"Kostenart auswählen"]
[null,"Lieferant auswählen",null,null,false,null,null,null,null,0,null,"Kostenart auswählen"]
[null,"Lieferant auswählen",null,null,false,null,null,null,null,0,null,"Kostenart auswählen"]
[null,"Lieferant auswählen",null,null,false,null,null,null,null,0,null,"Kostenart auswählen"]
[null,"Lieferant auswählen",null,null,false,null,null,null,null,0,null,"Kostenart auswählen"]
[null,"Lieferant auswählen",null,null,false,null,null,null,null,0,null,"Kostenart auswählen"]
[null,"Lieferant auswählen",null,null,false,null,null,null,null,0,null,"Kostenart auswählen"]
[null,"Lieferant auswählen",null,null,false,null,null,null,null,0,null,"Kostenart auswählen"]
[null,"Lieferant auswählen",null,null,false,null,null,null,null,0,null,"Kostenart auswählen"]
[null,"Lieferant auswählen",null,null,false,null,null,null,null,0,null,"Kostenart auswählen"]
[null,"Lieferant auswählen",null,null,false,null,null,null,null,0,null,"Kostenart auswählen"]
[null,"Lieferant auswählen",null,null,false,null,null,null,null,0,null,"Kostenart auswählen"]
[null,"Lieferant auswählen",null,null,false,null,null,null,null,0,null,"Kostenart auswählen"]
[null,"Lieferant auswählen",null,null,false,null,null,null,null,0,null,"Kostenart auswählen"]
[null,"Lieferant auswählen",null,null,false,null,null,null,null,0,null,"Kostenart auswählen"]
[null,"Lieferant auswählen",null,null,false,null,null,null,null,0,null,"Kostenart auswählen"]
[null,"Lieferant auswählen",null,null,false,null,null,null,null,0,null,"Kostenart auswählen"]
[null,"Lieferant auswählen",null,null,false,null,null,null,null,0,null,"Kostenart auswählen"]
[null,"Lieferant auswählen",null,null,false,null,null,null,null,0,null,"Kostenart auswählen"]
[null,"Lieferant auswählen",null,null,false,null,null,null,null,0,null,"Kostenart auswählen"]
[null,"Lieferant auswählen",null,null,false,null,null,null,null,0,null,"Kostenart auswählen"]
[null,"Lieferant auswählen",null,null,false,null,null,null,null,0,null,"Kostenart auswählen"]
[null,"Lieferant auswählen",null,null,false,null,null,null,null,0,null,"Kostenart auswählen"]
[null,"Lieferant auswählen",null,null,false,null,null,null,null,0,null,"Kostenart auswählen"]
[null,"Lieferant auswählen",null,null,false,null,null,null,null,0,null,"Kostenart auswählen"]
[null,"Lieferant auswählen",null,null,false,null,null,null,null,0,null,"Kostenart auswählen"]
[null,"Lieferant auswählen",null,null,false,null,null,null,null,0,null,"Kostenart auswählen"]
[null,"Lieferant auswählen",null,null,false,null,null,null,null,0,null,"Kostenart auswählen"]
[null,"Lieferant auswählen",null,null,false,null,null,null,null,0,null,"Kostenart auswählen"]
[null,"Lieferant auswählen",null,null,false,null,null,null,null,0,null,"Kostenart auswählen"]
[null,"Lieferant auswählen",null,null,false,null,null,null,null,0,null,"Kostenart auswählen"]
[null,"Lieferant auswählen",null,null,false,null,null,null,null,0,null,"Kostenart auswählen"]
[null,"Lieferant auswählen",null,null,false,null,null,null,null,0,null,"Kostenart auswählen"]
[null,"Lieferant auswählen",null,null,false,null,null,null,null,0,null,"Kostenart auswählen"]
[null,"Lieferant auswählen",null,null,false,null,null,null,null,0,null,"Kostenart auswählen"]
[null,"Lieferant auswählen",null,null,false,null,null,null,null,0,null,"Kostenart auswählen"]
[null,"Lieferant auswählen",null,null,false,null,null,null,null,0,null,"Kostenart auswählen"]
[null,"Lieferant auswählen",null,null,false,null,null,null,null,0,null,"Kostenart auswählen"]
[null,"Lieferant auswählen",null,null,false,null,null,null,null,0,null,"Kostenart auswählen"]
[null,"Lieferant auswählen",null,null,false,null,null,null,null,0,null,"Kostenart auswählen"]
[null,"Lieferant auswählen",null,null,false,null,null,null,null,0,null,"Kostenart auswählen"]
[null,"Lieferant auswählen",null,null,false,null,null,null,null,0,null,"Kostenart auswählen"]
[null,"Lieferant auswählen",null,null,false,null,null,null,null,0,null,"Kostenart auswählen"]
[null,"Lieferant auswählen",null,null,false,null,null,null,null,0,null,"Kostenart auswählen"]
[null,"Lieferant auswählen",null,null,false,null,null,null,null,0,null,"Kostenart auswählen"]
[null,"Lieferant auswählen",null,null,false,null,null,null,null,0,null,"Kostenart auswählen"]
[null,"Lieferant auswählen",null,null,false,null,null,null,null,0,null,"Kostenart auswählen"]
[null,"Lieferant auswählen",null,null,false,null,null,null,null,0,null,"Kostenart auswählen"]
[null,"Lieferant auswählen",null,null,false,null,null,null,null,0,null,"Kostenart auswählen"]
[null,"Lieferant auswählen",null,null,false,null,null,null,null,0,null,"Kostenart auswählen"]
[null,"Lieferant auswählen",null,null,false,null,null,null,null,0,null,"Kostenart auswählen"]
[null,"Lieferant auswählen",null,null,false,null,null,null,null,0,null,"Kostenart auswählen"]
[null,"Lieferant auswählen",null,null,false,null,null,null,null,0,null,"Kostenart auswählen"]
[null,"Lieferant auswählen",null,null,false,null,null,null,null,0,null,"Kostenart auswählen"]
[null,"Lieferant auswählen",null,null,false,null,null,null,null,0,null,"Kostenart auswählen"]
[null,"Lieferant auswählen",null,null,false,null,null,null,null,0,null,"Kostenart auswählen"]
[null,"Lieferant auswählen",null,null,false,null,null,null,null,0,null,"Kostenart auswählen"]
[null,"Lieferant auswählen",null,null,false,null,null,null,null,0,null,"Kostenart auswählen"]
[null,"Lieferant auswählen",null,null,false,null,null,null,null,0,null,"Kostenart auswählen"]
[null,"Lieferant auswählen",null,null,false,null,null,null,null,0,null,"Kostenart auswählen"]
[null,"Lieferant auswählen",null,null,false,null,null,null,null,0,null,"Kostenart auswählen"]
[null,"Lieferant auswählen",null,null,false,null,null,null,null,0,null,"Kostenart auswählen"]
[null,"Lieferant auswählen",null,null,false,null,null,null,null,0,null,"Kostenart auswählen"]
[null,"Lieferant auswählen",null,null,false,null,null,null,null,0,null,"Kostenart auswählen"]
[null,"Lieferant auswählen",null,null,{"$f":"IF(COUNTIF(D:D,D5187)=1,\"OK\",COUNTIF(D:D,D5187)=1)","v":false},null,null,null,null,{"$f":"H5187/(1+I5187)","v":0},null,"Kostenart auswählen"]
[null,"Lieferant auswählen",null,null,false,null,null,null,null,0,null,"Kostenart auswählen"]
[null,"Lieferant auswählen",null,null,false,null,null,null,null,0,null,"Kostenart auswählen"]
[null,"Lieferant auswählen",null,null,false,null,null,null,null,0,null,"Kostenart auswählen"]
[null,"Lieferant auswählen",null,null,false,null,null,null,null,0,null,"Kostenart auswählen"]
[null,"Lieferant auswählen",null,null,false,null,null,null,null,0,null,"Kostenart auswählen"]
[null,"Lieferant auswählen",null,null,false,null,null,null,null,0,null,"Kostenart auswählen"]
[null,"Lieferant auswählen",null,null,false,null,null,null,null,0,null,"Kostenart auswählen"]
[null,"Lieferant auswählen",null,null,false,null,null,null,null,0,null,"Kostenart auswählen"]
[null,"Lieferant auswählen",null,null,false,null,null,null,null,0,null,"Kostenart auswählen"]
[null,"Lieferant auswählen",null,null,false,null,null,null,null,0,null,"Kostenart auswählen"]
[null,"Lieferant auswählen",null,null,false,null,null,null,null,0,null,"Kostenart auswählen"]
[null,"Lieferant auswählen",null,null,false,null,null,null,null,0,null,"Kostenart auswählen"]
[null,"Lieferant auswählen",null,null,false,null,null,null,null,0,null,"Kostenart auswählen"]
[null,"Lieferant auswählen",null,null,false,null,null,null,null,0,null,"Kostenart auswählen"]
[null,"Lieferant auswählen",null,null,false,null,null,null,null,0,null,"Kostenart auswählen"]
[null,"Lieferant auswählen",null,null,false,null,null,null,null,0,null,"Kostenart auswählen"]
[null,"Lieferant auswählen",null,null,false,null,null,null,null,0,null,"Kostenart auswählen"]
[null,"Lieferant auswählen",null,null,false,null,null,null,null,0,null,"Kostenart auswählen"]
[null,"Lieferant auswählen",null,null,false,null,null,null,null,0,null,"Kostenart auswählen"]
[null,"Lieferant auswählen",null,null,false,null,null,null,null,0,null,"Kostenart auswählen"]
[null,"Lieferant auswählen",null,null,false,null,null,null,null,0,null,"Kostenart auswählen"]
[null,"Lieferant auswählen",null,null,false,null,null,null,null,0,null,"Kostenart auswählen"]
[null,"Lieferant auswählen",null,null,false,null,null,null,null,0,null,"Kostenart auswählen"]
[null,"Lieferant auswählen",null,null,false,null,null,null,null,0,null,"Kostenart auswählen"]
[null,"Lieferant auswählen",null,null,false,null,null,null,null,0,null,"Kostenart auswählen"]
[null,"Lieferant auswählen",null,null,false,null,null,null,null,0,null,"Kostenart auswählen"]
[null,"Lieferant auswählen",null,null,false,null,null,null,null,0,null,"Kostenart auswählen"]
[null,"Lieferant auswählen",null,null,false,null,null,null,null,0,null,"Kostenart auswählen"]
[null,"Lieferant auswählen",null,null,false,null,null,null,null,0,null,"Kostenart auswählen"]
[null,"Lieferant auswählen",null,null,false,null,null,null,null,0,null,"Kostenart auswählen"]
[null,"Lieferant auswählen",null,null,false,null,null,null,null,0,null,"Kostenart auswählen"]
[null,"Lieferant auswählen",null,null,false,null,null,null,null,0,null,"Kostenart auswählen"]
[null,"Lieferant auswählen",null,null,false,null,null,null,null,0,null,"Kostenart auswählen"]
[null,"Lieferant auswählen",null,null,{"$f":"IF(COUNTIF(D:D,D5315)=1,\"OK\",COUNTIF(D:D,D5315)=1)","v":false},null,null,null,null,{"$f":"H5315/(1+I5315)","v":0},null,"Kostenart auswählen"]
[null,"Lieferant auswählen",null,null,false,null,null,null,null,0,null,"Kostenart auswählen"]
[null,"Lieferant auswählen",null,null,false,null,null,null,null,0,null,"Kostenart auswählen"]
[null,"Lieferant auswählen",null,null,false,null,null,null,null,0,null,"Kostenart auswählen"]
[null,"Lieferant auswählen",null,null,false,null,null,null,null,0,null,"Kostenart auswählen"]
[null,"Lieferant auswählen",null,null,false,null,null,null,null,0,null,"Kostenart auswählen"]
[null,"Lieferant auswählen",null,null,false,null,null,null,null,0,null,"Kostenart auswählen"]
[null,"Lieferant auswählen",null,null,false,null,null,null,null,0,null,"Kostenart auswählen"]
[null,"Lieferant auswählen",null,null,false,null,null,null,null,0,null,"Kostenart auswählen"]
[null,"Lieferant auswählen",null,null,false,null,null,null,null,0,null,"Kostenart auswählen"]
[null,"Lieferant auswählen",null,null,false,null,null,null,null,0,null,"Kostenart auswählen"]
[null,"Lieferant auswählen",null,null,false,null,null,null,null,0,null,"Kostenart auswählen"]
[null,"Lieferant auswählen",null,null,false,null,null,null,null,0,null,"Kostenart auswählen"]
[null,"Lieferant auswählen",null,null,false,null,null,null,null,0,null,"Kostenart auswählen"]
[null,"Lieferant auswählen",null,null,false,null,null,null,null,0,null,"Kostenart auswählen"]
[null,"Lieferant auswählen",null,null,false,null,null,null,null,0,null,"Kostenart auswählen"]
[null,"Lieferant auswählen",null,null,false,null,null,null,null,0,null,"Kostenart auswählen"]
[null,"Lieferant auswählen",null,null,false,null,null,null,null,0,null,"Kostenart auswählen"]
[null,"Lieferant auswählen",null,null,false,null,null,null,null,0,null,"Kostenart auswählen"]
[null,"Lieferant auswählen",null,null,false,null,null,null,null,0,null,"Kostenart auswählen"]
[null,"Lieferant auswählen",null,null,false,null,null,null,null,0,null,"Kostenart auswählen"]
[null,"Lieferant auswählen",null,null,false,null,null,null,null,0,null,"Kostenart auswählen"]
[null,"Lieferant auswählen",null,null,false,null,null,null,null,0,null,"Kostenart auswählen"]
[null,"Lieferant auswählen",null,null,false,null,null,null,null,0,null,"Kostenart auswählen"]
[null,"Lieferant auswählen",null,null,false,null,null,null,null,0,null,"Kostenart auswählen"]
[null,"Lieferant auswählen",null,null,false,null,null,null,null,0,null,"Kostenart auswählen"]
[null,"Lieferant auswählen",null,null,false,null,null,null,null,0,null,"Kostenart auswählen"]
[null,"Lieferant auswählen",null,null,false,null,null,null,null,0,null,"Kostenart auswählen"]
[null,"Lieferant auswählen",null,null,false,null,null,null,null,0,null,"Kostenart auswählen"]
[null,"Lieferant auswählen",null,null,false,null,null,null,null,0,null,"Kostenart auswählen"]
[null,"Lieferant auswählen",null,null,false,null,null,null,null,0,null,"Kostenart auswählen"]
[null,"Lieferant auswählen",null,null,false,null,null,null,null,0,null,"Kostenart auswählen"]
[null,"Lieferant auswählen",null,null,false,null,null,null,null,0,null,"Kostenart auswählen"]
[null,"Lieferant auswählen",null,null,false,null,null,null,null,0,null,"Kostenart auswählen"]
[null,"Lieferant auswählen",null,null,false,null,null,null,null,0,null,"Kostenart auswählen"]
[null,"Lieferant auswählen",null,null,false,null,null,null,null,0,null,"Kostenart auswählen"]
[null,"Lieferant auswählen",null,null,false,null,null,null,null,0,null,"Kostenart auswählen"]
[null,"Lieferant auswählen",null,null,false,null,null,null,null,0,null,"Kostenart auswählen"]
[null,"Lieferant auswählen",null,null,false,null,null,null,null,0,null,"Kostenart auswählen"]
[null,"Lieferant auswählen",null,null,false,null,null,null,null,0,null,"Kostenart auswählen"]
[null,"Lieferant auswählen",null,null,false,null,null,null,null,0,null,"Kostenart auswählen"]
[null,"Lieferant auswählen",null,null,false,null,null,null,null,0,null,"Kostenart auswählen"]
[null,"Lieferant auswählen",null,null,false,null,null,null,null,0,null,"Kostenart auswählen"]
[null,"Lieferant auswählen",null,null,false,null,null,null,null,0,null,"Kostenart auswählen"]
[null,"Lieferant auswählen",null,null,false,null,null,null,null,0,null,"Kostenart auswählen"]
[null,"Lieferant auswählen",null,null,false,null,null,null,null,0,null,"Kostenart auswählen"]
[null,"Lieferant auswählen",null,null,false,null,null,null,null,0,null,"Kostenart auswählen"]
[null,"Lieferant auswählen",null,null,false,null,null,null,null,0,null,"Kostenart auswählen"]
[null,"Lieferant auswählen",null,null,false,null,null,null,null,0,null,"Kostenart auswählen"]
[null,"Lieferant auswählen",null,null,false,null,null,null,null,0,null,"Kostenart auswählen"]
[null,"Lieferant auswählen",null,null,false,null,null,null,null,0,null,"Kostenart auswählen"]
[null,"Lieferant auswählen",null,null,{"$f":"IF(COUNTIF(D:D,D5507)=1,\"OK\",COUNTIF(D:D,D5507)=1)","v":false},null,null,null,null,{"$f":"H5507/(1+I5507)","v":0},null,"Kostenart auswählen"]
[null,"Lieferant auswählen",null,null,false,null,null,null,null,0,null,"Kostenart auswählen"]
[null,"Lieferant auswählen",null,null,false,null,null,null,null,0,null,"Kostenart auswählen"]
[null,"Lieferant auswählen",null,null,false,null,null,null,null,0,null,"Kostenart auswählen"]
[null,"Lieferant auswählen",null,null,false,null,null,null,null,0,null,"Kostenart auswählen"]
[null,"Lieferant auswählen",null,null,false,null,null,null,null,0,null,"Kostenart auswählen"]
[null,"Lieferant auswählen",null,null,false,null,null,null,null,0,null,"Kostenart auswählen"]
[null,"Lieferant auswählen",null,null,false,null,null,null,null,0,null,"Kostenart auswählen"]
[null,"Lieferant auswählen",null,null,false,null,null,null,null,0,null,"Kostenart auswählen"]
[null,"Lieferant auswählen",null,null,false,null,null,null,null,0,null,"Kostenart auswählen"]
[null,"Lieferant auswählen",null,null,false,null,null,null,null,0,null,"Kostenart auswählen"]
[null,"Lieferant auswählen",null,null,false,null,null,null,null,0,null,"Kostenart auswählen"]
[null,"Lieferant auswählen",null,null,false,null,null,null,null,0,null,"Kostenart auswählen"]
[null,"Lieferant auswählen",null,null,false,null,null,null,null,0,null,"Kostenart auswählen"]
[null,"Lieferant auswählen",null,null,false,null,null,null,null,0,null,"Kostenart auswählen"]
[null,"Lieferant auswählen",null,null,false,null,null,null,null,0,null,"Kostenart auswählen"]
[null,"Lieferant auswählen",null,null,false,null,null,null,null,0,null,"Kostenart auswählen"]
[null,"Lieferant auswählen",null,null,false,null,null,null,null,0,null,"Kostenart auswählen"]
[null,"Lieferant auswählen",null,null,false,null,null,null,null,0,null,"Kostenart auswählen"]
[null,"Lieferant auswählen",null,null,false,null,null,null,null,0,null,"Kostenart auswählen"]
[null,"Lieferant auswählen",null,null,false,null,null,null,null,0,null,"Kostenart auswählen"]
[null,"Lieferant auswählen",null,null,false,null,null,null,null,0,null,"Kostenart auswählen"]
[null,"Lieferant auswählen",null,null,false,null,null,null,null,0,null,"Kostenart auswählen"]
[null,"Lieferant auswählen",null,null,false,null,null,null,null,0,null,"Kostenart auswählen"]
[null,"Lieferant auswählen",null,null,false,null,null,null,null,0,null,"Kostenart auswählen"]
[null,"Lieferant auswählen",null,null,false,null,null,null,null,0,null,"Kostenart auswählen"]
[null,"Lieferant auswählen",null,null,false,null,null,null,null,0,null,"Kostenart auswählen"]
[null,"Lieferant auswählen",null,null,false,null,null,null,null,0,null,"Kostenart auswählen"]
[null,"Lieferant auswählen",null,null,false,null,null,null,null,0,null,"Kostenart auswählen"]
[null,"Lieferant auswählen",null,null,false,null,null,null,null,0,null,"Kostenart auswählen"]
[null,"Lieferant auswählen",null,null,false,null,null,null,null,0,null,"Kostenart auswählen"]
[null,"Lieferant auswählen",null,null,false,null,null,null,null,0,null,"Kostenart auswählen"]
[null,"Lieferant auswählen",null,null,false,null,null,null,null,0,null,"Kostenart auswählen"]
[null,"Lieferant auswählen",null,null,false,null,null,null,null,0,null,"Kostenart auswählen"]
[null,"Lieferant auswählen",null,null,false,null,null,null,null,0,null,"Kostenart auswählen"]
[null,"Lieferant auswählen",null,null,false,null,null,null,null,0,null,"Kostenart auswählen"]
[null,"Lieferant auswählen",null,null,false,null,null,null,null,0,null,"Kostenart auswählen"]
[null,"Lieferant auswählen",null,null,false,null,null,null,null,0,null,"Kostenart auswählen"]
[null,"Lieferant auswählen",null,null,false,null,null,null,null,0,null,"Kostenart auswählen"]
[null,"Lieferant auswählen",null,null,false,null,null,null,null,0,null,"Kostenart auswählen"]
[null,"Lieferant auswählen",null,null,false,null,null,null,null,0,null,"Kostenart auswählen"]
[null,"Lieferant auswählen",null,null,false,null,null,null,null,0,null,"Kostenart auswählen"]
[null,"Lieferant auswählen",null,null,false,null,null,null,null,0,null,"Kostenart auswählen"]
[null,"Lieferant auswählen",null,null,false,null,null,null,null,0,null,"Kostenart auswählen"]
[null,"Lieferant auswählen",null,null,false,null,null,null,null,0,null,"Kostenart auswählen"]
[null,"Lieferant auswählen",null,null,false,null,null,null,null,0,null,"Kostenart auswählen"]
[null,"Lieferant auswählen",null,null,false,null,null,null,null,0,null,"Kostenart auswählen"]
[null,"Lieferant auswählen",null,null,false,null,null,null,null,0,null,"Kostenart auswählen"]
[null,"Lieferant auswählen",null,null,false,null,null,null,null,0,null,"Kostenart auswählen"]
[null,"Lieferant auswählen",null,null,false,null,null,null,null,0,null,"Kostenart auswählen"]
[null,"Lieferant auswählen",null,null,false,null,null,null,null,0,null,"Kostenart auswählen"]
[null,"Lieferant auswählen",null,null,false,null,null,null,null,0,null,"Kostenart auswählen"]
[null,"Lieferant auswählen",null,null,false,null,null,null,null,0,null,"Kostenart auswählen"]
[null,"Lieferant auswählen",null,null,false,null,null,null,null,0,null,"Kostenart auswählen"]
[null,"Lieferant auswählen",null,null,false,null,null,null,null,0,null,"Kostenart auswählen"]
[null,"Lieferant auswählen",null,null,false,null,null,null,null,0,null,"Kostenart auswählen"]
[null,"Lieferant auswählen",null,null,false,null,null,null,null,0,null,"Kostenart auswählen"]
[null,"Lieferant auswählen",null,null,false,null,null,null,null,0,null,"Kostenart auswählen"]
[null,"Lieferant auswählen",null,null,false,null,null,null,null,0,null,"Kostenart auswählen"]
[null,"Lieferant auswählen",null,null,false,null,null,null,null,0,null,"Kostenart auswählen"]
[null,"Lieferant auswählen",null,null,false,null,null,null,null,0,null,"Kostenart auswählen"]
[null,"Lieferant auswählen",null,null,false,null,null,null,null,0,null,"Kostenart auswählen"]
[null,"Lieferant auswählen",null,null,false,null,null,null,null,0,null,"Kostenart auswählen"]
[null,"Lieferant auswählen",null,null,false,null,null,null,null,0,null,"Kostenart auswählen"]
[null,"Lieferant auswählen",null,null,false,null,null,null,null,0,null,"Kostenart auswählen"]
[null,"Lieferant auswählen",null,null,false,null,null,null,null,0,null,"Kostenart auswählen"]
[null,"Lieferant auswählen",null,null,false,null,null,null,null,0,null,"Kostenart auswählen"]
[null,"Lieferant auswählen",null,null,false,null,null,null,null,0,null,"Kostenart auswählen"]
[null,"Lieferant auswählen",null,null,false,null,null,null,null,0,null,"Kostenart auswählen"]
[null,"Lieferant auswählen",null,null,{"$f":"IF(COUNTIF(D:D,D5763)=1,\"OK\",COUNTIF(D:D,D5763)=1)","v":false},null,null,null,null,{"$f":"H5763/(1+I5763)","v":0},null,"Kostenart auswählen"]
[null,"Lieferant auswählen",null,null,false,null,null,null,null,0,null,"Kostenart auswählen"]
[null,"Lieferant auswählen",null,null,false,null,null,null,null,0,null,"Kostenart auswählen"]
[null,"Lieferant auswählen",null,null,false,null,null,null,null,0,null,"Kostenart auswählen"]
[null,"Lieferant auswählen",null,null,false,null,null,null,null,0,null,"Kostenart auswählen"]
[null,"Lieferant auswählen",null,null,false,null,null,null,null,0,null,"Kostenart auswählen"]
[null,"Lieferant auswählen",null,null,false,null,null,null,null,0,null,"Kostenart auswählen"]
[null,"Lieferant auswählen",null,null,false,null,null,null,null,0,null,"Kostenart auswählen"]
[null,"Lieferant auswählen",null,null,false,null,null,null,null,0,null,"Kostenart auswählen"]
[null,"Lieferant auswählen",null,null,false,null,null,null,null,0,null,"Kostenart auswählen"]
[null,"Lieferant auswählen",null,null,false,null,null,null,null,0,null,"Kostenart auswählen"]
[null,"Lieferant auswählen",null,null,false,null,null,null,null,0,null,"Kostenart auswählen"]
[null,"Lieferant auswählen",null,null,false,null,null,null,null,0,null,"Kostenart auswählen"]
[null,"Lieferant auswählen",null,null,false,null,null,null,null,0,null,"Kostenart auswählen"]
[null,"Lieferant auswählen",null,null,false,null,null,null,null,0,null,"Kostenart auswählen"]
[null,"Lieferant auswählen",null,null,false,null,null,null,null,0,null,"Kostenart auswählen"]
[null,"Lieferant auswählen",null,null,false,null,null,null,null,0,null,"Kostenart auswählen"]
[null,"Lieferant auswählen",null,null,{"$f":"IF(COUNTIF(D:D,D5827)=1,\"OK\",COUNTIF(D:D,D5827)=1)","v":false},null,null,null,null,{"$f":"H5827/(1+I5827)","v":0},null,"Kostenart auswählen"]
[null,"Lieferant auswählen",null,null,false,null,null,null,null,0,null,"Kostenart auswählen"]
[null,"Lieferant auswählen",null,null,false,null,null,null,null,0,null,"Kostenart auswählen"]
[null,"Lieferant auswählen",null,null,false,null,null,null,null,0,null,"Kostenart auswählen"]
[null,"Lieferant auswählen",null,null,false,null,null,null,null,0,null,"Kostenart auswählen"]
[null,"Lieferant auswählen",null,null,false,null,null,null,null,0,null,"Kostenart auswählen"]
[null,"Lieferant auswählen",null,null,false,null,null,null,null,0,null,"Kostenart auswählen"]
[null,"Lieferant auswählen",null,null,false,null,null,null,null,0,null,"Kostenart auswählen"]
[null,"Lieferant auswählen",null,null,false,null,null,null,null,0,null,"Kostenart auswählen"]
[null,"Lieferant auswählen",null,null,false,null,null,null,null,0,null,"Kostenart auswählen"]
[null,"Lieferant auswählen",null,null,false,null,null,null,null,0,null,"Kostenart auswählen"]
[null,"Lieferant auswählen",null,null,false,null,null,null,null,0,null,"Kostenart auswählen"]
[null,"Lieferant auswählen",null,null,false,null,null,null,null,0,null,"Kostenart auswählen"]
[null,"Lieferant auswählen",null,null,false,null,null,null,null,0,null,"Kostenart auswählen"]
[null,"Lieferant auswählen",null,null,false,null,null,null,null,0,null,"Kostenart auswählen"]
[null,"Lieferant auswählen",null,null,false,null,null,null,null,0,null,"Kostenart auswählen"]
[null,"Lieferant auswählen",null,null,false,null,null,null,null,0,null,"Kostenart auswählen"]
[null,"Lieferant auswählen",null,null,false,null,null,null,null,0,null,"Kostenart auswählen"]
[null,"Lieferant auswählen",null,null,false,null,null,null,null,0,null,"Kostenart auswählen"]
[null,"Lieferant auswählen",null,null,false,null,null,null,null,0,null,"Kostenart auswählen"]
[null,"Lieferant auswählen",null,null,false,null,null,null,null,0,null,"Kostenart auswählen"]
[null,"Lieferant auswählen",null,null,false,null,null,null,null,0,null,"Kostenart auswählen"]
[null,"Lieferant auswählen",null,null,false,null,null,null,null,0,null,"Kostenart auswählen"]
[null,"Lieferant auswählen",null,null,false,null,null,null,null,0,null,"Kostenart auswählen"]
[null,"Lieferant auswählen",null,null,false,null,null,null,null,0,null,"Kostenart auswählen"]
[null,"Lieferant auswählen",null,null,false,null,null,null,null,0,null,"Kostenart auswählen"]
[null,"Lieferant auswählen",null,null,false,null,null,null,null,0,null,"Kostenart auswählen"]
[null,"Lieferant auswählen",null,null,false,null,null,null,null,0,null,"Kostenart auswählen"]
[null,"Lieferant auswählen",null,null,false,null,null,null,null,0,null,"Kostenart auswählen"]
[null,"Lieferant auswählen",null,null,false,null,null,null,null,0,null,"Kostenart auswählen"]
[null,"Lieferant auswählen",null,null,false,null,null,null,null,0,null,"Kostenart auswählen"]
[null,"Lieferant auswählen",null,null,false,null,null,null,null,0,null,"Kostenart auswählen"]
[null,"Lieferant auswählen",null,null,false,null,null,null,null,0,null,"Kostenart auswählen"]
[null,"Lieferant auswählen",null,null,false,null,null,null,null,0,null,"Kostenart auswählen"]
[null,"Lieferant auswählen",null,null,false,null,null,null,null,0,null,"Kostenart auswählen"]
[null,"Lieferant auswählen",null,null,false,null,null,null,null,0,null,"Kostenart auswählen"]
[null,"Lieferant auswählen",null,null,false,null,null,null,null,0,null,"Kostenart auswählen"]
[null,"Lieferant auswählen",null,null,false,null,null,null,null,0,null,"Kostenart auswählen"]
[null,"Lieferant auswählen",null,null,false,null,null,null,null,0,null,"Kostenart auswählen"]
[null,"Lieferant auswählen",null,null,false,null,null,null,null,0,null,"Kostenart auswählen"]
[null,"Lieferant auswählen",null,null,false,null,null,null,null,0,null,"Kostenart auswählen"]
[null,"Lieferant auswählen",null,null,false,null,null,null,null,0,null,"Kostenart auswählen"]
[null,"Lieferant auswählen",null,null,false,null,null,null,null,0,null,"Kostenart auswählen"]
[null,"Lieferant auswählen",null,null,false,null,null,null,null,0,null,"Kostenart auswählen"]
[null,"Lieferant auswählen",null,null,false,null,null,null,null,0,null,"Kostenart auswählen"]
[null,"Lieferant auswählen",null,null,false,null,null,null,null,0,null,"Kostenart auswählen"]
[null,"Lieferant auswählen",null,null,false,null,null,null,null,0,null,"Kostenart auswählen"]
[null,"Lieferant auswählen",null,null,false,null,null,null,null,0,null,"Kostenart auswählen"]
[null,"Lieferant auswählen",null,null,false,null,null,null,null,0,null,"Kostenart auswählen"]
[null,"Lieferant auswählen",null,null,false,null,null,null,null,0,null,"Kostenart auswählen"]
[null,"Lieferant auswählen",null,null,false,null,null,null,null,0,null,"Kostenart auswählen"]
[null,"Lieferant auswählen",null,null,false,null,null,null,null,0,null,"Kostenart auswählen"]
[null,"Lieferant auswählen",null,null,false,null,null,null,null,0,null,"Kostenart auswählen"]
[null,"Lieferant auswählen",null,null,false,null,null,null,null,0,null,"Kostenart auswählen"]
[null,"Lieferant auswählen",null,null,false,null,null,null,null,0,null,"Kostenart auswählen"]
[null,"Lieferant auswählen",null,null,false,null,null,null,null,0,null,"Kostenart auswählen"]
[null,"Lieferant auswählen",null,null,false,null,null,null,null,0,null,"Kostenart auswählen"]
[null,"Lieferant auswählen",null,null,false,null,null,null,null,0,null,"Kostenart auswählen"]
[null,"Lieferant auswählen",null,null,false,null,null,null,null,0,null,"Kostenart auswählen"]
[null,"Lieferant auswählen",null,null,false,null,null,null,null,0,null,"Kostenart auswählen"]
[null,"Lieferant auswählen",null,null,false,null,null,null,null,0,null,"Kostenart auswählen"]
[null,"Lieferant auswählen",null,null,false,null,null,null,null,0,null,"Kostenart auswählen"]
[null,"Lieferant auswählen",null,null,false,null,null,null,null,0,null,"Kostenart auswählen"]
[null,"Lieferant auswählen",null,null,false,null,null,null,null,0,null,"Kostenart auswählen"]
[null,"Lieferant auswählen",null,null,false,null,null,null,null,0,null,"Kostenart auswählen"]
[null,"Lieferant auswählen",null,null,false,null,null,null,null,0,null,"Kostenart auswählen"]
[null,"Lieferant auswählen",null,null,false,null,null,null,null,0,null,"Kostenart auswählen"]
[null,"Lieferant auswählen",null,null,false,null,null,null,null,0,null,"Kostenart auswählen"]
[null,"Lieferant auswählen",null,null,false,null,null,null,null,0,null,"Kostenart auswählen"]
[null,"Lieferant auswählen",null,null,false,null,null,null,null,0,null,"Kostenart auswählen"]
[null,"Lieferant auswählen",null,null,false,null,null,null,null,0,null,"Kostenart auswählen"]
[null,"Lieferant auswählen",null,null,false,null,null,null,null,0,null,"Kostenart auswählen"]
[null,"Lieferant auswählen",null,null,false,null,null,null,null,0,null,"Kostenart auswählen"]
[null,"Lieferant auswählen",null,null,false,null,null,null,null,0,null,"Kostenart auswählen"]
[null,"Lieferant auswählen",null,null,false,null,null,null,null,0,null,"Kostenart auswählen"]
[null,"Lieferant auswählen",null,null,false,null,null,null,null,0,null,"Kostenart auswählen"]
[null,"Lieferant auswählen",null,null,false,null,null,null,null,0,null,"Kostenart auswählen"]
[null,"Lieferant auswählen",null,null,false,null,null,null,null,0,null,"Kostenart auswählen"]
[null,"Lieferant auswählen",null,null,false,null,null,null,null,0,null,"Kostenart auswählen"]
[null,"Lieferant auswählen",null,null,false,null,null,null,null,0,null,"Kostenart auswählen"]
[null,"Lieferant auswählen",null,null,false,null,null,null,null,0,null,"Kostenart auswählen"]
[null,"Lieferant auswählen",null,null,false,null,null,null,null,0,null,"Kostenart auswählen"]
[null,"Lieferant auswählen",null,null,false,null,null,null,null,0,null,"Kostenart auswählen"]
[null,"Lieferant auswählen",null,null,false,null,null,null,null,0,null,"Kostenart auswählen"]
[null,"Lieferant auswählen",null,null,false,null,null,null,null,0,null,"Kostenart auswählen"]
[null,"Lieferant auswählen",null,null,{"$f":"IF(COUNTIF(D:D,D6147)=1,\"OK\",COUNTIF(D:D,D6147)=1)","v":false},null,null,null,null,{"$f":"H6147/(1+I6147)","v":0},null,"Kostenart auswählen"]
[null,"Lieferant auswählen",null,null,false,null,null,null,null,0,null,"Kostenart auswählen"]
[null,"Lieferant auswählen",null,null,false,null,null,null,null,0,null,"Kostenart auswählen"]
[null,"Lieferant auswählen",null,null,false,null,null,null,null,0,null,"Kostenart auswählen"]
[null,"Lieferant auswählen",null,null,false,null,null,null,null,0,null,"Kostenart auswählen"]
[null,"Lieferant auswählen",null,null,false,null,null,null,null,0,null,"Kostenart auswählen"]
[null,"Lieferant auswählen",null,null,false,null,null,null,null,0,null,"Kostenart auswählen"]
[null,"Lieferant auswählen",null,null,false,null,null,null,null,0,null,"Kostenart auswählen"]
[null,"Lieferant auswählen",null,null,false,null,null,null,null,0,null,"Kostenart auswählen"]
[null,"Lieferant auswählen",null,null,false,null,null,null,null,0,null,"Kostenart auswählen"]
[null,"Lieferant auswählen",null,null,false,null,null,null,null,0,null,"Kostenart auswählen"]
[null,"Lieferant auswählen",null,null,false,null,null,null,null,0,null,"Kostenart auswählen"]
[null,"Lieferant auswählen",null,null,false,null,null,null,null,0,null,"Kostenart auswählen"]
[null,"Lieferant auswählen",null,null,false,null,null,null,null,0,null,"Kostenart auswählen"]
[null,"Lieferant auswählen",null,null,false,null,null,null,null,0,null,"Kostenart auswählen"]
[null,"Lieferant auswählen",null,null,false,null,null,null,null,0,null,"Kostenart auswählen"]
[null,"Lieferant auswählen",null,null,false,null,null,null,null,0,null,"Kostenart auswählen"]
[null,"Lieferant auswählen",null,null,false,null,null,null,null,0,null,"Kostenart auswählen"]
[null,"Lieferant auswählen",null,null,false,null,null,null,null,0,null,"Kostenart auswählen"]
[null,"Lieferant auswählen",null,null,false,null,null,null,null,0,null,"Kostenart auswählen"]
[null,"Lieferant auswählen",null,null,false,null,null,null,null,0,null,"Kostenart auswählen"]
[null,"Lieferant auswählen",null,null,false,null,null,null,null,0,null,"Kostenart auswählen"]
[null,"Lieferant auswählen",null,null,false,null,null,null,null,0,null,"Kostenart auswählen"]
[null,"Lieferant auswählen",null,null,false,null,null,null,null,0,null,"Kostenart auswählen"]
[null,"Lieferant auswählen",null,null,false,null,null,null,null,0,null,"Kostenart auswählen"]
[null,"Lieferant auswählen",null,null,false,null,null,null,null,0,null,"Kostenart auswählen"]
[null,"Lieferant auswählen",null,null,false,null,null,null,null,0,null,"Kostenart auswählen"]
[null,"Lieferant auswählen",null,null,false,null,null,null,null,0,null,"Kostenart auswählen"]
[null,"Lieferant auswählen",null,null,false,null,null,null,null,0,null,"Kostenart auswählen"]
[null,"Lieferant auswählen",null,null,false,null,null,null,null,0,null,"Kostenart auswählen"]
[null,"Lieferant auswählen",null,null,false,null,null,null,null,0,null,"Kostenart auswählen"]
[null,"Lieferant auswählen",null,null,false,null,null,null,null,0,null,"Kostenart auswählen"]
[null,"Lieferant auswählen",null,null,false,null,null,null,null,0,null,"Kostenart auswählen"]
[null,"Lieferant auswählen",null,null,false,null,null,null,null,0,null,"Kostenart auswählen"]
[null,"Lieferant auswählen",null,null,false,null,null,null,null,0,null,"Kostenart auswählen"]
[null,"Lieferant auswählen",null,null,false,null,null,null,null,0,null,"Kostenart auswählen"]
[null,"Lieferant auswählen",null,null,false,null,null,null,null,0,null,"Kostenart auswählen"]
[null,"Lieferant auswählen",null,null,false,null,null,null,null,0,null,"Kostenart auswählen"]
[null,"Lieferant auswählen",null,null,false,null,null,null,null,0,null,"Kostenart auswählen"]
[null,"Lieferant auswählen",null,null,false,null,null,null,null,0,null,"Kostenart auswählen"]
[null,"Lieferant auswählen",null,null,false,null,null,null,null,0,null,"Kostenart auswählen"]
[null,"Lieferant auswählen",null,null,false,null,null,null,null,0,null,"Kostenart auswählen"]
[null,"Lieferant auswählen",null,null,false,null,null,null,null,0,null,"Kostenart auswählen"]
[null,"Lieferant auswählen",null,null,false,null,null,null,null,0,null,"Kostenart auswählen"]
[null,"Lieferant auswählen",null,null,false,null,null,null,null,0,null,"Kostenart auswählen"]
[null,"Lieferant auswählen",null,null,false,null,null,null,null,0,null,"Kostenart auswählen"]
[null,"Lieferant auswählen",null,null,false,null,null,null,null,0,null,"Kostenart auswählen"]
[null,"Lieferant auswählen",null,null,false,null,null,null,null,0,null,"Kostenart auswählen"]
[null,"Lieferant auswählen",null,null,false,null,null,null,null,0,null,"Kostenart auswählen"]
[null,"Lieferant auswählen",null,null,false,null,null,null,null,0,null,"Kostenart auswählen"]
[null,"Lieferant auswählen",null,null,false,null,null,null,null,0,null,"Kostenart auswählen"]
[null,"Lieferant auswählen",null,null,false,null,null,null,null,0,null,"Kostenart auswählen"]
[null,"Lieferant auswählen",null,null,false,null,null,null,null,0,null,"Kostenart auswählen"]
[null,"Lieferant auswählen",null,null,false,null,null,null,null,0,null,"Kostenart auswählen"]
[null,"Lieferant auswählen",null,null,false,null,null,null,null,0,null,"Kostenart auswählen"]
[null,"Lieferant auswählen",null,null,false,null,null,null,null,0,null,"Kostenart auswählen"]
[null,"Lieferant auswählen",null,null,false,null,null,null,null,0,null,"Kostenart auswählen"]
[null,"Lieferant auswählen",null,null,false,null,null,null,null,0,null,"Kostenart auswählen"]
[null,"Lieferant auswählen",null,null,false,null,null,null,null,0,null,"Kostenart auswählen"]
[null,"Lieferant auswählen",null,null,false,null,null,null,null,0,null,"Kostenart auswählen"]
[null,"Lieferant auswählen",null,null,false,null,null,null,null,0,null,"Kostenart auswählen"]
[null,"Lieferant auswählen",null,null,false,null,null,null,null,0,null,"Kostenart auswählen"]
[null,"Lieferant auswählen",null,null,false,null,null,null,null,0,null,"Kostenart auswählen"]
[null,"Lieferant auswählen",null,null,false,null,null,null,null,0,null,"Kostenart auswählen"]
[null,"Lieferant auswählen",null,null,false,null,null,null,null,0,null,"Kostenart auswählen"]
[null,"Lieferant auswählen",null,null,false,null,null,null,null,0,null,"Kostenart auswählen"]
[null,"Lieferant auswählen",null,null,false,null,null,null,null,0,null,"Kostenart auswählen"]
[null,"Lieferant auswählen",null,null,false,null,null,null,null,0,null,"Kostenart auswählen"]
[null,"Lieferant auswählen",null,null,false,null,null,null,null,0,null,"Kostenart auswählen"]
[null,"Lieferant auswählen",null,null,false,null,null,null,null,0,null,"Kostenart auswählen"]
[null,"Lieferant auswählen",null,null,false,null,null,null,null,0,null,"Kostenart auswählen"]
[null,"Lieferant auswählen",null,null,false,null,null,null,null,0,null,"Kostenart auswählen"]
[null,"Lieferant auswählen",null,null,false,null,null,null,null,0,null,"Kostenart auswählen"]
[null,"Lieferant auswählen",null,null,false,null,null,null,null,0,null,"Kostenart auswählen"]
[null,"Lieferant auswählen",null,null,false,null,null,null,null,0,null,"Kostenart auswählen"]
[null,"Lieferant auswählen",null,null,false,null,null,null,null,0,null,"Kostenart auswählen"]
[null,"Lieferant auswählen",null,null,false,null,null,null,null,0,null,"Kostenart auswählen"]
[null,"Lieferant auswählen",null,null,false,null,null,null,null,0,null,"Kostenart auswählen"]
[null,"Lieferant auswählen",null,null,false,null,null,null,null,0,null,"Kostenart auswählen"]
[null,"Lieferant auswählen",null,null,false,null,null,null,null,0,null,"Kostenart auswählen"]
[null,"Lieferant auswählen",null,null,false,null,null,null,null,0,null,"Kostenart auswählen"]
[null,"Lieferant auswählen",null,null,false,null,null,null,null,0,null,"Kostenart auswählen"]
[null,"Lieferant auswählen",null,null,false,null,null,null,null,0,null,"Kostenart auswählen"]
[null,"Lieferant auswählen",null,null,false,null,null,null,null,0,null,"Kostenart auswählen"]
[null,"Lieferant auswählen",null,null,false,null,null,null,null,0,null,"Kostenart auswählen"]
[null,"Lieferant auswählen",null,null,{"$f":"IF(COUNTIF(D:D,D6467)=1,\"OK\",COUNTIF(D:D,D6467)=1)","v":false},null,null,null,null,{"$f":"H6467/(1+I6467)","v":0},null,"Kostenart auswählen"]
[null,"Lieferant auswählen",null,null,false,null,null,null,null,0,null,"Kostenart auswählen"]
[null,"Lieferant auswählen",null,null,false,null,null,null,null,0,null,"Kostenart auswählen"]
[null,"Lieferant auswählen",null,null,false,null,null,null,null,0,null,"Kostenart auswählen"]
[null,"Lieferant auswählen",null,null,false,null,null,null,null,0,null,"Kostenart auswählen"]
[null,"Lieferant auswählen",null,null,false,null,null,null,null,0,null,"Kostenart auswählen"]
[null,"Lieferant auswählen",null,null,false,null,null,null,null,0,null,"Kostenart auswählen"]
[null,"Lieferant auswählen",null,null,false,null,null,null,null,0,null,"Kostenart auswählen"]
[null,"Lieferant auswählen",null,null,false,null,null,null,null,0,null,"Kostenart auswählen"]
[null,"Lieferant auswählen",null,null,false,null,null,null,null,0,null,"Kostenart auswählen"]
[null,"Lieferant auswählen",null,null,false,null,null,null,null,0,null,"Kostenart auswählen"]
[null,"Lieferant auswählen",null,null,false,null,null,null,null,0,null,"Kostenart auswählen"]
[null,"Lieferant auswählen",null,null,false,null,null,null,null,0,null,"Kostenart auswählen"]
[null,"Lieferant auswählen",null,null,false,null,null,null,null,0,null,"Kostenart auswählen"]
[null,"Lieferant auswählen",null,null,false,null,null,null,null,0,null,"Kostenart auswählen"]
[null,"Lieferant auswählen",null,null,false,null,null,null,null,0,null,"Kostenart auswählen"]
[null,"Lieferant auswählen",null,null,false,null,null,null,null,0,null,"Kostenart auswählen"]
[null,"Lieferant auswählen",null,null,false,null,null,null,null,0,null,"Kostenart auswählen"]
[null,"Lieferant auswählen",null,null,false,null,null,null,null,0,null,"Kostenart auswählen"]
[null,"Lieferant auswählen",null,null,false,null,null,null,null,0,null,"Kostenart auswählen"]
[null,"Lieferant auswählen",null,null,false,null,null,null,null,0,null,"Kostenart auswählen"]
[null,"Lieferant auswählen",null,null,false,null,null,null,null,0,null,"Kostenart auswählen"]
[null,"Lieferant auswählen",null,null,false,null,null,null,null,0,null,"Kostenart auswählen"]
[null,"Lieferant auswählen",null,null,false,null,null,null,null,0,null,"Kostenart auswählen"]
[null,"Lieferant auswählen",null,null,false,null,null,null,null,0,null,"Kostenart auswählen"]
[null,"Lieferant auswählen",null,null,false,null,null,null,null,0,null,"Kostenart auswählen"]
[null,"Lieferant auswählen",null,null,false,null,null,null,null,0,null,"Kostenart auswählen"]
[null,"Lieferant auswählen",null,null,false,null,null,null,null,0,null,"Kostenart auswählen"]
[null,"Lieferant auswählen",null,null,false,null,null,null,null,0,null,"Kostenart auswählen"]
[null,"Lieferant auswählen",null,null,false,null,null,null,null,0,null,"Kostenart auswählen"]
[null,"Lieferant auswählen",null,null,false,null,null,null,null,0,null,"Kostenart auswählen"]
[null,"Lieferant auswählen",null,null,false,null,null,null,null,0,null,"Kostenart auswählen"]
[null,"Lieferant auswählen",null,null,false,null,null,null,null,0,null,"Kostenart auswählen"]
[null,"Lieferant auswählen",null,null,false,null,null,null,null,0,null,"Kostenart auswählen"]
[null,"Lieferant auswählen",null,null,false,null,null,null,null,0,null,"Kostenart auswählen"]
[null,"Lieferant auswählen",null,null,false,null,null,null,null,0,null,"Kostenart auswählen"]
[null,"Lieferant auswählen",null,null,false,null,null,null,null,0,null,"Kostenart auswählen"]
[null,"Lieferant auswählen",null,null,false,null,null,null,null,0,null,"Kostenart auswählen"]
[null,"Lieferant auswählen",null,null,false,null,null,null,null,0,null,"Kostenart auswählen"]
[null,"Lieferant auswählen",null,null,false,null,null,null,null,0,null,"Kostenart auswählen"]
[null,"Lieferant auswählen",null,null,false,null,null,null,null,0,null,"Kostenart auswählen"]
[null,"Lieferant auswählen",null,null,false,null,null,null,null,0,null,"Kostenart auswählen"]
[null,"Lieferant auswählen",null,null,false,null,null,null,null,0,null,"Kostenart auswählen"]
[null,"Lieferant auswählen",null,null,false,null,null,null,null,0,null,"Kostenart auswählen"]
[null,"Lieferant auswählen",null,null,false,null,null,null,null,0,null,"Kostenart auswählen"]
[null,"Lieferant auswählen",null,null,false,null,null,null,null,0,null,"Kostenart auswählen"]
[null,"Lieferant auswählen",null,null,false,null,null,null,null,0,null,"Kostenart auswählen"]
[null,"Lieferant auswählen",null,null,false,null,null,null,null,0,null,"Kostenart auswählen"]
[null,"Lieferant auswählen",null,null,false,null,null,null,null,0,null,"Kostenart auswählen"]
[null,"Lieferant auswählen",null,null,false,null,null,null,null,0,null,"Kostenart auswählen"]
[null,"Lieferant auswählen",null,null,false,null,null,null,null,0,null,"Kostenart auswählen"]
[null,"Lieferant auswählen",null,null,false,null,null,null,null,0,null,"Kostenart auswählen"]
[null,"Lieferant auswählen",null,null,false,null,null,null,null,0,null,"Kostenart auswählen"]
[null,"Lieferant auswählen",null,null,false,null,null,null,null,0,null,"Kostenart auswählen"]
[null,"Lieferant auswählen",null,null,false,null,null,null,null,0,null,"Kostenart auswählen"]
[null,"Lieferant auswählen",null,null,false,null,null,null,null,0,null,"Kostenart auswählen"]
[null,"Lieferant auswählen",null,null,false,null,null,null,null,0,null,"Kostenart auswählen"]
[null,"Lieferant auswählen",null,null,false,null,null,null,null,0,null,"Kostenart auswählen"]
[null,"Lieferant auswählen",null,null,false,null,null,null,null,0,null,"Kostenart auswählen"]
[null,"Lieferant auswählen",null,null,false,null,null,null,null,0,null,"Kostenart auswählen"]
[null,"Lieferant auswählen",null,null,false,null,null,null,null,0,null,"Kostenart auswählen"]
[null,"Lieferant auswählen",null,null,false,null,null,null,null,0,null,"Kostenart auswählen"]
[null,"Lieferant auswählen",null,null,false,null,null,null,null,0,null,"Kostenart auswählen"]
[null,"Lieferant auswählen",null,null,false,null,null,null,null,0,null,"Kostenart auswählen"]
[null,"Lieferant auswählen",null,null,false,null,null,null,null,0,null,"Kostenart auswählen"]
[null,"Lieferant auswählen",null,null,false,null,null,null,null,0,null,"Kostenart auswählen"]
[null,"Lieferant auswählen",null,null,false,null,null,null,null,0,null,"Kostenart auswählen"]
[null,"Lieferant auswählen",null,null,false,null,null,null,null,0,null,"Kostenart auswählen"]
[null,"Lieferant auswählen",null,null,false,null,null,null,null,0,null,"Kostenart auswählen"]
[null,"Lieferant auswählen",null,null,{"$f":"IF(COUNTIF(D:D,D6723)=1,\"OK\",COUNTIF(D:D,D6723)=1)","v":false},null,null,null,null,{"$f":"H6723/(1+I6723)","v":0},null,"Kostenart auswählen"]
[null,"Lieferant auswählen",null,null,false,null,null,null,null,0,null,"Kostenart auswählen"]
[null,"Lieferant auswählen",null,null,false,null,null,null,null,0,null,"Kostenart auswählen"]
[null,"Lieferant auswählen",null,null,false,null,null,null,null,0,null,"Kostenart auswählen"]
[null,"Lieferant auswählen",null,null,false,null,null,null,null,0,null,"Kostenart auswählen"]
[null,"Lieferant auswählen",null,null,false,null,null,null,null,0,null,"Kostenart auswählen"]
[null,"Lieferant auswählen",null,null,false,null,null,null,null,0,null,"Kostenart auswählen"]
[null,"Lieferant auswählen",null,null,false,null,null,null,null,0,null,"Kostenart auswählen"]
[null,"Lieferant auswählen",null,null,false,null,null,null,null,0,null,"Kostenart auswählen"]
[null,"Lieferant auswählen",null,null,false,null,null,null,null,0,null,"Kostenart auswählen"]
[null,"Lieferant auswählen",null,null,false,null,null,null,null,0,null,"Kostenart auswählen"]
[null,"Lieferant auswählen",null,null,false,null,null,null,null,0,null,"Kostenart auswählen"]
[null,"Lieferant auswählen",null,null,false,null,null,null,null,0,null,"Kostenart auswählen"]
[null,"Lieferant auswählen",null,null,false,null,null,null,null,0,null,"Kostenart auswählen"]
[null,"Lieferant auswählen",null,null,false,null,null,null,null,0,null,"Kostenart auswählen"]
[null,"Lieferant auswählen",null,null,false,null,null,null,null,0,null,"Kostenart auswählen"]
[null,"Lieferant auswählen",null,null,false,null,null,null,null,0,null,"Kostenart auswählen"]
[null,"Lieferant auswählen",null,null,false,null,null,null,null,0,null,"Kostenart auswählen"]
[null,"Lieferant auswählen",null,null,false,null,null,null,null,0,null,"Kostenart auswählen"]
[null,"Lieferant auswählen",null,null,false,null,null,null,null,0,null,"Kostenart auswählen"]
[null,"Lieferant auswählen",null,null,false,null,null,null,null,0,null,"Kostenart auswählen"]
[null,"Lieferant auswählen",null,null,false,null,null,null,null,0,null,"Kostenart auswählen"]
[null,"Lieferant auswählen",null,null,false,null,null,null,null,0,null,"Kostenart auswählen"]
[null,"Lieferant auswählen",null,null,false,null,null,null,null,0,null,"Kostenart auswählen"]
[null,"Lieferant auswählen",null,null,false,null,null,null,null,0,null,"Kostenart auswählen"]
[null,"Lieferant auswählen",null,null,false,null,null,null,null,0,null,"Kostenart auswählen"]
[null,"Lieferant auswählen",null,null,false,null,null,null,null,0,null,"Kostenart auswählen"]
[null,"Lieferant auswählen",null,null,false,null,null,null,null,0,null,"Kostenart auswählen"]
[null,"Lieferant auswählen",null,null,false,null,null,null,null,0,null,"Kostenart auswählen"]
[null,"Lieferant auswählen",null,null,false,null,null,null,null,0,null,"Kostenart auswählen"]
[null,"Lieferant auswählen",null,null,false,null,null,null,null,0,null,"Kostenart auswählen"]
[null,"Lieferant auswählen",null,null,false,null,null,null,null,0,null,"Kostenart auswählen"]
[null,"Lieferant auswählen",null,null,false,null,null,null,null,0,null,"Kostenart auswählen"]
[null,"Lieferant auswählen",null,null,false,null,null,null,null,0,null,"Kostenart auswählen"]
[null,"Lieferant auswählen",null,null,false,null,null,null,null,0,null,"Kostenart auswählen"]
[null,"Lieferant auswählen",null,null,false,null,null,null,null,0,null,"Kostenart auswählen"]
[null,"Lieferant auswählen",null,null,false,null,null,null,null,0,null,"Kostenart auswählen"]
[null,"Lieferant auswählen",null,null,false,null,null,null,null,0,null,"Kostenart auswählen"]
[null,"Lieferant auswählen",null,null,false,null,null,null,null,0,null,"Kostenart auswählen"]
[null,"Lieferant auswählen",null,null,false,null,null,null,null,0,null,"Kostenart auswählen"]
[null,"Lieferant auswählen",null,null,false,null,null,null,null,0,null,"Kostenart auswählen"]
[null,"Lieferant auswählen",null,null,false,null,null,null,null,0,null,"Kostenart auswählen"]
[null,"Lieferant auswählen",null,null,false,null,null,null,null,0,null,"Kostenart auswählen"]
[null,"Lieferant auswählen",null,null,false,null,null,null,null,0,null,"Kostenart auswählen"]
[null,"Lieferant auswählen",null,null,false,null,null,null,null,0,null,"Kostenart auswählen"]
[null,"Lieferant auswählen",null,null,false,null,null,null,null,0,null,"Kostenart auswählen"]
[null,"Lieferant auswählen",null,null,false,null,null,null,null,0,null,"Kostenart auswählen"]
[null,"Lieferant auswählen",null,null,false,null,null,null,null,0,null,"Kostenart auswählen"]
[null,"Lieferant auswählen",null,null,false,null,null,null,null,0,null,"Kostenart auswählen"]
[null,"Lieferant auswählen",null,null,false,null,null,null,null,0,null,"Kostenart auswählen"]
[null,"Lieferant auswählen",null,null,false,null,null,null,null,0,null,"Kostenart auswählen"]
[null,"Lieferant auswählen",null,null,false,null,null,null,null,0,null,"Kostenart auswählen"]
[null,"Lieferant auswählen",null,null,false,null,null,null,null,0,null,"Kostenart auswählen"]
[null,"Lieferant auswählen",null,null,false,null,null,null,null,0,null,"Kostenart auswählen"]
[null,"Lieferant auswählen",null,null,false,null,null,null,null,0,null,"Kostenart auswählen"]
[null,"Lieferant auswählen",null,null,false,null,null,null,null,0,null,"Kostenart auswählen"]
[null,"Lieferant auswählen",null,null,false,null,null,null,null,0,null,"Kostenart auswählen"]
[null,"Lieferant auswählen",null,null,false,null,null,null,null,0,null,"Kostenart auswählen"]
[null,"Lieferant auswählen",null,null,false,null,null,null,null,0,null,"Kostenart auswählen"]
[null,"Lieferant auswählen",null,null,false,null,null,null,null,0,null,"Kostenart auswählen"]
[null,"Lieferant auswählen",null,null,false,null,null,null,null,0,null,"Kostenart auswählen"]
[null,"Lieferant auswählen",null,null,false,null,null,null,null,0,null,"Kostenart auswählen"]
[null,"Lieferant auswählen",null,null,false,null,null,null,null,0,null,"Kostenart auswählen"]
[null,"Lieferant auswählen",null,null,false,null,null,null,null,0,null,"Kostenart auswählen"]
[null,"Lieferant auswählen",null,null,false,null,null,null,null,0,null,"Kostenart auswählen"]
[null,"Lieferant auswählen",null,null,false,null,null,null,null,0,null,"Kostenart auswählen"]
[null,"Lieferant auswählen",null,null,false,null,null,null,null,0,null,"Kostenart auswählen"]
[null,"Lieferant auswählen",null,null,false,null,null,null,null,0,null,"Kostenart auswählen"]
[null,"Lieferant auswählen",null,null,false,null,null,null,null,0,null,"Kostenart auswählen"]
[null,"Lieferant auswählen",null,null,false,null,null,null,null,0,null,"Kostenart auswählen"]
[null,"Lieferant auswählen",null,null,false,null,null,null,null,0,null,"Kostenart auswählen"]
[null,"Lieferant auswählen",null,null,false,null,null,null,null,0,null,"Kostenart auswählen"]
[null,"Lieferant auswählen",null,null,false,null,null,null,null,0,null,"Kostenart auswählen"]
[null,"Lieferant auswählen",null,null,false,null,null,null,null,0,null,"Kostenart auswählen"]
[null,"Lieferant auswählen",null,null,false,null,null,null,null,0,null,"Kostenart auswählen"]
[null,"Lieferant auswählen",null,null,false,null,null,null,null,0,null,"Kostenart auswählen"]
[null,"Lieferant auswählen",null,null,false,null,null,null,null,0,null,"Kostenart auswählen"]
[null,"Lieferant auswählen",null,null,false,null,null,null,null,0,null,"Kostenart auswählen"]
[null,"Lieferant auswählen",null,null,false,null,null,null,null,0,null,"Kostenart auswählen"]
[null,"Lieferant auswählen",null,null,false,null,null,null,null,0,null,"Kostenart auswählen"]
[null,"Lieferant auswählen",null,null,false,null,null,null,null,0,null,"Kostenart auswählen"]
[null,"Lieferant auswählen",null,null,false,null,null,null,null,0,null,"Kostenart auswählen"]
[null,"Lieferant auswählen",null,null,false,null,null,null,null,0,null,"Kostenart auswählen"]
[null,"Lieferant auswählen",null,null,false,null,null,null,null,0,null,"Kostenart auswählen"]
[null,"Lieferant auswählen",null,null,false,null,null,null,null,0,null,"Kostenart auswählen"]
[null,"Lieferant auswählen",null,null,{"$f":"IF(COUNTIF(D:D,D7043)=1,\"OK\",COUNTIF(D:D,D7043)=1)","v":false},null,null,null,null,{"$f":"H7043/(1+I7043)","v":0},null,"Kostenart auswählen"]
[null,"Lieferant auswählen",null,null,false,null,null,null,null,0,null,"Kostenart auswählen"]
[null,"Lieferant auswählen",null,null,false,null,null,null,null,0,null,"Kostenart auswählen"]
[null,"Lieferant auswählen",null,null,false,null,null,null,null,0,null,"Kostenart auswählen"]
[null,"Lieferant auswählen",null,null,false,null,null,null,null,0,null,"Kostenart auswählen"]
[null,"Lieferant auswählen",null,null,false,null,null,null,null,0,null,"Kostenart auswählen"]
[null,"Lieferant auswählen",null,null,false,null,null,null,null,0,null,"Kostenart auswählen"]
[null,"Lieferant auswählen",null,null,false,null,null,null,null,0,null,"Kostenart auswählen"]
[null,"Lieferant auswählen",null,null,false,null,null,null,null,0,null,"Kostenart auswählen"]
[null,"Lieferant auswählen",null,null,false,null,null,null,null,0,null,"Kostenart auswählen"]
[null,"Lieferant auswählen",null,null,false,null,null,null,null,0,null,"Kostenart auswählen"]
[null,"Lieferant auswählen",null,null,false,null,null,null,null,0,null,"Kostenart auswählen"]
[null,"Lieferant auswählen",null,null,false,null,null,null,null,0,null,"Kostenart auswählen"]
[null,"Lieferant auswählen",null,null,false,null,null,null,null,0,null,"Kostenart auswählen"]
[null,"Lieferant auswählen",null,null,false,null,null,null,null,0,null,"Kostenart auswählen"]
[null,"Lieferant auswählen",null,null,false,null,null,null,null,0,null,"Kostenart auswählen"]
[null,"Lieferant auswählen",null,null,false,null,null,null,null,0,null,"Kostenart auswählen"]
[null,"Lieferant auswählen",null,null,{"$f":"IF(COUNTIF(D:D,D7107)=1,\"OK\",COUNTIF(D:D,D7107)=1)","v":false},null,null,null,null,{"$f":"H7107/(1+I7107)","v":0},null,"Kostenart auswählen"]
[null,"Lieferant auswählen",null,null,false,null,null,null,null,0,null,"Kostenart auswählen"]
[null,"Lieferant auswählen",null,null,false,null,null,null,null,0,null,"Kostenart auswählen"]
[null,"Lieferant auswählen",null,null,false,null,null,null,null,0,null,"Kostenart auswählen"]
[null,"Lieferant auswählen",null,null,false,null,null,null,null,0,null,"Kostenart auswählen"]
[null,"Lieferant auswählen",null,null,false,null,null,null,null,0,null,"Kostenart auswählen"]
[null,"Lieferant auswählen",null,null,false,null,null,null,null,0,null,"Kostenart auswählen"]
[null,"Lieferant auswählen",null,null,false,null,null,null,null,0,null,"Kostenart auswählen"]
[null,"Lieferant auswählen",null,null,false,null,null,null,null,0,null,"Kostenart auswählen"]
[null,"Lieferant auswählen",null,null,false,null,null,null,null,0,null,"Kostenart auswählen"]
[null,"Lieferant auswählen",null,null,false,null,null,null,null,0,null,"Kostenart auswählen"]
[null,"Lieferant auswählen",null,null,false,null,null,null,null,0,null,"Kostenart auswählen"]
[null,"Lieferant auswählen",null,null,false,null,null,null,null,0,null,"Kostenart auswählen"]
[null,"Lieferant auswählen",null,null,false,null,null,null,null,0,null,"Kostenart auswählen"]
[null,"Lieferant auswählen",null,null,false,null,null,null,null,0,null,"Kostenart auswählen"]
[null,"Lieferant auswählen",null,null,false,null,null,null,null,0,null,"Kostenart auswählen"]
[null,"Lieferant auswählen",null,null,false,null,null,null,null,0,null,"Kostenart auswählen"]
[null,"Lieferant auswählen",null,null,false,null,null,null,null,0,null,"Kostenart auswählen"]
[null,"Lieferant auswählen",null,null,false,null,null,null,null,0,null,"Kostenart auswählen"]
[null,"Lieferant auswählen",null,null,false,null,null,null,null,0,null,"Kostenart auswählen"]
[null,"Lieferant auswählen",null,null,false,null,null,null,null,0,null,"Kostenart auswählen"]
[null,"Lieferant auswählen",null,null,false,null,null,null,null,0,null,"Kostenart auswählen"]
[null,"Lieferant auswählen",null,null,false,null,null,null,null,0,null,"Kostenart auswählen"]
[null,"Lieferant auswählen",null,null,false,null,null,null,null,0,null,"Kostenart auswählen"]
[null,"Lieferant auswählen",null,null,false,null,null,null,null,0,null,"Kostenart auswählen"]
[null,"Lieferant auswählen",null,null,false,null,null,null,null,0,null,"Kostenart auswählen"]
[null,"Lieferant auswählen",null,null,false,null,null,null,null,0,null,"Kostenart auswählen"]
[null,"Lieferant auswählen",null,null,false,null,null,null,null,0,null,"Kostenart auswählen"]
[null,"Lieferant auswählen",null,null,false,null,null,null,null,0,null,"Kostenart auswählen"]
[null,"Lieferant auswählen",null,null,false,null,null,null,null,0,null,"Kostenart auswählen"]
[null,"Lieferant auswählen",null,null,false,null,null,null,null,0,null,"Kostenart auswählen"]
[null,"Lieferant auswählen",null,null,false,null,null,null,null,0,null,"Kostenart auswählen"]
[null,"Lieferant auswählen",null,null,false,null,null,null,null,0,null,"Kostenart auswählen"]
[null,"Lieferant auswählen",null,null,false,null,null,null,null,0,null,"Kostenart auswählen"]
[null,"Lieferant auswählen",null,null,false,null,null,null,null,0,null,"Kostenart auswählen"]
[null,"Lieferant auswählen",null,null,false,null,null,null,null,0,null,"Kostenart auswählen"]
[null,"Lieferant auswählen",null,null,false,null,null,null,null,0,null,"Kostenart auswählen"]
[null,"Lieferant auswählen",null,null,false,null,null,null,null,0,null,"Kostenart auswählen"]
[null,"Lieferant auswählen",null,null,false,null,null,null,null,0,null,"Kostenart auswählen"]
[null,"Lieferant auswählen",null,null,false,null,null,null,null,0,null,"Kostenart auswählen"]
[null,"Lieferant auswählen",null,null,false,null,null,null,null,0,null,"Kostenart auswählen"]
[null,"Lieferant auswählen",null,null,false,null,null,null,null,0,null,"Kostenart auswählen"]
[null,"Lieferant auswählen",null,null,false,null,null,null,null,0,null,"Kostenart auswählen"]
[null,"Lieferant auswählen",null,null,false,null,null,null,null,0,null,"Kostenart auswählen"]
[null,"Lieferant auswählen",null,null,false,null,null,null,null,0,null,"Kostenart auswählen"]
[null,"Lieferant auswählen",null,null,false,null,null,null,null,0,null,"Kostenart auswählen"]
[null,"Lieferant auswählen",null,null,false,null,null,null,null,0,null,"Kostenart auswählen"]
[null,"Lieferant auswählen",null,null,false,null,null,null,null,0,null,"Kostenart auswählen"]
[null,"Lieferant auswählen",null,null,false,null,null,null,null,0,null,"Kostenart auswählen"]
[null,"Lieferant auswählen",null,null,false,null,null,null,null,0,null,"Kostenart auswählen"]
[null,"Lieferant auswählen",null,null,false,null,null,null,null,0,null,"Kostenart auswählen"]
[null,"Lieferant auswählen",null,null,false,null,null,null,null,0,null,"Kostenart auswählen"]
[null,"Lieferant auswählen",null,null,false,null,null,null,null,0,null,"Kostenart auswählen"]
[null,"Lieferant auswählen",null,null,false,null,null,null,null,0,null,"Kostenart auswählen"]
[null,"Lieferant auswählen",null,null,false,null,null,null,null,0,null,"Kostenart auswählen"]
[null,"Lieferant auswählen",null,null,false,null,null,null,null,0,null,"Kostenart auswählen"]
[null,"Lieferant auswählen",null,null,false,null,null,null,null,0,null,"Kostenart auswählen"]
[null,"Lieferant auswählen",null,null,false,null,null,null,null,0,null,"Kostenart auswählen"]
[null,"Lieferant auswählen",null,null,false,null,null,null,null,0,null,"Kostenart auswählen"]
[null,"Lieferant auswählen",null,null,false,null,null,null,null,0,null,"Kostenart auswählen"]
[null,"Lieferant auswählen",null,null,false,null,null,null,null,0,null,"Kostenart auswählen"]
[null,"Lieferant auswählen",null,null,false,null,null,null,null,0,null,"Kostenart auswählen"]
[null,"Lieferant auswählen",null,null,false,null,null,null,null,0,null,"Kostenart auswählen"]
[null,"Lieferant auswählen",null,null,false,null,null,null,null,0,null,"Kostenart auswählen"]
[null,"Lieferant auswählen",null,null,false,null,null,null,null,0,null,"Kostenart auswählen"]
[null,"Lieferant auswählen",null,null,false,null,null,null,null,0,null,"Kostenart auswählen"]
[null,"Lieferant auswählen",null,null,false,null,null,null,null,0,null,"Kostenart auswählen"]
[null,"Lieferant auswählen",null,null,false,null,null,null,null,0,null,"Kostenart auswählen"]
[null,"Lieferant auswählen",null,null,false,null,null,null,null,0,null,"Kostenart auswählen"]
[null,"Lieferant auswählen",null,null,false,null,null,null,null,0,null,"Kostenart auswählen"]
[null,"Lieferant auswählen",null,null,false,null,null,null,null,0,null,"Kostenart auswählen"]
[null,"Lieferant auswählen",null,null,false,null,null,null,null,0,null,"Kostenart auswählen"]
[null,"Lieferant auswählen",null,null,false,null,null,null,null,0,null,"Kostenart auswählen"]
[null,"Lieferant auswählen",null,null,false,null,null,null,null,0,null,"Kostenart auswählen"]
[null,"Lieferant auswählen",null,null,false,null,null,null,null,0,null,"Kostenart auswählen"]
[null,"Lieferant auswählen",null,null,false,null,null,null,null,0,null,"Kostenart auswählen"]
[null,"Lieferant auswählen",null,null,false,null,null,null,null,0,null,"Kostenart auswählen"]
[null,"Lieferant auswählen",null,null,false,null,null,null,null,0,null,"Kostenart auswählen"]
[null,"Lieferant auswählen",null,null,false,null,null,null,null,0,null,"Kostenart auswählen"]
[null,"Lieferant auswählen",null,null,false,null,null,null,null,0,null,"Kostenart auswählen"]
[null,"Lieferant auswählen",null,null,false,null,null,null,null,0,null,"Kostenart auswählen"]
[null,"Lieferant auswählen",null,null,false,null,null,null,null,0,null,"Kostenart auswählen"]
[null,"Lieferant auswählen",null,null,false,null,null,null,null,0,null,"Kostenart auswählen"]
[null,"Lieferant auswählen",null,null,false,null,null,null,null,0,null,"Kostenart auswählen"]
[null,"Lieferant auswählen",null,null,false,null,null,null,null,0,null,"Kostenart auswählen"]
[null,"Lieferant auswählen",null,null,{"$f":"IF(COUNTIF(D:D,D7427)=1,\"OK\",COUNTIF(D:D,D7427)=1)","v":false},null,null,null,null,{"$f":"H7427/(1+I7427)","v":0},null,"Kostenart auswählen"]
[null,"Lieferant auswählen",null,null,false,null,null,null,null,0,null,"Kostenart auswählen"]
[null,"Lieferant auswählen",null,null,false,null,null,null,null,0,null,"Kostenart auswählen"]
[null,"Lieferant auswählen",null,null,false,null,null,null,null,0,null,"Kostenart auswählen"]
[null,"Lieferant auswählen",null,null,false,null,null,null,null,0,null,"Kostenart auswählen"]
[null,"Lieferant auswählen",null,null,false,null,null,null,null,0,null,"Kostenart auswählen"]
[null,"Lieferant auswählen",null,null,false,null,null,null,null,0,null,"Kostenart auswählen"]
[null,"Lieferant auswählen",null,null,false,null,null,null,null,0,null,"Kostenart auswählen"]
[null,"Lieferant auswählen",null,null,false,null,null,null,null,0,null,"Kostenart auswählen"]
[null,"Lieferant auswählen",null,null,false,null,null,null,null,0,null,"Kostenart auswählen"]
[null,"Lieferant auswählen",null,null,false,null,null,null,null,0,null,"Kostenart auswählen"]
[null,"Lieferant auswählen",null,null,false,null,null,null,null,0,null,"Kostenart auswählen"]
[null,"Lieferant auswählen",null,null,false,null,null,null,null,0,null,"Kostenart auswählen"]
[null,"Lieferant auswählen",null,null,false,null,null,null,null,0,null,"Kostenart auswählen"]
[null,"Lieferant auswählen",null,null,false,null,null,null,null,0,null,"Kostenart auswählen"]
[null,"Lieferant auswählen",null,null,false,null,null,null,null,0,null,"Kostenart auswählen"]
[null,"Lieferant auswählen",null,null,false,null,null,null,null,0,null,"Kostenart auswählen"]
[null,"Lieferant auswählen",null,null,false,null,null,null,null,0,null,"Kostenart auswählen"]
[null,"Lieferant auswählen",null,null,false,null,null,null,null,0,null,"Kostenart auswählen"]
[null,"Lieferant auswählen",null,null,false,null,null,null,null,0,null,"Kostenart auswählen"]
[null,"Lieferant auswählen",null,null,false,null,null,null,null,0,null,"Kostenart auswählen"]
[null,"Lieferant auswählen",null,null,false,null,null,null,null,0,null,"Kostenart auswählen"]
[null,"Lieferant auswählen",null,null,false,null,null,null,null,0,null,"Kostenart auswählen"]
[null,"Lieferant auswählen",null,null,false,null,null,null,null,0,null,"Kostenart auswählen"]
[null,"Lieferant auswählen",null,null,false,null,null,null,null,0,null,"Kostenart auswählen"]
[null,"Lieferant auswählen",null,null,false,null,null,null,null,0,null,"Kostenart auswählen"]
[null,"Lieferant auswählen",null,null,false,null,null,null,null,0,null,"Kostenart auswählen"]
[null,"Lieferant auswählen",null,null,false,null,null,null,null,0,null,"Kostenart auswählen"]
[null,"Lieferant auswählen",null,null,false,null,null,null,null,0,null,"Kostenart auswählen"]
[null,"Lieferant auswählen",null,null,false,null,null,null,null,0,null,"Kostenart auswählen"]
[null,"Lieferant auswählen",null,null,false,null,null,null,null,0,null,"Kostenart auswählen"]
[null,"Lieferant auswählen",null,null,false,null,null,null,null,0,null,"Kostenart auswählen"]
[null,"Lieferant auswählen",null,null,false,null,null,null,null,0,null,"Kostenart auswählen"]
[null,"Lieferant auswählen",null,null,false,null,null,null,null,0,null,"Kostenart auswählen"]
[null,"Lieferant auswählen",null,null,false,null,null,null,null,0,null,"Kostenart auswählen"]
[null,"Lieferant auswählen",null,null,false,null,null,null,null,0,null,"Kostenart auswählen"]
[null,"Lieferant auswählen",null,null,false,null,null,null,null,0,null,"Kostenart auswählen"]
[null,"Lieferant auswählen",null,null,false,null,null,null,null,0,null,"Kostenart auswählen"]
[null,"Lieferant auswählen",null,null,false,null,null,null,null,0,null,"Kostenart auswählen"]
[null,"Lieferant auswählen",null,null,false,null,null,null,null,0,null,"Kostenart auswählen"]
[null,"Lieferant auswählen",null,null,false,null,null,null,null,0,null,"Kostenart auswählen"]
[null,"Lieferant auswählen",null,null,false,null,null,null,null,0,null,"Kostenart auswählen"]
[null,"Lieferant auswählen",null,null,false,null,null,null,null,0,null,"Kostenart auswählen"]
[null,"Lieferant auswählen",null,null,false,null,null,null,null,0,null,"Kostenart auswählen"]
[null,"Lieferant auswählen",null,null,false,null,null,null,null,0,null,"Kostenart auswählen"]
[null,"Lieferant auswählen",null,null,false,null,null,null,null,0,null,"Kostenart auswählen"]
[null,"Lieferant auswählen",null,null,false,null,null,null,null,0,null,"Kostenart auswählen"]
[null,"Lieferant auswählen",null,null,false,null,null,null,null,0,null,"Kostenart auswählen"]
[null,"Lieferant auswählen",null,null,false,null,null,null,null,0,null,"Kostenart auswählen"]
[null,"Lieferant auswählen",null,null,false,null,null,null,null,0,null,"Kostenart auswählen"]
[null,"Lieferant auswählen",null,null,false,null,null,null,null,0,null,"Kostenart auswählen"]
[null,"Lieferant auswählen",null,null,false,null,null,null,null,0,null,"Kostenart auswählen"]
[null,"Lieferant auswählen",null,null,false,null,null,null,null,0,null,"Kostenart auswählen"]
[null,"Lieferant auswählen",null,null,false,null,null,null,null,0,null,"Kostenart auswählen"]
[null,"Lieferant auswählen",null,null,false,null,null,null,null,0,null,"Kostenart auswählen"]
[null,"Lieferant auswählen",null,null,false,null,null,null,null,0,null,"Kostenart auswählen"]
[null,"Lieferant auswählen",null,null,false,null,null,null,null,0,null,"Kostenart auswählen"]
[null,"Lieferant auswählen",null,null,false,null,null,null,null,0,null,"Kostenart auswählen"]
[null,"Lieferant auswählen",null,null,false,null,null,null,null,0,null,"Kostenart auswählen"]
[null,"Lieferant auswählen",null,null,false,null,null,null,null,0,null,"Kostenart auswählen"]
[null,"Lieferant auswählen",null,null,false,null,null,null,null,0,null,"Kostenart auswählen"]
[null,"Lieferant auswählen",null,null,false,null,null,null,null,0,null,"Kostenart auswählen"]
[null,"Lieferant auswählen",null,null,false,null,null,null,null,0,null,"Kostenart auswählen"]
[null,"Lieferant auswählen",null,null,false,null,null,null,null,0,null,"Kostenart auswählen"]
[null,"Lieferant auswählen",null,null,false,null,null,null,null,0,null,"Kostenart auswählen"]
[null,"Lieferant auswählen",null,null,false,null,null,null,null,0,null,"Kostenart auswählen"]
[null,"Lieferant auswählen",null,null,false,null,null,null,null,0,null,"Kostenart auswählen"]
[null,"Lieferant auswählen",null,null,false,null,null,null,null,0,null,"Kostenart auswählen"]
[null,"Lieferant auswählen",null,null,false,null,null,null,null,0,null,"Kostenart auswählen"]
[null,"Lieferant auswählen",null,null,{"$f":"IF(COUNTIF(D:D,D7683)=1,\"OK\",COUNTIF(D:D,D7683)=1)","v":false},null,null,null,null,{"$f":"H7683/(1+I7683)","v":0},null,"Kostenart auswählen"]
[null,"Lieferant auswählen",null,null,false,null,null,null,null,0,null,"Kostenart auswählen"]
[null,"Lieferant auswählen",null,null,false,null,null,null,null,0,null,"Kostenart auswählen"]
[null,"Lieferant auswählen",null,null,false,null,null,null,null,0,null,"Kostenart auswählen"]
[null,"Lieferant auswählen",null,null,false,null,null,null,null,0,null,"Kostenart auswählen"]
[null,"Lieferant auswählen",null,null,false,null,null,null,null,0,null,"Kostenart auswählen"]
[null,"Lieferant auswählen",null,null,false,null,null,null,null,0,null,"Kostenart auswählen"]
[null,"Lieferant auswählen",null,null,false,null,null,null,null,0,null,"Kostenart auswählen"]
[null,"Lieferant auswählen",null,null,false,null,null,null,null,0,null,"Kostenart auswählen"]
[null,"Lieferant auswählen",null,null,false,null,null,null,null,0,null,"Kostenart auswählen"]
[null,"Lieferant auswählen",null,null,false,null,null,null,null,0,null,"Kostenart auswählen"]
[null,"Lieferant auswählen",null,null,false,null,null,null,null,0,null,"Kostenart auswählen"]
[null,"Lieferant auswählen",null,null,false,null,null,null,null,0,null,"Kostenart auswählen"]
[null,"Lieferant auswählen",null,null,false,null,null,null,null,0,null,"Kostenart auswählen"]
[null,"Lieferant auswählen",null,null,false,null,null,null,null,0,null,"Kostenart auswählen"]
[null,"Lieferant auswählen",null,null,false,null,null,null,null,0,null,"Kostenart auswählen"]
[null,"Lieferant auswählen",null,null,false,null,null,null,null,0,null,"Kostenart auswählen"]
[null,"Lieferant auswählen",null,null,false,null,null,null,null,0,null,"Kostenart auswählen"]
[null,"Lieferant auswählen",null,null,false,null,null,null,null,0,null,"Kostenart auswählen"]
[null,"Lieferant auswählen",null,null,false,null,null,null,null,0,null,"Kostenart auswählen"]
[null,"Lieferant auswählen",null,null,false,null,null,null,null,0,null,"Kostenart auswählen"]
[null,"Lieferant auswählen",null,null,false,null,null,null,null,0,null,"Kostenart auswählen"]
[null,"Lieferant auswählen",null,null,false,null,null,null,null,0,null,"Kostenart auswählen"]
[null,"Lieferant auswählen",null,null,false,null,null,null,null,0,null,"Kostenart auswählen"]
[null,"Lieferant auswählen",null,null,false,null,null,null,null,0,null,"Kostenart auswählen"]
[null,"Lieferant auswählen",null,null,false,null,null,null,null,0,null,"Kostenart auswählen"]
[null,"Lieferant auswählen",null,null,false,null,null,null,null,0,null,"Kostenart auswählen"]
[null,"Lieferant auswählen",null,null,false,null,null,null,null,0,null,"Kostenart auswählen"]
[null,"Lieferant auswählen",null,null,false,null,null,null,null,0,null,"Kostenart auswählen"]
[null,"Lieferant auswählen",null,null,false,null,null,null,null,0,null,"Kostenart auswählen"]
[null,"Lieferant auswählen",null,null,false,null,null,null,null,0,null,"Kostenart auswählen"]
[null,"Lieferant auswählen",null,null,false,null,null,null,null,0,null,"Kostenart auswählen"]
[null,"Lieferant auswählen",null,null,false,null,null,null,null,0,null,"Kostenart auswählen"]
[null,"Lieferant auswählen",null,null,false,null,null,null,null,0,null,"Kostenart auswählen"]
[null,"Lieferant auswählen",null,null,false,null,null,null,null,0,null,"Kostenart auswählen"]
[null,"Lieferant auswählen",null,null,false,null,null,null,null,0,null,"Kostenart auswählen"]
[null,"Lieferant auswählen",null,null,false,null,null,null,null,0,null,"Kostenart auswählen"]
[null,"Lieferant auswählen",null,null,false,null,null,null,null,0,null,"Kostenart auswählen"]
[null,"Lieferant auswählen",null,null,false,null,null,null,null,0,null,"Kostenart auswählen"]
[null,"Lieferant auswählen",null,null,false,null,null,null,null,0,null,"Kostenart auswählen"]
[null,"Lieferant auswählen",null,null,false,null,null,null,null,0,null,"Kostenart auswählen"]
[null,"Lieferant auswählen",null,null,false,null,null,null,null,0,null,"Kostenart auswählen"]
[null,"Lieferant auswählen",null,null,false,null,null,null,null,0,null,"Kostenart auswählen"]
[null,"Lieferant auswählen",null,null,false,null,null,null,null,0,null,"Kostenart auswählen"]
[null,"Lieferant auswählen",null,null,false,null,null,null,null,0,null,"Kostenart auswählen"]
[null,"Lieferant auswählen",null,null,false,null,null,null,null,0,null,"Kostenart auswählen"]
[null,"Lieferant auswählen",null,null,false,null,null,null,null,0,null,"Kostenart auswählen"]
[null,"Lieferant auswählen",null,null,false,null,null,null,null,0,null,"Kostenart auswählen"]
[null,"Lieferant auswählen",null,null,false,null,null,null,null,0,null,"Kostenart auswählen"]
[null,"Lieferant auswählen",null,null,false,null,null,null,null,0,null,"Kostenart auswählen"]
[null,"Lieferant auswählen",null,null,false,null,null,null,null,0,null,"Kostenart auswählen"]
[null,"Lieferant auswählen",null,null,false,null,null,null,null,0,null,"Kostenart auswählen"]
[null,"Lieferant auswählen",null,null,false,null,null,null,null,0,null,"Kostenart auswählen"]
[null,"Lieferant auswählen",null,null,false,null,null,null,null,0,null,"Kostenart auswählen"]
[null,"Lieferant auswählen",null,null,false,null,null,null,null,0,null,"Kostenart auswählen"]
[null,"Lieferant auswählen",null,null,false,null,null,null,null,0,null,"Kostenart auswählen"]
[null,"Lieferant auswählen",null,null,false,null,null,null,null,0,null,"Kostenart auswählen"]
[null,"Lieferant auswählen",null,null,false,null,null,null,null,0,null,"Kostenart auswählen"]
[null,"Lieferant auswählen",null,null,false,null,null,null,null,0,null,"Kostenart auswählen"]
[null,"Lieferant auswählen",null,null,false,null,null,null,null,0,null,"Kostenart auswählen"]
[null,"Lieferant auswählen",null,null,false,null,null,null,null,0,null,"Kostenart auswählen"]
[null,"Lieferant auswählen",null,null,false,null,null,null,null,0,null,"Kostenart auswählen"]
[null,"Lieferant auswählen",null,null,false,null,null,null,null,0,null,"Kostenart auswählen"]
[null,"Lieferant auswählen",null,null,false,null,null,null,null,0,null,"Kostenart auswählen"]
[null,"Lieferant auswählen",null,null,false,null,null,null,null,0,null,"Kostenart auswählen"]
[null,"Lieferant auswählen",null,null,false,null,null,null,null,0,null,"Kostenart auswählen"]
[null,"Lieferant auswählen",null,null,false,null,null,null,null,0,null,"Kostenart auswählen"]
[null,"Lieferant auswählen",null,null,false,null,null,null,null,0,null,"Kostenart auswählen"]
[null,"Lieferant auswählen",null,null,false,null,null,null,null,0,null,"Kostenart auswählen"]
[null,"Lieferant auswählen",null,null,false,null,null,null,null,0,null,"Kostenart auswählen"]
[null,"Lieferant auswählen",null,null,false,null,null,null,null,0,null,"Kostenart auswählen"]
[null,"Lieferant auswählen",null,null,false,null,null,null,null,0,null,"Kostenart auswählen"]
[null,"Lieferant auswählen",null,null,false,null,null,null,null,0,null,"Kostenart auswählen"]
[null,"Lieferant auswählen",null,null,false,null,null,null,null,0,null,"Kostenart auswählen"]
[null,"Lieferant auswählen",null,null,false,null,null,null,null,0,null,"Kostenart auswählen"]
[null,"Lieferant auswählen",null,null,false,null,null,null,null,0,null,"Kostenart auswählen"]
[null,"Lieferant auswählen",null,null,false,null,null,null,null,0,null,"Kostenart auswählen"]
[null,"Lieferant auswählen",null,null,false,null,null,null,null,0,null,"Kostenart auswählen"]
[null,"Lieferant auswählen",null,null,false,null,null,null,null,0,null,"Kostenart auswählen"]
[null,"Lieferant auswählen",null,null,false,null,null,null,null,0,null,"Kostenart auswählen"]
[null,"Lieferant auswählen",null,null,false,null,null,null,null,0,null,"Kostenart auswählen"]
[null,"Lieferant auswählen",null,null,false,null,null,null,null,0,null,"Kostenart auswählen"]
[null,"Lieferant auswählen",null,null,false,null,null,null,null,0,null,"Kostenart auswählen"]
[null,"Lieferant auswählen",null,null,false,null,null,null,null,0,null,"Kostenart auswählen"]
[null,"Lieferant auswählen",null,null,false,null,null,null,null,0,null,"Kostenart auswählen"]
[null,"Lieferant auswählen",null,null,{"$f":"IF(COUNTIF(D:D,D8003)=1,\"OK\",COUNTIF(D:D,D8003)=1)","v":false},null,null,null,null,{"$f":"H8003/(1+I8003)","v":0},null,"Kostenart auswählen"]
[null,"Lieferant auswählen",null,null,false,null,null,null,null,0,null,"Kostenart auswählen"]
[null,"Lieferant auswählen",null,null,false,null,null,null,null,0,null,"Kostenart auswählen"]
[null,"Lieferant auswählen",null,null,false,null,null,null,null,0,null,"Kostenart auswählen"]
[null,"Lieferant auswählen",null,null,false,null,null,null,null,0,null,"Kostenart auswählen"]
[null,"Lieferant auswählen",null,null,false,null,null,null,null,0,null,"Kostenart auswählen"]
[null,"Lieferant auswählen",null,null,false,null,null,null,null,0,null,"Kostenart auswählen"]
[null,"Lieferant auswählen",null,null,false,null,null,null,null,0,null,"Kostenart auswählen"]
[null,"Lieferant auswählen",null,null,false,null,null,null,null,0,null,"Kostenart auswählen"]
[null,"Lieferant auswählen",null,null,false,null,null,null,null,0,null,"Kostenart auswählen"]
[null,"Lieferant auswählen",null,null,false,null,null,null,null,0,null,"Kostenart auswählen"]
[null,"Lieferant auswählen",null,null,false,null,null,null,null,0,null,"Kostenart auswählen"]
[null,"Lieferant auswählen",null,null,false,null,null,null,null,0,null,"Kostenart auswählen"]
[null,"Lieferant auswählen",null,null,false,null,null,null,null,0,null,"Kostenart auswählen"]
[null,"Lieferant auswählen",null,null,false,null,null,null,null,0,null,"Kostenart auswählen"]
[null,"Lieferant auswählen",null,null,false,null,null,null,null,0,null,"Kostenart auswählen"]
[null,"Lieferant auswählen",null,null,false,null,null,null,null,0,null,"Kostenart auswählen"]
[null,"Lieferant auswählen",null,null,false,null,null,null,null,0,null,"Kostenart auswählen"]
[null,"Lieferant auswählen",null,null,false,null,null,null,null,0,null,"Kostenart auswählen"]
[null,"Lieferant auswählen",null,null,false,null,null,null,null,0,null,"Kostenart auswählen"]
[null,"Lieferant auswählen",null,null,false,null,null,null,null,0,null,"Kostenart auswählen"]
[null,"Lieferant auswählen",null,null,false,null,null,null,null,0,null,"Kostenart auswählen"]
[null,"Lieferant auswählen",null,null,false,null,null,null,null,0,null,"Kostenart auswählen"]
[null,"Lieferant auswählen",null,null,false,null,null,null,null,0,null,"Kostenart auswählen"]
[null,"Lieferant auswählen",null,null,false,null,null,null,null,0,null,"Kostenart auswählen"]
[null,"Lieferant auswählen",null,null,false,null,null,null,null,0,null,"Kostenart auswählen"]
[null,"Lieferant auswählen",null,null,false,null,null,null,null,0,null,"Kostenart auswählen"]
[null,"Lieferant auswählen",null,null,false,null,null,null,null,0,null,"Kostenart auswählen"]
[null,"Lieferant auswählen",null,null,false,null,null,null,null,0,null,"Kostenart auswählen"]
[null,"Lieferant auswählen",null,null,false,null,null,null,null,0,null,"Kostenart auswählen"]
[null,"Lieferant auswählen",null,null,false,null,null,null,null,0,null,"Kostenart auswählen"]
[null,"Lieferant auswählen",null,null,false,null,null,null,null,0,null,"Kostenart auswählen"]
[null,"Lieferant auswählen",null,null,false,null,null,null,null,0,null,"Kostenart auswählen"]
[null,"Lieferant auswählen",null,null,false,null,null,null,null,0,null,"Kostenart auswählen"]
[null,"Lieferant auswählen",null,null,{"$f":"IF(COUNTIF(D:D,D8131)=1,\"OK\",COUNTIF(D:D,D8131)=1)","v":false},null,null,null,null,{"$f":"H8131/(1+I8131)","v":0},null,"Kostenart auswählen"]
[null,"Lieferant auswählen",null,null,false,null,null,null,null,0,null,"Kostenart auswählen"]
[null,"Lieferant auswählen",null,null,false,null,null,null,null,0,null,"Kostenart auswählen"]
[null,"Lieferant auswählen",null,null,false,null,null,null,null,0,null,"Kostenart auswählen"]
[null,"Lieferant auswählen",null,null,false,null,null,null,null,0,null,"Kostenart auswählen"]
[null,"Lieferant auswählen",null,null,false,null,null,null,null,0,null,"Kostenart auswählen"]
[null,"Lieferant auswählen",null,null,false,null,null,null,null,0,null,"Kostenart auswählen"]
[null,"Lieferant auswählen",null,null,false,null,null,null,null,0,null,"Kostenart auswählen"]
[null,"Lieferant auswählen",null,null,false,null,null,null,null,0,null,"Kostenart auswählen"]
[null,"Lieferant auswählen",null,null,false,null,null,null,null,0,null,"Kostenart auswählen"]
[null,"Lieferant auswählen",null,null,false,null,null,null,null,0,null,"Kostenart auswählen"]
[null,"Lieferant auswählen",null,null,false,null,null,null,null,0,null,"Kostenart auswählen"]
[null,"Lieferant auswählen",null,null,false,null,null,null,null,0,null,"Kostenart auswählen"]
[null,"Lieferant auswählen",null,null,false,null,null,null,null,0,null,"Kostenart auswählen"]
[null,"Lieferant auswählen",null,null,false,null,null,null,null,0,null,"Kostenart auswählen"]
[null,"Lieferant auswählen",null,null,false,null,null,null,null,0,null,"Kostenart auswählen"]
[null,"Lieferant auswählen",null,null,false,null,null,null,null,0,null,"Kostenart auswählen"]
[null,"Lieferant auswählen",null,null,false,null,null,null,null,0,null,"Kostenart auswählen"]
[null,"Lieferant auswählen",null,null,false,null,null,null,null,0,null,"Kostenart auswählen"]
[null,"Lieferant auswählen",null,null,false,null,null,null,null,0,null,"Kostenart auswählen"]
[null,"Lieferant auswählen",null,null,false,null,null,null,null,0,null,"Kostenart auswählen"]
[null,"Lieferant auswählen",null,null,false,null,null,null,null,0,null,"Kostenart auswählen"]
[null,"Lieferant auswählen",null,null,false,null,null,null,null,0,null,"Kostenart auswählen"]
[null,"Lieferant auswählen",null,null,false,null,null,null,null,0,null,"Kostenart auswählen"]
[null,"Lieferant auswählen",null,null,false,null,null,null,null,0,null,"Kostenart auswählen"]
[null,"Lieferant auswählen",null,null,false,null,null,null,null,0,null,"Kostenart auswählen"]
[null,"Lieferant auswählen",null,null,false,null,null,null,null,0,null,"Kostenart auswählen"]
[null,"Lieferant auswählen",null,null,false,null,null,null,null,0,null,"Kostenart auswählen"]
[null,"Lieferant auswählen",null,null,false,null,null,null,null,0,null,"Kostenart auswählen"]
[null,"Lieferant auswählen",null,null,false,null,null,null,null,0,null,"Kostenart auswählen"]
[null,"Lieferant auswählen",null,null,false,null,null,null,null,0,null,"Kostenart auswählen"]
[null,"Lieferant auswählen",null,null,false,null,null,null,null,0,null,"Kostenart auswählen"]
[null,"Lieferant auswählen",null,null,false,null,null,null,null,0,null,"Kostenart auswählen"]
[null,"Lieferant auswählen",null,null,false,null,null,null,null,0,null,"Kostenart auswählen"]
[null,"Lieferant auswählen",null,null,false,null,null,null,null,0,null,"Kostenart auswählen"]
[null,"Lieferant auswählen",null,null,false,null,null,null,null,0,null,"Kostenart auswählen"]
[null,"Lieferant auswählen",null,null,false,null,null,null,null,0,null,"Kostenart auswählen"]
[null,"Lieferant auswählen",null,null,false,null,null,null,null,0,null,"Kostenart auswählen"]
[null,"Lieferant auswählen",null,null,false,null,null,null,null,0,null,"Kostenart auswählen"]
[null,"Lieferant auswählen",null,null,false,null,null,null,null,0,null,"Kostenart auswählen"]
[null,"Lieferant auswählen",null,null,false,null,null,null,null,0,null,"Kostenart auswählen"]
[null,"Lieferant auswählen",null,null,false,null,null,null,null,0,null,"Kostenart auswählen"]
[null,"Lieferant auswählen",null,null,false,null,null,null,null,0,null,"Kostenart auswählen"]
[null,"Lieferant auswählen",null,null,false,null,null,null,null,0,null,"Kostenart auswählen"]
[null,"Lieferant auswählen",null,null,false,null,null,null,null,0,null,"Kostenart auswählen"]
[null,"Lieferant auswählen",null,null,false,null,null,null,null,0,null,"Kostenart auswählen"]
[null,"Lieferant auswählen",null,null,false,null,null,null,null,0,null,"Kostenart auswählen"]
[null,"Lieferant auswählen",null,null,false,null,null,null,null,0,null,"Kostenart auswählen"]
[null,"Lieferant auswählen",null,null,false,null,null,null,null,0,null,"Kostenart auswählen"]
[null,"Lieferant auswählen",null,null,false,null,null,null,null,0,null,"Kostenart auswählen"]
[null,"Lieferant auswählen",null,null,false,null,null,null,null,0,null,"Kostenart auswählen"]
[null,"Lieferant auswählen",null,null,{"$f":"IF(COUNTIF(D:D,D8323)=1,\"OK\",COUNTIF(D:D,D8323)=1)","v":false},null,null,null,null,{"$f":"H8323/(1+I8323)","v":0},null,"Kostenart auswählen"]
[null,"Lieferant auswählen",null,null,false,null,null,null,null,0,null,"Kostenart auswählen"]
[null,"Lieferant auswählen",null,null,false,null,null,null,null,0,null,"Kostenart auswählen"]
[null,"Lieferant auswählen",null,null,false,null,null,null,null,0,null,"Kostenart auswählen"]
[null,"Lieferant auswählen",null,null,false,null,null,null,null,0,null,"Kostenart auswählen"]
[null,"Lieferant auswählen",null,null,false,null,null,null,null,0,null,"Kostenart auswählen"]
[null,"Lieferant auswählen",null,null,false,null,null,null,null,0,null,"Kostenart auswählen"]
[null,"Lieferant auswählen",null,null,false,null,null,null,null,0,null,"Kostenart auswählen"]
[null,"Lieferant auswählen",null,null,false,null,null,null,null,0,null,"Kostenart auswählen"]
[null,"Lieferant auswählen",null,null,false,null,null,null,null,0,null,"Kostenart auswählen"]
[null,"Lieferant auswählen",null,null,false,null,null,null,null,0,null,"Kostenart auswählen"]
[null,"Lieferant auswählen",null,null,false,null,null,null,null,0,null,"Kostenart auswählen"]
[null,"Lieferant auswählen",null,null,false,null,null,null,null,0,null,"Kostenart auswählen"]
[null,"Lieferant auswählen",null,null,false,null,null,null,null,0,null,"Kostenart auswählen"]
[null,"Lieferant auswählen",null,null,false,null,null,null,null,0,null,"Kostenart auswählen"]
[null,"Lieferant auswählen",null,null,false,null,null,null,null,0,null,"Kostenart auswählen"]
[null,"Lieferant auswählen",null,null,false,null,null,null,null,0,null,"Kostenart auswählen"]
[null,"Lieferant auswählen",null,null,false,null,null,null,null,0,null,"Kostenart auswählen"]
[null,"Lieferant auswählen",null,null,false,null,null,null,null,0,null,"Kostenart auswählen"]
[null,"Lieferant auswählen",null,null,false,null,null,null,null,0,null,"Kostenart auswählen"]
[null,"Lieferant auswählen",null,null,false,null,null,null,null,0,null,"Kostenart auswählen"]
[null,"Lieferant auswählen",null,null,false,null,null,null,null,0,null,"Kostenart auswählen"]
[null,"Lieferant auswählen",null,null,false,null,null,null,null,0,null,"Kostenart auswählen"]
[null,"Lieferant auswählen",null,null,false,null,null,null,null,0,null,"Kostenart auswählen"]
[null,"Lieferant auswählen",null,null,false,null,null,null,null,0,null,"Kostenart auswählen"]
[null,"Lieferant auswählen",null,null,false,null,null,null,null,0,null,"Kostenart auswählen"]
[null,"Lieferant auswählen",null,null,false,null,null,null,null,0,null,"Kostenart auswählen"]
[null,"Lieferant auswählen",null,null,false,null,null,null,null,0,null,"Kostenart auswählen"]
[null,"Lieferant auswählen",null,null,false,null,null,null,null,0,null,"Kostenart auswählen"]
[null,"Lieferant auswählen",null,null,false,null,null,null,null,0,null,"Kostenart auswählen"]
[null,"Lieferant auswählen",null,null,false,null,null,null,null,0,null,"Kostenart auswählen"]
[null,"Lieferant auswählen",null,null,false,null,null,null,null,0,null,"Kostenart auswählen"]
[null,"Lieferant auswählen",null,null,false,null,null,null,null,0,null,"Kostenart auswählen"]
[null,"Lieferant auswählen",null,null,false,null,null,null,null,0,null,"Kostenart auswählen"]
[null,"Lieferant auswählen",null,null,false,null,null,null,null,0,null,"Kostenart auswählen"]
[null,"Lieferant auswählen",null,null,false,null,null,null,null,0,null,"Kostenart auswählen"]
[null,"Lieferant auswählen",null,null,false,null,null,null,null,0,null,"Kostenart auswählen"]
[null,"Lieferant auswählen",null,null,false,null,null,null,null,0,null,"Kostenart auswählen"]
[null,"Lieferant auswählen",null,null,false,null,null,null,null,0,null,"Kostenart auswählen"]
[null,"Lieferant auswählen",null,null,false,null,null,null,null,0,null,"Kostenart auswählen"]
[null,"Lieferant auswählen",null,null,false,null,null,null,null,0,null,"Kostenart auswählen"]
[null,"Lieferant auswählen",null,null,false,null,null,null,null,0,null,"Kostenart auswählen"]
[null,"Lieferant auswählen",null,null,false,null,null,null,null,0,null,"Kostenart auswählen"]
[null,"Lieferant auswählen",null,null,false,null,null,null,null,0,null,"Kostenart auswählen"]
[null,"Lieferant auswählen",null,null,false,null,null,null,null,0,null,"Kostenart auswählen"]
[null,"Lieferant auswählen",null,null,false,null,null,null,null,0,null,"Kostenart auswählen"]
[null,"Lieferant auswählen",null,null,false,null,null,null,null,0,null,"Kostenart auswählen"]
[null,"Lieferant auswählen",null,null,false,null,null,null,null,0,null,"Kostenart auswählen"]
[null,"Lieferant auswählen",null,null,false,null,null,null,null,0,null,"Kostenart auswählen"]
[null,"Lieferant auswählen",null,null,false,null,null,null,null,0,null,"Kostenart auswählen"]
[null,"Lieferant auswählen",null,null,false,null,null,null,null,0,null,"Kostenart auswählen"]
[null,"Lieferant auswählen",null,null,false,null,null,null,null,0,null,"Kostenart auswählen"]
[null,"Lieferant auswählen",null,null,false,null,null,null,null,0,null,"Kostenart auswählen"]
[null,"Lieferant auswählen",null,null,false,null,null,null,null,0,null,"Kostenart auswählen"]
[null,"Lieferant auswählen",null,null,false,null,null,null,null,0,null,"Kostenart auswählen"]
[null,"Lieferant auswählen",null,null,false,null,null,null,null,0,null,"Kostenart auswählen"]
[null,"Lieferant auswählen",null,null,false,null,null,null,null,0,null,"Kostenart auswählen"]
[null,"Lieferant auswählen",null,null,false,null,null,null,null,0,null,"Kostenart auswählen"]
[null,"Lieferant auswählen",null,null,false,null,null,null,null,0,null,"Kostenart auswählen"]
[null,"Lieferant auswählen",null,null,false,null,null,null,null,0,null,"Kostenart auswählen"]
[null,"Lieferant auswählen",null,null,false,null,null,null,null,0,null,"Kostenart auswählen"]
[null,"Lieferant auswählen",null,null,false,null,null,null,null,0,null,"Kostenart auswählen"]
[null,"Lieferant auswählen",null,null,false,null,null,null,null,0,null,"Kostenart auswählen"]
[null,"Lieferant auswählen",null,null,false,null,null,null,null,0,null,"Kostenart auswählen"]
[null,"Lieferant auswählen",null,null,false,null,null,null,null,0,null,"Kostenart auswählen"]
[null,"Lieferant auswählen",null,null,false,null,null,null,null,0,null,"Kostenart auswählen"]
[null,"Lieferant auswählen",null,null,false,null,null,null,null,0,null,"Kostenart auswählen"]
[null,"Lieferant auswählen",null,null,false,null,null,null,null,0,null,"Kostenart auswählen"]
[null,"Lieferant auswählen",null,null,false,null,null,null,null,0,null,"Kostenart auswählen"]
[null,"Lieferant auswählen",null,null,false,null,null,null,null,0,null,"Kostenart auswählen"]
[null,"Lieferant auswählen",null,null,false,null,null,null,null,0,null,"Kostenart auswählen"]
[null,"Lieferant auswählen",null,null,false,null,null,null,null,0,null,"Kostenart auswählen"]
[null,"Lieferant auswählen",null,null,false,null,null,null,null,0,null,"Kostenart auswählen"]
[null,"Lieferant auswählen",null,null,false,null,null,null,null,0,null,"Kostenart auswählen"]
[null,"Lieferant auswählen",null,null,false,null,null,null,null,0,null,"Kostenart auswählen"]
[null,"Lieferant auswählen",null,null,false,null,null,null,null,0,null,"Kostenart auswählen"]
[null,"Lieferant auswählen",null,null,false,null,null,null,null,0,null,"Kostenart auswählen"]
[null,"Lieferant auswählen",null,null,false,null,null,null,null,0,null,"Kostenart auswählen"]
[null,"Lieferant auswählen",null,null,false,null,null,null,null,0,null,"Kostenart auswählen"]
[null,"Lieferant auswählen",null,null,false,null,null,null,null,0,null,"Kostenart auswählen"]
[null,"Lieferant auswählen",null,null,false,null,null,null,null,0,null,"Kostenart auswählen"]
[null,"Lieferant auswählen",null,null,false,null,null,null,null,0,null,"Kostenart auswählen"]
[null,"Lieferant auswählen",null,null,false,null,null,null,null,0,null,"Kostenart auswählen"]
[null,"Lieferant auswählen",null,null,false,null,null,null,null,0,null,"Kostenart auswählen"]
[null,"Lieferant auswählen",null,null,false,null,null,null,null,0,null,"Kostenart auswählen"]
[null,"Lieferant auswählen",null,null,{"$f":"IF(COUNTIF(D:D,D8643)=1,\"OK\",COUNTIF(D:D,D8643)=1)","v":false},null,null,null,null,{"$f":"H8643/(1+I8643)","v":0},null,"Kostenart auswählen"]
[null,"Lieferant auswählen",null,null,false,null,null,null,null,0,null,"Kostenart auswählen"]
[null,"Lieferant auswählen",null,null,false,null,null,null,null,0,null,"Kostenart auswählen"]
[null,"Lieferant auswählen",null,null,false,null,null,null,null,0,null,"Kostenart auswählen"]
[null,"Lieferant auswählen",null,null,false,null,null,null,null,0,null,"Kostenart auswählen"]
[null,"Lieferant auswählen",null,null,false,null,null,null,null,0,null,"Kostenart auswählen"]
[null,"Lieferant auswählen",null,null,false,null,null,null,null,0,null,"Kostenart auswählen"]
[null,"Lieferant auswählen",null,null,false,null,null,null,null,0,null,"Kostenart auswählen"]
[null,"Lieferant auswählen",null,null,false,null,null,null,null,0,null,"Kostenart auswählen"]
[null,"Lieferant auswählen",null,null,false,null,null,null,null,0,null,"Kostenart auswählen"]
[null,"Lieferant auswählen",null,null,false,null,null,null,null,0,null,"Kostenart auswählen"]
[null,"Lieferant auswählen",null,null,false,null,null,null,null,0,null,"Kostenart auswählen"]
[null,"Lieferant auswählen",null,null,false,null,null,null,null,0,null,"Kostenart auswählen"]
[null,"Lieferant auswählen",null,null,false,null,null,null,null,0,null,"Kostenart auswählen"]
[null,"Lieferant auswählen",null,null,false,null,null,null,null,0,null,"Kostenart auswählen"]
[null,"Lieferant auswählen",null,null,false,null,null,null,null,0,null,"Kostenart auswählen"]
[null,"Lieferant auswählen",null,null,false,null,null,null,null,0,null,"Kostenart auswählen"]
[null,"Lieferant auswählen",null,null,false,null,null,null,null,0,null,"Kostenart auswählen"]
[null,"Lieferant auswählen",null,null,false,null,null,null,null,0,null,"Kostenart auswählen"]
[null,"Lieferant auswählen",null,null,false,null,null,null,null,0,null,"Kostenart auswählen"]
[null,"Lieferant auswählen",null,null,false,null,null,null,null,0,null,"Kostenart auswählen"]
[null,"Lieferant auswählen",null,null,false,null,null,null,null,0,null,"Kostenart auswählen"]
[null,"Lieferant auswählen",null,null,false,null,null,null,null,0,null,"Kostenart auswählen"]
[null,"Lieferant auswählen",null,null,false,null,null,null,null,0,null,"Kostenart auswählen"]
[null,"Lieferant auswählen",null,null,false,null,null,null,null,0,null,"Kostenart auswählen"]
[null,"Lieferant auswählen",null,null,false,null,null,null,null,0,null,"Kostenart auswählen"]
[null,"Lieferant auswählen",null,null,false,null,null,null,null,0,null,"Kostenart auswählen"]
[null,"Lieferant auswählen",null,null,false,null,null,null,null,0,null,"Kostenart auswählen"]
[null,"Lieferant auswählen",null,null,false,null,null,null,null,0,null,"Kostenart auswählen"]
[null,"Lieferant auswählen",null,null,false,null,null,null,null,0,null,"Kostenart auswählen"]
[null,"Lieferant auswählen",null,null,false,null,null,null,null,0,null,"Kostenart auswählen"]
[null,"Lieferant auswählen",null,null,false,null,null,null,null,0,null,"Kostenart auswählen"]
[null,"Lieferant auswählen",null,null,false,null,null,null,null,0,null,"Kostenart auswählen"]
[null,"Lieferant auswählen",null,null,false,null,null,null,null,0,null,"Kostenart auswählen"]
[null,"Lieferant auswählen",null,null,false,null,null,null,null,0,null,"Kostenart auswählen"]
[null,"Lieferant auswählen",null,null,false,null,null,null,null,0,null,"Kostenart auswählen"]
[null,"Lieferant auswählen",null,null,false,null,null,null,null,0,null,"Kostenart auswählen"]
[null,"Lieferant auswählen",null,null,false,null,null,null,null,0,null,"Kostenart auswählen"]
[null,"Lieferant auswählen",null,null,false,null,null,null,null,0,null,"Kostenart auswählen"]
[null,"Lieferant auswählen",null,null,false,null,null,null,null,0,null,"Kostenart auswählen"]
[null,"Lieferant auswählen",null,null,false,null,null,null,null,0,null,"Kostenart auswählen"]
[null,"Lieferant auswählen",null,null,false,null,null,null,null,0,null,"Kostenart auswählen"]
[null,"Lieferant auswählen",null,null,false,null,null,null,null,0,null,"Kostenart auswählen"]
[null,"Lieferant auswählen",null,null,false,null,null,null,null,0,null,"Kostenart auswählen"]
[null,"Lieferant auswählen",null,null,false,null,null,null,null,0,null,"Kostenart auswählen"]
[null,"Lieferant auswählen",null,null,false,null,null,null,null,0,null,"Kostenart auswählen"]
[null,"Lieferant auswählen",null,null,false,null,null,null,null,0,null,"Kostenart auswählen"]
[null,"Lieferant auswählen",null,null,false,null,null,null,null,0,null,"Kostenart auswählen"]
[null,"Lieferant auswählen",null,null,false,null,null,null,null,0,null,"Kostenart auswählen"]
[null,"Lieferant auswählen",null,null,false,null,null,null,null,0,null,"Kostenart auswählen"]
[null,"Lieferant auswählen",null,null,false,null,null,null,null,0,null,"Kostenart auswählen"]
[null,"Lieferant auswählen",null,null,false,null,null,null,null,0,null,"Kostenart auswählen"]
[null,"Lieferant auswählen",null,null,false,null,null,null,null,0,null,"Kostenart auswählen"]
[null,"Lieferant auswählen",null,null,false,null,null,null,null,0,null,"Kostenart auswählen"]
[null,"Lieferant auswählen",null,null,false,null,null,null,null,0,null,"Kostenart auswählen"]
[null,"Lieferant auswählen",null,null,false,null,null,null,null,0,null,"Kostenart auswählen"]
[null,"Lieferant auswählen",null,null,false,null,null,null,null,0,null,"Kostenart auswählen"]
[null,"Lieferant auswählen",null,null,false,null,null,null,null,0,null,"Kostenart auswählen"]
[null,"Lieferant auswählen",null,null,false,null,null,null,null,0,null,"Kostenart auswählen"]
[null,"Lieferant auswählen",null,null,false,null,null,null,null,0,null,"Kostenart auswählen"]
[null,"Lieferant auswählen",null,null,false,null,null,null,null,0,null,"Kostenart auswählen"]
[null,"Lieferant auswählen",null,null,false,null,null,null,null,0,null,"Kostenart auswählen"]
[null,"Lieferant auswählen",null,null,false,null,null,null,null,0,null,"Kostenart auswählen"]
[null,"Lieferant auswählen",null,null,false,null,null,null,null,0,null,"Kostenart auswählen"]
[null,"Lieferant auswählen",null,null,false,null,null,null,null,0,null,"Kostenart auswählen"]
[null,"Lieferant auswählen",null,null,false,null,null,null,null,0,null,"Kostenart auswählen"]
[null,"Lieferant auswählen",null,null,false,null,null,null,null,0,null,"Kostenart auswählen"]
[null,"Lieferant auswählen",null,null,false,null,null,null,null,0,null,"Kostenart auswählen"]
[null,"Lieferant auswählen",null,null,false,null,null,null,null,0,null,"Kostenart auswählen"]
[null,"Lieferant auswählen",null,null,false,null,null,null,null,0,null,"Kostenart auswählen"]
[null,"Lieferant auswählen",null,null,false,null,null,null,null,0,null,"Kostenart auswählen"]
[null,"Lieferant auswählen",null,null,false,null,null,null,null,0,null,"Kostenart auswählen"]
[null,"Lieferant auswählen",null,null,false,null,null,null,null,0,null,"Kostenart auswählen"]
[null,"Lieferant auswählen",null,null,false,null,null,null,null,0,null,"Kostenart auswählen"]
[null,"Lieferant auswählen",null,null,false,null,null,null,null,0,null,"Kostenart auswählen"]
[null,"Lieferant auswählen",null,null,false,null,null,null,null,0,null,"Kostenart auswählen"]
[null,"Lieferant auswählen",null,null,false,null,null,null,null,0,null,"Kostenart auswählen"]
[null,"Lieferant auswählen",null,null,false,null,null,null,null,0,null,"Kostenart auswählen"]
[null,"Lieferant auswählen",null,null,false,null,null,null,null,0,null,"Kostenart auswählen"]
[null,"Lieferant auswählen",null,null,false,null,null,null,null,0,null,"Kostenart auswählen"]
[null,"Lieferant auswählen",null,null,false,null,null,null,null,0,null,"Kostenart auswählen"]
[null,"Lieferant auswählen",null,null,false,null,null,null,null,0,null,"Kostenart auswählen"]
[null,"Lieferant auswählen",null,null,false,null,null,null,null,0,null,"Kostenart auswählen"]
[null,"Lieferant auswählen",null,null,false,null,null,null,null,0,null,"Kostenart auswählen"]
[null,"Lieferant auswählen",null,null,false,null,null,null,null,0,null,"Kostenart auswählen"]
[null,"Lieferant auswählen",null,null,false,null,null,null,null,0,null,"Kostenart auswählen"]
[null,"Lieferant auswählen",null,null,{"$f":"IF(COUNTIF(D:D,D8963)=1,\"OK\",COUNTIF(D:D,D8963)=1)","v":false},null,null,null,null,{"$f":"H8963/(1+I8963)","v":0},null,"Kostenart auswählen"]
[null,"Lieferant auswählen",null,null,false,null,null,null,null,0,null,"Kostenart auswählen"]
[null,"Lieferant auswählen",null,null,false,null,null,null,null,0,null,"Kostenart auswählen"]
[null,"Lieferant auswählen",null,null,false,null,null,null,null,0,null,"Kostenart auswählen"]
[null,"Lieferant auswählen",null,null,false,null,null,null,null,0,null,"Kostenart auswählen"]
[null,"Lieferant auswählen",null,null,false,null,null,null,null,0,null,"Kostenart auswählen"]
[null,"Lieferant auswählen",null,null,false,null,null,null,null,0,null,"Kostenart auswählen"]
[null,"Lieferant auswählen",null,null,false,null,null,null,null,0,null,"Kostenart auswählen"]
[null,"Lieferant auswählen",null,null,false,null,null,null,null,0,null,"Kostenart auswählen"]
[null,"Lieferant auswählen",null,null,false,null,null,null,null,0,null,"Kostenart auswählen"]
[null,"Lieferant auswählen",null,null,false,null,null,null,null,0,null,"Kostenart auswählen"]
[null,"Lieferant auswählen",null,null,false,null,null,null,null,0,null,"Kostenart auswählen"]
[null,"Lieferant auswählen",null,null,false,null,null,null,null,0,null,"Kostenart auswählen"]
[null,"Lieferant auswählen",null,null,false,null,null,null,null,0,null,"Kostenart auswählen"]
[null,"Lieferant auswählen",null,null,false,null,null,null,null,0,null,"Kostenart auswählen"]
[null,"Lieferant auswählen",null,null,false,null,null,null,null,0,null,"Kostenart auswählen"]
[null,"Lieferant auswählen",null,null,false,null,null,null,null,0,null,"Kostenart auswählen"]
[null,"Lieferant auswählen",null,null,false,null,null,null,null,0,null,"Kostenart auswählen"]
[null,"Lieferant auswählen",null,null,false,null,null,null,null,0,null,"Kostenart auswählen"]
[null,"Lieferant auswählen",null,null,false,null,null,null,null,0,null,"Kostenart auswählen"]
[null,"Lieferant auswählen",null,null,false,null,null,null,null,0,null,"Kostenart auswählen"]
[null,"Lieferant auswählen",null,null,false,null,null,null,null,0,null,"Kostenart auswählen"]
[null,"Lieferant auswählen",null,null,false,null,null,null,null,0,null,"Kostenart auswählen"]
[null,"Lieferant auswählen",null,null,false,null,null,null,null,0,null,"Kostenart auswählen"]
[null,"Lieferant auswählen",null,null,false,null,null,null,null,0,null,"Kostenart auswählen"]
[null,"Lieferant auswählen",null,null,false,null,null,null,null,0,null,"Kostenart auswählen"]
[null,"Lieferant auswählen",null,null,false,null,null,null,null,0,null,"Kostenart auswählen"]
[null,"Lieferant auswählen",null,null,false,null,null,null,null,0,null,"Kostenart auswählen"]
[null,"Lieferant auswählen",null,null,false,null,null,null,null,0,null,"Kostenart auswählen"]
[null,"Lieferant auswählen",null,null,false,null,null,null,null,0,null,"Kostenart auswählen"]
[null,"Lieferant auswählen",null,null,false,null,null,null,null,0,null,"Kostenart auswählen"]
[null,"Lieferant auswählen",null,null,false,null,null,null,null,0,null,"Kostenart auswählen"]
[null,"Lieferant auswählen",null,null,false,null,null,null,null,0,null,"Kostenart auswählen"]
[null,"Lieferant auswählen",null,null,false,null,null,null,null,0,null,"Kostenart auswählen"]
[null,"Lieferant auswählen",null,null,false,null,null,null,null,0,null,"Kostenart auswählen"]
[null,"Lieferant auswählen",null,null,false,null,null,null,null,0,null,"Kostenart auswählen"]
[null,"Lieferant auswählen",null,null,false,null,null,null,null,0,null,"Kostenart auswählen"]
[null,"Lieferant auswählen",null,null,false,null,null,null,null,0,null,"Kostenart auswählen"]
[null,"Lieferant auswählen",null,null,false,null,null,null,null,0,null,"Kostenart auswählen"]
[null,"Lieferant auswählen",null,null,false,null,null,null,null,0,null,"Kostenart auswählen"]
[null,"Lieferant auswählen",null,null,false,null,null,null,null,0,null,"Kostenart auswählen"]
[null,"Lieferant auswählen",null,null,false,null,null,null,null,0,null,"Kostenart auswählen"]
[null,"Lieferant auswählen",null,null,false,null,null,null,null,0,null,"Kostenart auswählen"]
[null,"Lieferant auswählen",null,null,false,null,null,null,null,0,null,"Kostenart auswählen"]
[null,"Lieferant auswählen",null,null,false,null,null,null,null,0,null,"Kostenart auswählen"]
[null,"Lieferant auswählen",null,null,false,null,null,null,null,0,null,"Kostenart auswählen"]
[null,"Lieferant auswählen",null,null,false,null,null,null,null,0,null,"Kostenart auswählen"]
[null,"Lieferant auswählen",null,null,false,null,null,null,null,0,null,"Kostenart auswählen"]
[null,"Lieferant auswählen",null,null,false,null,null,null,null,0,null,"Kostenart auswählen"]
[null,"Lieferant auswählen",null,null,false,null,null,null,null,0,null,"Kostenart auswählen"]
[null,"Lieferant auswählen",null,null,false,null,null,null,null,0,null,"Kostenart auswählen"]
[null,"Lieferant auswählen",null,null,false,null,null,null,null,0,null,"Kostenart auswählen"]
[null,"Lieferant auswählen",null,null,false,null,null,null,null,0,null,"Kostenart auswählen"]
[null,"Lieferant auswählen",null,null,false,null,null,null,null,0,null,"Kostenart auswählen"]
[null,"Lieferant auswählen",null,null,false,null,null,null,null,0,null,"Kostenart auswählen"]
[null,"Lieferant auswählen",null,null,false,null,null,null,null,0,null,"Kostenart auswählen"]
[null,"Lieferant auswählen",null,null,false,null,null,null,null,0,null,"Kostenart auswählen"]
[null,"Lieferant auswählen",null,null,false,null,null,null,null,0,null,"Kostenart auswählen"]
[null,"Lieferant auswählen",null,null,false,null,null,null,null,0,null,"Kostenart auswählen"]
[null,"Lieferant auswählen",null,null,false,null,null,null,null,0,null,"Kostenart auswählen"]
[null,"Lieferant auswählen",null,null,false,null,null,null,null,0,null,"Kostenart auswählen"]
[null,"Lieferant auswählen",null,null,false,null,null,null,null,0,null,"Kostenart auswählen"]
[null,"Lieferant auswählen",null,null,false,null,null,null,null,0,null,"Kostenart auswählen"]
[null,"Lieferant auswählen",null,null,false,null,null,null,null,0,null,"Kostenart auswählen"]
[null,"Lieferant auswählen",null,null,false,null,null,null,null,0,null,"Kostenart auswählen"]
[null,"Lieferant auswählen",null,null,false,null,null,null,null,0,null,"Kostenart auswählen"]
[null,"Lieferant auswählen",null,null,false,null,null,null,null,0,null,"Kostenart auswählen"]
[null,"Lieferant auswählen",null,null,false,null,null,null,null,0,null,"Kostenart auswählen"]
[null,"Lieferant auswählen",null,null,false,null,null,null,null,0,null,"Kostenart auswählen"]
[null,"Lieferant auswählen",null,null,false,null,null,null,null,0,null,"Kostenart auswählen"]
[null,"Lieferant auswählen",null,null,false,null,null,null,null,0,null,"Kostenart auswählen"]
[null,"Lieferant auswählen",null,null,false,null,null,null,null,0,null,"Kostenart auswählen"]
[null,"Lieferant auswählen",null,null,false,null,null,null,null,0,null,"Kostenart auswählen"]
[null,"Lieferant auswählen",null,null,false,null,null,null,null,0,null,"Kostenart auswählen"]
[null,"Lieferant auswählen",null,null,false,null,null,null,null,0,null,"Kostenart auswählen"]
[null,"Lieferant auswählen",null,null,false,null,null,null,null,0,null,"Kostenart auswählen"]
[null,"Lieferant auswählen",null,null,false,null,null,null,null,0,null,"Kostenart auswählen"]
[null,"Lieferant auswählen",null,null,false,null,null,null,null,0,null,"Kostenart auswählen"]
[null,"Lieferant auswählen",null,null,false,null,null,null,null,0,null,"Kostenart auswählen"]
[null,"Lieferant auswählen",null,null,false,null,null,null,null,0,null,"Kostenart auswählen"]
[null,"Lieferant auswählen",null,null,false,null,null,null,null,0,null,"Kostenart auswählen"]
[null,"Lieferant auswählen",null,null,false,null,null,null,null,0,null,"Kostenart auswählen"]
[null,"Lieferant auswählen",null,null,false,null,null,null,null,0,null,"Kostenart auswählen"]
[null,"Lieferant auswählen",null,null,false,null,null,null,null,0,null,"Kostenart auswählen"]
[null,"Lieferant auswählen",null,null,false,null,null,null,null,0,null,"Kostenart auswählen"]
[null,"Lieferant auswählen",null,null,{"$f":"IF(COUNTIF(D:D,D9283)=1,\"OK\",COUNTIF(D:D,D9283)=1)","v":false},null,null,null,null,{"$f":"H9283/(1+I9283)","v":0},null,"Kostenart auswählen"]
[null,"Lieferant auswählen",null,null,false,null,null,null,null,0,null,"Kostenart auswählen"]
[null,"Lieferant auswählen",null,null,false,null,null,null,null,0,null,"Kostenart auswählen"]
[null,"Lieferant auswählen",null,null,false,null,null,null,null,0,null,"Kostenart auswählen"]
[null,"Lieferant auswählen",null,null,false,null,null,null,null,0,null,"Kostenart auswählen"]
[null,"Lieferant auswählen",null,null,false,null,null,null,null,0,null,"Kostenart auswählen"]
[null,"Lieferant auswählen",null,null,false,null,null,null,null,0,null,"Kostenart auswählen"]
[null,"Lieferant auswählen",null,null,false,null,null,null,null,0,null,"Kostenart auswählen"]
[null,"Lieferant auswählen",null,null,false,null,null,null,null,0,null,"Kostenart auswählen"]
[null,"Lieferant auswählen",null,null,false,null,null,null,null,0,null,"Kostenart auswählen"]
[null,"Lieferant auswählen",null,null,false,null,null,null,null,0,null,"Kostenart auswählen"]
[null,"Lieferant auswählen",null,null,false,null,null,null,null,0,null,"Kostenart auswählen"]
[null,"Lieferant auswählen",null,null,false,null,null,null,null,0,null,"Kostenart auswählen"]
[null,"Lieferant auswählen",null,null,false,null,null,null,null,0,null,"Kostenart auswählen"]
[null,"Lieferant auswählen",null,null,false,null,null,null,null,0,null,"Kostenart auswählen"]
[null,"Lieferant auswählen",null,null,false,null,null,null,null,0,null,"Kostenart auswählen"]
[null,"Lieferant auswählen",null,null,false,null,null,null,null,0,null,"Kostenart auswählen"]
[null,"Lieferant auswählen",null,null,false,null,null,null,null,0,null,"Kostenart auswählen"]
[null,"Lieferant auswählen",null,null,false,null,null,null,null,0,null,"Kostenart auswählen"]
[null,"Lieferant auswählen",null,null,false,null,null,null,null,0,null,"Kostenart auswählen"]
[null,"Lieferant auswählen",null,null,false,null,null,null,null,0,null,"Kostenart auswählen"]
[null,"Lieferant auswählen",null,null,false,null,null,null,null,0,null,"Kostenart auswählen"]
[null,"Lieferant auswählen",null,null,false,null,null,null,null,0,null,"Kostenart auswählen"]
[null,"Lieferant auswählen",null,null,false,null,null,null,null,0,null,"Kostenart auswählen"]
[null,"Lieferant auswählen",null,null,false,null,null,null,null,0,null,"Kostenart auswählen"]
[null,"Lieferant auswählen",null,null,false,null,null,null,null,0,null,"Kostenart auswählen"]
[null,"Lieferant auswählen",null,null,false,null,null,null,null,0,null,"Kostenart auswählen"]
[null,"Lieferant auswählen",null,null,false,null,null,null,null,0,null,"Kostenart auswählen"]
[null,"Lieferant auswählen",null,null,false,null,null,null,null,0,null,"Kostenart auswählen"]
[null,"Lieferant auswählen",null,null,false,null,null,null,null,0,null,"Kostenart auswählen"]
[null,"Lieferant auswählen",null,null,false,null,null,null,null,0,null,"Kostenart auswählen"]
[null,"Lieferant auswählen",null,null,false,null,null,null,null,0,null,"Kostenart auswählen"]
[null,"Lieferant auswählen",null,null,false,null,null,null,null,0,null,"Kostenart auswählen"]
[null,"Lieferant auswählen",null,null,false,null,null,null,null,0,null,"Kostenart auswählen"]
[null,"Lieferant auswählen",null,null,{"$f":"IF(COUNTIF(D:D,D9411)=1,\"OK\",COUNTIF(D:D,D9411)=1)","v":false},null,null,null,null,{"$f":"H9411/(1+I9411)","v":0},null,"Kostenart auswählen"]
[null,"Lieferant auswählen",null,null,false,null,null,null,null,0,null,"Kostenart auswählen"]
[null,"Lieferant auswählen",null,null,false,null,null,null,null,0,null,"Kostenart auswählen"]
[null,"Lieferant auswählen",null,null,false,null,null,null,null,0,null,"Kostenart auswählen"]
[null,"Lieferant auswählen",null,null,false,null,null,null,null,0,null,"Kostenart auswählen"]
[null,"Lieferant auswählen",null,null,false,null,null,null,null,0,null,"Kostenart auswählen"]
[null,"Lieferant auswählen",null,null,false,null,null,null,null,0,null,"Kostenart auswählen"]
[null,"Lieferant auswählen",null,null,false,null,null,null,null,0,null,"Kostenart auswählen"]
[null,"Lieferant auswählen",null,null,false,null,null,null,null,0,null,"Kostenart auswählen"]
[null,"Lieferant auswählen",null,null,false,null,null,null,null,0,null,"Kostenart auswählen"]
[null,"Lieferant auswählen",null,null,false,null,null,null,null,0,null,"Kostenart auswählen"]
[null,"Lieferant auswählen",null,null,false,null,null,null,null,0,null,"Kostenart auswählen"]
[null,"Lieferant auswählen",null,null,false,null,null,null,null,0,null,"Kostenart auswählen"]
[null,"Lieferant auswählen",null,null,false,null,null,null,null,0,null,"Kostenart auswählen"]
[null,"Lieferant auswählen",null,null,false,null,null,null,null,0,null,"Kostenart auswählen"]
[null,"Lieferant auswählen",null,null,false,null,null,null,null,0,null,"Kostenart auswählen"]
[null,"Lieferant auswählen",null,null,false,null,null,null,null,0,null,"Kostenart auswählen"]
[null,"Lieferant auswählen",null,null,false,null,null,null,null,0,null,"Kostenart auswählen"]
[null,"Lieferant auswählen",null,null,false,null,null,null,null,0,null,"Kostenart auswählen"]
[null,"Lieferant auswählen",null,null,false,null,null,null,null,0,null,"Kostenart auswählen"]
[null,"Lieferant auswählen",null,null,false,null,null,null,null,0,null,"Kostenart auswählen"]
[null,"Lieferant auswählen",null,null,false,null,null,null,null,0,null,"Kostenart auswählen"]
[null,"Lieferant auswählen",null,null,false,null,null,null,null,0,null,"Kostenart auswählen"]
[null,"Lieferant auswählen",null,null,false,null,null,null,null,0,null,"Kostenart auswählen"]
[null,"Lieferant auswählen",null,null,false,null,null,null,null,0,null,"Kostenart auswählen"]
[null,"Lieferant auswählen",null,null,false,null,null,null,null,0,null,"Kostenart auswählen"]
[null,"Lieferant auswählen",null,null,false,null,null,null,null,0,null,"Kostenart auswählen"]
[null,"Lieferant auswählen",null,null,false,null,null,null,null,0,null,"Kostenart auswählen"]
[null,"Lieferant auswählen",null,null,false,null,null,null,null,0,null,"Kostenart auswählen"]
[null,"Lieferant auswählen",null,null,false,null,null,null,null,0,null,"Kostenart auswählen"]
[null,"Lieferant auswählen",null,null,false,null,null,null,null,0,null,"Kostenart auswählen"]
[null,"Lieferant auswählen",null,null,false,null,null,null,null,0,null,"Kostenart auswählen"]
[null,"Lieferant auswählen",null,null,false,null,null,null,null,0,null,"Kostenart auswählen"]
[null,"Lieferant auswählen",null,null,false,null,null,null,null,0,null,"Kostenart auswählen"]
[null,"Lieferant auswählen",null,null,false,null,null,null,null,0,null,"Kostenart auswählen"]
[null,"Lieferant auswählen",null,null,false,null,null,null,null,0,null,"Kostenart auswählen"]
[null,"Lieferant auswählen",null,null,false,null,null,null,null,0,null,"Kostenart auswählen"]
[null,"Lieferant auswählen",null,null,false,null,null,null,null,0,null,"Kostenart auswählen"]
[null,"Lieferant auswählen",null,null,false,null,null,null,null,0,null,"Kostenart auswählen"]
[null,"Lieferant auswählen",null,null,false,null,null,null,null,0,null,"Kostenart auswählen"]
[null,"Lieferant auswählen",null,null,false,null,null,null,null,0,null,"Kostenart auswählen"]
[null,"Lieferant auswählen",null,null,false,null,null,null,null,0,null,"Kostenart auswählen"]
[null,"Lieferant auswählen",null,null,false,null,null,null,null,0,null,"Kostenart auswählen"]
[null,"Lieferant auswählen",null,null,false,null,null,null,null,0,null,"Kostenart auswählen"]
[null,"Lieferant auswählen",null,null,false,null,null,null,null,0,null,"Kostenart auswählen"]
[null,"Lieferant auswählen",null,null,false,null,null,null,null,0,null,"Kostenart auswählen"]
[null,"Lieferant auswählen",null,null,false,null,null,null,null,0,null,"Kostenart auswählen"]
[null,"Lieferant auswählen",null,null,false,null,null,null,null,0,null,"Kostenart auswählen"]
[null,"Lieferant auswählen",null,null,false,null,null,null,null,0,null,"Kostenart auswählen"]
[null,"Lieferant auswählen",null,null,false,null,null,null,null,0,null,"Kostenart auswählen"]
[null,"Lieferant auswählen",null,null,false,null,null,null,null,0,null,"Kostenart auswählen"]
[null,"Lieferant auswählen",null,null,false,null,null,null,null,0,null,"Kostenart auswählen"]
[null,"Lieferant auswählen",null,null,false,null,null,null,null,0,null,"Kostenart auswählen"]
[null,"Lieferant auswählen",null,null,false,null,null,null,null,0,null,"Kostenart auswählen"]
[null,"Lieferant auswählen",null,null,false,null,null,null,null,0,null,"Kostenart auswählen"]
[null,"Lieferant auswählen",null,null,false,null,null,null,null,0,null,"Kostenart auswählen"]
[null,"Lieferant auswählen",null,null,false,null,null,null,null,0,null,"Kostenart auswählen"]
[null,"Lieferant auswählen",null,null,false,null,null,null,null,0,null,"Kostenart auswählen"]
[null,"Lieferant auswählen",null,null,false,null,null,null,null,0,null,"Kostenart auswählen"]
[null,"Lieferant auswählen",null,null,false,null,null,null,null,0,null,"Kostenart auswählen"]
[null,"Lieferant auswählen",null,null,false,null,null,null,null,0,null,"Kostenart auswählen"]
[null,"Lieferant auswählen",null,null,{"$f":"IF(COUNTIF(D:D,D9539)=1,\"OK\",COUNTIF(D:D,D9539)=1)","v":false},null,null,null,null,{"$f":"H9539/(1+I9539)","v":0},null,"Kostenart auswählen"]
[null,"Lieferant auswählen",null,null,false,null,null,null,null,0,null,"Kostenart auswählen"]
[null,"Lieferant auswählen",null,null,false,null,null,null,null,0,null,"Kostenart auswählen"]
[null,"Lieferant auswählen",null,null,false,null,null,null,null,0,null,"Kostenart auswählen"]
[null,"Lieferant auswählen",null,null,false,null,null,null,null,0,null,"Kostenart auswählen"]
[null,"Lieferant auswählen",null,null,false,null,null,null,null,0,null,"Kostenart auswählen"]
[null,"Lieferant auswählen",null,null,false,null,null,null,null,0,null,"Kostenart auswählen"]
[null,"Lieferant auswählen",null,null,false,null,null,null,null,0,null,"Kostenart auswählen"]
[null,"Lieferant auswählen",null,null,false,null,null,null,null,0,null,"Kostenart auswählen"]
[null,"Lieferant auswählen",null,null,false,null,null,null,null,0,null,"Kostenart auswählen"]
[null,"Lieferant auswählen",null,null,false,null,null,null,null,0,null,"Kostenart auswählen"]
[null,"Lieferant auswählen",null,null,false,null,null,null,null,0,null,"Kostenart auswählen"]
[null,"Lieferant auswählen",null,null,false,null,null,null,null,0,null,"Kostenart auswählen"]
[null,"Lieferant auswählen",null,null,false,null,null,null,null,0,null,"Kostenart auswählen"]
[null,"Lieferant auswählen",null,null,false,null,null,null,null,0,null,"Kostenart auswählen"]
[null,"Lieferant auswählen",null,null,false,null,null,null,null,0,null,"Kostenart auswählen"]
[null,"Lieferant auswählen",null,null,false,null,null,null,null,0,null,"Kostenart auswählen"]
[null,"Lieferant auswählen",null,null,false,null,null,null,null,0,null,"Kostenart auswählen"]
[null,"Lieferant auswählen",null,null,false,null,null,null,null,0,null,"Kostenart auswählen"]
[null,"Lieferant auswählen",null,null,false,null,null,null,null,0,null,"Kostenart auswählen"]
[null,"Lieferant auswählen",null,null,false,null,null,null,null,0,null,"Kostenart auswählen"]
[null,"Lieferant auswählen",null,null,false,null,null,null,null,0,null,"Kostenart auswählen"]
[null,"Lieferant auswählen",null,null,false,null,null,null,null,0,null,"Kostenart auswählen"]
[null,"Lieferant auswählen",null,null,false,null,null,null,null,0,null,"Kostenart auswählen"]
[null,"Lieferant auswählen",null,null,false,null,null,null,null,0,null,"Kostenart auswählen"]
[null,"Lieferant auswählen",null,null,false,null,null,null,null,0,null,"Kostenart auswählen"]
[null,"Lieferant auswählen",null,null,false,null,null,null,null,0,null,"Kostenart auswählen"]
[null,"Lieferant auswählen",null,null,false,null,null,null,null,0,null,"Kostenart auswählen"]
[null,"Lieferant auswählen",null,null,false,null,null,null,null,0,null,"Kostenart auswählen"]
[null,"Lieferant auswählen",null,null,false,null,null,null,null,0,null,"Kostenart auswählen"]
[null,"Lieferant auswählen",null,null,false,null,null,null,null,0,null,"Kostenart auswählen"]
[null,"Lieferant auswählen",null,null,false,null,null,null,null,0,null,"Kostenart auswählen"]
[null,"Lieferant auswählen",null,null,false,null,null,null,null,0,null,"Kostenart auswählen"]
[null,"Lieferant auswählen",null,null,false,null,null,null,null,0,null,"Kostenart auswählen"]
[null,"Lieferant auswählen",null,null,false,null,null,null,null,0,null,"Kostenart auswählen"]
[null,"Lieferant auswählen",null,null,false,null,null,null,null,0,null,"Kostenart auswählen"]
[null,"Lieferant auswählen",null,null,false,null,null,null,null,0,null,"Kostenart auswählen"]
[null,"Lieferant auswählen",null,null,false,null,null,null,null,0,null,"Kostenart auswählen"]
[null,"Lieferant auswählen",null,null,false,null,null,null,null,0,null,"Kostenart auswählen"]
[null,"Lieferant auswählen",null,null,false,null,null,null,null,0,null,"Kostenart auswählen"]
[null,"Lieferant auswählen",null,null,false,null,null,null,null,0,null,"Kostenart auswählen"]
[null,"Lieferant auswählen",null,null,false,null,null,null,null,0,null,"Kostenart auswählen"]
[null,"Lieferant auswählen",null,null,false,null,null,null,null,0,null,"Kostenart auswählen"]
[null,"Lieferant auswählen",null,null,false,null,null,null,null,0,null,"Kostenart auswählen"]
[null,"Lieferant auswählen",null,null,false,null,null,null,null,0,null,"Kostenart auswählen"]
[null,"Lieferant auswählen",null,null,false,null,null,null,null,0,null,"Kostenart auswählen"]
[null,"Lieferant auswählen",null,null,false,null,null,null,null,0,null,"Kostenart auswählen"]
[null,"Lieferant auswählen",null,null,false,null,null,null,null,0,null,"Kostenart auswählen"]
[null,"Lieferant auswählen",null,null,false,null,null,null,null,0,null,"Kostenart auswählen"]
[null,"Lieferant auswählen",null,null,false,null,null,null,null,0,null,"Kostenart auswählen"]
[null,"Lieferant auswählen",null,null,false,null,null,null,null,0,null,"Kostenart auswählen"]
[null,"Lieferant auswählen",null,null,false,null,null,null,null,0,null,"Kostenart auswählen"]
[null,"Lieferant auswählen",null,null,false,null,null,null,null,0,null,"Kostenart auswählen"]
[null,"Lieferant auswählen",null,null,false,null,null,null,null,0,null,"Kostenart auswählen"]
[null,"Lieferant auswählen",null,null,false,null,null,null,null,0,null,"Kostenart auswählen"]
[null,"Lieferant auswählen",null,null,false,null,null,null,null,0,null,"Kostenart auswählen"]
[null,"Lieferant auswählen",null,null,false,null,null,null,null,0,null,"Kostenart auswählen"]
[null,"Lieferant auswählen",null,null,false,null,null,null,null,0,null,"Kostenart auswählen"]
[null,"Lieferant auswählen",null,null,false,null,null,null,null,0,null,"Kostenart auswählen"]
[null,"Lieferant auswählen",null,null,false,null,null,null,null,0,null,"Kostenart auswählen"]
[null,"Lieferant auswählen",null,null,false,null,null,null,null,0,null,"Kostenart auswählen"]
[null,"Lieferant auswählen",null,null,false,null,null,null,null,0,null,"Kostenart auswählen"]
[null,"Lieferant auswählen",null,null,false,null,null,null,null,0,null,"Kostenart auswählen"]
[null,"Lieferant auswählen",null,null,false,null,null,null,null,0,null,"Kostenart auswählen"]
[null,"Lieferant auswählen",null,null,{"$f":"IF(COUNTIF(D:D,D9603)=1,\"OK\",COUNTIF(D:D,D9603)=1)","v":false},null,null,null,null,{"$f":"H9603/(1+I9603)","v":0},null,"Kostenart auswählen"]
[null,"Lieferant auswählen",null,null,false,null,null,null,null,0,null,"Kostenart auswählen"]
[null,"Lieferant auswählen",null,null,false,null,null,null,null,0,null,"Kostenart auswählen"]
[null,"Lieferant auswählen",null,null,false,null,null,null,null,0,null,"Kostenart auswählen"]
[null,"Lieferant auswählen",null,null,false,null,null,null,null,0,null,"Kostenart auswählen"]
[null,"Lieferant auswählen",null,null,false,null,null,null,null,0,null,"Kostenart auswählen"]
[null,"Lieferant auswählen",null,null,false,null,null,null,null,0,null,"Kostenart auswählen"]
[null,"Lieferant auswählen",null,null,false,null,null,null,null,0,null,"Kostenart auswählen"]
[null,"Lieferant auswählen",null,null,false,null,null,null,null,0,null,"Kostenart auswählen"]
[null,"Lieferant auswählen",null,null,false,null,null,null,null,0,null,"Kostenart auswählen"]
[null,"Lieferant auswählen",null,null,false,null,null,null,null,0,null,"Kostenart auswählen"]
[null,"Lieferant auswählen",null,null,false,null,null,null,null,0,null,"Kostenart auswählen"]
[null,"Lieferant auswählen",null,null,false,null,null,null,null,0,null,"Kostenart auswählen"]
[null,"Lieferant auswählen",null,null,false,null,null,null,null,0,null,"Kostenart auswählen"]
[null,"Lieferant auswählen",null,null,false,null,null,null,null,0,null,"Kostenart auswählen"]
[null,"Lieferant auswählen",null,null,false,null,null,null,null,0,null,"Kostenart auswählen"]
[null,"Lieferant auswählen",null,null,false,null,null,null,null,0,null,"Kostenart auswählen"]
[null,"Lieferant auswählen",null,null,false,null,null,null,null,0,null,"Kostenart auswählen"]
[null,"Lieferant auswählen",null,null,false,null,null,null,null,0,null,"Kostenart auswählen"]
[null,"Lieferant auswählen",null,null,false,null,null,null,null,0,null,"Kostenart auswählen"]
[null,"Lieferant auswählen",null,null,false,null,null,null,null,0,null,"Kostenart auswählen"]
[null,"Lieferant auswählen",null,null,false,null,null,null,null,0,null,"Kostenart auswählen"]
[null,"Lieferant auswählen",null,null,false,null,null,null,null,0,null,"Kostenart auswählen"]
[null,"Lieferant auswählen",null,null,false,null,null,null,null,0,null,"Kostenart auswählen"]
[null,"Lieferant auswählen",null,null,false,null,null,null,null,0,null,"Kostenart auswählen"]
[null,"Lieferant auswählen",null,null,false,null,null,null,null,0,null,"Kostenart auswählen"]
[null,"Lieferant auswählen",null,null,false,null,null,null,null,0,null,"Kostenart auswählen"]
[null,"Lieferant auswählen",null,null,false,null,null,null,null,0,null,"Kostenart auswählen"]
[null,"Lieferant auswählen",null,null,false,null,null,null,null,0,null,"Kostenart auswählen"]
[null,"Lieferant auswählen",null,null,false,null,null,null,null,0,null,"Kostenart auswählen"]
[null,"Lieferant auswählen",null,null,false,null,null,null,null,0,null,"Kostenart auswählen"]
[null,"Lieferant auswählen",null,null,false,null,null,null,null,0,null,"Kostenart auswählen"]
[null,"Lieferant auswählen",null,null,false,null,null,null,null,0,null,"Kostenart auswählen"]
[null,"Lieferant auswählen",null,null,false,null,null,null,null,0,null,"Kostenart auswählen"]
[null,"Lieferant auswählen",null,null,false,null,null,null,null,0,null,"Kostenart auswählen"]
[null,"Lieferant auswählen",null,null,false,null,null,null,null,0,null,"Kostenart auswählen"]
[null,"Lieferant auswählen",null,null,false,null,null,null,null,0,null,"Kostenart auswählen"]
[null,"Lieferant auswählen",null,null,false,null,null,null,null,0,null,"Kostenart auswählen"]
[null,"Lieferant auswählen",null,null,false,null,null,null,null,0,null,"Kostenart auswählen"]
[null,"Lieferant auswählen",null,null,false,null,null,null,null,0,null,"Kostenart auswählen"]
[null,"Lieferant auswählen",null,null,false,null,null,null,null,0,null,"Kostenart auswählen"]
[null,"Lieferant auswählen",null,null,false,null,null,null,null,0,null,"Kostenart auswählen"]
[null,"Lieferant auswählen",null,null,false,null,null,null,null,0,null,"Kostenart auswählen"]
[null,"Lieferant auswählen",null,null,false,null,null,null,null,0,null,"Kostenart auswählen"]
[null,"Lieferant auswählen",null,null,false,null,null,null,null,0,null,"Kostenart auswählen"]
[null,"Lieferant auswählen",null,null,false,null,null,null,null,0,null,"Kostenart auswählen"]
[null,"Lieferant auswählen",null,null,false,null,null,null,null,0,null,"Kostenart auswählen"]
[null,"Lieferant auswählen",null,null,false,null,null,null,null,0,null,"Kostenart auswählen"]
[null,"Lieferant auswählen",null,null,false,null,null,null,null,0,null,"Kostenart auswählen"]
[null,"Lieferant auswählen",null,null,false,null,null,null,null,0,null,"Kostenart auswählen"]
[null,"Lieferant auswählen",null,null,false,null,null,null,null,0,null,"Kostenart auswählen"]
[null,"Lieferant auswählen",null,null,false,null,null,null,null,0,null,"Kostenart auswählen"]
[null,"Lieferant auswählen",null,null,false,null,null,null,null,0,null,"Kostenart auswählen"]
[null,"Lieferant auswählen",null,null,false,null,null,null,null,0,null,"Kostenart auswählen"]
[null,"Lieferant auswählen",null,null,false,null,null,null,null,0,null,"Kostenart auswählen"]
[null,"Lieferant auswählen",null,null,false,null,null,null,null,0,null,"Kostenart auswählen"]
[null,"Lieferant auswählen",null,null,false,null,null,null,null,0,null,"Kostenart auswählen"]
[null,"Lieferant auswählen",null,null,false,null,null,null,null,0,null,"Kostenart auswählen"]
[null,"Lieferant auswählen",null,null,false,null,null,null,null,0,null,"Kostenart auswählen"]
[null,"Lieferant auswählen",null,null,false,null,null,null,null,0,null,"Kostenart auswählen"]
[null,"Lieferant auswählen",null,null,false,null,null,null,null,0,null,"Kostenart auswählen"]
[null,"Lieferant auswählen",null,null,false,null,null,null,null,0,null,"Kostenart auswählen"]
[null,"Lieferant auswählen",null,null,false,null,null,null,null,0,null,"Kostenart auswählen"]
[null,"Lieferant auswählen",null,null,false,null,null,null,null,0,null,"Kostenart auswählen"]
[null,"Lieferant auswählen",null,null,{"$f":"IF(COUNTIF(D:D,D9667)=1,\"OK\",COUNTIF(D:D,D9667)=1)","v":false},null,null,null,null,{"$f":"H9667/(1+I9667)","v":0},null,"Kostenart auswählen"]
[null,"Lieferant auswählen",null,null,false,null,null,null,null,0,null,"Kostenart auswählen"]
[null,"Lieferant auswählen",null,null,false,null,null,null,null,0,null,"Kostenart auswählen"]
[null,"Lieferant auswählen",null,null,false,null,null,null,null,0,null,"Kostenart auswählen"]
[null,"Lieferant auswählen",null,null,false,null,null,null,null,0,null,"Kostenart auswählen"]
[null,"Lieferant auswählen",null,null,false,null,null,null,null,0,null,"Kostenart auswählen"]
[null,"Lieferant auswählen",null,null,false,null,null,null,null,0,null,"Kostenart auswählen"]
[null,"Lieferant auswählen",null,null,false,null,null,null,null,0,null,"Kostenart auswählen"]
[null,"Lieferant auswählen",null,null,false,null,null,null,null,0,null,"Kostenart auswählen"]
[null,"Lieferant auswählen",null,null,false,null,null,null,null,0,null,"Kostenart auswählen"]
[null,"Lieferant auswählen",null,null,false,null,null,null,null,0,null,"Kostenart auswählen"]
[null,"Lieferant auswählen",null,null,false,null,null,null,null,0,null,"Kostenart auswählen"]
[null,"Lieferant auswählen",null,null,false,null,null,null,null,0,null,"Kostenart auswählen"]
[null,"Lieferant auswählen",null,null,false,null,null,null,null,0,null,"Kostenart auswählen"]
[null,"Lieferant auswählen",null,null,false,null,null,null,null,0,null,"Kostenart auswählen"]
[null,"Lieferant auswählen",null,null,false,null,null,null,null,0,null,"Kostenart auswählen"]
[null,"Lieferant auswählen",null,null,false,null,null,null,null,0,null,"Kostenart auswählen"]
[null,"Lieferant auswählen",null,null,false,null,null,null,null,0,null,"Kostenart auswählen"]
[null,"Lieferant auswählen",null,null,false,null,null,null,null,0,null,"Kostenart auswählen"]
[null,"Lieferant auswählen",null,null,false,null,null,null,null,0,null,"Kostenart auswählen"]
[null,"Lieferant auswählen",null,null,false,null,null,null,null,0,null,"Kostenart auswählen"]
[null,"Lieferant auswählen",null,null,false,null,null,null,null,0,null,"Kostenart auswählen"]
[null,"Lieferant auswählen",null,null,false,null,null,null,null,0,null,"Kostenart auswählen"]
[null,"Lieferant auswählen",null,null,false,null,null,null,null,0,null,"Kostenart auswählen"]
[null,"Lieferant auswählen",null,null,false,null,null,null,null,0,null,"Kostenart auswählen"]
[null,"Lieferant auswählen",null,null,false,null,null,null,null,0,null,"Kostenart auswählen"]
[null,"Lieferant auswählen",null,null,false,null,null,null,null,0,null,"Kostenart auswählen"]
[null,"Lieferant auswählen",null,null,false,null,null,null,null,0,null,"Kostenart auswählen"]
[null,"Lieferant auswählen",null,null,false,null,null,null,null,0,null,"Kostenart auswählen"]
[null,"Lieferant auswählen",null,null,false,null,null,null,null,0,null,"Kostenart auswählen"]
[null,"Lieferant auswählen",null,null,false,null,null,null,null,0,null,"Kostenart auswählen"]
[null,"Lieferant auswählen",null,null,false,null,null,null,null,0,null,"Kostenart auswählen"]
[null,"Lieferant auswählen",null,null,false,null,null,null,null,0,null,"Kostenart auswählen"]
[null,"Lieferant auswählen",null,null,false,null,null,null,null,0,null,"Kostenart auswählen"]
[null,"Lieferant auswählen",null,null,false,null,null,null,null,0,null,"Kostenart auswählen"]
[null,"Lieferant auswählen",null,null,false,null,null,null,null,0,null,"Kostenart auswählen"]
[null,"Lieferant auswählen",null,null,false,null,null,null,null,0,null,"Kostenart auswählen"]
[null,"Lieferant auswählen",null,null,false,null,null,null,null,0,null,"Kostenart auswählen"]
[null,"Lieferant auswählen",null,null,false,null,null,null,null,0,null,"Kostenart auswählen"]
[null,"Lieferant auswählen",null,null,false,null,null,null,null,0,null,"Kostenart auswählen"]
[null,"Lieferant auswählen",null,null,false,null,null,null,null,0,null,"Kostenart auswählen"]
[null,"Lieferant auswählen",null,null,false,null,null,null,null,0,null,"Kostenart auswählen"]
[null,"Lieferant auswählen",null,null,false,null,null,null,null,0,null,"Kostenart auswählen"]
[null,"Lieferant auswählen",null,null,false,null,null,null,null,0,null,"Kostenart auswählen"]
[null,"Lieferant auswählen",null,null,false,null,null,null,null,0,null,"Kostenart auswählen"]
[null,"Lieferant auswählen",null,null,false,null,null,null,null,0,null,"Kostenart auswählen"]
[null,"Lieferant auswählen",null,null,false,null,null,null,null,0,null,"Kostenart auswählen"]
[null,"Lieferant auswählen",null,null,false,null,null,null,null,0,null,"Kostenart auswählen"]
[null,"Lieferant auswählen",null,null,false,null,null,null,null,0,null,"Kostenart auswählen"]
[null,"Lieferant auswählen",null,null,false,null,null,null,null,0,null,"Kostenart auswählen"]
[null,"Lieferant auswählen",null,null,false,null,null,null,null,0,null,"Kostenart auswählen"]
[null,"Lieferant auswählen",null,null,false,null,null,null,null,0,null,"Kostenart auswählen"]
[null,"Lieferant auswählen",null,null,false,null,null,null,null,0,null,"Kostenart auswählen"]
[null,"Lieferant auswählen",null,null,false,null,null,null,null,0,null,"Kostenart auswählen"]
[null,"Lieferant auswählen",null,null,false,null,null,null,null,0,null,"Kostenart auswählen"]
[null,"Lieferant auswählen",null,null,false,null,null,null,null,0,null,"Kostenart auswählen"]
[null,"Lieferant auswählen",null,null,false,null,null,null,null,0,null,"Kostenart auswählen"]
[null,"Lieferant auswählen",null,null,false,null,null,null,null,0,null,"Kostenart auswählen"]
[null,"Lieferant auswählen",null,null,false,null,null,null,null,0,null,"Kostenart auswählen"]
[null,"Lieferant auswählen",null,null,false,null,null,null,null,0,null,"Kostenart auswählen"]
[null,"Lieferant auswählen",null,null,false,null,null,null,null,0,null,"Kostenart auswählen"]
[null,"Lieferant auswählen",null,null,false,null,null,null,null,0,null,"Kostenart auswählen"]
[null,"Lieferant auswählen",null,null,false,null,null,null,null,0,null,"Kostenart auswählen"]
[null,"Lieferant auswählen",null,null,false,null,null,null,null,0,null,"Kostenart auswählen"]
[null,"Lieferant auswählen",null,null,{"$f":"IF(COUNTIF(D:D,D9731)=1,\"OK\",COUNTIF(D:D,D9731)=1)","v":false},null,null,null,null,{"$f":"H9731/(1+I9731)","v":0},null,"Kostenart auswählen"]
[null,"Lieferant auswählen",null,null,false,null,null,null,null,0,null,"Kostenart auswählen"]
[null,"Lieferant auswählen",null,null,false,null,null,null,null,0,null,"Kostenart auswählen"]
[null,"Lieferant auswählen",null,null,false,null,null,null,null,0,null,"Kostenart auswählen"]
[null,"Lieferant auswählen",null,null,false,null,null,null,null,0,null,"Kostenart auswählen"]
[null,"Lieferant auswählen",null,null,false,null,null,null,null,0,null,"Kostenart auswählen"]
[null,"Lieferant auswählen",null,null,false,null,null,null,null,0,null,"Kostenart auswählen"]
[null,"Lieferant auswählen",null,null,false,null,null,null,null,0,null,"Kostenart auswählen"]
[null,"Lieferant auswählen",null,null,false,null,null,null,null,0,null,"Kostenart auswählen"]
[null,"Lieferant auswählen",null,null,false,null,null,null,null,0,null,"Kostenart auswählen"]
[null,"Lieferant auswählen",null,null,false,null,null,null,null,0,null,"Kostenart auswählen"]
[null,"Lieferant auswählen",null,null,false,null,null,null,null,0,null,"Kostenart auswählen"]
[null,"Lieferant auswählen",null,null,false,null,null,null,null,0,null,"Kostenart auswählen"]
[null,"Lieferant auswählen",null,null,false,null,null,null,null,0,null,"Kostenart auswählen"]
[null,"Lieferant auswählen",null,null,false,null,null,null,null,0,null,"Kostenart auswählen"]
[null,"Lieferant auswählen",null,null,false,null,null,null,null,0,null,"Kostenart auswählen"]
[null,"Lieferant auswählen",null,null,false,null,null,null,null,0,null,"Kostenart auswählen"]
[null,"Lieferant auswählen",null,null,false,null,null,null,null,0,null,"Kostenart auswählen"]
[null,"Lieferant auswählen",null,null,false,null,null,null,null,0,null,"Kostenart auswählen"]
[null,"Lieferant auswählen",null,null,false,null,null,null,null,0,null,"Kostenart auswählen"]
[null,"Lieferant auswählen",null,null,false,null,null,null,null,0,null,"Kostenart auswählen"]
[null,"Lieferant auswählen",null,null,false,null,null,null,null,0,null,"Kostenart auswählen"]
[null,"Lieferant auswählen",null,null,false,null,null,null,null,0,null,"Kostenart auswählen"]
[null,"Lieferant auswählen",null,null,false,null,null,null,null,0,null,"Kostenart auswählen"]
[null,"Lieferant auswählen",null,null,false,null,null,null,null,0,null,"Kostenart auswählen"]
[null,"Lieferant auswählen",null,null,false,null,null,null,null,0,null,"Kostenart auswählen"]
[null,"Lieferant auswählen",null,null,false,null,null,null,null,0,null,"Kostenart auswählen"]
[null,"Lieferant auswählen",null,null,false,null,null,null,null,0,null,"Kostenart auswählen"]
[null,"Lieferant auswählen",null,null,false,null,null,null,null,0,null,"Kostenart auswählen"]
[null,"Lieferant auswählen",null,null,false,null,null,null,null,0,null,"Kostenart auswählen"]
[null,"Lieferant auswählen",null,null,false,null,null,null,null,0,null,"Kostenart auswählen"]
[null,"Lieferant auswählen",null,null,false,null,null,null,null,0,null,"Kostenart auswählen"]
[null,"Lieferant auswählen",null,null,false,null,null,null,null,0,null,"Kostenart auswählen"]
[null,"Lieferant auswählen",null,null,false,null,null,null,null,0,null,"Kostenart auswählen"]
[null,"Lieferant auswählen",null,null,false,null,null,null,null,0,null,"Kostenart auswählen"]
[null,"Lieferant auswählen",null,null,false,null,null,null,null,0,null,"Kostenart auswählen"]
[null,"Lieferant auswählen",null,null,false,null,null,null,null,0,null,"Kostenart auswählen"]
[null,"Lieferant auswählen",null,null,false,null,null,null,null,0,null,"Kostenart auswählen"]
[null,"Lieferant auswählen",null,null,false,null,null,null,null,0,null,"Kostenart auswählen"]
[null,"Lieferant auswählen",null,null,false,null,null,null,null,0,null,"Kostenart auswählen"]
[null,"Lieferant auswählen",null,null,false,null,null,null,null,0,null,"Kostenart auswählen"]
[null,"Lieferant auswählen",null,null,false,null,null,null,null,0,null,"Kostenart auswählen"]
[null,"Lieferant auswählen",null,null,false,null,null,null,null,0,null,"Kostenart auswählen"]
[null,"Lieferant auswählen",null,null,false,null,null,null,null,0,null,"Kostenart auswählen"]
[null,"Lieferant auswählen",null,null,false,null,null,null,null,0,null,"Kostenart auswählen"]
[null,"Lieferant auswählen",null,null,false,null,null,null,null,0,null,"Kostenart auswählen"]
[null,"Lieferant auswählen",null,null,false,null,null,null,null,0,null,"Kostenart auswählen"]
[null,"Lieferant auswählen",null,null,false,null,null,null,null,0,null,"Kostenart auswählen"]
[null,"Lieferant auswählen",null,null,false,null,null,null,null,0,null,"Kostenart auswählen"]
[null,"Lieferant auswählen",null,null,false,null,null,null,null,0,null,"Kostenart auswählen"]
[null,"Lieferant auswählen",null,null,false,null,null,null,null,0,null,"Kostenart auswählen"]
[null,"Lieferant auswählen",null,null,false,null,null,null,null,0,null,"Kostenart auswählen"]
[null,"Lieferant auswählen",null,null,false,null,null,null,null,0,null,"Kostenart auswählen"]
[null,"Lieferant auswählen",null,null,false,null,null,null,null,0,null,"Kostenart auswählen"]
[null,"Lieferant auswählen",null,null,false,null,null,null,null,0,null,"Kostenart auswählen"]
[null,"Lieferant auswählen",null,null,false,null,null,null,null,0,null,"Kostenart auswählen"]
[null,"Lieferant auswählen",null,null,false,null,null,null,null,0,null,"Kostenart auswählen"]
[null,"Lieferant auswählen",null,null,false,null,null,null,null,0,null,"Kostenart auswählen"]
[null,"Lieferant auswählen",null,null,false,null,null,null,null,0,null,"Kostenart auswählen"]
[null,"Lieferant auswählen",null,null,false,null,null,null,null,0,null,"Kostenart auswählen"]
[null,"Lieferant auswählen",null,null,false,null,null,null,null,0,null,"Kostenart auswählen"]
[null,"Lieferant auswählen",null,null,false,null,null,null,null,0,null,"Kostenart auswählen"]
[null,"Lieferant auswählen",null,null,false,null,null,null,null,0,null,"Kostenart auswählen"]
[null,"Lieferant auswählen",null,null,false,null,null,null,null,0,null,"Kostenart auswählen"]
[null,"Lieferant auswählen",null,null,{"$f":"IF(COUNTIF(D:D,D9795)=1,\"OK\",COUNTIF(D:D,D9795)=1)","v":false},null,null,null,null,{"$f":"H9795/(1+I9795)","v":0},null,"Kostenart auswählen"]
[null,"Lieferant auswählen",null,null,false,null,null,null,null,0,null,"Kostenart auswählen"]
[null,"Lieferant auswählen",null,null,false,null,null,null,null,0,null,"Kostenart auswählen"]
[null,"Lieferant auswählen",null,null,false,null,null,null,null,0,null,"Kostenart auswählen"]
[null,"Lieferant auswählen",null,null,false,null,null,null,null,0,null,"Kostenart auswählen"]
[null,"Lieferant auswählen",null,null,false,null,null,null,null,0,null,"Kostenart auswählen"]
[null,"Lieferant auswählen",null,null,false,null,null,null,null,0,null,"Kostenart auswählen"]
[null,"Lieferant auswählen",null,null,false,null,null,null,null,0,null,"Kostenart auswählen"]
[null,"Lieferant auswählen",null,null,false,null,null,null,null,0,null,"Kostenart auswählen"]
[null,"Lieferant auswählen",null,null,false,null,null,null,null,0,null,"Kostenart auswählen"]
[null,"Lieferant auswählen",null,null,false,null,null,null,null,0,null,"Kostenart auswählen"]
[null,"Lieferant auswählen",null,null,false,null,null,null,null,0,null,"Kostenart auswählen"]
[null,"Lieferant auswählen",null,null,false,null,null,null,null,0,null,"Kostenart auswählen"]
[null,"Lieferant auswählen",null,null,false,null,null,null,null,0,null,"Kostenart auswählen"]
[null,"Lieferant auswählen",null,null,false,null,null,null,null,0,null,"Kostenart auswählen"]
[null,"Lieferant auswählen",null,null,false,null,null,null,null,0,null,"Kostenart auswählen"]
[null,"Lieferant auswählen",null,null,false,null,null,null,null,0,null,"Kostenart auswählen"]
[null,"Lieferant auswählen",null,null,false,null,null,null,null,0,null,"Kostenart auswählen"]
[null,"Lieferant auswählen",null,null,false,null,null,null,null,0,null,"Kostenart auswählen"]
[null,"Lieferant auswählen",null,null,false,null,null,null,null,0,null,"Kostenart auswählen"]
[null,"Lieferant auswählen",null,null,false,null,null,null,null,0,null,"Kostenart auswählen"]
[null,"Lieferant auswählen",null,null,false,null,null,null,null,0,null,"Kostenart auswählen"]
[null,"Lieferant auswählen",null,null,false,null,null,null,null,0,null,"Kostenart auswählen"]
[null,"Lieferant auswählen",null,null,false,null,null,null,null,0,null,"Kostenart auswählen"]
[null,"Lieferant auswählen",null,null,false,null,null,null,null,0,null,"Kostenart auswählen"]
[null,"Lieferant auswählen",null,null,false,null,null,null,null,0,null,"Kostenart auswählen"]
[null,"Lieferant auswählen",null,null,false,null,null,null,null,0,null,"Kostenart auswählen"]
[null,"Lieferant auswählen",null,null,false,null,null,null,null,0,null,"Kostenart auswählen"]
[null,"Lieferant auswählen",null,null,false,null,null,null,null,0,null,"Kostenart auswählen"]
[null,"Lieferant auswählen",null,null,false,null,null,null,null,0,null,"Kostenart auswählen"]
[null,"Lieferant auswählen",null,null,false,null,null,null,null,0,null,"Kostenart auswählen"]
[null,"Lieferant auswählen",null,null,false,null,null,null,null,0,null,"Kostenart auswählen"]
[null,"Lieferant auswählen",null,null,false,null,null,null,null,0,null,"Kostenart auswählen"]
[null,"Lieferant auswählen",null,null,false,null,null,null,null,0,null,"Kostenart auswählen"]
[null,"Lieferant auswählen",null,null,false,null,null,null,null,0,null,"Kostenart auswählen"]
[null,"Lieferant auswählen",null,null,false,null,null,null,null,0,null,"Kostenart auswählen"]
[null,"Lieferant auswählen",null,null,false,null,null,null,null,0,null,"Kostenart auswählen"]
[null,"Lieferant auswählen",null,null,false,null,null,null,null,0,null,"Kostenart auswählen"]
[null,"Lieferant auswählen",null,null,false,null,null,null,null,0,null,"Kostenart auswählen"]
[null,"Lieferant auswählen",null,null,false,null,null,null,null,0,null,"Kostenart auswählen"]
[null,"Lieferant auswählen",null,null,false,null,null,null,null,0,null,"Kostenart auswählen"]
[null,"Lieferant auswählen",null,null,false,null,null,null,null,0,null,"Kostenart auswählen"]
[null,"Lieferant auswählen",null,null,false,null,null,null,null,0,null,"Kostenart auswählen"]
[null,"Lieferant auswählen",null,null,false,null,null,null,null,0,null,"Kostenart auswählen"]
[null,"Lieferant auswählen",null,null,false,null,null,null,null,0,null,"Kostenart auswählen"]
[null,"Lieferant auswählen",null,null,false,null,null,null,null,0,null,"Kostenart auswählen"]
[null,"Lieferant auswählen",null,null,false,null,null,null,null,0,null,"Kostenart auswählen"]
[null,"Lieferant auswählen",null,null,false,null,null,null,null,0,null,"Kostenart auswählen"]
[null,"Lieferant auswählen",null,null,false,null,null,null,null,0,null,"Kostenart auswählen"]
[null,"Lieferant auswählen",null,null,false,null,null,null,null,0,null,"Kostenart auswählen"]
[null,"Lieferant auswählen",null,null,false,null,null,null,null,0,null,"Kostenart auswählen"]
[null,"Lieferant auswählen",null,null,false,null,null,null,null,0,null,"Kostenart auswählen"]
[null,"Lieferant auswählen",null,null,false,null,null,null,null,0,null,"Kostenart auswählen"]
[null,"Lieferant auswählen",null,null,false,null,null,null,null,0,null,"Kostenart auswählen"]
[null,"Lieferant auswählen",null,null,false,null,null,null,null,0,null,"Kostenart auswählen"]
[null,"Lieferant auswählen",null,null,false,null,null,null,null,0,null,"Kostenart auswählen"]
[null,"Lieferant auswählen",null,null,false,null,null,null,null,0,null,"Kostenart auswählen"]
[null,"Lieferant auswählen",null,null,false,null,null,null,null,0,null,"Kostenart auswählen"]
[null,"Lieferant auswählen",null,null,false,null,null,null,null,0,null,"Kostenart auswählen"]
[null,"Lieferant auswählen",null,null,false,null,null,null,null,0,null,"Kostenart auswählen"]
[null,"Lieferant auswählen",null,null,false,null,null,null,null,0,null,"Kostenart auswählen"]
[null,"Lieferant auswählen",null,null,false,null,null,null,null,0,null,"Kostenart auswählen"]
[null,"Lieferant auswählen",null,null,false,null,null,null,null,0,null,"Kostenart auswählen"]
[null,"Lieferant auswählen",null,null,false,null,null,null,null,0,null,"Kostenart auswählen"]
[null,"Lieferant auswählen",null,null,{"$f":"IF(COUNTIF(D:D,D9859)=1,\"OK\",COUNTIF(D:D,D9859)=1)","v":false},null,null,null,null,{"$f":"H9859/(1+I9859)","v":0},null,"Kostenart auswählen"]
[null,"Lieferant auswählen",null,null,false,null,null,null,null,0,null,"Kostenart auswählen"]
[null,"Lieferant auswählen",null,null,false,null,null,null,null,0,null,"Kostenart auswählen"]
[null,"Lieferant auswählen",null,null,false,null,null,null,null,0,null,"Kostenart auswählen"]
[null,"Lieferant auswählen",null,null,false,null,null,null,null,0,null,"Kostenart auswählen"]
[null,"Lieferant auswählen",null,null,false,null,null,null,null,0,null,"Kostenart auswählen"]
[null,"Lieferant auswählen",null,null,false,null,null,null,null,0,null,"Kostenart auswählen"]
[null,"Lieferant auswählen",null,null,false,null,null,null,null,0,null,"Kostenart auswählen"]
[null,"Lieferant auswählen",null,null,false,null,null,null,null,0,null,"Kostenart auswählen"]
[null,"Lieferant auswählen",null,null,false,null,null,null,null,0,null,"Kostenart auswählen"]
[null,"Lieferant auswählen",null,null,false,null,null,null,null,0,null,"Kostenart auswählen"]
[null,"Lieferant auswählen",null,null,false,null,null,null,null,0,null,"Kostenart auswählen"]
[null,"Lieferant auswählen",null,null,false,null,null,null,null,0,null,"Kostenart auswählen"]
[null,"Lieferant auswählen",null,null,false,null,null,null,null,0,null,"Kostenart auswählen"]
[null,"Lieferant auswählen",null,null,false,null,null,null,null,0,null,"Kostenart auswählen"]
[null,"Lieferant auswählen",null,null,false,null,null,null,null,0,null,"Kostenart auswählen"]
[null,"Lieferant auswählen",null,null,false,null,null,null,null,0,null,"Kostenart auswählen"]
[null,"Lieferant auswählen",null,null,false,null,null,null,null,0,null,"Kostenart auswählen"]
[null,"Lieferant auswählen",null,null,false,null,null,null,null,0,null,"Kostenart auswählen"]
[null,"Lieferant auswählen",null,null,false,null,null,null,null,0,null,"Kostenart auswählen"]
[null,"Lieferant auswählen",null,null,false,null,null,null,null,0,null,"Kostenart auswählen"]
[null,"Lieferant auswählen",null,null,false,null,null,null,null,0,null,"Kostenart auswählen"]
[null,"Lieferant auswählen",null,null,false,null,null,null,null,0,null,"Kostenart auswählen"]
[null,"Lieferant auswählen",null,null,false,null,null,null,null,0,null,"Kostenart auswählen"]
[null,"Lieferant auswählen",null,null,false,null,null,null,null,0,null,"Kostenart auswählen"]
[null,"Lieferant auswählen",null,null,false,null,null,null,null,0,null,"Kostenart auswählen"]
[null,"Lieferant auswählen",null,null,false,null,null,null,null,0,null,"Kostenart auswählen"]
[null,"Lieferant auswählen",null,null,false,null,null,null,null,0,null,"Kostenart auswählen"]
[null,"Lieferant auswählen",null,null,false,null,null,null,null,0,null,"Kostenart auswählen"]
[null,"Lieferant auswählen",null,null,false,null,null,null,null,0,null,"Kostenart auswählen"]
[null,"Lieferant auswählen",null,null,false,null,null,null,null,0,null,"Kostenart auswählen"]
[null,"Lieferant auswählen",null,null,false,null,null,null,null,0,null,"Kostenart auswählen"]
[null,"Lieferant auswählen",null,null,false,null,null,null,null,0,null,"Kostenart auswählen"]
[null,"Lieferant auswählen",null,null,false,null,null,null,null,0,null,"Kostenart auswählen"]
[null,"Lieferant auswählen",null,null,false,null,null,null,null,0,null,"Kostenart auswählen"]
[null,"Lieferant auswählen",null,null,false,null,null,null,null,0,null,"Kostenart auswählen"]
[null,"Lieferant auswählen",null,null,false,null,null,null,null,0,null,"Kostenart auswählen"]
[null,"Lieferant auswählen",null,null,false,null,null,null,null,0,null,"Kostenart auswählen"]
[null,"Lieferant auswählen",null,null,false,null,null,null,null,0,null,"Kostenart auswählen"]
[null,"Lieferant auswählen",null,null,false,null,null,null,null,0,null,"Kostenart auswählen"]
[null,"Lieferant auswählen",null,null,false,null,null,null,null,0,null,"Kostenart auswählen"]
[null,"Lieferant auswählen",null,null,false,null,null,null,null,0,null,"Kostenart auswählen"]
[null,"Lieferant auswählen",null,null,false,null,null,null,null,0,null,"Kostenart auswählen"]
[null,"Lieferant auswählen",null,null,false,null,null,null,null,0,null,"Kostenart auswählen"]
[null,"Lieferant auswählen",null,null,false,null,null,null,null,0,null,"Kostenart auswählen"]
[null,"Lieferant auswählen",null,null,false,null,null,null,null,0,null,"Kostenart auswählen"]
[null,"Lieferant auswählen",null,null,false,null,null,null,null,0,null,"Kostenart auswählen"]
[null,"Lieferant auswählen",null,null,false,null,null,null,null,0,null,"Kostenart auswählen"]
[null,"Lieferant auswählen",null,null,false,null,null,null,null,0,null,"Kostenart auswählen"]
[null,"Lieferant auswählen",null,null,false,null,null,null,null,0,null,"Kostenart auswählen"]
[null,"Lieferant auswählen",null,null,false,null,null,null,null,0,null,"Kostenart auswählen"]
[null,"Lieferant auswählen",null,null,false,null,null,null,null,0,null,"Kostenart auswählen"]
[null,"Lieferant auswählen",null,null,false,null,null,null,null,0,null,"Kostenart auswählen"]
[null,"Lieferant auswählen",null,null,false,null,null,null,null,0,null,"Kostenart auswählen"]
[null,"Lieferant auswählen",null,null,false,null,null,null,null,0,null,"Kostenart auswählen"]
[null,"Lieferant auswählen",null,null,false,null,null,null,null,0,null,"Kostenart auswählen"]
[null,"Lieferant auswählen",null,null,false,null,null,null,null,0,null,"Kostenart auswählen"]
[null,"Lieferant auswählen",null,null,false,null,null,null,null,0,null,"Kostenart auswählen"]
[null,"Lieferant auswählen",null,null,false,null,null,null,null,0,null,"Kostenart auswählen"]
[null,"Lieferant auswählen",null,null,false,null,null,null,null,0,null,"Kostenart auswählen"]
[null,"Lieferant auswählen",null,null,false,null,null,null,null,0,null,"Kostenart auswählen"]
[null,"Lieferant auswählen",null,null,false,null,null,null,null,0,null,"Kostenart auswählen"]
[null,"Lieferant auswählen",null,null,false,null,null,null,null,0,null,"Kostenart auswählen"]
[null,"Lieferant auswählen",null,null,false,null,null,null,null,0,null,"Kostenart auswählen"]
[null,"Lieferant auswählen",null,null,{"$f":"IF(COUNTIF(D:D,D9923)=1,\"OK\",COUNTIF(D:D,D9923)=1)","v":false},null,null,null,null,{"$f":"H9923/(1+I9923)","v":0},null,"Kostenart auswählen"]
[null,"Lieferant auswählen",null,null,false,null,null,null,null,0,null,"Kostenart auswählen"]
[null,"Lieferant auswählen",null,null,false,null,null,null,null,0,null,"Kostenart auswählen"]
[null,"Lieferant auswählen",null,null,false,null,null,null,null,0,null,"Kostenart auswählen"]
[null,"Lieferant auswählen",null,null,false,null,null,null,null,0,null,"Kostenart auswählen"]
[null,"Lieferant auswählen",null,null,false,null,null,null,null,0,null,"Kostenart auswählen"]
[null,"Lieferant auswählen",null,null,false,null,null,null,null,0,null,"Kostenart auswählen"]
[null,"Lieferant auswählen",null,null,false,null,null,null,null,0,null,"Kostenart auswählen"]
[null,"Lieferant auswählen",null,null,false,null,null,null,null,0,null,"Kostenart auswählen"]
[null,"Lieferant auswählen",null,null,false,null,null,null,null,0,null,"Kostenart auswählen"]
[null,"Lieferant auswählen",null,null,false,null,null,null,null,0,null,"Kostenart auswählen"]
[null,"Lieferant auswählen",null,null,false,null,null,null,null,0,null,"Kostenart auswählen"]
[null,"Lieferant auswählen",null,null,false,null,null,null,null,0,null,"Kostenart auswählen"]
[null,"Lieferant auswählen",null,null,false,null,null,null,null,0,null,"Kostenart auswählen"]
[null,"Lieferant auswählen",null,null,false,null,null,null,null,0,null,"Kostenart auswählen"]
[null,"Lieferant auswählen",null,null,false,null,null,null,null,0,null,"Kostenart auswählen"]
[null,"Lieferant auswählen",null,null,false,null,null,null,null,0,null,"Kostenart auswählen"]
[null,"Lieferant auswählen",null,null,false,null,null,null,null,0,null,"Kostenart auswählen"]
[null,"Lieferant auswählen",null,null,false,null,null,null,null,0,null,"Kostenart auswählen"]
[null,"Lieferant auswählen",null,null,false,null,null,null,null,0,null,"Kostenart auswählen"]
[null,"Lieferant auswählen",null,null,false,null,null,null,null,0,null,"Kostenart auswählen"]
[null,"Lieferant auswählen",null,null,false,null,null,null,null,0,null,"Kostenart auswählen"]
[null,"Lieferant auswählen",null,null,false,null,null,null,null,0,null,"Kostenart auswählen"]
[null,"Lieferant auswählen",null,null,false,null,null,null,null,0,null,"Kostenart auswählen"]
[null,"Lieferant auswählen",null,null,false,null,null,null,null,0,null,"Kostenart auswählen"]
[null,"Lieferant auswählen",null,null,false,null,null,null,null,0,null,"Kostenart auswählen"]
[null,"Lieferant auswählen",null,null,false,null,null,null,null,0,null,"Kostenart auswählen"]
[null,"Lieferant auswählen",null,null,false,null,null,null,null,0,null,"Kostenart auswählen"]
[null,"Lieferant auswählen",null,null,false,null,null,null,null,0,null,"Kostenart auswählen"]
[null,"Lieferant auswählen",null,null,false,null,null,null,null,0,null,"Kostenart auswählen"]
[null,"Lieferant auswählen",null,null,false,null,null,null,null,0,null,"Kostenart auswählen"]
[null,"Lieferant auswählen",null,null,false,null,null,null,null,0,null,"Kostenart auswählen"]
[null,"Lieferant auswählen",null,null,false,null,null,null,null,0,null,"Kostenart auswählen"]
[null,"Lieferant auswählen",null,null,false,null,null,null,null,0,null,"Kostenart auswählen"]
[null,"Lieferant auswählen",null,null,false,null,null,null,null,0,null,"Kostenart auswählen"]
[null,"Lieferant auswählen",null,null,false,null,null,null,null,0,null,"Kostenart auswählen"]
[null,"Lieferant auswählen",null,null,false,null,null,null,null,0,null,"Kostenart auswählen"]
[null,"Lieferant auswählen",null,null,false,null,null,null,null,0,null,"Kostenart auswählen"]
[null,"Lieferant auswählen",null,null,false,null,null,null,null,0,null,"Kostenart auswählen"]
[null,"Lieferant auswählen",null,null,false,null,null,null,null,0,null,"Kostenart auswählen"]
[null,"Lieferant auswählen",null,null,false,null,null,null,null,0,null,"Kostenart auswählen"]
[null,"Lieferant auswählen",null,null,false,null,null,null,null,0,null,"Kostenart auswählen"]
[null,"Lieferant auswählen",null,null,false,null,null,null,null,0,null,"Kostenart auswählen"]
[null,"Lieferant auswählen",null,null,false,null,null,null,null,0,null,"Kostenart auswählen"]
[null,"Lieferant auswählen",null,null,false,null,null,null,null,0,null,"Kostenart auswählen"]
[null,"Lieferant auswählen",null,null,false,null,null,null,null,0,null,"Kostenart auswählen"]
[null,"Lieferant auswählen",null,null,false,null,null,null,null,0,null,"Kostenart auswählen"]
[null,"Lieferant auswählen",null,null,false,null,null,null,null,0,null,"Kostenart auswählen"]
[null,"Lieferant auswählen",null,null,false,null,null,null,null,0,null,"Kostenart auswählen"]
[null,"Lieferant auswählen",null,null,false,null,null,null,null,0,null,"Kostenart auswählen"]
[null,"Lieferant auswählen",null,null,false,null,null,null,null,0,null,"Kostenart auswählen"]
[null,"Lieferant auswählen",null,null,false,null,null,null,null,0,null,"Kostenart auswählen"]
[null,"Lieferant auswählen",null,null,false,null,null,null,null,0,null,"Kostenart auswählen"]
[null,"Lieferant auswählen",null,null,false,null,null,null,null,0,null,"Kostenart auswählen"]
[null,"Lieferant auswählen",null,null,false,null,null,null,null,0,null,"Kostenart auswählen"]
[null,"Lieferant auswählen",null,null,false,null,null,null,null,0,null,"Kostenart auswählen"]
[null,"Lieferant auswählen",null,null,false,null,null,null,null,0,null,"Kostenart auswählen"]
[null,"Lieferant auswählen",null,null,false,null,null,null,null,0,null,"Kostenart auswählen"]
[null,"Lieferant auswählen",null,null,false,null,null,null,null,0,null,"Kostenart auswählen"]
[null,"Lieferant auswählen",null,null,false,null,null,null,null,0,null,"Kostenart auswählen"]
[null,"Lieferant auswählen",null,null,false,null,null,null,null,0,null,"Kostenart auswählen"]
[null,"Lieferant auswählen",null,null,false,null,null,null,null,0,null,"Kostenart auswählen"]
[null,"Lieferant auswählen",null,null,false,null,null,null,null,0,null,"Kostenart auswählen"]
[null,"Lieferant auswählen",null,null,false,null,null,null,null,0,null,"Kostenart auswählen"]
[null,"Lieferant auswählen",null,null,{"$f":"IF(COUNTIF(D:D,D9987)=1,\"OK\",COUNTIF(D:D,D9987)=1)","v":false},null,null,null,null,{"$f":"H9987/(1+I9987)","v":0},null,"Kostenart auswählen"]
[null,"Lieferant auswählen",null,null,false,null,null,null,null,0,null,"Kostenart auswählen"]
[null,"Lieferant auswählen",null,null,false,null,null,null,null,0,null,"Kostenart auswählen"]
[null,"Lieferant auswählen",null,null,false,null,null,null,null,0,null,"Kostenart auswählen"]
[null,"Lieferant auswählen",null,null,false,null,null,null,null,0,null,"Kostenart auswählen"]
[null,"Lieferant auswählen",null,null,false,null,null,null,null,0,null,"Kostenart auswählen"]
[null,"Lieferant auswählen",null,null,false,null,null,null,null,0,null,"Kostenart auswählen"]
[null,"Lieferant auswählen",null,null,false,null,null,null,null,0,null,"Kostenart auswählen"]
[null,"Lieferant auswählen",null,null,false,null,null,null,null,0,null,"Kostenart auswählen"]
[null,"Lieferant auswählen",null,null,false,null,null,null,null,0,null,"Kostenart auswählen"]
[null,"Lieferant auswählen",null,null,false,null,null,null,null,0,null,"Kostenart auswählen"]
[null,"Lieferant auswählen",null,null,false,null,null,null,null,0,null,"Kostenart auswählen"]
[null,"Lieferant auswählen",null,null,false,null,null,null,null,0,null,"Kostenart auswählen"]
[null,"Lieferant auswählen",null,null,false,null,null,null,null,0,null,"Kostenart auswählen"]
[null,"Lieferant auswählen",null,null,false,null,null,null,null,0,null,"Kostenart auswählen"]
[null,"Lieferant auswählen",null,null,false,null,null,null,null,0,null,"Kostenart auswählen"]

{"sheet":"DATEV Buchungsexport","index":1,"n_rows":1,"n_cols":8,"rows_kept":1,"cut":false,"hidden":false,"merged":[]}
["Datum","BU","Konto","Gegenkonto","Belegfeld 1","Buchungstext","Umsatz","S/H"]

{"sheet":"Kostenarten","index":2,"n_rows":102,"n_cols":3,"rows_kept":102,"cut":false,"hidden":false,"merged":[]}
["Kostenart auswählen","Konto Nr.","Kontobezeichnung"]
[]
[]
[]
[]
[]
[]
[]
[]
[]
[]
[]
[]
[]
[]
[]
[]
[]
[]
[]
[]
[]
[]
[]
[]
[]
[]
[]
[]
[]
[]
[]
[]
[]
[]
[]
[]
[]
[]
[]
[]
[]
[]
[]
[]
[]
[]
[]
[]
[]
[]
[]
[]
[]
[]
[]
[]
[]
[]
[]
[]
[]
[]
[]
[]
[]
[]
[]
[]
[]
[]
[]
[]
[]
[]
[]
[]
[]
[]
[]
[]
[]
[]
[]
[]
[]
[]
[]
[]
[]
[]
[]
[]
[]
[]
[]
[]
[]
[]
[]
[]
["Die Abfrage in RE-Buch geht nur bis hierhin - für mehr Konten müssen oben Zeilen eingefügt werden"]

{"sheet":"Lieferanten","index":3,"n_rows":1,"n_cols":3,"rows_kept":1,"cut":false,"hidden":false,"merged":[]}
["Lieferant auswählen","Kreditorenkonto","Kreditor"]

{"sheet":"DATA","index":4,"n_rows":7,"n_cols":28,"rows_kept":7,"cut":false,"hidden":false,"merged":[]}
["MWST. Satz","Rechnungsart"]
[0,"Rechnung",null,null,null,null,null,null,null,null,null,null,null,{"$f":"A2&E2&G2","v":"0"},null,null,null,null,{"$f":"SUM(S3:S10002)","v":0},null,"Datum","BU","Konto","Gegenkonto","Belegfeld 1","Buchungstext","Umsatz","S/H"]
[7.0000000000000007E-2,"Gutschrift",80,null,null,null,null,null,null,null,null,null,null,null,{"$f":"VLOOKUP(E3&C3&G3,'DATEV Buchungsexport'!$N:$N,1,0)","v":{"$error":"#N/A"}},null,1,{"$f":"IF(N3=\"x\",B3&D3&E3&F3&H3,\"\")","v":""},{"$f":"IF(N3=\"x\",IF(OR(B3=\"\",B3=\"Lieferant auswählen\",C3=\"\",D3=\"\",F3=\"\",I3=\"\",H3=\"\",L3=\"\",L3=\"Kostenart auswählen\"),1,0),0)","v":0},{"$f":"IFERROR(IF(VLOOKUP(F3&D3&H3,'DATEV Buchungsexport'!$N:$N,1,0)>0,$N$1,\"\"),\"\")","v":""},{"$f":"F3","v":"00:00:00"},{"$f":"VLOOKUP(I3,DATA!$A$2:$C$4,3,0)","v":0},{"$f":"VLOOKUP(L3,Kostenarten!A:B,2,0)","v":{"$error":"#N/A"}},{"$f":"VLOOKUP(B3,Lieferanten!$A:$B,2,0)","v":{"$error":"#N/A"}},{"$f":"D3","v":0},{"$f":"B3&DATA!$D$7&L3&DATA!$D$7&K3&DATA!$D$7&G3","v":"Gutschrift |  |  | "},{"$f":"H3","v":0},{"$f":"IF(C3=\"Gutschrift\",\"H\",\"S\")","v":"S"}]
[0.19,null,90,null,null,null,null,null,null,null,null,null,null,null,null,null,{"$f":"Q3+1","v":2},{"$f":"IF(N4=\"x\",B4&D4&E4&F4&H4,\"\")","v":""},0,{"$f":"IFERROR(IF(VLOOKUP(F4&D4&H4,'DATEV Buchungsexport'!$N:$N,1,0)>0,$N$1,\"\"),\"\")","v":""}]
[]
[]
[null,null,"Trennzeichen für Buchungstext:"," | "]

{"sheet":"omkantine.de","index":5,"n_rows":8,"n_cols":9,"rows_kept":8,"cut":false,"hidden":false,"merged":[]}
[]
[null,"Blog Artikel:"]
[null,"http://www.omkantine.de/rechnungseingangsbuch-als-excel-vorlage-mit-datev-export/"]
[]
[null,"Download:"]
[null,"http://www.omkantine.de/attachments/Rechnungseingangsbuch.xlsm"]
[null,"http://www.omkantine.de/attachments/Rechnungseingangsbuch_Beispiel.xlsm"]
[null,"http://www.omkantine.de/attachments/Rechnungseingangsbuch.xlsx",null,null,null,null,null,null,"<-- die Version ohne Makros und Export"]